{"text_format":"1","workbook":"xlsx","n_sheets":8,"sheets":["INSTRUCCIONES","LISTA_ACT_ASP_IMP","LISTA_NORMAS","ASP E IMP","REP ASPEC IMPAC","DATOS ASP","REQUISITOS LEGALES","REP REQ LEG"],"not_rendered":{"charts":6,"images":27,"macros":1,"external_links":2,"defined_names":75,"comments":3,"pivot_tables":4},"unopened":[],"bounds":{"document_bytes":16777216,"sheet_cells":100000,"rows_first":2000,"rows_last":500,"rows_between":2000,"halvings":0,"cell_chars":16384,"cell_head_chars":4096},"cells_cut":0,"cells_raw":0,"read":"row_number_cap","date_system":"1900"}

{"sheet":"INSTRUCCIONES","index":0,"n_rows":55,"n_cols":9,"rows_kept":55,"cut":false,"hidden":false,"merged":[[54,2,54,8],[42,2,44,2],[42,3,44,3],[42,4,42,8],[43,4,43,8],[44,4,44,8],[45,2,45,8],[47,2,47,8],[49,2,49,8],[53,2,53,8],[48,2,48,8],[46,2,46,8],[50,2,50,8],[51,2,51,8],[52,2,52,8],[37,4,37,8],[38,4,38,8],[23,2,23,8],[24,2,24,8],[36,4,36,8],[19,2,19,8],[25,1,44,1],[25,2,25,8],[26,4,26,8],[27,2,34,2],[35,2,36,2],[35,3,36,3],[39,2,41,2],[39,3,41,3],[39,4,39,8],[40,4,40,8],[41,4,41,8],[35,4,35,8],[20,2,20,8],[22,2,22,8],[37,2,38,2],[15,2,15,8],[18,2,18,8],[21,2,21,8],[17,2,17,8],[0,1,0,8],[12,2,12,8],[13,2,13,8],[16,2,16,8],[1,1,9,2],[4,8,5,8],[1,3,9,6],[1,7,3,7],[4,7,5,7],[6,7,9,8],[1,8,3,8],[14,2,14,8]]}
[]
[null,null,null,"PROCESO SERVICIOS ADMINISTRATIVOS\n\nMATRIZ DE ASPECTOS E IMPACTOS AMBIENTALES , REQUISITOS LEGALES Y OTROS REQUISITOS\n\nINSTRUCCIONES",null,null,null,"F1.P22.SA ",43788]
[]
[]
[null,null,null,null,null,null,null,"Versión 5","Página 1 de 1"]
[]
[null,null,null,null,null,null,null,"CLASIFICACIÓN DE LA INFORMACIÓN:\nPÚBLICA"]
[]
[]
[]
[]
[]
[null,"No.","INSTRUCCIÓN"]
[null,1,"Una vez descargado este archivo, proceda a guardarlo en el repositorio en la ruta \\\\172.16.9.31\\ArchivosICBF\\SharePoint\\Mejoramiento Continuo\\Eje Ambiental\\\"NOMBRE DE LA REGIONAL\"\\\"AÑO DE APLICACIÓN\"\\5. MATRICES ASP-IMP Y REQ LEG y asigne de la siguiente manera el nombre al archivo, EJEMPLO \"REG BOGOTA_MATRIZ DE ASP_IMP_REQ_LEG\""]
[null,2,"NOTA ACLARATORIA: Las siguientes son las columnas son  las que se encuentran formuladas y se recomienda precaución al momento de eliminar la información ya que esto puede alterar el contenido de la matriz.\n\nPESTAÑA ASP E IMP\n\nSECCION:\nTipo de sede\nRegional / Centro Zonal / Unidad Local\nProceso\tDependencia\nActividad\n\nIDENTIFICACION DE ASPECTO Y VALORACIÓN DE IMPACTOS - Todas las colunmas exceptuando \"Ubicación del Impacto\"\n\nSITUACIONES DE EMERGENCIA - Todas las colunmas exceptuando \"Controles para la Emergencia Ambiental\"  \n\nPESTAÑA REQUISITOS LEGALES\n\nSECCION:\nAspecto Ambiental\nNorma y título\nCUMPLE SI/NO\n\n\n"]
[null,3,"Antes de iniciar el diligenciamiento de la matriz, se debe realizar la verificación y actualización de la siguiente información de las pestañas: \n\n1. LISTA_ACT_ASP_IMP, en la cual se debe incluir, si se considera actividades, aspectos e impactos ambientales y emergencias ambientales nuevas o no identificadas.\n\n2. LISTA_NORMAS, en la cual se debe incluir, la normatividad no identificada y la aplicable a nivel regional "]
[null,4,"Ingrese a la hoja de cálculo datos en el siguiente orden:\n- Alcance, hace referencia a la espacialidad en el cual hará referencia la matriz de aspectos e impactos ambietales, es decir Sede de la Dirección General o Regional.\n\nSi selecciona Regional, en la casilla siguiente se muestra el listado de las regionales.\nSi seleccciona Sede de la Dirección General, en la casilla siguiente aparecerá nuevamente Sede de la Direccion General.\n"]
[null,4,"Ingrese a la hoja de cálculo los siguientes datos, teniendo en cuenta las siguientes responsabilidades\n\n\n\n\n\n\n\n\n\n\n\n                                                                                                                                                                                                                                                                                                    "]
[null,5,"Inicie el diligencimiento de la Matriz de Identificación y Valoración de Aspectos e Impactos Ambientales seleccionando el TIPO DE SEDE, el cual especifica la naturaleza del establecimiento.\n- Regional\n- Centro Zonal - Cz\n- Unidad Local - Aplicas para las regionales que tengan unidades locales\n- Unidad Administrativa: Hace referencia a los establecimientos como bodegas de inservibles, archivos y almacen,\nque no hagan parte de la infraestructura de la Regional y/o Centro Zonal.\n\n\n\nNota: El diligenciamiento de la matriz para las Regionales y Centros Zonales se debe efectuar de la siguiente manera:\n- Se debe diligenciar toda la información relacionada con la regional, luego \n- Se debe diligenciar la información relacionada con los centros zonales, es decir, centro zonal por centro zonal\n\n\n\n"]
[null,6,"Una vez seleccionado el \"TIPO DE SEDE\", se procede a seleccionar  \"Regional / Centro Zonal / Unidad Local, la cual despliega el nombre de la respectiva regional, centro zonal y unidad local de referencia\n\n\n\n\n\n\n\n\n\n\n"]
[null,7,"Luego se procede a seleccionar el PROCESO al que se esta aplicando esta identificación y valoración:\n\n\n\n\n\n\n\n\n\n\n\n\n\n\n"]
[null,8,"En caso que la matriz sea dirigida hacia el componente de procesos, se debe diligenciar la casilla DEPENDENCIA\n\n\n\n\n\n\n\n\n\n\n\n\n\n\n\n\n\n"]
[null,9,"Una vez diligenciado la información anterior se debe proceder a diligenciar la siguiente información agrupada en DESCRIPCION DE ACTIVIDADES, las cuales se presentan a continuación:\n\n\n\n\n\n\n\n\n\n\n\n1. Selecciona del listado  \"ACTIVIDADES\" aquellas actividades relacionadas con la prestación del servicio administrativo o misional\nNota: Si la \"ACTIVIDAD\" que desea seleccionar no se encuentra en el listado, remitase a la pestaña denominada LISTA_ACT_ASP_IMP, seleccione la columna de \"ACTIVIDADES\" y al final de la lista diligencie la actividad deseada.\n2. En el titulo de CONTEXTO \n- Para el tipo DIRECTO marcar con una X si el generador de la actividad  hace parte de los colaboradores del instituto (contratistas y personal de planta). Ejemplo: Tecnicos de sistemas.                                                                                                          \n- Para el tipo CONTRATISTA/PROVEEDORES marcar con una X si el generador de la actividad  hace parte de los contratistas de servicios generales y proveedores. Ejemplo: Personal de aseo, cafetería, vigilancia, obras, etc.  \n- Para el tipo COMUNIDAD/CLIENTES marcar con una X si el generador de la actividad  hace parte de los visitantes, operador de unidades de servicios que realicen sus actividades dentro de sedes administrativas. Ejemplo: visitantes del centro zonal,  operadores que trabajen dentro de las unidades de servicios.                                                                                                                                                                                                                                                        3. Definir para cada uno de las \"ACTIVIDADES\" el \"ESTADO\" de las mismas, especificando si se encuentran en ejecución o son nuevas \n4. Determinar si las \"ACTIVIDADES\" definidas son  normales o anormales, contemplando los siguientes criterios y codificación:                                                                                                           \nCondiciones normarles (N): \"ACTIVIDADES\" que normalmente se realizan, cotidianamente, ejemplo: lavado de tanques, aseo y cafetería\nCondiciones anormales (A): \"ACTIVIDADES\" que se realizan esporádicamente, Ejem: adecuaciones a la infraestructura"]
[null,10,"Del listado de \"Aspectos Ambientales\" seleccione los asociados a las diferentes actividades identificadas.\nAspecto Ambiental:  Elemento de las actividades, productos o servicios de una organización que interactúa o puede interactuar con el medio ambiente, es decir, se debe entender como el resultado, consecuencia, salida o producto con capacidad de generar un impacto ambiental.\n\nNota: Si el \"Aspecto Ambiental\" que desea seleccionar no se encuentra en el listado, remitirse a la pestaña denominada LISTA _ACT_ASP_IMP, seleccione la columna de ASPECTOS AMBIENTALES y al final de la lista diligencie el aspecto deseado.                                                                                                                                                                                                                                                                                                                     \n\n\n\n\n\n\n\n\n\n                                                                                                                                                                                                                                                                                                                                        "]
[null,11,"De acuerdo con la información identificada en la columna de \"Aspecto Ambiental\" seleccione el o los impactos ambientales correspondientes en la columna denominada el  \"Impacto Ambiental\" \n\nImpacto Ambiental: Cualquier cambio en el medio ambiente, ya sea adverso o beneficioso, como resultado total o parcial de los aspectos ambientales de una organización, tambien la podemos entender como la alteración de la calidad ambiental que  surge de la modificación de los procesos naturales o sociales ocasionada por la intervención antropica.\n\nNota: Si  el \"Impacto Ambiental\" que desea seleccionar no se encuentra en el listado, remitirse a la pestaña denominada LISTA _ACT_ASP_IMP, seleccione la columna de IMPACTOS AMBIENTALES y al final de la lista diligencie el impacto deseado.                                                                                                                                                                                                                                                                                                                     \n\n\n\n\n\n\n\n"]
[null,12,"Un vez identificado el \"Impacto Ambiental\" proceda a realizar la valoración del mismo de acuerdo con los siguientes criterios:"]
[null,null,"Criterio","Definición","Parámetro"]
[null,null,"Impacto Ambiental valorado","Para cada criterio se especifican los parámetros de evaluación cualitativa y cuantitativa de acuerdo a esta tabla.\nSe obtiene una calificación para cada impacto por medio de la fórmula:"]
[null,null,null,"Impacto = C * (3M + F + E) donde,"]
[null,null,null,null,null,"Valoración","Negativo","Positivo"]
[null,null,null,"C = Carácter",null,"Alto","[-12,-10]","[10,12]"]
[null,null,null,"M = Magnitud",null,"Medio","[-9, -7]","[7, 9]"]
[null,null,null,"F = Frecuencia ",null," Bajo"," [-6 , -5]"," [5, 6]"]
[null,null,null,"E = Extensión "]
[null,null,null,"Los aspectos ambientales significativos serán aquellos considerados en la representacion de los aspectos relacionados a las actividades identificadas. "]
[null,null,"Carácter","Efecto que tiene el Impacto Ambiental en el Medio Ambiente.","Positivo (+): Cuando el Impacto Ambiental mejora el componente del medio ambiente en que se presenta. "]
[null,null,null,null,"Negativo (-): Cuando el Impacto Ambiental es perjudicial para el componente del Medio Ambiente en que se presenta."]
[null,null,"Magnitud","Percepción de la cantidad de residuos, agua residual, ruido, material particulado, u otro contaminante que causa el Impacto Ambiental, medible en unidades de volumen (m3), masa (kg), caudal (l/s).","                                                                                                                                                                                                                                                                                                                                                    Alta (2): Cuando el Impacto Ambiental genera un cambio significativo en un componente del medio ambiente. "]
[null,null,null,"Nota: Si hacen falta elementos de medición de un impacto ambiental se pueden utilizar criterios como Número Unidades Aplicativas, Centros Zonales, Hogares Infantiles u otros, en los que se presenta el Impacto ambiental que se está evaluando.","Baja (1): Cuando el Impacto Ambiental no genera cambios significativos en un componente ambiental."]
[null,null,"Frecuencia","Ocasiones en las que se presenta el  impacto ambiental.","Constante (3): Cuando el Impacto Ambiental se genera todos los días en que se realiza la actividad, se presta el servicio u opera el programa."]
[null,null,null,null,"Frecuente (2): Cuando el Impacto Ambiental se presenta regularmente durante el desarrollo de la actividad, prestación del servicio u operación del programa."]
[null,null,null,null,"Eventual (1): Cuando el Impacto Ambiental se presenta rara vez durante el desarrollo de la actividad,  la prestación del servicio u operación del programa."]
[null,null,"Extensión","Hace referencia al espacio geográfico en que se manifiesta el Impacto Ambiental.","Regional (3): Cuando el impacto ambiental puede afectar una región, ciudad o municipio"]
[null,null,null,null,"Zonal (2): Cuando el impacto ambiental se manifiesta en las zonas circundantes a la infraestructura que está generando el impacto."]
[null,null,null,null,"Puntual (1):  Cuando el Impacto Ambiental se manifiesta a nivel de unidad aplicativa o sedes del ICBF "]
[null,13,"Se debe enunciar el  o los posibles lugares en los cuales se presenta el impacto identificado y valorado, en la columna \"UBICACION DEL IMPACTO\".\nEs preciso mencionar la ubicación especifica del impacto  ejemplo cuarto de calderas, planta electrica, entre otras; sin embargo es posible describir todas las oficinas, esto siempre y cuando el impacto ambiental sea a nivel general\n\n\n\n\n\n\n\n\n\n\n\n\n"]
[null,14,"Una vez identificado las  \"ACTIVIDADES\", se debe espeficar que actividades \"PUEDE GENERAR SITUACIÓN DE EMERGENCIA\"  en condiciones normales y anormales \n\nIndicar  SI o NO  la actividad puede generar una  emergencia. Ejem: cargue de combustible a la planta eléctrica, reenvase de sustancias químicas, almacenamiento de RAEEs.                                                                                                                                                                                                                                                                                                                                                                          \n\nNOTA:   Las actividades que se definan como  situacion de emergencia deberán ser insumo para la identificacion de amenazas y evaluación de riesgos en los procesos de elaboracion y actualizacion de los Planes Institucionales de Respuesta ante Emergencia.\n"]
[null,15,"Si se marco \"SI\" en la casilla ANTERIOR indicando que la actividad puede generar una situación de emergencia, en la casilla de la descripcion de la emergencia ambiental  debe desplegar la lista seleccionabale y  referenciar a cual de estas se encuentra asociada.  \n\nEjemplo: Cargue o descargue de combustible o hidrocarburos en la planta eléctrica (actividad).  Descripción de la Emergencia: Derrame de materiales peligrosos producto de condiciones inadecuadas en la manipulación y almacenamiento de hidrocarburos."]
[null,16,"Indicar cuales son los controles que se deben implementar para mitigar la respectiva emergencia ambiental. \nEjemplo: Cargue o descargue de combustible o hidrocarburos en la planta eléctrica (actividad). Controles: 1. Realizar capacitación al personal de mantenimiento sobre manejo y uso adecuado de sustancias quimicas y derivados de hidrocarburos. 2. Garantizar la existencia de las hojas de seguridad y adecuada interpretación por parte del personal de mantenimiento. 3. Garantizar que los kit antiderrames cuenten con los debidos elementos y sean suficientes para garantizar la antencion. 5. Contar con muro de contencion."]
[null,17,"DOCUMENTO EVIDENCIA DE EJECUCIÓN: \nNota: Es indispensable especificar la ruta donde se encuentra el soporte que evidencia el control operaciónal y el requisito legal\nOBSERVACIONES: Indique cualquier información adicional sobre el Programa Institucional, Proyecto, Actividad, Aspecto Ambiental, Impacto o la Valorazión que permita dar claridad al posible lector. Incluya ubicación de los aspectos y detalles que aproximen a la realidad. También puede incluir aclaración sobre la decisión en la calificación del Impacto."]
[null,18,"PESTAÑA DE INFORME \"INF ASPEC IMPAC\"\n\nAl momento de terminar el diligenciamiento de la matriz, se debe remitir a la pestaña de reporte, en cual se evidenciará la siguiente información:\n\n1. CARÁCTER DEL IMPACTO \n2. ACTIVIDADES QUE DERIVAN SITUACIONES DE EMERGENCIA\nPara los dos titulos anteriores la información se actualizará automaticamente.\n\nPara los siguientes titulos se debe dar clic en el boton:                                                                                                                                                                                de esta manera se actualizaran:\n\n3. ASPECTOS AMBIENTALES\n4. IMPACTOS AMBIENTALES POSITIVOS\n5. IMPACTOS AMBIENTALES NEGATIVOS\n\nNota: Tener esta información actualizada para la actualizacion de los Planes de Gestión Ambiental y los informes de Revisión por la Dirección."]
[null,19,"IDENTIFICACIÓN DE REQUISITOS LEGALES \"REQUISITOS LEGALES\"\n\n1. Los aspectos ambientales serán los identificados en la matriz inicial y a travez de la lista desplegable se seleccionara cada uno de los aspectos.\n2. Posterior a la identificación de los aspectos, se debe establecer la Norma y titulo la cual esta habilida en lista desplegable.\n3. El diligenciamiento de la siguiente información se debe hacer de manera manual con  excepción del nivel de cumplimiento el cual esta por lista desplegable SI/NO\n\n\n\n\n\n\n\nPara aquellos requisitos identificados de NO CUMPLIMIENTO, se debe generar un plan de acción donde su alcance sea a nivel Regional y Centro Zonal diligenciando la siguiente información:\n\n\n\n\n\nNota:  La relación de las evidencias debe ser especifica, es decir describir si es acta de reunión, o el nombre de un formato, etc.  NO relacionar la ruta de publicación.\n              La publicacion de las evidencias del plan de accion se debe realizar en la carpeta de matriz de aspectos e impactos asignada para la vigencia"]
[null,20,"PESTAÑA DE INFORME \"INF REQ LEG\"\n\nConsiderando la información identificada anteriormente,  en esta pestaña se identificara el nivel de cumplimiento de requisitos legales y cuales son aquellos que se estan incumplimiendo. Esta actualización se debe hacer a traves del siguiente boton:"]
[null,22,"Guarde los cambios al documento y notifique su actualización."]
[null,23,"Nota: Haga el respectivo seguimiento a las acciones formuladas en el Control Operacional y los planes de acción formulados"]

{"sheet":"LISTA_ACT_ASP_IMP","index":1,"n_rows":118,"n_cols":7,"rows_kept":118,"cut":false,"hidden":false,"merged":[[1,0,9,0],[1,1,9,2],[4,3,5,3],[1,3,3,3],[6,3,9,4],[1,4,3,4],[4,4,5,4]]}
[]
[null,"PROCESO SERVICIOS ADMINISTRATIVOS\n\nMATRIZ DE ASPECTOS E IMPACTOS AMBIENTALES , REQUISITOS LEGALES Y OTROS REQUISITOS\n\nLISTADO DE ACTIVIDADES, ASPECTOS E IMPACTOS AMBIENTALES",null,"F1.P22.SA ",43788]
[]
[]
[null,null,null,"Versión 5","Página 1 de 1"]
[]
[null,null,null,"CLASIFICACIÓN DE LA INFORMACIÓN:\nPÚBLICA"]
[]
[]
[]
[]
[]
["ACTIVIDADES",null,"ASPECTOS AMBIENTALES",null,"IMPACTOS AMBIENTALES",null,"EMERGENCIAS AMBIENTALES"]
["Actividades pedagógicas, campañas educativas, sensibilización y capacitación.",null,null,null,"Aprovechamiento de energías alternativas - Paneles solares",null,"Derrame de materiales peligrosos producto de condiciones inadecuadas en la manipulación y almacenamiento de sustancias químicas de aseo y mantenimiento."]
["Almacenamiento de AAVN",null,"Acumulación de residuos especiales (Llantas, escombros, textiles, otros)",null,"Absorción y disminución de Dióxido de carbono - Siembra de arboles",null,"Derrame de materiales peligrosos producto de condiciones inadecuadas en la manipulación y almacenamiento de hidrocarburos."]
["Almacenamiento de alimentos y/o materias primas",null,"Acumulación de residuos sólidos ",null,"Afectación a la comunidad",null,"Derrame de materiales peligrosos producto de condiciones inadecuadas en la manipulación y almacenamiento de residuos peligrosos."]
["Almacenamiento de bienes con características de peligrosidad",null,"Acumulación de RESPEL",null,"Afectación al paisaje",null,"Colapso en el cuarto de almacenamiento de residuos aprovechables, que al no tener las condiciones adecuadas puede generar acumulación excesiva, incendios y proliferación de roedores."]
["Almacenamiento de donaciones ",null,"Acumulación por RAEE'S - Electrodomésticos y eléctricos",null,"Agotamiento de la biodiversidad",null,"Colapso en los cuartos de almacenamiento de residuos especiales y peligrosos, que al no tener las condiciones adecuadas puede generar acumulación excesiva, incendios, proliferación de roedores, derrame de sustancias peligrosas, acumulación de gases y explosión."]
["Almacenamiento de residuos aprovechables",null,"Acumulación por RAEE'S - Periféricos",null,"Agotamiento de los recursos naturales",null,"Colapso en el cuarto de almacenamiento de residuos ordinarios, que al no tener las condiciones adecuadas puede generar acumulación excesiva, derrame de lixiviados, proliferación de roedores, acumulación de gases, exploción e incendios."]
["Almacenamiento de residuos especiales",null,"Aprovechamiento de agua lluvias",null,"Agotamiento de recursos naturales NO renovables",null,"Inundación en las instalaciones por altas precipitaciones y taponamiento en las redes de desagüe."]
["Almacenamiento de sustancias químicas",null,"Aprovechamiento de energías renovables (Solar, eólica, biomasa)",null,"Ahorro de combustibles",null,"Inundación en las instalaciones por fugas en las redes y sistemas hidrosanitarios."]
["Almacenamiento y/o conservación de archivo",null,"Aprovechamiento de luz natural",null,"Ahorro de energía",null,"Volcamiento de árboles que puede generar afectación al medio ambiente, a las infraestrucutras, entre otros."]
["Aprovechamiento de luz natural ",null,"Aprovechamiento de residuos sólidos (jardinería, poda y tala) para compostaje",null,"Ahorro de recursos hídricos",null,"Proliferación excesiva de vectores y roedores producto de las condiciones sanitarias de los inmubles, predios vecinos y condiciones de la Region, entre otros."]
["Aseo a las instalaciones",null,"Consumo de agua",null,"Alteración  de olores ofensivos ",null,"Incendios producto de instalaciones eléctricas inadecuadas y falta de mantenimiento"]
["Aseo y limpieza de caninos en labores de vigilancia",null,"Consumo de combustibles",null,"Alteración de emisiones atmosféricas (por fuentes móviles)"]
["Atención al usuario",null,"Consumo de energía",null,"Alteración de la calidad del agua (vertimientos o lixiviados)"]
["Atención medica",null,"Consumo de gas natural",null,"Alteración emisiones atmosféricas (por fuentes fijas)"]
["Cargue o descargue de combustible o hidrocarburos en la planta eléctrica",null,"Consumo de insumos para actividades de limpieza y desinfección",null,"Aprovechamiento de residuos"]
["Compra de elementos de oficina",null,"Consumo de insumos para mantenimiento",null,"Bioacumulación de metales pesados"]
["Compra/alquiler y mantenimiento de Hardware",null,"Consumo de papel",null,"Cambios adversos en los ecosistemas"]
["Construcción, adecuación y remodelación de instalaciones",null,"Control de fugas ",null,"Conciencia ambiental"]
["Control de plagas ",null,null,null,"Conservación de recursos naturales"]
["Desactivación de AAVN vencidos o averiados",null,"Derrame de sustancias químicas - Insumos de aseo, limpieza y desinfección",null,"Conservación del recurso hídrico"]
["Desarrollo de actividades administrativas",null,"Derrame de sustancias químicos - hidrocarburos, combustibles y derivados",null,"Contaminación auditiva (ruido)"]
["Devolución de bombillas ahorradoras a fabricantes y/o gestores de residuos",null,"Disminución de consumo de agua",null,"Contaminación de aguas subterráneas"]
["Distribución de AAVN",null,"Disminución de residuos especiales",null,"Contaminación de aguas superficiales"]
["Distribución de alimentos",null,"Disminución de residuos peligrosos",null,"Contaminación de aire"]
["Distribución de refrigerio",null,"Disminución del consumo de energía",null,"Contaminación del agua"]
["Dotación de chalecos",null,"Educación ambiental y adopción de mejores prácticas ambientales",null,"Contaminación del suelo"]
["Eliminación de copias/duplicados de documentos internos y externos",null,"Eliminación de residuos acuosos (Lodos, grasas)",null,"Contaminación del suelo por lixiviados"]
["Eliminación y/o disposición final de residuos peligrosos (Tóneres, luminarias, pinturas, baterías)",null,"Escape de gases que afectan la capa de ozono",null,"Contaminación del suelo por residuos sólidos"]
["Entrega de afiches y material pedagógico",null,"Generación de emisiones atmosféricas provenientes de almacenamiento de sustancias químicas y/o hidrocarburos.",null,"Contaminación visual"]
["Entrega de paquetes alimentarios",null,"Generación de emisiones atmosféricas provenientes de fuentes fijas",null,"Contribución a la calidad del aire"]
["Entrega y disposición de residuos sólidos aprovechables",null,"Generación de emisiones atmosféricas provenientes de fuentes móviles",null,"Control y disminución del ruido"]
["Foliado & rotulado de documentos, carpetas y cajas ",null,"Generación de emisiones efecto invernadero",null,"Deforestación"]
["Funcionamiento de aires acondicionados ",null,"Generación de espacios verdes",null,"Degradación de suelos"]
["Funcionamiento de instalaciones",null,"Generación de fugas o escapes de sustancias líquidas, semisólidas y gases",null,"Erosión "]
["Georreferenciación de arbolado",null,"Generación de lixiviados",null,"Perdida de Biodiversidad"]
["Impermeabilización de instalaciones, superficies, recintos, salas, otros",null,"Generación de material particulado ",null,"Producción de oxigeno"]
["Implementación de fachadas y techos verdes",null,"Generación de olores y/o vapores por sustancias volátiles ",null,"Proliferación de vectores"]
["Implementación de huertas ecológicas",null,"Generación de residuos aprovechables orgánicos",null,"Promoción de buenas practicas ambientales"]
["Implementación de sistemas de compostaje",null,"Generación de residuos aprovechables reciclables",null,"Reducción de afectación ambiental"]
["Implementación de tecnologías limpias (paneles solares, molinos de viento, energía por biomasa, otros)",null,"Generación de residuos aprovechables reutilizables",null,"Reforestación"]
["Instalación & mantenimiento de circuito cerrado de tv",null,"Generación de residuos de manejo especial - aceites y grasas",null,"Uso del suelo"]
["Instalación de aires acondicionados",null,"Generación de residuos de manejo especial - escombros o RCD"]
["Instalación de luminarias y bombillos ahorradores",null,"Generación de residuos de manejo especial - llantas"]
["Instalación y adecuación de puestos de trabajo",null,"Generación de residuos de manejo especial - Luminarias"]
["Instalación y cambio de luminarias y balastros",null,"Generación de residuos de manejo especial - Textiles"]
["Instalación y mantenimiento de dispositivos ahorradores de energía",null,"Generación de residuos de manejo especial - Tóneres"]
["Labores de jardinería ",null,"Generación de residuos de material vegetal"]
["Limpieza de documentos de archivo (eliminación de material abrasivo)",null,"Generación de residuos NO aprovechables"]
["Limpieza y desinfección de redes hidráulicas",null,"Generación de residuos ordinarios"]
["Limpieza y mantenimiento de cubiertas ",null,"Generación de residuos peligrosos -  contenido PCB"]
["Manipulación productos químicos gaseosos, líquidos y Sólidos",null,"Generación de residuos peligrosos - aseo"]
["Mantenimiento a cuartos eléctricos (Subestaciones y plantas eléctricas)",null,"Generación de residuos peligrosos - baterías y pilas"]
["Mantenimiento aires acondicionados",null,"Generación de residuos peligrosos - envases de fumigación"]
["Mantenimiento correctivo de medios de transporte (carro, lancha, moto, etc.)",null,"Generación de residuos peligrosos - medicamentos vencidos"]
["Mantenimiento cuartos de sistemas y datos (Rack)",null,"Generación de residuos peligrosos - origen hospitalario"]
["Mantenimiento de ascensor",null,"Generación de residuos peligrosos - pinturas y lubricantes"]
["Mantenimiento de Bodegas ",null,"Generación de residuos peligrosos - RAEE'S."]
["Mantenimiento de bomba hidroneumática",null,"Generación de residuos por la entrega de alimentos"]
["Mantenimiento de calderas",null,"Generación de ruido por  fuentes fijas"]
["Mantenimiento de cuartos de almacenamiento de sustancias químicas",null,"Generación de ruido por alarmas perifoneo o altos parlantes "]
["Mantenimiento de cuartos de residuos sólidos",null,"Generación de ruidos por fuente de combustión interna"]
["Mantenimiento de estructuras de cubiertas",null,"Generación de vertimientos - ARD"]
["Mantenimiento de filtros purificadores de agua",null,"Generación de vertimientos con descargas a un cuerpo subterráneo"]
["Mantenimiento de motobombas",null,"Generación de vertimientos con descargas a un cuerpo superficial "]
["Mantenimiento de obras complementarias - bajantes y canaletas",null,"Generación de vibraciones "]
["Mantenimiento de obras complementarias - piletas",null,"Intervención del paisaje"]
["Mantenimiento de obras complementarias - pozos séptico",null,"Optimización del rendimiento de los motores (Lanchas, motos, carros)"]
["Mantenimiento de obras complementarias - tanques de almacenamiento de agua",null,"Separación de residuos en la fuente"]
["Mantenimiento de redes hidráulicas",null,"Uso de publicidad exterior"]
["Mantenimiento de trampa de grasas"]
["Mantenimiento de zonas verdes "]
["Mantenimiento equipos de oficina"]
["Mantenimiento locativo"]
["Mantenimiento neveras"]
["Mantenimiento pozos sépticos"]
["Mantenimiento redes eléctricas"]
["Mantenimiento redes Hidrosanitaria"]
["Mantenimiento tanques almacenamiento de agua"]
["Perforado de documentos para legajar y archivar en carpeta"]
["Preparación de alimentos"]
["Producción de AAVN"]
["Reuniones operativas"]
["Sensibilización en mejores prácticas ambientales "]
["Servicio de cafetería "]
["Servicio de restaurante en casino"]
["Servicio de seguridad & vigilancia (con caninos)"]
["Servicio de transporte aéreo"]
["Servicio de transporte fluvial "]
["Servicio de transporte terrestre "]
["Siembra de Arboles - Compensación ambiental"]
["Suministro de elementos de ferretería"]
["Suministro de materiales pedagógicos y lúdicos"]
["Tala y poda de individuos forestales"]
["Transporte y suministro de combustible"]
["Trasiego o trasvase de sustancias químicas"]
["Uso de baños"]
["Uso de baños portátiles"]
["Uso de bombillas ahorradoras"]
["Uso de botiquines"]
["Uso de papel"]
["Uso de parqueaderos"]
["Uso de puntos ecológicos o contenedores de separación de residuos sólidos"]
["Uso de sustancias químicas"]
["Vallas Institucionales"]
["Valoración medica y/o nutricional"]

{"sheet":"LISTA_NORMAS","index":2,"n_rows":33,"n_cols":5,"rows_kept":33,"cut":false,"hidden":false,"merged":[[20,0,20,4],[21,0,21,4],[22,0,22,4],[30,0,30,4],[31,0,31,4],[32,0,32,4],[33,0,33,4],[35,0,35,4],[36,0,36,4],[34,0,34,4],[29,0,29,4],[23,0,23,4],[47,0,47,4],[48,0,48,4],[49,0,49,4],[50,0,50,4],[51,0,51,4],[52,0,52,4],[42,0,42,4],[24,0,24,4],[25,0,25,4],[26,0,26,4],[27,0,27,4],[28,0,28,4],[41,0,41,4],[37,0,37,4],[38,0,38,4],[39,0,39,4],[40,0,40,4],[43,0,43,4],[44,0,44,4],[45,0,45,4],[46,0,46,4],[1,0,9,0],[1,1,9,2],[1,3,3,3],[1,4,3,4],[4,3,5,3],[4,4,5,4],[6,3,9,4],[19,0,19,4],[11,0,11,4],[12,0,12,4],[13,0,13,4],[14,0,14,4],[15,0,15,4],[16,0,16,4],[17,0,17,4],[18,0,18,4],[59,0,59,4],[60,0,60,4],[61,0,61,4],[62,0,62,4],[63,0,63,4],[64,0,64,4],[53,0,53,4],[54,0,54,4],[55,0,55,4],[56,0,56,4],[57,0,57,4],[58,0,58,4],[71,0,71,4],[72,0,72,4],[73,0,73,4],[74,0,74,4],[75,0,75,4],[76,0,76,4],[65,0,65,4],[66,0,66,4],[67,0,67,4],[68,0,68,4],[69,0,69,4],[70,0,70,4],[83,0,83,4],[84,0,84,4],[85,0,85,4],[86,0,86,4],[87,0,87,4],[88,0,88,4],[77,0,77,4],[78,0,78,4],[79,0,79,4],[80,0,80,4],[81,0,81,4],[82,0,82,4],[95,0,95,4],[96,0,96,4],[97,0,97,4],[98,0,98,4],[99,0,99,4],[100,0,100,4],[89,0,89,4],[90,0,90,4],[91,0,91,4],[92,0,92,4],[93,0,93,4],[94,0,94,4],[107,0,107,4],[108,0,108,4],[109,0,109,4],[110,0,110,4],[111,0,111,4],[112,0,112,4],[101,0,101,4],[102,0,102,4],[103,0,103,4],[104,0,104,4],[105,0,105,4],[106,0,106,4],[119,0,119,4],[120,0,120,4],[121,0,121,4],[122,0,122,4],[123,0,123,4],[124,0,124,4],[113,0,113,4],[114,0,114,4],[115,0,115,4],[116,0,116,4],[117,0,117,4],[118,0,118,4],[131,0,131,4],[132,0,132,4],[133,0,133,4],[134,0,134,4],[135,0,135,4],[136,0,136,4],[125,0,125,4],[126,0,126,4],[127,0,127,4],[128,0,128,4],[129,0,129,4],[130,0,130,4],[143,0,143,4],[144,0,144,4],[145,0,145,4],[146,0,146,4],[147,0,147,4],[148,0,148,4],[137,0,137,4],[138,0,138,4],[139,0,139,4],[140,0,140,4],[141,0,141,4],[142,0,142,4],[155,0,155,4],[156,0,156,4],[157,0,157,4],[158,0,158,4],[159,0,159,4],[160,0,160,4],[149,0,149,4],[150,0,150,4],[151,0,151,4],[152,0,152,4],[153,0,153,4],[154,0,154,4],[167,0,167,4],[168,0,168,4],[169,0,169,4],[170,0,170,4],[171,0,171,4],[172,0,172,4],[161,0,161,4],[162,0,162,4],[163,0,163,4],[164,0,164,4],[165,0,165,4],[166,0,166,4],[179,0,179,4],[180,0,180,4],[181,0,181,4],[182,0,182,4],[183,0,183,4],[184,0,184,4],[173,0,173,4],[174,0,174,4],[175,0,175,4],[176,0,176,4],[177,0,177,4],[178,0,178,4],[197,0,197,4],[198,0,198,4],[199,0,199,4],[192,0,192,4],[193,0,193,4],[194,0,194,4],[195,0,195,4],[196,0,196,4],[185,0,185,4],[186,0,186,4],[187,0,187,4],[188,0,188,4],[189,0,189,4],[190,0,190,4],[191,0,191,4]]}
[]
[null,"PROCESO SERVICIOS ADMINISTRATIVOS\n\nMATRIZ DE ASPECTOS E IMPACTOS AMBIENTALES , REQUISITOS LEGALES Y OTROS REQUISITOS\n\nLISTA DE NORMAS ",null,"F1.P22.SA ",43788]
[]
[]
[null,null,null,"Versión 5","Página 1 de 1"]
[]
[null,null,null,"CLASIFICACIÓN DE LA INFORMACIÓN:\nPÚBLICA"]
[]
[]
[]
[]
["NORMA"]
["Resolucion  472 de 2017 Por la cual se reglamenta la gestión integral de los residuos generados en las actividades de Construcción y Demolición (RCD) y se dictan otras disposiciones."]
["Decreto 1073 de 2015 Por medio del cual se expide el Decreto Único Reglamentario del Sector Minas y Energia"]
["Decreto 1076 de 2015 Por medio del cual se expide el Decreto Único Reglamentario del Sector Ambiente y Desarrollo Sostenible"]
["Decreto 1077 de 2015 Por medio del cual se expide el decreto Unico Reglamentario del Sector Vivienda, Ciudad y Territorio"]
["Decreto 1079 de 2015 Por medio del cual se expide el Decreto Único Reglamentario del Sector Transporte"]
["Directiva presidencia 06 de 2014  Plan de austeridad en el gasto"]
["Resolución 5771 de 2014 por la cual se modifica el artículo 4o de la Resolución 3959 de 2012', publicada en el Diario Oficial No. 49.306 de 16 de octubre de 2014"]
["Directiva presidencia l  04 de 2012  Eficiencia adminisrtrativa y lineamiento de la politica cero papel en la administración"]
["Resolución 1297 de 2010 10 Por la cual se establecen los Sistemas de Recolección Selectiva y Gestión Ambiental de Residuos de Pilas y/o Acumuladores y se adoptan otras disposiciones"]
["Resolución 1457 de 2010 10 Por la cual se establecen los Sistemas de Recolección Selectiva y Gestión Ambiental de Llantas Usadas y se adoptan otras disposiciones."]
["Resolución 1511 de 2010 10 Por la cual se establecen los Sistemas de Recolección Selectiva y Gestión Ambiental de Residuos de Bombillas y se adoptan otras disposiciones."]
["Resolución 1512 de 2010 10 Por la cual se establecen los Sistemas de Recolección Selectiva y Gestión Ambiental de Residuos de Computadores y/o Periféricos y se adoptan otras disposicioneS."]
["Resolución 840 de 2009 9 expedida por DIRECCION GENERAL DEL INSTITUTO COLOMBIANO DE BIENESTAR FAMILIAR. Por la cual se adopta la Política Ambiental del Instituto Colombiano de Bienestar Familiar - Cecilia de la Fuente de Lleras y se establecen responsabilidades en la implementación del Sistema de Gestión Ambiental (SGA)"]
["Resolución 180606 de 2008 2008 Por la cual se especifican los requisitos técnicos que deben tener las fuentes lumínicas de alta eficacia usadas en sedes de entidades públicas."]
["Decreto 1575 de 2007 por el cual se establece el Sistema para la Protección y Control de la Calidad del Agua para Consumo Humano."]
["Ley 697 de 2001  Mediante la cual se fomenta el uso racional y eficiente de la energía, se promueve la utilización de energías alternativas y se dictan otras disposiciones."]
["Decreto 3102 de 1997 Por el cual se reglamenta el artículo 15 de la Ley 373 de 1997 en relación con la instalación de equipos, sistemas e implementos de bajo consumo de agua."]
["Ley 373 de 1997  Por la cual se establece el programa para el uso eficiente y ahorro del agua"]
["Ley 55 de 1993  Por medio de la cual se aprueba el \"Convenio No. 170 y la ados por la 77a. Reunión de la Conferencia General de la O.I.T., Ginebra, 1990 Recomendación número 177 sobre la Seguridad en la Utilización de los Productos Químicos en el trabajo\",  adopt"]
["Decreto 140 de 1994  por la cual se reglamenta la Publicidad Exterior Visual en el Territorio Nacional"]
["Ley 9 de 1979  Por la cual se dictan Medidas  Sanitarias."]

{"sheet":"ASP E IMP","index":3,"n_rows":535,"n_cols":33,"rows_kept":535,"cut":false,"hidden":false,"merged":[[11,2,11,32],[19,8,19,10],[20,8,20,10],[21,8,21,10],[22,8,22,10],[12,5,12,9],[19,11,19,12],[21,11,21,12],[0,9,2,9],[3,9,4,9],[0,2,9,4],[0,10,2,11],[3,10,4,11],[5,9,9,11],[0,5,9,8],[30,4,32,4],[30,3,32,3],[30,2,32,2],[27,2,29,6],[31,13,32,13],[30,7,32,7],[30,8,30,10],[30,5,32,5],[30,6,32,6],[30,11,30,12],[30,13,30,14],[31,8,32,8],[31,9,31,10],[31,11,32,11],[31,12,32,12],[31,14,32,14],[23,11,23,12],[25,11,25,12],[27,15,27,25],[27,7,29,14],[23,8,23,10],[24,8,24,10],[25,8,25,10],[28,25,32,25],[28,15,32,15],[28,16,32,16],[28,17,32,17],[28,19,32,19],[28,18,32,18],[28,20,32,20],[28,22,32,22],[28,24,32,24],[28,26,32,26],[28,21,32,21],[28,23,32,23],[28,27,32,27],[27,30,27,32],[28,32,32,32],[28,28,32,28],[28,29,32,29],[28,30,32,30],[28,31,32,31],[27,27,27,29]]}
[null,null,null,null,null,"PROCESO SERVICIOS ADMINISTRATIVOS\n\nMATRIZ DE IDENTIFICACION DE ASPECTOS Y VALORACION DE IMPACTOS, REQUISITOS LEGALES Y OTROS REQUISITOS AMBIENTALES",null,null,null,"F1.P22.SA ",43788]
[]
[]
[null,null,null,null,null,null,null,null,null,"Versión 5","Página 1 de 1"]
[]
[null,null,null,null,null,null,null,null,null,"CLASIFICACIÓN DE LA INFORMACIÓN:\n PÚBLICA"]
[]
[]
[]
[]
[]
[]
[null,null,null,null,null,"\nMATRIZ DE VALORACIÓN DE ASPECTOS E IMPACTOS AMBIENTALES"]
[]
[]
[null,null,null,null,null,"ALCANCE",null,null,null,null,null,null,null,null,null,null,null,null,null,{"$f":"VLOOKUP(G16,'DATOS ASP'!D22:E23,2,FALSE)","v":{"$error":"#N/A"}}]
[null,null,null,null,null,null,null,null,null,null,null,null,null,null,null,null,null,null,null,1]
[null,null,null,null,null,{"$f":"IF(OR(G16=\"Regional\"),\"REGIONAL\",\"SEDE DE LA DIRECCION GENERAL\")","v":"SEDE DE LA DIRECCION GENERAL"},null,null,null,null,null,null,null,null,null,null,null,null,{"$f":"VLOOKUP(G18,REGIONAL,1,FALSE)","v":{"$error":"#N/A"}},{"$f":"VLOOKUP(G18,'DATOS ASP'!A36:A53,2,FALSE)","v":{"$error":"#N/A"}}]
[]
[null,null,null,null,null,"NOMBRE DE QUIEN ELABORO",null,null,"FECHA DE ELABORACIÓN"]
[]
[null,null,null,null,null,"NOMBRE DE QUIEN REVISA",null,null,"FECHA DE REVISIÓN"]
[]
[null,null,null,null,null,"NOMBRE QUIEN REVISA (ENLACE AMBIENTAL)",null,null,"FECHA DE VALIDACION"]
[null,null,null,null,null,null,null,null,null,null,null,null,null,null,null,null,null,null,null,null,null,null,null,null,null,null,null,"SI"]
[null,null,null,null,null,"NOMBRE DE QUIEN APRUEBA",null,null,"FECHA DE APROBACIÓN",null,null,null,null,null,null,null,null,null,null,null,null,null,null,null,null,null,null,"NO"]
[]
[null,null,"DESCRIPCION GENERAL",null,null,null,null,"DESCRIPCION DE ACTIVIDADES",null,null,null,null,null,null,null,"IDENTIFICACION DE ASPECTO Y VALORACIÓN DE IMPACTOS",null,null,null,null,null,null,null,null,null,null,null,"SITUACIONES DE EMERGENCIA",null,null,"CONTROL OPERACIONAL "]
[null,null,null,null,null,null,null,null,null,null,null,null,null,null,null,"Aspecto Ambiental","Impacto Ambiental","Carácter","CAL","Magnitud ","CAL","Frecuencia","CAL","Extensión","CAL","Impacto valorado","Ubicación del impacto","¿Esta actividad me puede generar una situación de emergencia?","Descripción de la  Emergencia Ambiental ","Controles para la Emergencia Ambiental  ","Acciones de Prevención, Mitigación, Reducción y Control","DOCUMENTO EVIDENCIA EJECUCIÓN","OBSERVACIONES"]
[]
[null,null,"No.","Tipo de sede","Regional / Centro Zonal / Unidad Local","Proceso","Dependencia","Actividad","CONTEXTO",null,null,"ESTADO",null,"CONDICION DE OPERACIÓN"]
[null,null,null,null,null,null,null,null,"Directo","Influencia",null,"En ejecución","Nueva  ","Normal","Anormal"]
[null,null,null,null,null,null,null,null,null,"Contratista/ proveedores","Comunidad/Clientes"]
[null,null,1,null,null,null,null,null,null,null,null,null,null,null,null,null,null,null,{"$f":"VLOOKUP(R34,'DATOS ASP'!$I$22:$J$23, 2,FALSE)","v":{"$error":"#N/A"}},null,{"$f":"VLOOKUP(T34,'DATOS ASP'!$I$26:$J$27,2,FALSE)","v":{"$error":"#N/A"}},null,{"$f":"VLOOKUP(V34,'DATOS ASP'!$K$22:$L$24,2,FALSE)","v":{"$error":"#N/A"}},null,{"$f":"VLOOKUP(X34,'DATOS ASP'!$M$22:$N$24,2,FALSE)","v":{"$error":"#N/A"}},{"$f":"S34*((3*U34)+W34+Y34)","v":{"$error":"#N/A"}}]
[null,null,2,null,null,null,null,null,null,null,null,null,null,null,null,null,null,null,{"$f":"VLOOKUP(R35,'DATOS ASP'!$I$22:$J$23, 2,FALSE)","v":{"$error":"#N/A"}},null,{"$f":"VLOOKUP(T35,'DATOS ASP'!$I$26:$J$27,2,FALSE)","v":{"$error":"#N/A"}},null,{"$f":"VLOOKUP(V35,'DATOS ASP'!$K$22:$L$24,2,FALSE)","v":{"$error":"#N/A"}},null,{"$f":"VLOOKUP(X35,'DATOS ASP'!$M$22:$N$24,2,FALSE)","v":{"$error":"#N/A"}},{"$error":"#N/A"}]
[null,null,3,null,null,null,null,null,null,null,null,null,null,null,null,null,null,null,{"$f":"VLOOKUP(R36,'DATOS ASP'!$I$22:$J$23, 2,FALSE)","v":{"$error":"#N/A"}},null,{"$f":"VLOOKUP(T36,'DATOS ASP'!$I$26:$J$27,2,FALSE)","v":{"$error":"#N/A"}},null,{"$f":"VLOOKUP(V36,'DATOS ASP'!$K$22:$L$24,2,FALSE)","v":{"$error":"#N/A"}},null,{"$f":"VLOOKUP(X36,'DATOS ASP'!$M$22:$N$24,2,FALSE)","v":{"$error":"#N/A"}},{"$error":"#N/A"}]
[null,null,4,null,null,null,null,null,null,null,null,null,null,null,null,null,null,null,{"$f":"VLOOKUP(R37,'DATOS ASP'!$I$22:$J$23, 2,FALSE)","v":{"$error":"#N/A"}},null,{"$f":"VLOOKUP(T37,'DATOS ASP'!$I$26:$J$27,2,FALSE)","v":{"$error":"#N/A"}},null,{"$f":"VLOOKUP(V37,'DATOS ASP'!$K$22:$L$24,2,FALSE)","v":{"$error":"#N/A"}},null,{"$f":"VLOOKUP(X37,'DATOS ASP'!$M$22:$N$24,2,FALSE)","v":{"$error":"#N/A"}},{"$error":"#N/A"}]
[null,null,5,null,null,null,null,null,null,null,null,null,null,null,null,null,null,null,{"$f":"VLOOKUP(R38,'DATOS ASP'!$I$22:$J$23, 2,FALSE)","v":{"$error":"#N/A"}},null,{"$f":"VLOOKUP(T38,'DATOS ASP'!$I$26:$J$27,2,FALSE)","v":{"$error":"#N/A"}},null,{"$f":"VLOOKUP(V38,'DATOS ASP'!$K$22:$L$24,2,FALSE)","v":{"$error":"#N/A"}},null,{"$f":"VLOOKUP(X38,'DATOS ASP'!$M$22:$N$24,2,FALSE)","v":{"$error":"#N/A"}},{"$error":"#N/A"}]
[null,null,6,null,null,null,null,null,null,null,null,null,null,null,null,null,null,null,{"$f":"VLOOKUP(R39,'DATOS ASP'!$I$22:$J$23, 2,FALSE)","v":{"$error":"#N/A"}},null,{"$f":"VLOOKUP(T39,'DATOS ASP'!$I$26:$J$27,2,FALSE)","v":{"$error":"#N/A"}},null,{"$f":"VLOOKUP(V39,'DATOS ASP'!$K$22:$L$24,2,FALSE)","v":{"$error":"#N/A"}},null,{"$f":"VLOOKUP(X39,'DATOS ASP'!$M$22:$N$24,2,FALSE)","v":{"$error":"#N/A"}},{"$error":"#N/A"}]
[null,null,7,null,null,null,null,null,null,null,null,null,null,null,null,null,null,null,{"$f":"VLOOKUP(R40,'DATOS ASP'!$I$22:$J$23, 2,FALSE)","v":{"$error":"#N/A"}},null,{"$f":"VLOOKUP(T40,'DATOS ASP'!$I$26:$J$27,2,FALSE)","v":{"$error":"#N/A"}},null,{"$f":"VLOOKUP(V40,'DATOS ASP'!$K$22:$L$24,2,FALSE)","v":{"$error":"#N/A"}},null,{"$f":"VLOOKUP(X40,'DATOS ASP'!$M$22:$N$24,2,FALSE)","v":{"$error":"#N/A"}},{"$error":"#N/A"}]
[null,null,8,null,null,null,null,null,null,null,null,null,null,null,null,null,null,null,{"$f":"VLOOKUP(R41,'DATOS ASP'!$I$22:$J$23, 2,FALSE)","v":{"$error":"#N/A"}},null,{"$f":"VLOOKUP(T41,'DATOS ASP'!$I$26:$J$27,2,FALSE)","v":{"$error":"#N/A"}},null,{"$f":"VLOOKUP(V41,'DATOS ASP'!$K$22:$L$24,2,FALSE)","v":{"$error":"#N/A"}},null,{"$f":"VLOOKUP(X41,'DATOS ASP'!$M$22:$N$24,2,FALSE)","v":{"$error":"#N/A"}},{"$error":"#N/A"}]
[null,null,9,null,null,null,null,null,null,null,null,null,null,null,null,null,null,null,{"$f":"VLOOKUP(R42,'DATOS ASP'!$I$22:$J$23, 2,FALSE)","v":{"$error":"#N/A"}},null,{"$f":"VLOOKUP(T42,'DATOS ASP'!$I$26:$J$27,2,FALSE)","v":{"$error":"#N/A"}},null,{"$f":"VLOOKUP(V42,'DATOS ASP'!$K$22:$L$24,2,FALSE)","v":{"$error":"#N/A"}},null,{"$f":"VLOOKUP(X42,'DATOS ASP'!$M$22:$N$24,2,FALSE)","v":{"$error":"#N/A"}},{"$error":"#N/A"}]
[null,null,10,null,null,null,null,null,null,null,null,null,null,null,null,null,null,null,{"$f":"VLOOKUP(R43,'DATOS ASP'!$I$22:$J$23, 2,FALSE)","v":{"$error":"#N/A"}},null,{"$f":"VLOOKUP(T43,'DATOS ASP'!$I$26:$J$27,2,FALSE)","v":{"$error":"#N/A"}},null,{"$f":"VLOOKUP(V43,'DATOS ASP'!$K$22:$L$24,2,FALSE)","v":{"$error":"#N/A"}},null,{"$f":"VLOOKUP(X43,'DATOS ASP'!$M$22:$N$24,2,FALSE)","v":{"$error":"#N/A"}},{"$error":"#N/A"}]
[null,null,11,null,null,null,null,null,null,null,null,null,null,null,null,null,null,null,{"$f":"VLOOKUP(R44,'DATOS ASP'!$I$22:$J$23, 2,FALSE)","v":{"$error":"#N/A"}},null,{"$f":"VLOOKUP(T44,'DATOS ASP'!$I$26:$J$27,2,FALSE)","v":{"$error":"#N/A"}},null,{"$f":"VLOOKUP(V44,'DATOS ASP'!$K$22:$L$24,2,FALSE)","v":{"$error":"#N/A"}},null,{"$f":"VLOOKUP(X44,'DATOS ASP'!$M$22:$N$24,2,FALSE)","v":{"$error":"#N/A"}},{"$error":"#N/A"}]
[null,null,12,null,null,null,null,null,null,null,null,null,null,null,null,null,null,null,{"$f":"VLOOKUP(R45,'DATOS ASP'!$I$22:$J$23, 2,FALSE)","v":{"$error":"#N/A"}},null,{"$f":"VLOOKUP(T45,'DATOS ASP'!$I$26:$J$27,2,FALSE)","v":{"$error":"#N/A"}},null,{"$f":"VLOOKUP(V45,'DATOS ASP'!$K$22:$L$24,2,FALSE)","v":{"$error":"#N/A"}},null,{"$f":"VLOOKUP(X45,'DATOS ASP'!$M$22:$N$24,2,FALSE)","v":{"$error":"#N/A"}},{"$error":"#N/A"}]
[null,null,13,null,null,null,null,null,null,null,null,null,null,null,null,null,null,null,{"$f":"VLOOKUP(R46,'DATOS ASP'!$I$22:$J$23, 2,FALSE)","v":{"$error":"#N/A"}},null,{"$f":"VLOOKUP(T46,'DATOS ASP'!$I$26:$J$27,2,FALSE)","v":{"$error":"#N/A"}},null,{"$f":"VLOOKUP(V46,'DATOS ASP'!$K$22:$L$24,2,FALSE)","v":{"$error":"#N/A"}},null,{"$f":"VLOOKUP(X46,'DATOS ASP'!$M$22:$N$24,2,FALSE)","v":{"$error":"#N/A"}},{"$error":"#N/A"}]
[null,null,14,null,null,null,null,null,null,null,null,null,null,null,null,null,null,null,{"$f":"VLOOKUP(R47,'DATOS ASP'!$I$22:$J$23, 2,FALSE)","v":{"$error":"#N/A"}},null,{"$f":"VLOOKUP(T47,'DATOS ASP'!$I$26:$J$27,2,FALSE)","v":{"$error":"#N/A"}},null,{"$f":"VLOOKUP(V47,'DATOS ASP'!$K$22:$L$24,2,FALSE)","v":{"$error":"#N/A"}},null,{"$f":"VLOOKUP(X47,'DATOS ASP'!$M$22:$N$24,2,FALSE)","v":{"$error":"#N/A"}},{"$error":"#N/A"}]
[null,null,15,null,null,null,null,null,null,null,null,null,null,null,null,null,null,null,{"$f":"VLOOKUP(R48,'DATOS ASP'!$I$22:$J$23, 2,FALSE)","v":{"$error":"#N/A"}},null,{"$f":"VLOOKUP(T48,'DATOS ASP'!$I$26:$J$27,2,FALSE)","v":{"$error":"#N/A"}},null,{"$f":"VLOOKUP(V48,'DATOS ASP'!$K$22:$L$24,2,FALSE)","v":{"$error":"#N/A"}},null,{"$f":"VLOOKUP(X48,'DATOS ASP'!$M$22:$N$24,2,FALSE)","v":{"$error":"#N/A"}},{"$error":"#N/A"}]
[null,null,16,null,null,null,null,null,null,null,null,null,null,null,null,null,null,null,{"$f":"VLOOKUP(R49,'DATOS ASP'!$I$22:$J$23, 2,FALSE)","v":{"$error":"#N/A"}},null,{"$f":"VLOOKUP(T49,'DATOS ASP'!$I$26:$J$27,2,FALSE)","v":{"$error":"#N/A"}},null,{"$f":"VLOOKUP(V49,'DATOS ASP'!$K$22:$L$24,2,FALSE)","v":{"$error":"#N/A"}},null,{"$f":"VLOOKUP(X49,'DATOS ASP'!$M$22:$N$24,2,FALSE)","v":{"$error":"#N/A"}},{"$error":"#N/A"}]
[null,null,17,null,null,null,null,null,null,null,null,null,null,null,null,null,null,null,{"$f":"VLOOKUP(R50,'DATOS ASP'!$I$22:$J$23, 2,FALSE)","v":{"$error":"#N/A"}},null,{"$f":"VLOOKUP(T50,'DATOS ASP'!$I$26:$J$27,2,FALSE)","v":{"$error":"#N/A"}},null,{"$f":"VLOOKUP(V50,'DATOS ASP'!$K$22:$L$24,2,FALSE)","v":{"$error":"#N/A"}},null,{"$f":"VLOOKUP(X50,'DATOS ASP'!$M$22:$N$24,2,FALSE)","v":{"$error":"#N/A"}},{"$error":"#N/A"}]
[null,null,18,null,null,null,null,null,null,null,null,null,null,null,null,null,null,null,{"$f":"VLOOKUP(R51,'DATOS ASP'!$I$22:$J$23, 2,FALSE)","v":{"$error":"#N/A"}},null,{"$f":"VLOOKUP(T51,'DATOS ASP'!$I$26:$J$27,2,FALSE)","v":{"$error":"#N/A"}},null,{"$f":"VLOOKUP(V51,'DATOS ASP'!$K$22:$L$24,2,FALSE)","v":{"$error":"#N/A"}},null,{"$f":"VLOOKUP(X51,'DATOS ASP'!$M$22:$N$24,2,FALSE)","v":{"$error":"#N/A"}},{"$error":"#N/A"}]
[null,null,19,null,null,null,null,null,null,null,null,null,null,null,null,null,null,null,{"$f":"VLOOKUP(R52,'DATOS ASP'!$I$22:$J$23, 2,FALSE)","v":{"$error":"#N/A"}},null,{"$f":"VLOOKUP(T52,'DATOS ASP'!$I$26:$J$27,2,FALSE)","v":{"$error":"#N/A"}},null,{"$f":"VLOOKUP(V52,'DATOS ASP'!$K$22:$L$24,2,FALSE)","v":{"$error":"#N/A"}},null,{"$f":"VLOOKUP(X52,'DATOS ASP'!$M$22:$N$24,2,FALSE)","v":{"$error":"#N/A"}},{"$error":"#N/A"}]
[null,null,20,null,null,null,null,null,null,null,null,null,null,null,null,null,null,null,{"$f":"VLOOKUP(R53,'DATOS ASP'!$I$22:$J$23, 2,FALSE)","v":{"$error":"#N/A"}},null,{"$f":"VLOOKUP(T53,'DATOS ASP'!$I$26:$J$27,2,FALSE)","v":{"$error":"#N/A"}},null,{"$f":"VLOOKUP(V53,'DATOS ASP'!$K$22:$L$24,2,FALSE)","v":{"$error":"#N/A"}},null,{"$f":"VLOOKUP(X53,'DATOS ASP'!$M$22:$N$24,2,FALSE)","v":{"$error":"#N/A"}},{"$error":"#N/A"}]
[null,null,21,null,null,null,null,null,null,null,null,null,null,null,null,null,null,null,{"$f":"VLOOKUP(R54,'DATOS ASP'!$I$22:$J$23, 2,FALSE)","v":{"$error":"#N/A"}},null,{"$f":"VLOOKUP(T54,'DATOS ASP'!$I$26:$J$27,2,FALSE)","v":{"$error":"#N/A"}},null,{"$f":"VLOOKUP(V54,'DATOS ASP'!$K$22:$L$24,2,FALSE)","v":{"$error":"#N/A"}},null,{"$f":"VLOOKUP(X54,'DATOS ASP'!$M$22:$N$24,2,FALSE)","v":{"$error":"#N/A"}},{"$error":"#N/A"}]
[null,null,22,null,null,null,null,null,null,null,null,null,null,null,null,null,null,null,{"$f":"VLOOKUP(R55,'DATOS ASP'!$I$22:$J$23, 2,FALSE)","v":{"$error":"#N/A"}},null,{"$f":"VLOOKUP(T55,'DATOS ASP'!$I$26:$J$27,2,FALSE)","v":{"$error":"#N/A"}},null,{"$f":"VLOOKUP(V55,'DATOS ASP'!$K$22:$L$24,2,FALSE)","v":{"$error":"#N/A"}},null,{"$f":"VLOOKUP(X55,'DATOS ASP'!$M$22:$N$24,2,FALSE)","v":{"$error":"#N/A"}},{"$error":"#N/A"}]
[null,null,23,null,null,null,null,null,null,null,null,null,null,null,null,null,null,null,{"$f":"VLOOKUP(R56,'DATOS ASP'!$I$22:$J$23, 2,FALSE)","v":{"$error":"#N/A"}},null,{"$f":"VLOOKUP(T56,'DATOS ASP'!$I$26:$J$27,2,FALSE)","v":{"$error":"#N/A"}},null,{"$f":"VLOOKUP(V56,'DATOS ASP'!$K$22:$L$24,2,FALSE)","v":{"$error":"#N/A"}},null,{"$f":"VLOOKUP(X56,'DATOS ASP'!$M$22:$N$24,2,FALSE)","v":{"$error":"#N/A"}},{"$error":"#N/A"}]
[null,null,24,null,null,null,null,null,null,null,null,null,null,null,null,null,null,null,{"$f":"VLOOKUP(R57,'DATOS ASP'!$I$22:$J$23, 2,FALSE)","v":{"$error":"#N/A"}},null,{"$f":"VLOOKUP(T57,'DATOS ASP'!$I$26:$J$27,2,FALSE)","v":{"$error":"#N/A"}},null,{"$f":"VLOOKUP(V57,'DATOS ASP'!$K$22:$L$24,2,FALSE)","v":{"$error":"#N/A"}},null,{"$f":"VLOOKUP(X57,'DATOS ASP'!$M$22:$N$24,2,FALSE)","v":{"$error":"#N/A"}},{"$error":"#N/A"}]
[null,null,25,null,null,null,null,null,null,null,null,null,null,null,null,null,null,null,{"$f":"VLOOKUP(R58,'DATOS ASP'!$I$22:$J$23, 2,FALSE)","v":{"$error":"#N/A"}},null,{"$f":"VLOOKUP(T58,'DATOS ASP'!$I$26:$J$27,2,FALSE)","v":{"$error":"#N/A"}},null,{"$f":"VLOOKUP(V58,'DATOS ASP'!$K$22:$L$24,2,FALSE)","v":{"$error":"#N/A"}},null,{"$f":"VLOOKUP(X58,'DATOS ASP'!$M$22:$N$24,2,FALSE)","v":{"$error":"#N/A"}},{"$error":"#N/A"}]
[null,null,26,null,null,null,null,null,null,null,null,null,null,null,null,null,null,null,{"$f":"VLOOKUP(R59,'DATOS ASP'!$I$22:$J$23, 2,FALSE)","v":{"$error":"#N/A"}},null,{"$f":"VLOOKUP(T59,'DATOS ASP'!$I$26:$J$27,2,FALSE)","v":{"$error":"#N/A"}},null,{"$f":"VLOOKUP(V59,'DATOS ASP'!$K$22:$L$24,2,FALSE)","v":{"$error":"#N/A"}},null,{"$f":"VLOOKUP(X59,'DATOS ASP'!$M$22:$N$24,2,FALSE)","v":{"$error":"#N/A"}},{"$error":"#N/A"}]
[null,null,27,null,null,null,null,null,null,null,null,null,null,null,null,null,null,null,{"$f":"VLOOKUP(R60,'DATOS ASP'!$I$22:$J$23, 2,FALSE)","v":{"$error":"#N/A"}},null,{"$f":"VLOOKUP(T60,'DATOS ASP'!$I$26:$J$27,2,FALSE)","v":{"$error":"#N/A"}},null,{"$f":"VLOOKUP(V60,'DATOS ASP'!$K$22:$L$24,2,FALSE)","v":{"$error":"#N/A"}},null,{"$f":"VLOOKUP(X60,'DATOS ASP'!$M$22:$N$24,2,FALSE)","v":{"$error":"#N/A"}},{"$error":"#N/A"}]
[null,null,28,null,null,null,null,null,null,null,null,null,null,null,null,null,null,null,{"$f":"VLOOKUP(R61,'DATOS ASP'!$I$22:$J$23, 2,FALSE)","v":{"$error":"#N/A"}},null,{"$f":"VLOOKUP(T61,'DATOS ASP'!$I$26:$J$27,2,FALSE)","v":{"$error":"#N/A"}},null,{"$f":"VLOOKUP(V61,'DATOS ASP'!$K$22:$L$24,2,FALSE)","v":{"$error":"#N/A"}},null,{"$f":"VLOOKUP(X61,'DATOS ASP'!$M$22:$N$24,2,FALSE)","v":{"$error":"#N/A"}},{"$error":"#N/A"}]
[null,null,29,null,null,null,null,null,null,null,null,null,null,null,null,null,null,null,{"$f":"VLOOKUP(R62,'DATOS ASP'!$I$22:$J$23, 2,FALSE)","v":{"$error":"#N/A"}},null,{"$f":"VLOOKUP(T62,'DATOS ASP'!$I$26:$J$27,2,FALSE)","v":{"$error":"#N/A"}},null,{"$f":"VLOOKUP(V62,'DATOS ASP'!$K$22:$L$24,2,FALSE)","v":{"$error":"#N/A"}},null,{"$f":"VLOOKUP(X62,'DATOS ASP'!$M$22:$N$24,2,FALSE)","v":{"$error":"#N/A"}},{"$f":"S62*((3*U62)+W62+Y62)","v":{"$error":"#N/A"}}]
[null,null,30,null,null,null,null,null,null,null,null,null,null,null,null,null,null,null,{"$f":"VLOOKUP(R63,'DATOS ASP'!$I$22:$J$23, 2,FALSE)","v":{"$error":"#N/A"}},null,{"$f":"VLOOKUP(T63,'DATOS ASP'!$I$26:$J$27,2,FALSE)","v":{"$error":"#N/A"}},null,{"$f":"VLOOKUP(V63,'DATOS ASP'!$K$22:$L$24,2,FALSE)","v":{"$error":"#N/A"}},null,{"$f":"VLOOKUP(X63,'DATOS ASP'!$M$22:$N$24,2,FALSE)","v":{"$error":"#N/A"}},{"$error":"#N/A"}]
[null,null,31,null,null,null,null,null,null,null,null,null,null,null,null,null,null,null,{"$f":"VLOOKUP(R64,'DATOS ASP'!$I$22:$J$23, 2,FALSE)","v":{"$error":"#N/A"}},null,{"$f":"VLOOKUP(T64,'DATOS ASP'!$I$26:$J$27,2,FALSE)","v":{"$error":"#N/A"}},null,{"$f":"VLOOKUP(V64,'DATOS ASP'!$K$22:$L$24,2,FALSE)","v":{"$error":"#N/A"}},null,{"$f":"VLOOKUP(X64,'DATOS ASP'!$M$22:$N$24,2,FALSE)","v":{"$error":"#N/A"}},{"$error":"#N/A"}]
[null,null,32,null,null,null,null,null,null,null,null,null,null,null,null,null,null,null,{"$f":"VLOOKUP(R65,'DATOS ASP'!$I$22:$J$23, 2,FALSE)","v":{"$error":"#N/A"}},null,{"$f":"VLOOKUP(T65,'DATOS ASP'!$I$26:$J$27,2,FALSE)","v":{"$error":"#N/A"}},null,{"$f":"VLOOKUP(V65,'DATOS ASP'!$K$22:$L$24,2,FALSE)","v":{"$error":"#N/A"}},null,{"$f":"VLOOKUP(X65,'DATOS ASP'!$M$22:$N$24,2,FALSE)","v":{"$error":"#N/A"}},{"$error":"#N/A"}]
[null,null,33,null,null,null,null,null,null,null,null,null,null,null,null,null,null,null,{"$f":"VLOOKUP(R66,'DATOS ASP'!$I$22:$J$23, 2,FALSE)","v":{"$error":"#N/A"}},null,{"$f":"VLOOKUP(T66,'DATOS ASP'!$I$26:$J$27,2,FALSE)","v":{"$error":"#N/A"}},null,{"$f":"VLOOKUP(V66,'DATOS ASP'!$K$22:$L$24,2,FALSE)","v":{"$error":"#N/A"}},null,{"$f":"VLOOKUP(X66,'DATOS ASP'!$M$22:$N$24,2,FALSE)","v":{"$error":"#N/A"}},{"$error":"#N/A"}]
[null,null,34,null,null,null,null,null,null,null,null,null,null,null,null,null,null,null,{"$f":"VLOOKUP(R67,'DATOS ASP'!$I$22:$J$23, 2,FALSE)","v":{"$error":"#N/A"}},null,{"$f":"VLOOKUP(T67,'DATOS ASP'!$I$26:$J$27,2,FALSE)","v":{"$error":"#N/A"}},null,{"$f":"VLOOKUP(V67,'DATOS ASP'!$K$22:$L$24,2,FALSE)","v":{"$error":"#N/A"}},null,{"$f":"VLOOKUP(X67,'DATOS ASP'!$M$22:$N$24,2,FALSE)","v":{"$error":"#N/A"}},{"$f":"S67*((3*U67)+W67+Y67)","v":{"$error":"#N/A"}}]
[null,null,35,null,null,null,null,null,null,null,null,null,null,null,null,null,null,null,{"$f":"VLOOKUP(R68,'DATOS ASP'!$I$22:$J$23, 2,FALSE)","v":{"$error":"#N/A"}},null,{"$f":"VLOOKUP(T68,'DATOS ASP'!$I$26:$J$27,2,FALSE)","v":{"$error":"#N/A"}},null,{"$f":"VLOOKUP(V68,'DATOS ASP'!$K$22:$L$24,2,FALSE)","v":{"$error":"#N/A"}},null,{"$f":"VLOOKUP(X68,'DATOS ASP'!$M$22:$N$24,2,FALSE)","v":{"$error":"#N/A"}},{"$error":"#N/A"}]
[null,null,36,null,null,null,null,null,null,null,null,null,null,null,null,null,null,null,{"$f":"VLOOKUP(R69,'DATOS ASP'!$I$22:$J$23, 2,FALSE)","v":{"$error":"#N/A"}},null,{"$f":"VLOOKUP(T69,'DATOS ASP'!$I$26:$J$27,2,FALSE)","v":{"$error":"#N/A"}},null,{"$f":"VLOOKUP(V69,'DATOS ASP'!$K$22:$L$24,2,FALSE)","v":{"$error":"#N/A"}},null,{"$f":"VLOOKUP(X69,'DATOS ASP'!$M$22:$N$24,2,FALSE)","v":{"$error":"#N/A"}},{"$error":"#N/A"}]
[null,null,37,null,null,null,null,null,null,null,null,null,null,null,null,null,null,null,{"$f":"VLOOKUP(R70,'DATOS ASP'!$I$22:$J$23, 2,FALSE)","v":{"$error":"#N/A"}},null,{"$f":"VLOOKUP(T70,'DATOS ASP'!$I$26:$J$27,2,FALSE)","v":{"$error":"#N/A"}},null,{"$f":"VLOOKUP(V70,'DATOS ASP'!$K$22:$L$24,2,FALSE)","v":{"$error":"#N/A"}},null,{"$f":"VLOOKUP(X70,'DATOS ASP'!$M$22:$N$24,2,FALSE)","v":{"$error":"#N/A"}},{"$error":"#N/A"}]
[null,null,38,null,null,null,null,null,null,null,null,null,null,null,null,null,null,null,{"$f":"VLOOKUP(R71,'DATOS ASP'!$I$22:$J$23, 2,FALSE)","v":{"$error":"#N/A"}},null,{"$f":"VLOOKUP(T71,'DATOS ASP'!$I$26:$J$27,2,FALSE)","v":{"$error":"#N/A"}},null,{"$f":"VLOOKUP(V71,'DATOS ASP'!$K$22:$L$24,2,FALSE)","v":{"$error":"#N/A"}},null,{"$f":"VLOOKUP(X71,'DATOS ASP'!$M$22:$N$24,2,FALSE)","v":{"$error":"#N/A"}},{"$error":"#N/A"}]
[null,null,39,null,null,null,null,null,null,null,null,null,null,null,null,null,null,null,{"$f":"VLOOKUP(R72,'DATOS ASP'!$I$22:$J$23, 2,FALSE)","v":{"$error":"#N/A"}},null,{"$f":"VLOOKUP(T72,'DATOS ASP'!$I$26:$J$27,2,FALSE)","v":{"$error":"#N/A"}},null,{"$f":"VLOOKUP(V72,'DATOS ASP'!$K$22:$L$24,2,FALSE)","v":{"$error":"#N/A"}},null,{"$f":"VLOOKUP(X72,'DATOS ASP'!$M$22:$N$24,2,FALSE)","v":{"$error":"#N/A"}},{"$error":"#N/A"}]
[null,null,40,null,null,null,null,null,null,null,null,null,null,null,null,null,null,null,{"$f":"VLOOKUP(R73,'DATOS ASP'!$I$22:$J$23, 2,FALSE)","v":{"$error":"#N/A"}},null,{"$f":"VLOOKUP(T73,'DATOS ASP'!$I$26:$J$27,2,FALSE)","v":{"$error":"#N/A"}},null,{"$f":"VLOOKUP(V73,'DATOS ASP'!$K$22:$L$24,2,FALSE)","v":{"$error":"#N/A"}},null,{"$f":"VLOOKUP(X73,'DATOS ASP'!$M$22:$N$24,2,FALSE)","v":{"$error":"#N/A"}},{"$error":"#N/A"}]
[null,null,41,null,null,null,null,null,null,null,null,null,null,null,null,null,null,null,{"$f":"VLOOKUP(R74,'DATOS ASP'!$I$22:$J$23, 2,FALSE)","v":{"$error":"#N/A"}},null,{"$f":"VLOOKUP(T74,'DATOS ASP'!$I$26:$J$27,2,FALSE)","v":{"$error":"#N/A"}},null,{"$f":"VLOOKUP(V74,'DATOS ASP'!$K$22:$L$24,2,FALSE)","v":{"$error":"#N/A"}},null,{"$f":"VLOOKUP(X74,'DATOS ASP'!$M$22:$N$24,2,FALSE)","v":{"$error":"#N/A"}},{"$error":"#N/A"}]
[null,null,42,null,null,null,null,null,null,null,null,null,null,null,null,null,null,null,{"$f":"VLOOKUP(R75,'DATOS ASP'!$I$22:$J$23, 2,FALSE)","v":{"$error":"#N/A"}},null,{"$f":"VLOOKUP(T75,'DATOS ASP'!$I$26:$J$27,2,FALSE)","v":{"$error":"#N/A"}},null,{"$f":"VLOOKUP(V75,'DATOS ASP'!$K$22:$L$24,2,FALSE)","v":{"$error":"#N/A"}},null,{"$f":"VLOOKUP(X75,'DATOS ASP'!$M$22:$N$24,2,FALSE)","v":{"$error":"#N/A"}},{"$error":"#N/A"}]
[null,null,43,null,null,null,null,null,null,null,null,null,null,null,null,null,null,null,{"$f":"VLOOKUP(R76,'DATOS ASP'!$I$22:$J$23, 2,FALSE)","v":{"$error":"#N/A"}},null,{"$f":"VLOOKUP(T76,'DATOS ASP'!$I$26:$J$27,2,FALSE)","v":{"$error":"#N/A"}},null,{"$f":"VLOOKUP(V76,'DATOS ASP'!$K$22:$L$24,2,FALSE)","v":{"$error":"#N/A"}},null,{"$f":"VLOOKUP(X76,'DATOS ASP'!$M$22:$N$24,2,FALSE)","v":{"$error":"#N/A"}},{"$error":"#N/A"}]
[null,null,44,null,null,null,null,null,null,null,null,null,null,null,null,null,null,null,{"$f":"VLOOKUP(R77,'DATOS ASP'!$I$22:$J$23, 2,FALSE)","v":{"$error":"#N/A"}},null,{"$f":"VLOOKUP(T77,'DATOS ASP'!$I$26:$J$27,2,FALSE)","v":{"$error":"#N/A"}},null,{"$f":"VLOOKUP(V77,'DATOS ASP'!$K$22:$L$24,2,FALSE)","v":{"$error":"#N/A"}},null,{"$f":"VLOOKUP(X77,'DATOS ASP'!$M$22:$N$24,2,FALSE)","v":{"$error":"#N/A"}},{"$error":"#N/A"}]
[null,null,45,null,null,null,null,null,null,null,null,null,null,null,null,null,null,null,{"$f":"VLOOKUP(R78,'DATOS ASP'!$I$22:$J$23, 2,FALSE)","v":{"$error":"#N/A"}},null,{"$f":"VLOOKUP(T78,'DATOS ASP'!$I$26:$J$27,2,FALSE)","v":{"$error":"#N/A"}},null,{"$f":"VLOOKUP(V78,'DATOS ASP'!$K$22:$L$24,2,FALSE)","v":{"$error":"#N/A"}},null,{"$f":"VLOOKUP(X78,'DATOS ASP'!$M$22:$N$24,2,FALSE)","v":{"$error":"#N/A"}},{"$error":"#N/A"}]
[null,null,46,null,null,null,null,null,null,null,null,null,null,null,null,null,null,null,{"$f":"VLOOKUP(R79,'DATOS ASP'!$I$22:$J$23, 2,FALSE)","v":{"$error":"#N/A"}},null,{"$f":"VLOOKUP(T79,'DATOS ASP'!$I$26:$J$27,2,FALSE)","v":{"$error":"#N/A"}},null,{"$f":"VLOOKUP(V79,'DATOS ASP'!$K$22:$L$24,2,FALSE)","v":{"$error":"#N/A"}},null,{"$f":"VLOOKUP(X79,'DATOS ASP'!$M$22:$N$24,2,FALSE)","v":{"$error":"#N/A"}},{"$error":"#N/A"}]
[null,null,47,null,null,null,null,null,null,null,null,null,null,null,null,null,null,null,{"$f":"VLOOKUP(R80,'DATOS ASP'!$I$22:$J$23, 2,FALSE)","v":{"$error":"#N/A"}},null,{"$f":"VLOOKUP(T80,'DATOS ASP'!$I$26:$J$27,2,FALSE)","v":{"$error":"#N/A"}},null,{"$f":"VLOOKUP(V80,'DATOS ASP'!$K$22:$L$24,2,FALSE)","v":{"$error":"#N/A"}},null,{"$f":"VLOOKUP(X80,'DATOS ASP'!$M$22:$N$24,2,FALSE)","v":{"$error":"#N/A"}},{"$error":"#N/A"}]
[null,null,48,null,null,null,null,null,null,null,null,null,null,null,null,null,null,null,{"$f":"VLOOKUP(R81,'DATOS ASP'!$I$22:$J$23, 2,FALSE)","v":{"$error":"#N/A"}},null,{"$f":"VLOOKUP(T81,'DATOS ASP'!$I$26:$J$27,2,FALSE)","v":{"$error":"#N/A"}},null,{"$f":"VLOOKUP(V81,'DATOS ASP'!$K$22:$L$24,2,FALSE)","v":{"$error":"#N/A"}},null,{"$f":"VLOOKUP(X81,'DATOS ASP'!$M$22:$N$24,2,FALSE)","v":{"$error":"#N/A"}},{"$error":"#N/A"}]
[null,null,49,null,null,null,null,null,null,null,null,null,null,null,null,null,null,null,{"$f":"VLOOKUP(R82,'DATOS ASP'!$I$22:$J$23, 2,FALSE)","v":{"$error":"#N/A"}},null,{"$f":"VLOOKUP(T82,'DATOS ASP'!$I$26:$J$27,2,FALSE)","v":{"$error":"#N/A"}},null,{"$f":"VLOOKUP(V82,'DATOS ASP'!$K$22:$L$24,2,FALSE)","v":{"$error":"#N/A"}},null,{"$f":"VLOOKUP(X82,'DATOS ASP'!$M$22:$N$24,2,FALSE)","v":{"$error":"#N/A"}},{"$error":"#N/A"}]
[null,null,50,null,null,null,null,null,null,null,null,null,null,null,null,null,null,null,{"$f":"VLOOKUP(R83,'DATOS ASP'!$I$22:$J$23, 2,FALSE)","v":{"$error":"#N/A"}},null,{"$f":"VLOOKUP(T83,'DATOS ASP'!$I$26:$J$27,2,FALSE)","v":{"$error":"#N/A"}},null,{"$f":"VLOOKUP(V83,'DATOS ASP'!$K$22:$L$24,2,FALSE)","v":{"$error":"#N/A"}},null,{"$f":"VLOOKUP(X83,'DATOS ASP'!$M$22:$N$24,2,FALSE)","v":{"$error":"#N/A"}},{"$error":"#N/A"}]
[null,null,51,null,null,null,null,null,null,null,null,null,null,null,null,null,null,null,{"$f":"VLOOKUP(R84,'DATOS ASP'!$I$22:$J$23, 2,FALSE)","v":{"$error":"#N/A"}},null,{"$f":"VLOOKUP(T84,'DATOS ASP'!$I$26:$J$27,2,FALSE)","v":{"$error":"#N/A"}},null,{"$f":"VLOOKUP(V84,'DATOS ASP'!$K$22:$L$24,2,FALSE)","v":{"$error":"#N/A"}},null,{"$f":"VLOOKUP(X84,'DATOS ASP'!$M$22:$N$24,2,FALSE)","v":{"$error":"#N/A"}},{"$error":"#N/A"}]
[null,null,52,null,null,null,null,null,null,null,null,null,null,null,null,null,null,null,{"$f":"VLOOKUP(R85,'DATOS ASP'!$I$22:$J$23, 2,FALSE)","v":{"$error":"#N/A"}},null,{"$f":"VLOOKUP(T85,'DATOS ASP'!$I$26:$J$27,2,FALSE)","v":{"$error":"#N/A"}},null,{"$f":"VLOOKUP(V85,'DATOS ASP'!$K$22:$L$24,2,FALSE)","v":{"$error":"#N/A"}},null,{"$f":"VLOOKUP(X85,'DATOS ASP'!$M$22:$N$24,2,FALSE)","v":{"$error":"#N/A"}},{"$error":"#N/A"}]
[null,null,53,null,null,null,null,null,null,null,null,null,null,null,null,null,null,null,{"$f":"VLOOKUP(R86,'DATOS ASP'!$I$22:$J$23, 2,FALSE)","v":{"$error":"#N/A"}},null,{"$f":"VLOOKUP(T86,'DATOS ASP'!$I$26:$J$27,2,FALSE)","v":{"$error":"#N/A"}},null,{"$f":"VLOOKUP(V86,'DATOS ASP'!$K$22:$L$24,2,FALSE)","v":{"$error":"#N/A"}},null,{"$f":"VLOOKUP(X86,'DATOS ASP'!$M$22:$N$24,2,FALSE)","v":{"$error":"#N/A"}},{"$error":"#N/A"}]
[null,null,54,null,null,null,null,null,null,null,null,null,null,null,null,null,null,null,{"$f":"VLOOKUP(R87,'DATOS ASP'!$I$22:$J$23, 2,FALSE)","v":{"$error":"#N/A"}},null,{"$f":"VLOOKUP(T87,'DATOS ASP'!$I$26:$J$27,2,FALSE)","v":{"$error":"#N/A"}},null,{"$f":"VLOOKUP(V87,'DATOS ASP'!$K$22:$L$24,2,FALSE)","v":{"$error":"#N/A"}},null,{"$f":"VLOOKUP(X87,'DATOS ASP'!$M$22:$N$24,2,FALSE)","v":{"$error":"#N/A"}},{"$error":"#N/A"}]
[null,null,55,null,null,null,null,null,null,null,null,null,null,null,null,null,null,null,{"$f":"VLOOKUP(R88,'DATOS ASP'!$I$22:$J$23, 2,FALSE)","v":{"$error":"#N/A"}},null,{"$f":"VLOOKUP(T88,'DATOS ASP'!$I$26:$J$27,2,FALSE)","v":{"$error":"#N/A"}},null,{"$f":"VLOOKUP(V88,'DATOS ASP'!$K$22:$L$24,2,FALSE)","v":{"$error":"#N/A"}},null,{"$f":"VLOOKUP(X88,'DATOS ASP'!$M$22:$N$24,2,FALSE)","v":{"$error":"#N/A"}},{"$error":"#N/A"}]
[null,null,56,null,null,null,null,null,null,null,null,null,null,null,null,null,null,null,{"$f":"VLOOKUP(R89,'DATOS ASP'!$I$22:$J$23, 2,FALSE)","v":{"$error":"#N/A"}},null,{"$f":"VLOOKUP(T89,'DATOS ASP'!$I$26:$J$27,2,FALSE)","v":{"$error":"#N/A"}},null,{"$f":"VLOOKUP(V89,'DATOS ASP'!$K$22:$L$24,2,FALSE)","v":{"$error":"#N/A"}},null,{"$f":"VLOOKUP(X89,'DATOS ASP'!$M$22:$N$24,2,FALSE)","v":{"$error":"#N/A"}},{"$error":"#N/A"}]
[null,null,57,null,null,null,null,null,null,null,null,null,null,null,null,null,null,null,{"$f":"VLOOKUP(R90,'DATOS ASP'!$I$22:$J$23, 2,FALSE)","v":{"$error":"#N/A"}},null,{"$f":"VLOOKUP(T90,'DATOS ASP'!$I$26:$J$27,2,FALSE)","v":{"$error":"#N/A"}},null,{"$f":"VLOOKUP(V90,'DATOS ASP'!$K$22:$L$24,2,FALSE)","v":{"$error":"#N/A"}},null,{"$f":"VLOOKUP(X90,'DATOS ASP'!$M$22:$N$24,2,FALSE)","v":{"$error":"#N/A"}},{"$error":"#N/A"}]
[null,null,58,null,null,null,null,null,null,null,null,null,null,null,null,null,null,null,{"$f":"VLOOKUP(R91,'DATOS ASP'!$I$22:$J$23, 2,FALSE)","v":{"$error":"#N/A"}},null,{"$f":"VLOOKUP(T91,'DATOS ASP'!$I$26:$J$27,2,FALSE)","v":{"$error":"#N/A"}},null,{"$f":"VLOOKUP(V91,'DATOS ASP'!$K$22:$L$24,2,FALSE)","v":{"$error":"#N/A"}},null,{"$f":"VLOOKUP(X91,'DATOS ASP'!$M$22:$N$24,2,FALSE)","v":{"$error":"#N/A"}},{"$error":"#N/A"}]
[null,null,59,null,null,null,null,null,null,null,null,null,null,null,null,null,null,null,{"$f":"VLOOKUP(R92,'DATOS ASP'!$I$22:$J$23, 2,FALSE)","v":{"$error":"#N/A"}},null,{"$f":"VLOOKUP(T92,'DATOS ASP'!$I$26:$J$27,2,FALSE)","v":{"$error":"#N/A"}},null,{"$f":"VLOOKUP(V92,'DATOS ASP'!$K$22:$L$24,2,FALSE)","v":{"$error":"#N/A"}},null,{"$f":"VLOOKUP(X92,'DATOS ASP'!$M$22:$N$24,2,FALSE)","v":{"$error":"#N/A"}},{"$error":"#N/A"}]
[null,null,60,null,null,null,null,null,null,null,null,null,null,null,null,null,null,null,{"$f":"VLOOKUP(R93,'DATOS ASP'!$I$22:$J$23, 2,FALSE)","v":{"$error":"#N/A"}},null,{"$f":"VLOOKUP(T93,'DATOS ASP'!$I$26:$J$27,2,FALSE)","v":{"$error":"#N/A"}},null,{"$f":"VLOOKUP(V93,'DATOS ASP'!$K$22:$L$24,2,FALSE)","v":{"$error":"#N/A"}},null,{"$f":"VLOOKUP(X93,'DATOS ASP'!$M$22:$N$24,2,FALSE)","v":{"$error":"#N/A"}},{"$error":"#N/A"}]
[null,null,61,null,null,null,null,null,null,null,null,null,null,null,null,null,null,null,{"$f":"VLOOKUP(R94,'DATOS ASP'!$I$22:$J$23, 2,FALSE)","v":{"$error":"#N/A"}},null,{"$f":"VLOOKUP(T94,'DATOS ASP'!$I$26:$J$27,2,FALSE)","v":{"$error":"#N/A"}},null,{"$f":"VLOOKUP(V94,'DATOS ASP'!$K$22:$L$24,2,FALSE)","v":{"$error":"#N/A"}},null,{"$f":"VLOOKUP(X94,'DATOS ASP'!$M$22:$N$24,2,FALSE)","v":{"$error":"#N/A"}},{"$error":"#N/A"}]
[null,null,62,null,null,null,null,null,null,null,null,null,null,null,null,null,null,null,{"$f":"VLOOKUP(R95,'DATOS ASP'!$I$22:$J$23, 2,FALSE)","v":{"$error":"#N/A"}},null,{"$f":"VLOOKUP(T95,'DATOS ASP'!$I$26:$J$27,2,FALSE)","v":{"$error":"#N/A"}},null,{"$f":"VLOOKUP(V95,'DATOS ASP'!$K$22:$L$24,2,FALSE)","v":{"$error":"#N/A"}},null,{"$f":"VLOOKUP(X95,'DATOS ASP'!$M$22:$N$24,2,FALSE)","v":{"$error":"#N/A"}},{"$error":"#N/A"}]
[null,null,63,null,null,null,null,null,null,null,null,null,null,null,null,null,null,null,{"$f":"VLOOKUP(R96,'DATOS ASP'!$I$22:$J$23, 2,FALSE)","v":{"$error":"#N/A"}},null,{"$f":"VLOOKUP(T96,'DATOS ASP'!$I$26:$J$27,2,FALSE)","v":{"$error":"#N/A"}},null,{"$f":"VLOOKUP(V96,'DATOS ASP'!$K$22:$L$24,2,FALSE)","v":{"$error":"#N/A"}},null,{"$f":"VLOOKUP(X96,'DATOS ASP'!$M$22:$N$24,2,FALSE)","v":{"$error":"#N/A"}},{"$error":"#N/A"}]
[null,null,64,null,null,null,null,null,null,null,null,null,null,null,null,null,null,null,{"$f":"VLOOKUP(R97,'DATOS ASP'!$I$22:$J$23, 2,FALSE)","v":{"$error":"#N/A"}},null,{"$f":"VLOOKUP(T97,'DATOS ASP'!$I$26:$J$27,2,FALSE)","v":{"$error":"#N/A"}},null,{"$f":"VLOOKUP(V97,'DATOS ASP'!$K$22:$L$24,2,FALSE)","v":{"$error":"#N/A"}},null,{"$f":"VLOOKUP(X97,'DATOS ASP'!$M$22:$N$24,2,FALSE)","v":{"$error":"#N/A"}},{"$error":"#N/A"}]
[null,null,65,null,null,null,null,null,null,null,null,null,null,null,null,null,null,null,{"$f":"VLOOKUP(R98,'DATOS ASP'!$I$22:$J$23, 2,FALSE)","v":{"$error":"#N/A"}},null,{"$f":"VLOOKUP(T98,'DATOS ASP'!$I$26:$J$27,2,FALSE)","v":{"$error":"#N/A"}},null,{"$f":"VLOOKUP(V98,'DATOS ASP'!$K$22:$L$24,2,FALSE)","v":{"$error":"#N/A"}},null,{"$f":"VLOOKUP(X98,'DATOS ASP'!$M$22:$N$24,2,FALSE)","v":{"$error":"#N/A"}},{"$f":"S98*((3*U98)+W98+Y98)","v":{"$error":"#N/A"}}]
[null,null,66,null,null,null,null,null,null,null,null,null,null,null,null,null,null,null,{"$f":"VLOOKUP(R99,'DATOS ASP'!$I$22:$J$23, 2,FALSE)","v":{"$error":"#N/A"}},null,{"$f":"VLOOKUP(T99,'DATOS ASP'!$I$26:$J$27,2,FALSE)","v":{"$error":"#N/A"}},null,{"$f":"VLOOKUP(V99,'DATOS ASP'!$K$22:$L$24,2,FALSE)","v":{"$error":"#N/A"}},null,{"$f":"VLOOKUP(X99,'DATOS ASP'!$M$22:$N$24,2,FALSE)","v":{"$error":"#N/A"}},{"$error":"#N/A"}]
[null,null,67,null,null,null,null,null,null,null,null,null,null,null,null,null,null,null,{"$f":"VLOOKUP(R100,'DATOS ASP'!$I$22:$J$23, 2,FALSE)","v":{"$error":"#N/A"}},null,{"$f":"VLOOKUP(T100,'DATOS ASP'!$I$26:$J$27,2,FALSE)","v":{"$error":"#N/A"}},null,{"$f":"VLOOKUP(V100,'DATOS ASP'!$K$22:$L$24,2,FALSE)","v":{"$error":"#N/A"}},null,{"$f":"VLOOKUP(X100,'DATOS ASP'!$M$22:$N$24,2,FALSE)","v":{"$error":"#N/A"}},{"$error":"#N/A"}]
[null,null,68,null,null,null,null,null,null,null,null,null,null,null,null,null,null,null,{"$f":"VLOOKUP(R101,'DATOS ASP'!$I$22:$J$23, 2,FALSE)","v":{"$error":"#N/A"}},null,{"$f":"VLOOKUP(T101,'DATOS ASP'!$I$26:$J$27,2,FALSE)","v":{"$error":"#N/A"}},null,{"$f":"VLOOKUP(V101,'DATOS ASP'!$K$22:$L$24,2,FALSE)","v":{"$error":"#N/A"}},null,{"$f":"VLOOKUP(X101,'DATOS ASP'!$M$22:$N$24,2,FALSE)","v":{"$error":"#N/A"}},{"$error":"#N/A"}]
[null,null,69,null,null,null,null,null,null,null,null,null,null,null,null,null,null,null,{"$f":"VLOOKUP(R102,'DATOS ASP'!$I$22:$J$23, 2,FALSE)","v":{"$error":"#N/A"}},null,{"$f":"VLOOKUP(T102,'DATOS ASP'!$I$26:$J$27,2,FALSE)","v":{"$error":"#N/A"}},null,{"$f":"VLOOKUP(V102,'DATOS ASP'!$K$22:$L$24,2,FALSE)","v":{"$error":"#N/A"}},null,{"$f":"VLOOKUP(X102,'DATOS ASP'!$M$22:$N$24,2,FALSE)","v":{"$error":"#N/A"}},{"$error":"#N/A"}]
[null,null,70,null,null,null,null,null,null,null,null,null,null,null,null,null,null,null,{"$f":"VLOOKUP(R103,'DATOS ASP'!$I$22:$J$23, 2,FALSE)","v":{"$error":"#N/A"}},null,{"$f":"VLOOKUP(T103,'DATOS ASP'!$I$26:$J$27,2,FALSE)","v":{"$error":"#N/A"}},null,{"$f":"VLOOKUP(V103,'DATOS ASP'!$K$22:$L$24,2,FALSE)","v":{"$error":"#N/A"}},null,{"$f":"VLOOKUP(X103,'DATOS ASP'!$M$22:$N$24,2,FALSE)","v":{"$error":"#N/A"}},{"$error":"#N/A"}]
[null,null,71,null,null,null,null,null,null,null,null,null,null,null,null,null,null,null,{"$f":"VLOOKUP(R104,'DATOS ASP'!$I$22:$J$23, 2,FALSE)","v":{"$error":"#N/A"}},null,{"$f":"VLOOKUP(T104,'DATOS ASP'!$I$26:$J$27,2,FALSE)","v":{"$error":"#N/A"}},null,{"$f":"VLOOKUP(V104,'DATOS ASP'!$K$22:$L$24,2,FALSE)","v":{"$error":"#N/A"}},null,{"$f":"VLOOKUP(X104,'DATOS ASP'!$M$22:$N$24,2,FALSE)","v":{"$error":"#N/A"}},{"$error":"#N/A"}]
[null,null,72,null,null,null,null,null,null,null,null,null,null,null,null,null,null,null,{"$f":"VLOOKUP(R105,'DATOS ASP'!$I$22:$J$23, 2,FALSE)","v":{"$error":"#N/A"}},null,{"$f":"VLOOKUP(T105,'DATOS ASP'!$I$26:$J$27,2,FALSE)","v":{"$error":"#N/A"}},null,{"$f":"VLOOKUP(V105,'DATOS ASP'!$K$22:$L$24,2,FALSE)","v":{"$error":"#N/A"}},null,{"$f":"VLOOKUP(X105,'DATOS ASP'!$M$22:$N$24,2,FALSE)","v":{"$error":"#N/A"}},{"$error":"#N/A"}]
[null,null,73,null,null,null,null,null,null,null,null,null,null,null,null,null,null,null,{"$f":"VLOOKUP(R106,'DATOS ASP'!$I$22:$J$23, 2,FALSE)","v":{"$error":"#N/A"}},null,{"$f":"VLOOKUP(T106,'DATOS ASP'!$I$26:$J$27,2,FALSE)","v":{"$error":"#N/A"}},null,{"$f":"VLOOKUP(V106,'DATOS ASP'!$K$22:$L$24,2,FALSE)","v":{"$error":"#N/A"}},null,{"$f":"VLOOKUP(X106,'DATOS ASP'!$M$22:$N$24,2,FALSE)","v":{"$error":"#N/A"}},{"$error":"#N/A"}]
[null,null,74,null,null,null,null,null,null,null,null,null,null,null,null,null,null,null,{"$f":"VLOOKUP(R107,'DATOS ASP'!$I$22:$J$23, 2,FALSE)","v":{"$error":"#N/A"}},null,{"$f":"VLOOKUP(T107,'DATOS ASP'!$I$26:$J$27,2,FALSE)","v":{"$error":"#N/A"}},null,{"$f":"VLOOKUP(V107,'DATOS ASP'!$K$22:$L$24,2,FALSE)","v":{"$error":"#N/A"}},null,{"$f":"VLOOKUP(X107,'DATOS ASP'!$M$22:$N$24,2,FALSE)","v":{"$error":"#N/A"}},{"$error":"#N/A"}]
[null,null,75,null,null,null,null,null,null,null,null,null,null,null,null,null,null,null,{"$f":"VLOOKUP(R108,'DATOS ASP'!$I$22:$J$23, 2,FALSE)","v":{"$error":"#N/A"}},null,{"$f":"VLOOKUP(T108,'DATOS ASP'!$I$26:$J$27,2,FALSE)","v":{"$error":"#N/A"}},null,{"$f":"VLOOKUP(V108,'DATOS ASP'!$K$22:$L$24,2,FALSE)","v":{"$error":"#N/A"}},null,{"$f":"VLOOKUP(X108,'DATOS ASP'!$M$22:$N$24,2,FALSE)","v":{"$error":"#N/A"}},{"$error":"#N/A"}]
[null,null,76,null,null,null,null,null,null,null,null,null,null,null,null,null,null,null,{"$f":"VLOOKUP(R109,'DATOS ASP'!$I$22:$J$23, 2,FALSE)","v":{"$error":"#N/A"}},null,{"$f":"VLOOKUP(T109,'DATOS ASP'!$I$26:$J$27,2,FALSE)","v":{"$error":"#N/A"}},null,{"$f":"VLOOKUP(V109,'DATOS ASP'!$K$22:$L$24,2,FALSE)","v":{"$error":"#N/A"}},null,{"$f":"VLOOKUP(X109,'DATOS ASP'!$M$22:$N$24,2,FALSE)","v":{"$error":"#N/A"}},{"$error":"#N/A"}]
[null,null,77,null,null,null,null,null,null,null,null,null,null,null,null,null,null,null,{"$f":"VLOOKUP(R110,'DATOS ASP'!$I$22:$J$23, 2,FALSE)","v":{"$error":"#N/A"}},null,{"$f":"VLOOKUP(T110,'DATOS ASP'!$I$26:$J$27,2,FALSE)","v":{"$error":"#N/A"}},null,{"$f":"VLOOKUP(V110,'DATOS ASP'!$K$22:$L$24,2,FALSE)","v":{"$error":"#N/A"}},null,{"$f":"VLOOKUP(X110,'DATOS ASP'!$M$22:$N$24,2,FALSE)","v":{"$error":"#N/A"}},{"$error":"#N/A"}]
[null,null,78,null,null,null,null,null,null,null,null,null,null,null,null,null,null,null,{"$f":"VLOOKUP(R111,'DATOS ASP'!$I$22:$J$23, 2,FALSE)","v":{"$error":"#N/A"}},null,{"$f":"VLOOKUP(T111,'DATOS ASP'!$I$26:$J$27,2,FALSE)","v":{"$error":"#N/A"}},null,{"$f":"VLOOKUP(V111,'DATOS ASP'!$K$22:$L$24,2,FALSE)","v":{"$error":"#N/A"}},null,{"$f":"VLOOKUP(X111,'DATOS ASP'!$M$22:$N$24,2,FALSE)","v":{"$error":"#N/A"}},{"$error":"#N/A"}]
[null,null,79,null,null,null,null,null,null,null,null,null,null,null,null,null,null,null,{"$f":"VLOOKUP(R112,'DATOS ASP'!$I$22:$J$23, 2,FALSE)","v":{"$error":"#N/A"}},null,{"$f":"VLOOKUP(T112,'DATOS ASP'!$I$26:$J$27,2,FALSE)","v":{"$error":"#N/A"}},null,{"$f":"VLOOKUP(V112,'DATOS ASP'!$K$22:$L$24,2,FALSE)","v":{"$error":"#N/A"}},null,{"$f":"VLOOKUP(X112,'DATOS ASP'!$M$22:$N$24,2,FALSE)","v":{"$error":"#N/A"}},{"$error":"#N/A"}]
[null,null,80,null,null,null,null,null,null,null,null,null,null,null,null,null,null,null,{"$f":"VLOOKUP(R113,'DATOS ASP'!$I$22:$J$23, 2,FALSE)","v":{"$error":"#N/A"}},null,{"$f":"VLOOKUP(T113,'DATOS ASP'!$I$26:$J$27,2,FALSE)","v":{"$error":"#N/A"}},null,{"$f":"VLOOKUP(V113,'DATOS ASP'!$K$22:$L$24,2,FALSE)","v":{"$error":"#N/A"}},null,{"$f":"VLOOKUP(X113,'DATOS ASP'!$M$22:$N$24,2,FALSE)","v":{"$error":"#N/A"}},{"$error":"#N/A"}]
[null,null,81,null,null,null,null,null,null,null,null,null,null,null,null,null,null,null,{"$f":"VLOOKUP(R114,'DATOS ASP'!$I$22:$J$23, 2,FALSE)","v":{"$error":"#N/A"}},null,{"$f":"VLOOKUP(T114,'DATOS ASP'!$I$26:$J$27,2,FALSE)","v":{"$error":"#N/A"}},null,{"$f":"VLOOKUP(V114,'DATOS ASP'!$K$22:$L$24,2,FALSE)","v":{"$error":"#N/A"}},null,{"$f":"VLOOKUP(X114,'DATOS ASP'!$M$22:$N$24,2,FALSE)","v":{"$error":"#N/A"}},{"$error":"#N/A"}]
[null,null,82,null,null,null,null,null,null,null,null,null,null,null,null,null,null,null,{"$f":"VLOOKUP(R115,'DATOS ASP'!$I$22:$J$23, 2,FALSE)","v":{"$error":"#N/A"}},null,{"$f":"VLOOKUP(T115,'DATOS ASP'!$I$26:$J$27,2,FALSE)","v":{"$error":"#N/A"}},null,{"$f":"VLOOKUP(V115,'DATOS ASP'!$K$22:$L$24,2,FALSE)","v":{"$error":"#N/A"}},null,{"$f":"VLOOKUP(X115,'DATOS ASP'!$M$22:$N$24,2,FALSE)","v":{"$error":"#N/A"}},{"$error":"#N/A"}]
[null,null,83,null,null,null,null,null,null,null,null,null,null,null,null,null,null,null,{"$f":"VLOOKUP(R116,'DATOS ASP'!$I$22:$J$23, 2,FALSE)","v":{"$error":"#N/A"}},null,{"$f":"VLOOKUP(T116,'DATOS ASP'!$I$26:$J$27,2,FALSE)","v":{"$error":"#N/A"}},null,{"$f":"VLOOKUP(V116,'DATOS ASP'!$K$22:$L$24,2,FALSE)","v":{"$error":"#N/A"}},null,{"$f":"VLOOKUP(X116,'DATOS ASP'!$M$22:$N$24,2,FALSE)","v":{"$error":"#N/A"}},{"$error":"#N/A"}]
[null,null,84,null,null,null,null,null,null,null,null,null,null,null,null,null,null,null,{"$f":"VLOOKUP(R117,'DATOS ASP'!$I$22:$J$23, 2,FALSE)","v":{"$error":"#N/A"}},null,{"$f":"VLOOKUP(T117,'DATOS ASP'!$I$26:$J$27,2,FALSE)","v":{"$error":"#N/A"}},null,{"$f":"VLOOKUP(V117,'DATOS ASP'!$K$22:$L$24,2,FALSE)","v":{"$error":"#N/A"}},null,{"$f":"VLOOKUP(X117,'DATOS ASP'!$M$22:$N$24,2,FALSE)","v":{"$error":"#N/A"}},{"$error":"#N/A"}]
[null,null,85,null,null,null,null,null,null,null,null,null,null,null,null,null,null,null,{"$f":"VLOOKUP(R118,'DATOS ASP'!$I$22:$J$23, 2,FALSE)","v":{"$error":"#N/A"}},null,{"$f":"VLOOKUP(T118,'DATOS ASP'!$I$26:$J$27,2,FALSE)","v":{"$error":"#N/A"}},null,{"$f":"VLOOKUP(V118,'DATOS ASP'!$K$22:$L$24,2,FALSE)","v":{"$error":"#N/A"}},null,{"$f":"VLOOKUP(X118,'DATOS ASP'!$M$22:$N$24,2,FALSE)","v":{"$error":"#N/A"}},{"$error":"#N/A"}]
[null,null,86,null,null,null,null,null,null,null,null,null,null,null,null,null,null,null,{"$f":"VLOOKUP(R119,'DATOS ASP'!$I$22:$J$23, 2,FALSE)","v":{"$error":"#N/A"}},null,{"$f":"VLOOKUP(T119,'DATOS ASP'!$I$26:$J$27,2,FALSE)","v":{"$error":"#N/A"}},null,{"$f":"VLOOKUP(V119,'DATOS ASP'!$K$22:$L$24,2,FALSE)","v":{"$error":"#N/A"}},null,{"$f":"VLOOKUP(X119,'DATOS ASP'!$M$22:$N$24,2,FALSE)","v":{"$error":"#N/A"}},{"$error":"#N/A"}]
[null,null,87,null,null,null,null,null,null,null,null,null,null,null,null,null,null,null,{"$f":"VLOOKUP(R120,'DATOS ASP'!$I$22:$J$23, 2,FALSE)","v":{"$error":"#N/A"}},null,{"$f":"VLOOKUP(T120,'DATOS ASP'!$I$26:$J$27,2,FALSE)","v":{"$error":"#N/A"}},null,{"$f":"VLOOKUP(V120,'DATOS ASP'!$K$22:$L$24,2,FALSE)","v":{"$error":"#N/A"}},null,{"$f":"VLOOKUP(X120,'DATOS ASP'!$M$22:$N$24,2,FALSE)","v":{"$error":"#N/A"}},{"$error":"#N/A"}]
[null,null,88,null,null,null,null,null,null,null,null,null,null,null,null,null,null,null,{"$f":"VLOOKUP(R121,'DATOS ASP'!$I$22:$J$23, 2,FALSE)","v":{"$error":"#N/A"}},null,{"$f":"VLOOKUP(T121,'DATOS ASP'!$I$26:$J$27,2,FALSE)","v":{"$error":"#N/A"}},null,{"$f":"VLOOKUP(V121,'DATOS ASP'!$K$22:$L$24,2,FALSE)","v":{"$error":"#N/A"}},null,{"$f":"VLOOKUP(X121,'DATOS ASP'!$M$22:$N$24,2,FALSE)","v":{"$error":"#N/A"}},{"$error":"#N/A"}]
[null,null,89,null,null,null,null,null,null,null,null,null,null,null,null,null,null,null,{"$f":"VLOOKUP(R122,'DATOS ASP'!$I$22:$J$23, 2,FALSE)","v":{"$error":"#N/A"}},null,{"$f":"VLOOKUP(T122,'DATOS ASP'!$I$26:$J$27,2,FALSE)","v":{"$error":"#N/A"}},null,{"$f":"VLOOKUP(V122,'DATOS ASP'!$K$22:$L$24,2,FALSE)","v":{"$error":"#N/A"}},null,{"$f":"VLOOKUP(X122,'DATOS ASP'!$M$22:$N$24,2,FALSE)","v":{"$error":"#N/A"}},{"$error":"#N/A"}]
[null,null,90,null,null,null,null,null,null,null,null,null,null,null,null,null,null,null,{"$f":"VLOOKUP(R123,'DATOS ASP'!$I$22:$J$23, 2,FALSE)","v":{"$error":"#N/A"}},null,{"$f":"VLOOKUP(T123,'DATOS ASP'!$I$26:$J$27,2,FALSE)","v":{"$error":"#N/A"}},null,{"$f":"VLOOKUP(V123,'DATOS ASP'!$K$22:$L$24,2,FALSE)","v":{"$error":"#N/A"}},null,{"$f":"VLOOKUP(X123,'DATOS ASP'!$M$22:$N$24,2,FALSE)","v":{"$error":"#N/A"}},{"$error":"#N/A"}]
[null,null,91,null,null,null,null,null,null,null,null,null,null,null,null,null,null,null,{"$f":"VLOOKUP(R124,'DATOS ASP'!$I$22:$J$23, 2,FALSE)","v":{"$error":"#N/A"}},null,{"$f":"VLOOKUP(T124,'DATOS ASP'!$I$26:$J$27,2,FALSE)","v":{"$error":"#N/A"}},null,{"$f":"VLOOKUP(V124,'DATOS ASP'!$K$22:$L$24,2,FALSE)","v":{"$error":"#N/A"}},null,{"$f":"VLOOKUP(X124,'DATOS ASP'!$M$22:$N$24,2,FALSE)","v":{"$error":"#N/A"}},{"$error":"#N/A"}]
[null,null,92,null,null,null,null,null,null,null,null,null,null,null,null,null,null,null,{"$f":"VLOOKUP(R125,'DATOS ASP'!$I$22:$J$23, 2,FALSE)","v":{"$error":"#N/A"}},null,{"$f":"VLOOKUP(T125,'DATOS ASP'!$I$26:$J$27,2,FALSE)","v":{"$error":"#N/A"}},null,{"$f":"VLOOKUP(V125,'DATOS ASP'!$K$22:$L$24,2,FALSE)","v":{"$error":"#N/A"}},null,{"$f":"VLOOKUP(X125,'DATOS ASP'!$M$22:$N$24,2,FALSE)","v":{"$error":"#N/A"}},{"$error":"#N/A"}]
[null,null,93,null,null,null,null,null,null,null,null,null,null,null,null,null,null,null,{"$f":"VLOOKUP(R126,'DATOS ASP'!$I$22:$J$23, 2,FALSE)","v":{"$error":"#N/A"}},null,{"$f":"VLOOKUP(T126,'DATOS ASP'!$I$26:$J$27,2,FALSE)","v":{"$error":"#N/A"}},null,{"$f":"VLOOKUP(V126,'DATOS ASP'!$K$22:$L$24,2,FALSE)","v":{"$error":"#N/A"}},null,{"$f":"VLOOKUP(X126,'DATOS ASP'!$M$22:$N$24,2,FALSE)","v":{"$error":"#N/A"}},{"$error":"#N/A"}]
[null,null,94,null,null,null,null,null,null,null,null,null,null,null,null,null,null,null,{"$f":"VLOOKUP(R127,'DATOS ASP'!$I$22:$J$23, 2,FALSE)","v":{"$error":"#N/A"}},null,{"$f":"VLOOKUP(T127,'DATOS ASP'!$I$26:$J$27,2,FALSE)","v":{"$error":"#N/A"}},null,{"$f":"VLOOKUP(V127,'DATOS ASP'!$K$22:$L$24,2,FALSE)","v":{"$error":"#N/A"}},null,{"$f":"VLOOKUP(X127,'DATOS ASP'!$M$22:$N$24,2,FALSE)","v":{"$error":"#N/A"}},{"$error":"#N/A"}]
[null,null,95,null,null,null,null,null,null,null,null,null,null,null,null,null,null,null,{"$f":"VLOOKUP(R128,'DATOS ASP'!$I$22:$J$23, 2,FALSE)","v":{"$error":"#N/A"}},null,{"$f":"VLOOKUP(T128,'DATOS ASP'!$I$26:$J$27,2,FALSE)","v":{"$error":"#N/A"}},null,{"$f":"VLOOKUP(V128,'DATOS ASP'!$K$22:$L$24,2,FALSE)","v":{"$error":"#N/A"}},null,{"$f":"VLOOKUP(X128,'DATOS ASP'!$M$22:$N$24,2,FALSE)","v":{"$error":"#N/A"}},{"$error":"#N/A"}]
[null,null,96,null,null,null,null,null,null,null,null,null,null,null,null,null,null,null,{"$f":"VLOOKUP(R129,'DATOS ASP'!$I$22:$J$23, 2,FALSE)","v":{"$error":"#N/A"}},null,{"$f":"VLOOKUP(T129,'DATOS ASP'!$I$26:$J$27,2,FALSE)","v":{"$error":"#N/A"}},null,{"$f":"VLOOKUP(V129,'DATOS ASP'!$K$22:$L$24,2,FALSE)","v":{"$error":"#N/A"}},null,{"$f":"VLOOKUP(X129,'DATOS ASP'!$M$22:$N$24,2,FALSE)","v":{"$error":"#N/A"}},{"$error":"#N/A"}]
[null,null,97,null,null,null,null,null,null,null,null,null,null,null,null,null,null,null,{"$f":"VLOOKUP(R130,'DATOS ASP'!$I$22:$J$23, 2,FALSE)","v":{"$error":"#N/A"}},null,{"$f":"VLOOKUP(T130,'DATOS ASP'!$I$26:$J$27,2,FALSE)","v":{"$error":"#N/A"}},null,{"$f":"VLOOKUP(V130,'DATOS ASP'!$K$22:$L$24,2,FALSE)","v":{"$error":"#N/A"}},null,{"$f":"VLOOKUP(X130,'DATOS ASP'!$M$22:$N$24,2,FALSE)","v":{"$error":"#N/A"}},{"$error":"#N/A"}]
[null,null,98,null,null,null,null,null,null,null,null,null,null,null,null,null,null,null,{"$f":"VLOOKUP(R131,'DATOS ASP'!$I$22:$J$23, 2,FALSE)","v":{"$error":"#N/A"}},null,{"$f":"VLOOKUP(T131,'DATOS ASP'!$I$26:$J$27,2,FALSE)","v":{"$error":"#N/A"}},null,{"$f":"VLOOKUP(V131,'DATOS ASP'!$K$22:$L$24,2,FALSE)","v":{"$error":"#N/A"}},null,{"$f":"VLOOKUP(X131,'DATOS ASP'!$M$22:$N$24,2,FALSE)","v":{"$error":"#N/A"}},{"$error":"#N/A"}]
[null,null,99,null,null,null,null,null,null,null,null,null,null,null,null,null,null,null,{"$f":"VLOOKUP(R132,'DATOS ASP'!$I$22:$J$23, 2,FALSE)","v":{"$error":"#N/A"}},null,{"$f":"VLOOKUP(T132,'DATOS ASP'!$I$26:$J$27,2,FALSE)","v":{"$error":"#N/A"}},null,{"$f":"VLOOKUP(V132,'DATOS ASP'!$K$22:$L$24,2,FALSE)","v":{"$error":"#N/A"}},null,{"$f":"VLOOKUP(X132,'DATOS ASP'!$M$22:$N$24,2,FALSE)","v":{"$error":"#N/A"}},{"$error":"#N/A"}]
[null,null,100,null,null,null,null,null,null,null,null,null,null,null,null,null,null,null,{"$f":"VLOOKUP(R133,'DATOS ASP'!$I$22:$J$23, 2,FALSE)","v":{"$error":"#N/A"}},null,{"$f":"VLOOKUP(T133,'DATOS ASP'!$I$26:$J$27,2,FALSE)","v":{"$error":"#N/A"}},null,{"$f":"VLOOKUP(V133,'DATOS ASP'!$K$22:$L$24,2,FALSE)","v":{"$error":"#N/A"}},null,{"$f":"VLOOKUP(X133,'DATOS ASP'!$M$22:$N$24,2,FALSE)","v":{"$error":"#N/A"}},{"$error":"#N/A"}]
[null,null,101,null,null,null,null,null,null,null,null,null,null,null,null,null,null,null,{"$f":"VLOOKUP(R134,'DATOS ASP'!$I$22:$J$23, 2,FALSE)","v":{"$error":"#N/A"}},null,{"$f":"VLOOKUP(T134,'DATOS ASP'!$I$26:$J$27,2,FALSE)","v":{"$error":"#N/A"}},null,{"$f":"VLOOKUP(V134,'DATOS ASP'!$K$22:$L$24,2,FALSE)","v":{"$error":"#N/A"}},null,{"$f":"VLOOKUP(X134,'DATOS ASP'!$M$22:$N$24,2,FALSE)","v":{"$error":"#N/A"}},{"$error":"#N/A"}]
[null,null,102,null,null,null,null,null,null,null,null,null,null,null,null,null,null,null,{"$f":"VLOOKUP(R135,'DATOS ASP'!$I$22:$J$23, 2,FALSE)","v":{"$error":"#N/A"}},null,{"$f":"VLOOKUP(T135,'DATOS ASP'!$I$26:$J$27,2,FALSE)","v":{"$error":"#N/A"}},null,{"$f":"VLOOKUP(V135,'DATOS ASP'!$K$22:$L$24,2,FALSE)","v":{"$error":"#N/A"}},null,{"$f":"VLOOKUP(X135,'DATOS ASP'!$M$22:$N$24,2,FALSE)","v":{"$error":"#N/A"}},{"$error":"#N/A"}]
[null,null,103,null,null,null,null,null,null,null,null,null,null,null,null,null,null,null,{"$f":"VLOOKUP(R136,'DATOS ASP'!$I$22:$J$23, 2,FALSE)","v":{"$error":"#N/A"}},null,{"$f":"VLOOKUP(T136,'DATOS ASP'!$I$26:$J$27,2,FALSE)","v":{"$error":"#N/A"}},null,{"$f":"VLOOKUP(V136,'DATOS ASP'!$K$22:$L$24,2,FALSE)","v":{"$error":"#N/A"}},null,{"$f":"VLOOKUP(X136,'DATOS ASP'!$M$22:$N$24,2,FALSE)","v":{"$error":"#N/A"}},{"$error":"#N/A"}]
[null,null,104,null,null,null,null,null,null,null,null,null,null,null,null,null,null,null,{"$f":"VLOOKUP(R137,'DATOS ASP'!$I$22:$J$23, 2,FALSE)","v":{"$error":"#N/A"}},null,{"$f":"VLOOKUP(T137,'DATOS ASP'!$I$26:$J$27,2,FALSE)","v":{"$error":"#N/A"}},null,{"$f":"VLOOKUP(V137,'DATOS ASP'!$K$22:$L$24,2,FALSE)","v":{"$error":"#N/A"}},null,{"$f":"VLOOKUP(X137,'DATOS ASP'!$M$22:$N$24,2,FALSE)","v":{"$error":"#N/A"}},{"$error":"#N/A"}]
[null,null,105,null,null,null,null,null,null,null,null,null,null,null,null,null,null,null,{"$f":"VLOOKUP(R138,'DATOS ASP'!$I$22:$J$23, 2,FALSE)","v":{"$error":"#N/A"}},null,{"$f":"VLOOKUP(T138,'DATOS ASP'!$I$26:$J$27,2,FALSE)","v":{"$error":"#N/A"}},null,{"$f":"VLOOKUP(V138,'DATOS ASP'!$K$22:$L$24,2,FALSE)","v":{"$error":"#N/A"}},null,{"$f":"VLOOKUP(X138,'DATOS ASP'!$M$22:$N$24,2,FALSE)","v":{"$error":"#N/A"}},{"$error":"#N/A"}]
[null,null,106,null,null,null,null,null,null,null,null,null,null,null,null,null,null,null,{"$f":"VLOOKUP(R139,'DATOS ASP'!$I$22:$J$23, 2,FALSE)","v":{"$error":"#N/A"}},null,{"$f":"VLOOKUP(T139,'DATOS ASP'!$I$26:$J$27,2,FALSE)","v":{"$error":"#N/A"}},null,{"$f":"VLOOKUP(V139,'DATOS ASP'!$K$22:$L$24,2,FALSE)","v":{"$error":"#N/A"}},null,{"$f":"VLOOKUP(X139,'DATOS ASP'!$M$22:$N$24,2,FALSE)","v":{"$error":"#N/A"}},{"$error":"#N/A"}]
[null,null,107,null,null,null,null,null,null,null,null,null,null,null,null,null,null,null,{"$f":"VLOOKUP(R140,'DATOS ASP'!$I$22:$J$23, 2,FALSE)","v":{"$error":"#N/A"}},null,{"$f":"VLOOKUP(T140,'DATOS ASP'!$I$26:$J$27,2,FALSE)","v":{"$error":"#N/A"}},null,{"$f":"VLOOKUP(V140,'DATOS ASP'!$K$22:$L$24,2,FALSE)","v":{"$error":"#N/A"}},null,{"$f":"VLOOKUP(X140,'DATOS ASP'!$M$22:$N$24,2,FALSE)","v":{"$error":"#N/A"}},{"$error":"#N/A"}]
[null,null,108,null,null,null,null,null,null,null,null,null,null,null,null,null,null,null,{"$f":"VLOOKUP(R141,'DATOS ASP'!$I$22:$J$23, 2,FALSE)","v":{"$error":"#N/A"}},null,{"$f":"VLOOKUP(T141,'DATOS ASP'!$I$26:$J$27,2,FALSE)","v":{"$error":"#N/A"}},null,{"$f":"VLOOKUP(V141,'DATOS ASP'!$K$22:$L$24,2,FALSE)","v":{"$error":"#N/A"}},null,{"$f":"VLOOKUP(X141,'DATOS ASP'!$M$22:$N$24,2,FALSE)","v":{"$error":"#N/A"}},{"$error":"#N/A"}]
[null,null,109,null,null,null,null,null,null,null,null,null,null,null,null,null,null,null,{"$f":"VLOOKUP(R142,'DATOS ASP'!$I$22:$J$23, 2,FALSE)","v":{"$error":"#N/A"}},null,{"$f":"VLOOKUP(T142,'DATOS ASP'!$I$26:$J$27,2,FALSE)","v":{"$error":"#N/A"}},null,{"$f":"VLOOKUP(V142,'DATOS ASP'!$K$22:$L$24,2,FALSE)","v":{"$error":"#N/A"}},null,{"$f":"VLOOKUP(X142,'DATOS ASP'!$M$22:$N$24,2,FALSE)","v":{"$error":"#N/A"}},{"$error":"#N/A"}]
[null,null,110,null,null,null,null,null,null,null,null,null,null,null,null,null,null,null,{"$f":"VLOOKUP(R143,'DATOS ASP'!$I$22:$J$23, 2,FALSE)","v":{"$error":"#N/A"}},null,{"$f":"VLOOKUP(T143,'DATOS ASP'!$I$26:$J$27,2,FALSE)","v":{"$error":"#N/A"}},null,{"$f":"VLOOKUP(V143,'DATOS ASP'!$K$22:$L$24,2,FALSE)","v":{"$error":"#N/A"}},null,{"$f":"VLOOKUP(X143,'DATOS ASP'!$M$22:$N$24,2,FALSE)","v":{"$error":"#N/A"}},{"$error":"#N/A"}]
[null,null,111,null,null,null,null,null,null,null,null,null,null,null,null,null,null,null,{"$f":"VLOOKUP(R144,'DATOS ASP'!$I$22:$J$23, 2,FALSE)","v":{"$error":"#N/A"}},null,{"$f":"VLOOKUP(T144,'DATOS ASP'!$I$26:$J$27,2,FALSE)","v":{"$error":"#N/A"}},null,{"$f":"VLOOKUP(V144,'DATOS ASP'!$K$22:$L$24,2,FALSE)","v":{"$error":"#N/A"}},null,{"$f":"VLOOKUP(X144,'DATOS ASP'!$M$22:$N$24,2,FALSE)","v":{"$error":"#N/A"}},{"$error":"#N/A"}]
[null,null,112,null,null,null,null,null,null,null,null,null,null,null,null,null,null,null,{"$f":"VLOOKUP(R145,'DATOS ASP'!$I$22:$J$23, 2,FALSE)","v":{"$error":"#N/A"}},null,{"$f":"VLOOKUP(T145,'DATOS ASP'!$I$26:$J$27,2,FALSE)","v":{"$error":"#N/A"}},null,{"$f":"VLOOKUP(V145,'DATOS ASP'!$K$22:$L$24,2,FALSE)","v":{"$error":"#N/A"}},null,{"$f":"VLOOKUP(X145,'DATOS ASP'!$M$22:$N$24,2,FALSE)","v":{"$error":"#N/A"}},{"$error":"#N/A"}]
[null,null,113,null,null,null,null,null,null,null,null,null,null,null,null,null,null,null,{"$f":"VLOOKUP(R146,'DATOS ASP'!$I$22:$J$23, 2,FALSE)","v":{"$error":"#N/A"}},null,{"$f":"VLOOKUP(T146,'DATOS ASP'!$I$26:$J$27,2,FALSE)","v":{"$error":"#N/A"}},null,{"$f":"VLOOKUP(V146,'DATOS ASP'!$K$22:$L$24,2,FALSE)","v":{"$error":"#N/A"}},null,{"$f":"VLOOKUP(X146,'DATOS ASP'!$M$22:$N$24,2,FALSE)","v":{"$error":"#N/A"}},{"$error":"#N/A"}]
[null,null,114,null,null,null,null,null,null,null,null,null,null,null,null,null,null,null,{"$f":"VLOOKUP(R147,'DATOS ASP'!$I$22:$J$23, 2,FALSE)","v":{"$error":"#N/A"}},null,{"$f":"VLOOKUP(T147,'DATOS ASP'!$I$26:$J$27,2,FALSE)","v":{"$error":"#N/A"}},null,{"$f":"VLOOKUP(V147,'DATOS ASP'!$K$22:$L$24,2,FALSE)","v":{"$error":"#N/A"}},null,{"$f":"VLOOKUP(X147,'DATOS ASP'!$M$22:$N$24,2,FALSE)","v":{"$error":"#N/A"}},{"$error":"#N/A"}]
[null,null,115,null,null,null,null,null,null,null,null,null,null,null,null,null,null,null,{"$f":"VLOOKUP(R148,'DATOS ASP'!$I$22:$J$23, 2,FALSE)","v":{"$error":"#N/A"}},null,{"$f":"VLOOKUP(T148,'DATOS ASP'!$I$26:$J$27,2,FALSE)","v":{"$error":"#N/A"}},null,{"$f":"VLOOKUP(V148,'DATOS ASP'!$K$22:$L$24,2,FALSE)","v":{"$error":"#N/A"}},null,{"$f":"VLOOKUP(X148,'DATOS ASP'!$M$22:$N$24,2,FALSE)","v":{"$error":"#N/A"}},{"$error":"#N/A"}]
[null,null,116,null,null,null,null,null,null,null,null,null,null,null,null,null,null,null,{"$f":"VLOOKUP(R149,'DATOS ASP'!$I$22:$J$23, 2,FALSE)","v":{"$error":"#N/A"}},null,{"$f":"VLOOKUP(T149,'DATOS ASP'!$I$26:$J$27,2,FALSE)","v":{"$error":"#N/A"}},null,{"$f":"VLOOKUP(V149,'DATOS ASP'!$K$22:$L$24,2,FALSE)","v":{"$error":"#N/A"}},null,{"$f":"VLOOKUP(X149,'DATOS ASP'!$M$22:$N$24,2,FALSE)","v":{"$error":"#N/A"}},{"$error":"#N/A"}]
[null,null,117,null,null,null,null,null,null,null,null,null,null,null,null,null,null,null,{"$f":"VLOOKUP(R150,'DATOS ASP'!$I$22:$J$23, 2,FALSE)","v":{"$error":"#N/A"}},null,{"$f":"VLOOKUP(T150,'DATOS ASP'!$I$26:$J$27,2,FALSE)","v":{"$error":"#N/A"}},null,{"$f":"VLOOKUP(V150,'DATOS ASP'!$K$22:$L$24,2,FALSE)","v":{"$error":"#N/A"}},null,{"$f":"VLOOKUP(X150,'DATOS ASP'!$M$22:$N$24,2,FALSE)","v":{"$error":"#N/A"}},{"$error":"#N/A"}]
[null,null,118,null,null,null,null,null,null,null,null,null,null,null,null,null,null,null,{"$f":"VLOOKUP(R151,'DATOS ASP'!$I$22:$J$23, 2,FALSE)","v":{"$error":"#N/A"}},null,{"$f":"VLOOKUP(T151,'DATOS ASP'!$I$26:$J$27,2,FALSE)","v":{"$error":"#N/A"}},null,{"$f":"VLOOKUP(V151,'DATOS ASP'!$K$22:$L$24,2,FALSE)","v":{"$error":"#N/A"}},null,{"$f":"VLOOKUP(X151,'DATOS ASP'!$M$22:$N$24,2,FALSE)","v":{"$error":"#N/A"}},{"$error":"#N/A"}]
[null,null,119,null,null,null,null,null,null,null,null,null,null,null,null,null,null,null,{"$f":"VLOOKUP(R152,'DATOS ASP'!$I$22:$J$23, 2,FALSE)","v":{"$error":"#N/A"}},null,{"$f":"VLOOKUP(T152,'DATOS ASP'!$I$26:$J$27,2,FALSE)","v":{"$error":"#N/A"}},null,{"$f":"VLOOKUP(V152,'DATOS ASP'!$K$22:$L$24,2,FALSE)","v":{"$error":"#N/A"}},null,{"$f":"VLOOKUP(X152,'DATOS ASP'!$M$22:$N$24,2,FALSE)","v":{"$error":"#N/A"}},{"$error":"#N/A"}]
[null,null,120,null,null,null,null,null,null,null,null,null,null,null,null,null,null,null,{"$f":"VLOOKUP(R153,'DATOS ASP'!$I$22:$J$23, 2,FALSE)","v":{"$error":"#N/A"}},null,{"$f":"VLOOKUP(T153,'DATOS ASP'!$I$26:$J$27,2,FALSE)","v":{"$error":"#N/A"}},null,{"$f":"VLOOKUP(V153,'DATOS ASP'!$K$22:$L$24,2,FALSE)","v":{"$error":"#N/A"}},null,{"$f":"VLOOKUP(X153,'DATOS ASP'!$M$22:$N$24,2,FALSE)","v":{"$error":"#N/A"}},{"$error":"#N/A"}]
[null,null,121,null,null,null,null,null,null,null,null,null,null,null,null,null,null,null,{"$f":"VLOOKUP(R154,'DATOS ASP'!$I$22:$J$23, 2,FALSE)","v":{"$error":"#N/A"}},null,{"$f":"VLOOKUP(T154,'DATOS ASP'!$I$26:$J$27,2,FALSE)","v":{"$error":"#N/A"}},null,{"$f":"VLOOKUP(V154,'DATOS ASP'!$K$22:$L$24,2,FALSE)","v":{"$error":"#N/A"}},null,{"$f":"VLOOKUP(X154,'DATOS ASP'!$M$22:$N$24,2,FALSE)","v":{"$error":"#N/A"}},{"$error":"#N/A"}]
[null,null,122,null,null,null,null,null,null,null,null,null,null,null,null,null,null,null,{"$f":"VLOOKUP(R155,'DATOS ASP'!$I$22:$J$23, 2,FALSE)","v":{"$error":"#N/A"}},null,{"$f":"VLOOKUP(T155,'DATOS ASP'!$I$26:$J$27,2,FALSE)","v":{"$error":"#N/A"}},null,{"$f":"VLOOKUP(V155,'DATOS ASP'!$K$22:$L$24,2,FALSE)","v":{"$error":"#N/A"}},null,{"$f":"VLOOKUP(X155,'DATOS ASP'!$M$22:$N$24,2,FALSE)","v":{"$error":"#N/A"}},{"$error":"#N/A"}]
[null,null,123,null,null,null,null,null,null,null,null,null,null,null,null,null,null,null,{"$f":"VLOOKUP(R156,'DATOS ASP'!$I$22:$J$23, 2,FALSE)","v":{"$error":"#N/A"}},null,{"$f":"VLOOKUP(T156,'DATOS ASP'!$I$26:$J$27,2,FALSE)","v":{"$error":"#N/A"}},null,{"$f":"VLOOKUP(V156,'DATOS ASP'!$K$22:$L$24,2,FALSE)","v":{"$error":"#N/A"}},null,{"$f":"VLOOKUP(X156,'DATOS ASP'!$M$22:$N$24,2,FALSE)","v":{"$error":"#N/A"}},{"$error":"#N/A"}]
[null,null,124,null,null,null,null,null,null,null,null,null,null,null,null,null,null,null,{"$f":"VLOOKUP(R157,'DATOS ASP'!$I$22:$J$23, 2,FALSE)","v":{"$error":"#N/A"}},null,{"$f":"VLOOKUP(T157,'DATOS ASP'!$I$26:$J$27,2,FALSE)","v":{"$error":"#N/A"}},null,{"$f":"VLOOKUP(V157,'DATOS ASP'!$K$22:$L$24,2,FALSE)","v":{"$error":"#N/A"}},null,{"$f":"VLOOKUP(X157,'DATOS ASP'!$M$22:$N$24,2,FALSE)","v":{"$error":"#N/A"}},{"$error":"#N/A"}]
[null,null,125,null,null,null,null,null,null,null,null,null,null,null,null,null,null,null,{"$f":"VLOOKUP(R158,'DATOS ASP'!$I$22:$J$23, 2,FALSE)","v":{"$error":"#N/A"}},null,{"$f":"VLOOKUP(T158,'DATOS ASP'!$I$26:$J$27,2,FALSE)","v":{"$error":"#N/A"}},null,{"$f":"VLOOKUP(V158,'DATOS ASP'!$K$22:$L$24,2,FALSE)","v":{"$error":"#N/A"}},null,{"$f":"VLOOKUP(X158,'DATOS ASP'!$M$22:$N$24,2,FALSE)","v":{"$error":"#N/A"}},{"$error":"#N/A"}]
[null,null,126,null,null,null,null,null,null,null,null,null,null,null,null,null,null,null,{"$f":"VLOOKUP(R159,'DATOS ASP'!$I$22:$J$23, 2,FALSE)","v":{"$error":"#N/A"}},null,{"$f":"VLOOKUP(T159,'DATOS ASP'!$I$26:$J$27,2,FALSE)","v":{"$error":"#N/A"}},null,{"$f":"VLOOKUP(V159,'DATOS ASP'!$K$22:$L$24,2,FALSE)","v":{"$error":"#N/A"}},null,{"$f":"VLOOKUP(X159,'DATOS ASP'!$M$22:$N$24,2,FALSE)","v":{"$error":"#N/A"}},{"$error":"#N/A"}]
[null,null,127,null,null,null,null,null,null,null,null,null,null,null,null,null,null,null,{"$f":"VLOOKUP(R160,'DATOS ASP'!$I$22:$J$23, 2,FALSE)","v":{"$error":"#N/A"}},null,{"$f":"VLOOKUP(T160,'DATOS ASP'!$I$26:$J$27,2,FALSE)","v":{"$error":"#N/A"}},null,{"$f":"VLOOKUP(V160,'DATOS ASP'!$K$22:$L$24,2,FALSE)","v":{"$error":"#N/A"}},null,{"$f":"VLOOKUP(X160,'DATOS ASP'!$M$22:$N$24,2,FALSE)","v":{"$error":"#N/A"}},{"$error":"#N/A"}]
[null,null,128,null,null,null,null,null,null,null,null,null,null,null,null,null,null,null,{"$f":"VLOOKUP(R161,'DATOS ASP'!$I$22:$J$23, 2,FALSE)","v":{"$error":"#N/A"}},null,{"$f":"VLOOKUP(T161,'DATOS ASP'!$I$26:$J$27,2,FALSE)","v":{"$error":"#N/A"}},null,{"$f":"VLOOKUP(V161,'DATOS ASP'!$K$22:$L$24,2,FALSE)","v":{"$error":"#N/A"}},null,{"$f":"VLOOKUP(X161,'DATOS ASP'!$M$22:$N$24,2,FALSE)","v":{"$error":"#N/A"}},{"$error":"#N/A"}]
[null,null,129,null,null,null,null,null,null,null,null,null,null,null,null,null,null,null,{"$f":"VLOOKUP(R162,'DATOS ASP'!$I$22:$J$23, 2,FALSE)","v":{"$error":"#N/A"}},null,{"$f":"VLOOKUP(T162,'DATOS ASP'!$I$26:$J$27,2,FALSE)","v":{"$error":"#N/A"}},null,{"$f":"VLOOKUP(V162,'DATOS ASP'!$K$22:$L$24,2,FALSE)","v":{"$error":"#N/A"}},null,{"$f":"VLOOKUP(X162,'DATOS ASP'!$M$22:$N$24,2,FALSE)","v":{"$error":"#N/A"}},{"$f":"S162*((3*U162)+W162+Y162)","v":{"$error":"#N/A"}}]
[null,null,130,null,null,null,null,null,null,null,null,null,null,null,null,null,null,null,{"$f":"VLOOKUP(R163,'DATOS ASP'!$I$22:$J$23, 2,FALSE)","v":{"$error":"#N/A"}},null,{"$f":"VLOOKUP(T163,'DATOS ASP'!$I$26:$J$27,2,FALSE)","v":{"$error":"#N/A"}},null,{"$f":"VLOOKUP(V163,'DATOS ASP'!$K$22:$L$24,2,FALSE)","v":{"$error":"#N/A"}},null,{"$f":"VLOOKUP(X163,'DATOS ASP'!$M$22:$N$24,2,FALSE)","v":{"$error":"#N/A"}},{"$error":"#N/A"}]
[null,null,131,null,null,null,null,null,null,null,null,null,null,null,null,null,null,null,{"$f":"VLOOKUP(R164,'DATOS ASP'!$I$22:$J$23, 2,FALSE)","v":{"$error":"#N/A"}},null,{"$f":"VLOOKUP(T164,'DATOS ASP'!$I$26:$J$27,2,FALSE)","v":{"$error":"#N/A"}},null,{"$f":"VLOOKUP(V164,'DATOS ASP'!$K$22:$L$24,2,FALSE)","v":{"$error":"#N/A"}},null,{"$f":"VLOOKUP(X164,'DATOS ASP'!$M$22:$N$24,2,FALSE)","v":{"$error":"#N/A"}},{"$error":"#N/A"}]
[null,null,132,null,null,null,null,null,null,null,null,null,null,null,null,null,null,null,{"$f":"VLOOKUP(R165,'DATOS ASP'!$I$22:$J$23, 2,FALSE)","v":{"$error":"#N/A"}},null,{"$f":"VLOOKUP(T165,'DATOS ASP'!$I$26:$J$27,2,FALSE)","v":{"$error":"#N/A"}},null,{"$f":"VLOOKUP(V165,'DATOS ASP'!$K$22:$L$24,2,FALSE)","v":{"$error":"#N/A"}},null,{"$f":"VLOOKUP(X165,'DATOS ASP'!$M$22:$N$24,2,FALSE)","v":{"$error":"#N/A"}},{"$error":"#N/A"}]
[null,null,133,null,null,null,null,null,null,null,null,null,null,null,null,null,null,null,{"$f":"VLOOKUP(R166,'DATOS ASP'!$I$22:$J$23, 2,FALSE)","v":{"$error":"#N/A"}},null,{"$f":"VLOOKUP(T166,'DATOS ASP'!$I$26:$J$27,2,FALSE)","v":{"$error":"#N/A"}},null,{"$f":"VLOOKUP(V166,'DATOS ASP'!$K$22:$L$24,2,FALSE)","v":{"$error":"#N/A"}},null,{"$f":"VLOOKUP(X166,'DATOS ASP'!$M$22:$N$24,2,FALSE)","v":{"$error":"#N/A"}},{"$error":"#N/A"}]
[null,null,134,null,null,null,null,null,null,null,null,null,null,null,null,null,null,null,{"$f":"VLOOKUP(R167,'DATOS ASP'!$I$22:$J$23, 2,FALSE)","v":{"$error":"#N/A"}},null,{"$f":"VLOOKUP(T167,'DATOS ASP'!$I$26:$J$27,2,FALSE)","v":{"$error":"#N/A"}},null,{"$f":"VLOOKUP(V167,'DATOS ASP'!$K$22:$L$24,2,FALSE)","v":{"$error":"#N/A"}},null,{"$f":"VLOOKUP(X167,'DATOS ASP'!$M$22:$N$24,2,FALSE)","v":{"$error":"#N/A"}},{"$error":"#N/A"}]
[null,null,135,null,null,null,null,null,null,null,null,null,null,null,null,null,null,null,{"$f":"VLOOKUP(R168,'DATOS ASP'!$I$22:$J$23, 2,FALSE)","v":{"$error":"#N/A"}},null,{"$f":"VLOOKUP(T168,'DATOS ASP'!$I$26:$J$27,2,FALSE)","v":{"$error":"#N/A"}},null,{"$f":"VLOOKUP(V168,'DATOS ASP'!$K$22:$L$24,2,FALSE)","v":{"$error":"#N/A"}},null,{"$f":"VLOOKUP(X168,'DATOS ASP'!$M$22:$N$24,2,FALSE)","v":{"$error":"#N/A"}},{"$error":"#N/A"}]
[null,null,136,null,null,null,null,null,null,null,null,null,null,null,null,null,null,null,{"$f":"VLOOKUP(R169,'DATOS ASP'!$I$22:$J$23, 2,FALSE)","v":{"$error":"#N/A"}},null,{"$f":"VLOOKUP(T169,'DATOS ASP'!$I$26:$J$27,2,FALSE)","v":{"$error":"#N/A"}},null,{"$f":"VLOOKUP(V169,'DATOS ASP'!$K$22:$L$24,2,FALSE)","v":{"$error":"#N/A"}},null,{"$f":"VLOOKUP(X169,'DATOS ASP'!$M$22:$N$24,2,FALSE)","v":{"$error":"#N/A"}},{"$error":"#N/A"}]
[null,null,137,null,null,null,null,null,null,null,null,null,null,null,null,null,null,null,{"$f":"VLOOKUP(R170,'DATOS ASP'!$I$22:$J$23, 2,FALSE)","v":{"$error":"#N/A"}},null,{"$f":"VLOOKUP(T170,'DATOS ASP'!$I$26:$J$27,2,FALSE)","v":{"$error":"#N/A"}},null,{"$f":"VLOOKUP(V170,'DATOS ASP'!$K$22:$L$24,2,FALSE)","v":{"$error":"#N/A"}},null,{"$f":"VLOOKUP(X170,'DATOS ASP'!$M$22:$N$24,2,FALSE)","v":{"$error":"#N/A"}},{"$error":"#N/A"}]
[null,null,138,null,null,null,null,null,null,null,null,null,null,null,null,null,null,null,{"$f":"VLOOKUP(R171,'DATOS ASP'!$I$22:$J$23, 2,FALSE)","v":{"$error":"#N/A"}},null,{"$f":"VLOOKUP(T171,'DATOS ASP'!$I$26:$J$27,2,FALSE)","v":{"$error":"#N/A"}},null,{"$f":"VLOOKUP(V171,'DATOS ASP'!$K$22:$L$24,2,FALSE)","v":{"$error":"#N/A"}},null,{"$f":"VLOOKUP(X171,'DATOS ASP'!$M$22:$N$24,2,FALSE)","v":{"$error":"#N/A"}},{"$error":"#N/A"}]
[null,null,139,null,null,null,null,null,null,null,null,null,null,null,null,null,null,null,{"$f":"VLOOKUP(R172,'DATOS ASP'!$I$22:$J$23, 2,FALSE)","v":{"$error":"#N/A"}},null,{"$f":"VLOOKUP(T172,'DATOS ASP'!$I$26:$J$27,2,FALSE)","v":{"$error":"#N/A"}},null,{"$f":"VLOOKUP(V172,'DATOS ASP'!$K$22:$L$24,2,FALSE)","v":{"$error":"#N/A"}},null,{"$f":"VLOOKUP(X172,'DATOS ASP'!$M$22:$N$24,2,FALSE)","v":{"$error":"#N/A"}},{"$error":"#N/A"}]
[null,null,140,null,null,null,null,null,null,null,null,null,null,null,null,null,null,null,{"$f":"VLOOKUP(R173,'DATOS ASP'!$I$22:$J$23, 2,FALSE)","v":{"$error":"#N/A"}},null,{"$f":"VLOOKUP(T173,'DATOS ASP'!$I$26:$J$27,2,FALSE)","v":{"$error":"#N/A"}},null,{"$f":"VLOOKUP(V173,'DATOS ASP'!$K$22:$L$24,2,FALSE)","v":{"$error":"#N/A"}},null,{"$f":"VLOOKUP(X173,'DATOS ASP'!$M$22:$N$24,2,FALSE)","v":{"$error":"#N/A"}},{"$error":"#N/A"}]
[null,null,141,null,null,null,null,null,null,null,null,null,null,null,null,null,null,null,{"$f":"VLOOKUP(R174,'DATOS ASP'!$I$22:$J$23, 2,FALSE)","v":{"$error":"#N/A"}},null,{"$f":"VLOOKUP(T174,'DATOS ASP'!$I$26:$J$27,2,FALSE)","v":{"$error":"#N/A"}},null,{"$f":"VLOOKUP(V174,'DATOS ASP'!$K$22:$L$24,2,FALSE)","v":{"$error":"#N/A"}},null,{"$f":"VLOOKUP(X174,'DATOS ASP'!$M$22:$N$24,2,FALSE)","v":{"$error":"#N/A"}},{"$error":"#N/A"}]
[null,null,142,null,null,null,null,null,null,null,null,null,null,null,null,null,null,null,{"$f":"VLOOKUP(R175,'DATOS ASP'!$I$22:$J$23, 2,FALSE)","v":{"$error":"#N/A"}},null,{"$f":"VLOOKUP(T175,'DATOS ASP'!$I$26:$J$27,2,FALSE)","v":{"$error":"#N/A"}},null,{"$f":"VLOOKUP(V175,'DATOS ASP'!$K$22:$L$24,2,FALSE)","v":{"$error":"#N/A"}},null,{"$f":"VLOOKUP(X175,'DATOS ASP'!$M$22:$N$24,2,FALSE)","v":{"$error":"#N/A"}},{"$error":"#N/A"}]
[null,null,143,null,null,null,null,null,null,null,null,null,null,null,null,null,null,null,{"$f":"VLOOKUP(R176,'DATOS ASP'!$I$22:$J$23, 2,FALSE)","v":{"$error":"#N/A"}},null,{"$f":"VLOOKUP(T176,'DATOS ASP'!$I$26:$J$27,2,FALSE)","v":{"$error":"#N/A"}},null,{"$f":"VLOOKUP(V176,'DATOS ASP'!$K$22:$L$24,2,FALSE)","v":{"$error":"#N/A"}},null,{"$f":"VLOOKUP(X176,'DATOS ASP'!$M$22:$N$24,2,FALSE)","v":{"$error":"#N/A"}},{"$error":"#N/A"}]
[null,null,144,null,null,null,null,null,null,null,null,null,null,null,null,null,null,null,{"$f":"VLOOKUP(R177,'DATOS ASP'!$I$22:$J$23, 2,FALSE)","v":{"$error":"#N/A"}},null,{"$f":"VLOOKUP(T177,'DATOS ASP'!$I$26:$J$27,2,FALSE)","v":{"$error":"#N/A"}},null,{"$f":"VLOOKUP(V177,'DATOS ASP'!$K$22:$L$24,2,FALSE)","v":{"$error":"#N/A"}},null,{"$f":"VLOOKUP(X177,'DATOS ASP'!$M$22:$N$24,2,FALSE)","v":{"$error":"#N/A"}},{"$error":"#N/A"}]
[null,null,145,null,null,null,null,null,null,null,null,null,null,null,null,null,null,null,{"$f":"VLOOKUP(R178,'DATOS ASP'!$I$22:$J$23, 2,FALSE)","v":{"$error":"#N/A"}},null,{"$f":"VLOOKUP(T178,'DATOS ASP'!$I$26:$J$27,2,FALSE)","v":{"$error":"#N/A"}},null,{"$f":"VLOOKUP(V178,'DATOS ASP'!$K$22:$L$24,2,FALSE)","v":{"$error":"#N/A"}},null,{"$f":"VLOOKUP(X178,'DATOS ASP'!$M$22:$N$24,2,FALSE)","v":{"$error":"#N/A"}},{"$error":"#N/A"}]
[null,null,146,null,null,null,null,null,null,null,null,null,null,null,null,null,null,null,{"$f":"VLOOKUP(R179,'DATOS ASP'!$I$22:$J$23, 2,FALSE)","v":{"$error":"#N/A"}},null,{"$f":"VLOOKUP(T179,'DATOS ASP'!$I$26:$J$27,2,FALSE)","v":{"$error":"#N/A"}},null,{"$f":"VLOOKUP(V179,'DATOS ASP'!$K$22:$L$24,2,FALSE)","v":{"$error":"#N/A"}},null,{"$f":"VLOOKUP(X179,'DATOS ASP'!$M$22:$N$24,2,FALSE)","v":{"$error":"#N/A"}},{"$error":"#N/A"}]
[null,null,147,null,null,null,null,null,null,null,null,null,null,null,null,null,null,null,{"$f":"VLOOKUP(R180,'DATOS ASP'!$I$22:$J$23, 2,FALSE)","v":{"$error":"#N/A"}},null,{"$f":"VLOOKUP(T180,'DATOS ASP'!$I$26:$J$27,2,FALSE)","v":{"$error":"#N/A"}},null,{"$f":"VLOOKUP(V180,'DATOS ASP'!$K$22:$L$24,2,FALSE)","v":{"$error":"#N/A"}},null,{"$f":"VLOOKUP(X180,'DATOS ASP'!$M$22:$N$24,2,FALSE)","v":{"$error":"#N/A"}},{"$error":"#N/A"}]
[null,null,148,null,null,null,null,null,null,null,null,null,null,null,null,null,null,null,{"$f":"VLOOKUP(R181,'DATOS ASP'!$I$22:$J$23, 2,FALSE)","v":{"$error":"#N/A"}},null,{"$f":"VLOOKUP(T181,'DATOS ASP'!$I$26:$J$27,2,FALSE)","v":{"$error":"#N/A"}},null,{"$f":"VLOOKUP(V181,'DATOS ASP'!$K$22:$L$24,2,FALSE)","v":{"$error":"#N/A"}},null,{"$f":"VLOOKUP(X181,'DATOS ASP'!$M$22:$N$24,2,FALSE)","v":{"$error":"#N/A"}},{"$error":"#N/A"}]
[null,null,149,null,null,null,null,null,null,null,null,null,null,null,null,null,null,null,{"$f":"VLOOKUP(R182,'DATOS ASP'!$I$22:$J$23, 2,FALSE)","v":{"$error":"#N/A"}},null,{"$f":"VLOOKUP(T182,'DATOS ASP'!$I$26:$J$27,2,FALSE)","v":{"$error":"#N/A"}},null,{"$f":"VLOOKUP(V182,'DATOS ASP'!$K$22:$L$24,2,FALSE)","v":{"$error":"#N/A"}},null,{"$f":"VLOOKUP(X182,'DATOS ASP'!$M$22:$N$24,2,FALSE)","v":{"$error":"#N/A"}},{"$error":"#N/A"}]
[null,null,150,null,null,null,null,null,null,null,null,null,null,null,null,null,null,null,{"$f":"VLOOKUP(R183,'DATOS ASP'!$I$22:$J$23, 2,FALSE)","v":{"$error":"#N/A"}},null,{"$f":"VLOOKUP(T183,'DATOS ASP'!$I$26:$J$27,2,FALSE)","v":{"$error":"#N/A"}},null,{"$f":"VLOOKUP(V183,'DATOS ASP'!$K$22:$L$24,2,FALSE)","v":{"$error":"#N/A"}},null,{"$f":"VLOOKUP(X183,'DATOS ASP'!$M$22:$N$24,2,FALSE)","v":{"$error":"#N/A"}},{"$error":"#N/A"}]
[null,null,151,null,null,null,null,null,null,null,null,null,null,null,null,null,null,null,{"$f":"VLOOKUP(R184,'DATOS ASP'!$I$22:$J$23, 2,FALSE)","v":{"$error":"#N/A"}},null,{"$f":"VLOOKUP(T184,'DATOS ASP'!$I$26:$J$27,2,FALSE)","v":{"$error":"#N/A"}},null,{"$f":"VLOOKUP(V184,'DATOS ASP'!$K$22:$L$24,2,FALSE)","v":{"$error":"#N/A"}},null,{"$f":"VLOOKUP(X184,'DATOS ASP'!$M$22:$N$24,2,FALSE)","v":{"$error":"#N/A"}},{"$error":"#N/A"}]
[null,null,152,null,null,null,null,null,null,null,null,null,null,null,null,null,null,null,{"$f":"VLOOKUP(R185,'DATOS ASP'!$I$22:$J$23, 2,FALSE)","v":{"$error":"#N/A"}},null,{"$f":"VLOOKUP(T185,'DATOS ASP'!$I$26:$J$27,2,FALSE)","v":{"$error":"#N/A"}},null,{"$f":"VLOOKUP(V185,'DATOS ASP'!$K$22:$L$24,2,FALSE)","v":{"$error":"#N/A"}},null,{"$f":"VLOOKUP(X185,'DATOS ASP'!$M$22:$N$24,2,FALSE)","v":{"$error":"#N/A"}},{"$error":"#N/A"}]
[null,null,153,null,null,null,null,null,null,null,null,null,null,null,null,null,null,null,{"$f":"VLOOKUP(R186,'DATOS ASP'!$I$22:$J$23, 2,FALSE)","v":{"$error":"#N/A"}},null,{"$f":"VLOOKUP(T186,'DATOS ASP'!$I$26:$J$27,2,FALSE)","v":{"$error":"#N/A"}},null,{"$f":"VLOOKUP(V186,'DATOS ASP'!$K$22:$L$24,2,FALSE)","v":{"$error":"#N/A"}},null,{"$f":"VLOOKUP(X186,'DATOS ASP'!$M$22:$N$24,2,FALSE)","v":{"$error":"#N/A"}},{"$error":"#N/A"}]
[null,null,154,null,null,null,null,null,null,null,null,null,null,null,null,null,null,null,{"$f":"VLOOKUP(R187,'DATOS ASP'!$I$22:$J$23, 2,FALSE)","v":{"$error":"#N/A"}},null,{"$f":"VLOOKUP(T187,'DATOS ASP'!$I$26:$J$27,2,FALSE)","v":{"$error":"#N/A"}},null,{"$f":"VLOOKUP(V187,'DATOS ASP'!$K$22:$L$24,2,FALSE)","v":{"$error":"#N/A"}},null,{"$f":"VLOOKUP(X187,'DATOS ASP'!$M$22:$N$24,2,FALSE)","v":{"$error":"#N/A"}},{"$error":"#N/A"}]
[null,null,155,null,null,null,null,null,null,null,null,null,null,null,null,null,null,null,{"$f":"VLOOKUP(R188,'DATOS ASP'!$I$22:$J$23, 2,FALSE)","v":{"$error":"#N/A"}},null,{"$f":"VLOOKUP(T188,'DATOS ASP'!$I$26:$J$27,2,FALSE)","v":{"$error":"#N/A"}},null,{"$f":"VLOOKUP(V188,'DATOS ASP'!$K$22:$L$24,2,FALSE)","v":{"$error":"#N/A"}},null,{"$f":"VLOOKUP(X188,'DATOS ASP'!$M$22:$N$24,2,FALSE)","v":{"$error":"#N/A"}},{"$error":"#N/A"}]
[null,null,156,null,null,null,null,null,null,null,null,null,null,null,null,null,null,null,{"$f":"VLOOKUP(R189,'DATOS ASP'!$I$22:$J$23, 2,FALSE)","v":{"$error":"#N/A"}},null,{"$f":"VLOOKUP(T189,'DATOS ASP'!$I$26:$J$27,2,FALSE)","v":{"$error":"#N/A"}},null,{"$f":"VLOOKUP(V189,'DATOS ASP'!$K$22:$L$24,2,FALSE)","v":{"$error":"#N/A"}},null,{"$f":"VLOOKUP(X189,'DATOS ASP'!$M$22:$N$24,2,FALSE)","v":{"$error":"#N/A"}},{"$error":"#N/A"}]
[null,null,157,null,null,null,null,null,null,null,null,null,null,null,null,null,null,null,{"$f":"VLOOKUP(R190,'DATOS ASP'!$I$22:$J$23, 2,FALSE)","v":{"$error":"#N/A"}},null,{"$f":"VLOOKUP(T190,'DATOS ASP'!$I$26:$J$27,2,FALSE)","v":{"$error":"#N/A"}},null,{"$f":"VLOOKUP(V190,'DATOS ASP'!$K$22:$L$24,2,FALSE)","v":{"$error":"#N/A"}},null,{"$f":"VLOOKUP(X190,'DATOS ASP'!$M$22:$N$24,2,FALSE)","v":{"$error":"#N/A"}},{"$error":"#N/A"}]
[null,null,158,null,null,null,null,null,null,null,null,null,null,null,null,null,null,null,{"$f":"VLOOKUP(R191,'DATOS ASP'!$I$22:$J$23, 2,FALSE)","v":{"$error":"#N/A"}},null,{"$f":"VLOOKUP(T191,'DATOS ASP'!$I$26:$J$27,2,FALSE)","v":{"$error":"#N/A"}},null,{"$f":"VLOOKUP(V191,'DATOS ASP'!$K$22:$L$24,2,FALSE)","v":{"$error":"#N/A"}},null,{"$f":"VLOOKUP(X191,'DATOS ASP'!$M$22:$N$24,2,FALSE)","v":{"$error":"#N/A"}},{"$error":"#N/A"}]
[null,null,159,null,null,null,null,null,null,null,null,null,null,null,null,null,null,null,{"$f":"VLOOKUP(R192,'DATOS ASP'!$I$22:$J$23, 2,FALSE)","v":{"$error":"#N/A"}},null,{"$f":"VLOOKUP(T192,'DATOS ASP'!$I$26:$J$27,2,FALSE)","v":{"$error":"#N/A"}},null,{"$f":"VLOOKUP(V192,'DATOS ASP'!$K$22:$L$24,2,FALSE)","v":{"$error":"#N/A"}},null,{"$f":"VLOOKUP(X192,'DATOS ASP'!$M$22:$N$24,2,FALSE)","v":{"$error":"#N/A"}},{"$error":"#N/A"}]
[null,null,160,null,null,null,null,null,null,null,null,null,null,null,null,null,null,null,{"$f":"VLOOKUP(R193,'DATOS ASP'!$I$22:$J$23, 2,FALSE)","v":{"$error":"#N/A"}},null,{"$f":"VLOOKUP(T193,'DATOS ASP'!$I$26:$J$27,2,FALSE)","v":{"$error":"#N/A"}},null,{"$f":"VLOOKUP(V193,'DATOS ASP'!$K$22:$L$24,2,FALSE)","v":{"$error":"#N/A"}},null,{"$f":"VLOOKUP(X193,'DATOS ASP'!$M$22:$N$24,2,FALSE)","v":{"$error":"#N/A"}},{"$error":"#N/A"}]
[null,null,161,null,null,null,null,null,null,null,null,null,null,null,null,null,null,null,{"$f":"VLOOKUP(R194,'DATOS ASP'!$I$22:$J$23, 2,FALSE)","v":{"$error":"#N/A"}},null,{"$f":"VLOOKUP(T194,'DATOS ASP'!$I$26:$J$27,2,FALSE)","v":{"$error":"#N/A"}},null,{"$f":"VLOOKUP(V194,'DATOS ASP'!$K$22:$L$24,2,FALSE)","v":{"$error":"#N/A"}},null,{"$f":"VLOOKUP(X194,'DATOS ASP'!$M$22:$N$24,2,FALSE)","v":{"$error":"#N/A"}},{"$error":"#N/A"}]
[null,null,162,null,null,null,null,null,null,null,null,null,null,null,null,null,null,null,{"$f":"VLOOKUP(R195,'DATOS ASP'!$I$22:$J$23, 2,FALSE)","v":{"$error":"#N/A"}},null,{"$f":"VLOOKUP(T195,'DATOS ASP'!$I$26:$J$27,2,FALSE)","v":{"$error":"#N/A"}},null,{"$f":"VLOOKUP(V195,'DATOS ASP'!$K$22:$L$24,2,FALSE)","v":{"$error":"#N/A"}},null,{"$f":"VLOOKUP(X195,'DATOS ASP'!$M$22:$N$24,2,FALSE)","v":{"$error":"#N/A"}},{"$error":"#N/A"}]
[null,null,163,null,null,null,null,null,null,null,null,null,null,null,null,null,null,null,{"$f":"VLOOKUP(R196,'DATOS ASP'!$I$22:$J$23, 2,FALSE)","v":{"$error":"#N/A"}},null,{"$f":"VLOOKUP(T196,'DATOS ASP'!$I$26:$J$27,2,FALSE)","v":{"$error":"#N/A"}},null,{"$f":"VLOOKUP(V196,'DATOS ASP'!$K$22:$L$24,2,FALSE)","v":{"$error":"#N/A"}},null,{"$f":"VLOOKUP(X196,'DATOS ASP'!$M$22:$N$24,2,FALSE)","v":{"$error":"#N/A"}},{"$error":"#N/A"}]
[null,null,164,null,null,null,null,null,null,null,null,null,null,null,null,null,null,null,{"$f":"VLOOKUP(R197,'DATOS ASP'!$I$22:$J$23, 2,FALSE)","v":{"$error":"#N/A"}},null,{"$f":"VLOOKUP(T197,'DATOS ASP'!$I$26:$J$27,2,FALSE)","v":{"$error":"#N/A"}},null,{"$f":"VLOOKUP(V197,'DATOS ASP'!$K$22:$L$24,2,FALSE)","v":{"$error":"#N/A"}},null,{"$f":"VLOOKUP(X197,'DATOS ASP'!$M$22:$N$24,2,FALSE)","v":{"$error":"#N/A"}},{"$error":"#N/A"}]
[null,null,165,null,null,null,null,null,null,null,null,null,null,null,null,null,null,null,{"$f":"VLOOKUP(R198,'DATOS ASP'!$I$22:$J$23, 2,FALSE)","v":{"$error":"#N/A"}},null,{"$f":"VLOOKUP(T198,'DATOS ASP'!$I$26:$J$27,2,FALSE)","v":{"$error":"#N/A"}},null,{"$f":"VLOOKUP(V198,'DATOS ASP'!$K$22:$L$24,2,FALSE)","v":{"$error":"#N/A"}},null,{"$f":"VLOOKUP(X198,'DATOS ASP'!$M$22:$N$24,2,FALSE)","v":{"$error":"#N/A"}},{"$error":"#N/A"}]
[null,null,166,null,null,null,null,null,null,null,null,null,null,null,null,null,null,null,{"$f":"VLOOKUP(R199,'DATOS ASP'!$I$22:$J$23, 2,FALSE)","v":{"$error":"#N/A"}},null,{"$f":"VLOOKUP(T199,'DATOS ASP'!$I$26:$J$27,2,FALSE)","v":{"$error":"#N/A"}},null,{"$f":"VLOOKUP(V199,'DATOS ASP'!$K$22:$L$24,2,FALSE)","v":{"$error":"#N/A"}},null,{"$f":"VLOOKUP(X199,'DATOS ASP'!$M$22:$N$24,2,FALSE)","v":{"$error":"#N/A"}},{"$error":"#N/A"}]
[null,null,167,null,null,null,null,null,null,null,null,null,null,null,null,null,null,null,{"$f":"VLOOKUP(R200,'DATOS ASP'!$I$22:$J$23, 2,FALSE)","v":{"$error":"#N/A"}},null,{"$f":"VLOOKUP(T200,'DATOS ASP'!$I$26:$J$27,2,FALSE)","v":{"$error":"#N/A"}},null,{"$f":"VLOOKUP(V200,'DATOS ASP'!$K$22:$L$24,2,FALSE)","v":{"$error":"#N/A"}},null,{"$f":"VLOOKUP(X200,'DATOS ASP'!$M$22:$N$24,2,FALSE)","v":{"$error":"#N/A"}},{"$error":"#N/A"}]
[null,null,168,null,null,null,null,null,null,null,null,null,null,null,null,null,null,null,{"$f":"VLOOKUP(R201,'DATOS ASP'!$I$22:$J$23, 2,FALSE)","v":{"$error":"#N/A"}},null,{"$f":"VLOOKUP(T201,'DATOS ASP'!$I$26:$J$27,2,FALSE)","v":{"$error":"#N/A"}},null,{"$f":"VLOOKUP(V201,'DATOS ASP'!$K$22:$L$24,2,FALSE)","v":{"$error":"#N/A"}},null,{"$f":"VLOOKUP(X201,'DATOS ASP'!$M$22:$N$24,2,FALSE)","v":{"$error":"#N/A"}},{"$error":"#N/A"}]
[null,null,169,null,null,null,null,null,null,null,null,null,null,null,null,null,null,null,{"$f":"VLOOKUP(R202,'DATOS ASP'!$I$22:$J$23, 2,FALSE)","v":{"$error":"#N/A"}},null,{"$f":"VLOOKUP(T202,'DATOS ASP'!$I$26:$J$27,2,FALSE)","v":{"$error":"#N/A"}},null,{"$f":"VLOOKUP(V202,'DATOS ASP'!$K$22:$L$24,2,FALSE)","v":{"$error":"#N/A"}},null,{"$f":"VLOOKUP(X202,'DATOS ASP'!$M$22:$N$24,2,FALSE)","v":{"$error":"#N/A"}},{"$error":"#N/A"}]
[null,null,170,null,null,null,null,null,null,null,null,null,null,null,null,null,null,null,{"$f":"VLOOKUP(R203,'DATOS ASP'!$I$22:$J$23, 2,FALSE)","v":{"$error":"#N/A"}},null,{"$f":"VLOOKUP(T203,'DATOS ASP'!$I$26:$J$27,2,FALSE)","v":{"$error":"#N/A"}},null,{"$f":"VLOOKUP(V203,'DATOS ASP'!$K$22:$L$24,2,FALSE)","v":{"$error":"#N/A"}},null,{"$f":"VLOOKUP(X203,'DATOS ASP'!$M$22:$N$24,2,FALSE)","v":{"$error":"#N/A"}},{"$error":"#N/A"}]
[null,null,171,null,null,null,null,null,null,null,null,null,null,null,null,null,null,null,{"$f":"VLOOKUP(R204,'DATOS ASP'!$I$22:$J$23, 2,FALSE)","v":{"$error":"#N/A"}},null,{"$f":"VLOOKUP(T204,'DATOS ASP'!$I$26:$J$27,2,FALSE)","v":{"$error":"#N/A"}},null,{"$f":"VLOOKUP(V204,'DATOS ASP'!$K$22:$L$24,2,FALSE)","v":{"$error":"#N/A"}},null,{"$f":"VLOOKUP(X204,'DATOS ASP'!$M$22:$N$24,2,FALSE)","v":{"$error":"#N/A"}},{"$error":"#N/A"}]
[null,null,172,null,null,null,null,null,null,null,null,null,null,null,null,null,null,null,{"$f":"VLOOKUP(R205,'DATOS ASP'!$I$22:$J$23, 2,FALSE)","v":{"$error":"#N/A"}},null,{"$f":"VLOOKUP(T205,'DATOS ASP'!$I$26:$J$27,2,FALSE)","v":{"$error":"#N/A"}},null,{"$f":"VLOOKUP(V205,'DATOS ASP'!$K$22:$L$24,2,FALSE)","v":{"$error":"#N/A"}},null,{"$f":"VLOOKUP(X205,'DATOS ASP'!$M$22:$N$24,2,FALSE)","v":{"$error":"#N/A"}},{"$error":"#N/A"}]
[null,null,173,null,null,null,null,null,null,null,null,null,null,null,null,null,null,null,{"$f":"VLOOKUP(R206,'DATOS ASP'!$I$22:$J$23, 2,FALSE)","v":{"$error":"#N/A"}},null,{"$f":"VLOOKUP(T206,'DATOS ASP'!$I$26:$J$27,2,FALSE)","v":{"$error":"#N/A"}},null,{"$f":"VLOOKUP(V206,'DATOS ASP'!$K$22:$L$24,2,FALSE)","v":{"$error":"#N/A"}},null,{"$f":"VLOOKUP(X206,'DATOS ASP'!$M$22:$N$24,2,FALSE)","v":{"$error":"#N/A"}},{"$error":"#N/A"}]
[null,null,174,null,null,null,null,null,null,null,null,null,null,null,null,null,null,null,{"$f":"VLOOKUP(R207,'DATOS ASP'!$I$22:$J$23, 2,FALSE)","v":{"$error":"#N/A"}},null,{"$f":"VLOOKUP(T207,'DATOS ASP'!$I$26:$J$27,2,FALSE)","v":{"$error":"#N/A"}},null,{"$f":"VLOOKUP(V207,'DATOS ASP'!$K$22:$L$24,2,FALSE)","v":{"$error":"#N/A"}},null,{"$f":"VLOOKUP(X207,'DATOS ASP'!$M$22:$N$24,2,FALSE)","v":{"$error":"#N/A"}},{"$error":"#N/A"}]
[null,null,175,null,null,null,null,null,null,null,null,null,null,null,null,null,null,null,{"$f":"VLOOKUP(R208,'DATOS ASP'!$I$22:$J$23, 2,FALSE)","v":{"$error":"#N/A"}},null,{"$f":"VLOOKUP(T208,'DATOS ASP'!$I$26:$J$27,2,FALSE)","v":{"$error":"#N/A"}},null,{"$f":"VLOOKUP(V208,'DATOS ASP'!$K$22:$L$24,2,FALSE)","v":{"$error":"#N/A"}},null,{"$f":"VLOOKUP(X208,'DATOS ASP'!$M$22:$N$24,2,FALSE)","v":{"$error":"#N/A"}},{"$error":"#N/A"}]
[null,null,176,null,null,null,null,null,null,null,null,null,null,null,null,null,null,null,{"$f":"VLOOKUP(R209,'DATOS ASP'!$I$22:$J$23, 2,FALSE)","v":{"$error":"#N/A"}},null,{"$f":"VLOOKUP(T209,'DATOS ASP'!$I$26:$J$27,2,FALSE)","v":{"$error":"#N/A"}},null,{"$f":"VLOOKUP(V209,'DATOS ASP'!$K$22:$L$24,2,FALSE)","v":{"$error":"#N/A"}},null,{"$f":"VLOOKUP(X209,'DATOS ASP'!$M$22:$N$24,2,FALSE)","v":{"$error":"#N/A"}},{"$error":"#N/A"}]
[null,null,177,null,null,null,null,null,null,null,null,null,null,null,null,null,null,null,{"$f":"VLOOKUP(R210,'DATOS ASP'!$I$22:$J$23, 2,FALSE)","v":{"$error":"#N/A"}},null,{"$f":"VLOOKUP(T210,'DATOS ASP'!$I$26:$J$27,2,FALSE)","v":{"$error":"#N/A"}},null,{"$f":"VLOOKUP(V210,'DATOS ASP'!$K$22:$L$24,2,FALSE)","v":{"$error":"#N/A"}},null,{"$f":"VLOOKUP(X210,'DATOS ASP'!$M$22:$N$24,2,FALSE)","v":{"$error":"#N/A"}},{"$error":"#N/A"}]
[null,null,178,null,null,null,null,null,null,null,null,null,null,null,null,null,null,null,{"$f":"VLOOKUP(R211,'DATOS ASP'!$I$22:$J$23, 2,FALSE)","v":{"$error":"#N/A"}},null,{"$f":"VLOOKUP(T211,'DATOS ASP'!$I$26:$J$27,2,FALSE)","v":{"$error":"#N/A"}},null,{"$f":"VLOOKUP(V211,'DATOS ASP'!$K$22:$L$24,2,FALSE)","v":{"$error":"#N/A"}},null,{"$f":"VLOOKUP(X211,'DATOS ASP'!$M$22:$N$24,2,FALSE)","v":{"$error":"#N/A"}},{"$error":"#N/A"}]
[null,null,179,null,null,null,null,null,null,null,null,null,null,null,null,null,null,null,{"$f":"VLOOKUP(R212,'DATOS ASP'!$I$22:$J$23, 2,FALSE)","v":{"$error":"#N/A"}},null,{"$f":"VLOOKUP(T212,'DATOS ASP'!$I$26:$J$27,2,FALSE)","v":{"$error":"#N/A"}},null,{"$f":"VLOOKUP(V212,'DATOS ASP'!$K$22:$L$24,2,FALSE)","v":{"$error":"#N/A"}},null,{"$f":"VLOOKUP(X212,'DATOS ASP'!$M$22:$N$24,2,FALSE)","v":{"$error":"#N/A"}},{"$error":"#N/A"}]
[null,null,180,null,null,null,null,null,null,null,null,null,null,null,null,null,null,null,{"$f":"VLOOKUP(R213,'DATOS ASP'!$I$22:$J$23, 2,FALSE)","v":{"$error":"#N/A"}},null,{"$f":"VLOOKUP(T213,'DATOS ASP'!$I$26:$J$27,2,FALSE)","v":{"$error":"#N/A"}},null,{"$f":"VLOOKUP(V213,'DATOS ASP'!$K$22:$L$24,2,FALSE)","v":{"$error":"#N/A"}},null,{"$f":"VLOOKUP(X213,'DATOS ASP'!$M$22:$N$24,2,FALSE)","v":{"$error":"#N/A"}},{"$error":"#N/A"}]
[null,null,181,null,null,null,null,null,null,null,null,null,null,null,null,null,null,null,{"$f":"VLOOKUP(R214,'DATOS ASP'!$I$22:$J$23, 2,FALSE)","v":{"$error":"#N/A"}},null,{"$f":"VLOOKUP(T214,'DATOS ASP'!$I$26:$J$27,2,FALSE)","v":{"$error":"#N/A"}},null,{"$f":"VLOOKUP(V214,'DATOS ASP'!$K$22:$L$24,2,FALSE)","v":{"$error":"#N/A"}},null,{"$f":"VLOOKUP(X214,'DATOS ASP'!$M$22:$N$24,2,FALSE)","v":{"$error":"#N/A"}},{"$error":"#N/A"}]
[null,null,182,null,null,null,null,null,null,null,null,null,null,null,null,null,null,null,{"$f":"VLOOKUP(R215,'DATOS ASP'!$I$22:$J$23, 2,FALSE)","v":{"$error":"#N/A"}},null,{"$f":"VLOOKUP(T215,'DATOS ASP'!$I$26:$J$27,2,FALSE)","v":{"$error":"#N/A"}},null,{"$f":"VLOOKUP(V215,'DATOS ASP'!$K$22:$L$24,2,FALSE)","v":{"$error":"#N/A"}},null,{"$f":"VLOOKUP(X215,'DATOS ASP'!$M$22:$N$24,2,FALSE)","v":{"$error":"#N/A"}},{"$error":"#N/A"}]
[null,null,183,null,null,null,null,null,null,null,null,null,null,null,null,null,null,null,{"$f":"VLOOKUP(R216,'DATOS ASP'!$I$22:$J$23, 2,FALSE)","v":{"$error":"#N/A"}},null,{"$f":"VLOOKUP(T216,'DATOS ASP'!$I$26:$J$27,2,FALSE)","v":{"$error":"#N/A"}},null,{"$f":"VLOOKUP(V216,'DATOS ASP'!$K$22:$L$24,2,FALSE)","v":{"$error":"#N/A"}},null,{"$f":"VLOOKUP(X216,'DATOS ASP'!$M$22:$N$24,2,FALSE)","v":{"$error":"#N/A"}},{"$error":"#N/A"}]
[null,null,184,null,null,null,null,null,null,null,null,null,null,null,null,null,null,null,{"$f":"VLOOKUP(R217,'DATOS ASP'!$I$22:$J$23, 2,FALSE)","v":{"$error":"#N/A"}},null,{"$f":"VLOOKUP(T217,'DATOS ASP'!$I$26:$J$27,2,FALSE)","v":{"$error":"#N/A"}},null,{"$f":"VLOOKUP(V217,'DATOS ASP'!$K$22:$L$24,2,FALSE)","v":{"$error":"#N/A"}},null,{"$f":"VLOOKUP(X217,'DATOS ASP'!$M$22:$N$24,2,FALSE)","v":{"$error":"#N/A"}},{"$error":"#N/A"}]
[null,null,185,null,null,null,null,null,null,null,null,null,null,null,null,null,null,null,{"$f":"VLOOKUP(R218,'DATOS ASP'!$I$22:$J$23, 2,FALSE)","v":{"$error":"#N/A"}},null,{"$f":"VLOOKUP(T218,'DATOS ASP'!$I$26:$J$27,2,FALSE)","v":{"$error":"#N/A"}},null,{"$f":"VLOOKUP(V218,'DATOS ASP'!$K$22:$L$24,2,FALSE)","v":{"$error":"#N/A"}},null,{"$f":"VLOOKUP(X218,'DATOS ASP'!$M$22:$N$24,2,FALSE)","v":{"$error":"#N/A"}},{"$error":"#N/A"}]
[null,null,186,null,null,null,null,null,null,null,null,null,null,null,null,null,null,null,{"$f":"VLOOKUP(R219,'DATOS ASP'!$I$22:$J$23, 2,FALSE)","v":{"$error":"#N/A"}},null,{"$f":"VLOOKUP(T219,'DATOS ASP'!$I$26:$J$27,2,FALSE)","v":{"$error":"#N/A"}},null,{"$f":"VLOOKUP(V219,'DATOS ASP'!$K$22:$L$24,2,FALSE)","v":{"$error":"#N/A"}},null,{"$f":"VLOOKUP(X219,'DATOS ASP'!$M$22:$N$24,2,FALSE)","v":{"$error":"#N/A"}},{"$error":"#N/A"}]
[null,null,187,null,null,null,null,null,null,null,null,null,null,null,null,null,null,null,{"$f":"VLOOKUP(R220,'DATOS ASP'!$I$22:$J$23, 2,FALSE)","v":{"$error":"#N/A"}},null,{"$f":"VLOOKUP(T220,'DATOS ASP'!$I$26:$J$27,2,FALSE)","v":{"$error":"#N/A"}},null,{"$f":"VLOOKUP(V220,'DATOS ASP'!$K$22:$L$24,2,FALSE)","v":{"$error":"#N/A"}},null,{"$f":"VLOOKUP(X220,'DATOS ASP'!$M$22:$N$24,2,FALSE)","v":{"$error":"#N/A"}},{"$error":"#N/A"}]
[null,null,188,null,null,null,null,null,null,null,null,null,null,null,null,null,null,null,{"$f":"VLOOKUP(R221,'DATOS ASP'!$I$22:$J$23, 2,FALSE)","v":{"$error":"#N/A"}},null,{"$f":"VLOOKUP(T221,'DATOS ASP'!$I$26:$J$27,2,FALSE)","v":{"$error":"#N/A"}},null,{"$f":"VLOOKUP(V221,'DATOS ASP'!$K$22:$L$24,2,FALSE)","v":{"$error":"#N/A"}},null,{"$f":"VLOOKUP(X221,'DATOS ASP'!$M$22:$N$24,2,FALSE)","v":{"$error":"#N/A"}},{"$error":"#N/A"}]
[null,null,189,null,null,null,null,null,null,null,null,null,null,null,null,null,null,null,{"$f":"VLOOKUP(R222,'DATOS ASP'!$I$22:$J$23, 2,FALSE)","v":{"$error":"#N/A"}},null,{"$f":"VLOOKUP(T222,'DATOS ASP'!$I$26:$J$27,2,FALSE)","v":{"$error":"#N/A"}},null,{"$f":"VLOOKUP(V222,'DATOS ASP'!$K$22:$L$24,2,FALSE)","v":{"$error":"#N/A"}},null,{"$f":"VLOOKUP(X222,'DATOS ASP'!$M$22:$N$24,2,FALSE)","v":{"$error":"#N/A"}},{"$error":"#N/A"}]
[null,null,190,null,null,null,null,null,null,null,null,null,null,null,null,null,null,null,{"$f":"VLOOKUP(R223,'DATOS ASP'!$I$22:$J$23, 2,FALSE)","v":{"$error":"#N/A"}},null,{"$f":"VLOOKUP(T223,'DATOS ASP'!$I$26:$J$27,2,FALSE)","v":{"$error":"#N/A"}},null,{"$f":"VLOOKUP(V223,'DATOS ASP'!$K$22:$L$24,2,FALSE)","v":{"$error":"#N/A"}},null,{"$f":"VLOOKUP(X223,'DATOS ASP'!$M$22:$N$24,2,FALSE)","v":{"$error":"#N/A"}},{"$error":"#N/A"}]
[null,null,191,null,null,null,null,null,null,null,null,null,null,null,null,null,null,null,{"$f":"VLOOKUP(R224,'DATOS ASP'!$I$22:$J$23, 2,FALSE)","v":{"$error":"#N/A"}},null,{"$f":"VLOOKUP(T224,'DATOS ASP'!$I$26:$J$27,2,FALSE)","v":{"$error":"#N/A"}},null,{"$f":"VLOOKUP(V224,'DATOS ASP'!$K$22:$L$24,2,FALSE)","v":{"$error":"#N/A"}},null,{"$f":"VLOOKUP(X224,'DATOS ASP'!$M$22:$N$24,2,FALSE)","v":{"$error":"#N/A"}},{"$error":"#N/A"}]
[null,null,192,null,null,null,null,null,null,null,null,null,null,null,null,null,null,null,{"$f":"VLOOKUP(R225,'DATOS ASP'!$I$22:$J$23, 2,FALSE)","v":{"$error":"#N/A"}},null,{"$f":"VLOOKUP(T225,'DATOS ASP'!$I$26:$J$27,2,FALSE)","v":{"$error":"#N/A"}},null,{"$f":"VLOOKUP(V225,'DATOS ASP'!$K$22:$L$24,2,FALSE)","v":{"$error":"#N/A"}},null,{"$f":"VLOOKUP(X225,'DATOS ASP'!$M$22:$N$24,2,FALSE)","v":{"$error":"#N/A"}},{"$error":"#N/A"}]
[null,null,193,null,null,null,null,null,null,null,null,null,null,null,null,null,null,null,{"$f":"VLOOKUP(R226,'DATOS ASP'!$I$22:$J$23, 2,FALSE)","v":{"$error":"#N/A"}},null,{"$f":"VLOOKUP(T226,'DATOS ASP'!$I$26:$J$27,2,FALSE)","v":{"$error":"#N/A"}},null,{"$f":"VLOOKUP(V226,'DATOS ASP'!$K$22:$L$24,2,FALSE)","v":{"$error":"#N/A"}},null,{"$f":"VLOOKUP(X226,'DATOS ASP'!$M$22:$N$24,2,FALSE)","v":{"$error":"#N/A"}},{"$f":"S226*((3*U226)+W226+Y226)","v":{"$error":"#N/A"}}]
[null,null,194,null,null,null,null,null,null,null,null,null,null,null,null,null,null,null,{"$f":"VLOOKUP(R227,'DATOS ASP'!$I$22:$J$23, 2,FALSE)","v":{"$error":"#N/A"}},null,{"$f":"VLOOKUP(T227,'DATOS ASP'!$I$26:$J$27,2,FALSE)","v":{"$error":"#N/A"}},null,{"$f":"VLOOKUP(V227,'DATOS ASP'!$K$22:$L$24,2,FALSE)","v":{"$error":"#N/A"}},null,{"$f":"VLOOKUP(X227,'DATOS ASP'!$M$22:$N$24,2,FALSE)","v":{"$error":"#N/A"}},{"$error":"#N/A"}]
[null,null,195,null,null,null,null,null,null,null,null,null,null,null,null,null,null,null,{"$f":"VLOOKUP(R228,'DATOS ASP'!$I$22:$J$23, 2,FALSE)","v":{"$error":"#N/A"}},null,{"$f":"VLOOKUP(T228,'DATOS ASP'!$I$26:$J$27,2,FALSE)","v":{"$error":"#N/A"}},null,{"$f":"VLOOKUP(V228,'DATOS ASP'!$K$22:$L$24,2,FALSE)","v":{"$error":"#N/A"}},null,{"$f":"VLOOKUP(X228,'DATOS ASP'!$M$22:$N$24,2,FALSE)","v":{"$error":"#N/A"}},{"$error":"#N/A"}]
[null,null,196,null,null,null,null,null,null,null,null,null,null,null,null,null,null,null,{"$f":"VLOOKUP(R229,'DATOS ASP'!$I$22:$J$23, 2,FALSE)","v":{"$error":"#N/A"}},null,{"$f":"VLOOKUP(T229,'DATOS ASP'!$I$26:$J$27,2,FALSE)","v":{"$error":"#N/A"}},null,{"$f":"VLOOKUP(V229,'DATOS ASP'!$K$22:$L$24,2,FALSE)","v":{"$error":"#N/A"}},null,{"$f":"VLOOKUP(X229,'DATOS ASP'!$M$22:$N$24,2,FALSE)","v":{"$error":"#N/A"}},{"$error":"#N/A"}]
[null,null,197,null,null,null,null,null,null,null,null,null,null,null,null,null,null,null,{"$f":"VLOOKUP(R230,'DATOS ASP'!$I$22:$J$23, 2,FALSE)","v":{"$error":"#N/A"}},null,{"$f":"VLOOKUP(T230,'DATOS ASP'!$I$26:$J$27,2,FALSE)","v":{"$error":"#N/A"}},null,{"$f":"VLOOKUP(V230,'DATOS ASP'!$K$22:$L$24,2,FALSE)","v":{"$error":"#N/A"}},null,{"$f":"VLOOKUP(X230,'DATOS ASP'!$M$22:$N$24,2,FALSE)","v":{"$error":"#N/A"}},{"$error":"#N/A"}]
[null,null,198,null,null,null,null,null,null,null,null,null,null,null,null,null,null,null,{"$f":"VLOOKUP(R231,'DATOS ASP'!$I$22:$J$23, 2,FALSE)","v":{"$error":"#N/A"}},null,{"$f":"VLOOKUP(T231,'DATOS ASP'!$I$26:$J$27,2,FALSE)","v":{"$error":"#N/A"}},null,{"$f":"VLOOKUP(V231,'DATOS ASP'!$K$22:$L$24,2,FALSE)","v":{"$error":"#N/A"}},null,{"$f":"VLOOKUP(X231,'DATOS ASP'!$M$22:$N$24,2,FALSE)","v":{"$error":"#N/A"}},{"$error":"#N/A"}]
[null,null,199,null,null,null,null,null,null,null,null,null,null,null,null,null,null,null,{"$f":"VLOOKUP(R232,'DATOS ASP'!$I$22:$J$23, 2,FALSE)","v":{"$error":"#N/A"}},null,{"$f":"VLOOKUP(T232,'DATOS ASP'!$I$26:$J$27,2,FALSE)","v":{"$error":"#N/A"}},null,{"$f":"VLOOKUP(V232,'DATOS ASP'!$K$22:$L$24,2,FALSE)","v":{"$error":"#N/A"}},null,{"$f":"VLOOKUP(X232,'DATOS ASP'!$M$22:$N$24,2,FALSE)","v":{"$error":"#N/A"}},{"$error":"#N/A"}]
[null,null,200,null,null,null,null,null,null,null,null,null,null,null,null,null,null,null,{"$f":"VLOOKUP(R233,'DATOS ASP'!$I$22:$J$23, 2,FALSE)","v":{"$error":"#N/A"}},null,{"$f":"VLOOKUP(T233,'DATOS ASP'!$I$26:$J$27,2,FALSE)","v":{"$error":"#N/A"}},null,{"$f":"VLOOKUP(V233,'DATOS ASP'!$K$22:$L$24,2,FALSE)","v":{"$error":"#N/A"}},null,{"$f":"VLOOKUP(X233,'DATOS ASP'!$M$22:$N$24,2,FALSE)","v":{"$error":"#N/A"}},{"$error":"#N/A"}]
[null,null,201,null,null,null,null,null,null,null,null,null,null,null,null,null,null,null,{"$f":"VLOOKUP(R234,'DATOS ASP'!$I$22:$J$23, 2,FALSE)","v":{"$error":"#N/A"}},null,{"$f":"VLOOKUP(T234,'DATOS ASP'!$I$26:$J$27,2,FALSE)","v":{"$error":"#N/A"}},null,{"$f":"VLOOKUP(V234,'DATOS ASP'!$K$22:$L$24,2,FALSE)","v":{"$error":"#N/A"}},null,{"$f":"VLOOKUP(X234,'DATOS ASP'!$M$22:$N$24,2,FALSE)","v":{"$error":"#N/A"}},{"$error":"#N/A"}]
[null,null,202,null,null,null,null,null,null,null,null,null,null,null,null,null,null,null,{"$f":"VLOOKUP(R235,'DATOS ASP'!$I$22:$J$23, 2,FALSE)","v":{"$error":"#N/A"}},null,{"$f":"VLOOKUP(T235,'DATOS ASP'!$I$26:$J$27,2,FALSE)","v":{"$error":"#N/A"}},null,{"$f":"VLOOKUP(V235,'DATOS ASP'!$K$22:$L$24,2,FALSE)","v":{"$error":"#N/A"}},null,{"$f":"VLOOKUP(X235,'DATOS ASP'!$M$22:$N$24,2,FALSE)","v":{"$error":"#N/A"}},{"$error":"#N/A"}]
[null,null,203,null,null,null,null,null,null,null,null,null,null,null,null,null,null,null,{"$f":"VLOOKUP(R236,'DATOS ASP'!$I$22:$J$23, 2,FALSE)","v":{"$error":"#N/A"}},null,{"$f":"VLOOKUP(T236,'DATOS ASP'!$I$26:$J$27,2,FALSE)","v":{"$error":"#N/A"}},null,{"$f":"VLOOKUP(V236,'DATOS ASP'!$K$22:$L$24,2,FALSE)","v":{"$error":"#N/A"}},null,{"$f":"VLOOKUP(X236,'DATOS ASP'!$M$22:$N$24,2,FALSE)","v":{"$error":"#N/A"}},{"$error":"#N/A"}]
[null,null,204,null,null,null,null,null,null,null,null,null,null,null,null,null,null,null,{"$f":"VLOOKUP(R237,'DATOS ASP'!$I$22:$J$23, 2,FALSE)","v":{"$error":"#N/A"}},null,{"$f":"VLOOKUP(T237,'DATOS ASP'!$I$26:$J$27,2,FALSE)","v":{"$error":"#N/A"}},null,{"$f":"VLOOKUP(V237,'DATOS ASP'!$K$22:$L$24,2,FALSE)","v":{"$error":"#N/A"}},null,{"$f":"VLOOKUP(X237,'DATOS ASP'!$M$22:$N$24,2,FALSE)","v":{"$error":"#N/A"}},{"$error":"#N/A"}]
[null,null,205,null,null,null,null,null,null,null,null,null,null,null,null,null,null,null,{"$f":"VLOOKUP(R238,'DATOS ASP'!$I$22:$J$23, 2,FALSE)","v":{"$error":"#N/A"}},null,{"$f":"VLOOKUP(T238,'DATOS ASP'!$I$26:$J$27,2,FALSE)","v":{"$error":"#N/A"}},null,{"$f":"VLOOKUP(V238,'DATOS ASP'!$K$22:$L$24,2,FALSE)","v":{"$error":"#N/A"}},null,{"$f":"VLOOKUP(X238,'DATOS ASP'!$M$22:$N$24,2,FALSE)","v":{"$error":"#N/A"}},{"$error":"#N/A"}]
[null,null,206,null,null,null,null,null,null,null,null,null,null,null,null,null,null,null,{"$f":"VLOOKUP(R239,'DATOS ASP'!$I$22:$J$23, 2,FALSE)","v":{"$error":"#N/A"}},null,{"$f":"VLOOKUP(T239,'DATOS ASP'!$I$26:$J$27,2,FALSE)","v":{"$error":"#N/A"}},null,{"$f":"VLOOKUP(V239,'DATOS ASP'!$K$22:$L$24,2,FALSE)","v":{"$error":"#N/A"}},null,{"$f":"VLOOKUP(X239,'DATOS ASP'!$M$22:$N$24,2,FALSE)","v":{"$error":"#N/A"}},{"$error":"#N/A"}]
[null,null,207,null,null,null,null,null,null,null,null,null,null,null,null,null,null,null,{"$f":"VLOOKUP(R240,'DATOS ASP'!$I$22:$J$23, 2,FALSE)","v":{"$error":"#N/A"}},null,{"$f":"VLOOKUP(T240,'DATOS ASP'!$I$26:$J$27,2,FALSE)","v":{"$error":"#N/A"}},null,{"$f":"VLOOKUP(V240,'DATOS ASP'!$K$22:$L$24,2,FALSE)","v":{"$error":"#N/A"}},null,{"$f":"VLOOKUP(X240,'DATOS ASP'!$M$22:$N$24,2,FALSE)","v":{"$error":"#N/A"}},{"$error":"#N/A"}]
[null,null,208,null,null,null,null,null,null,null,null,null,null,null,null,null,null,null,{"$f":"VLOOKUP(R241,'DATOS ASP'!$I$22:$J$23, 2,FALSE)","v":{"$error":"#N/A"}},null,{"$f":"VLOOKUP(T241,'DATOS ASP'!$I$26:$J$27,2,FALSE)","v":{"$error":"#N/A"}},null,{"$f":"VLOOKUP(V241,'DATOS ASP'!$K$22:$L$24,2,FALSE)","v":{"$error":"#N/A"}},null,{"$f":"VLOOKUP(X241,'DATOS ASP'!$M$22:$N$24,2,FALSE)","v":{"$error":"#N/A"}},{"$error":"#N/A"}]
[null,null,209,null,null,null,null,null,null,null,null,null,null,null,null,null,null,null,{"$f":"VLOOKUP(R242,'DATOS ASP'!$I$22:$J$23, 2,FALSE)","v":{"$error":"#N/A"}},null,{"$f":"VLOOKUP(T242,'DATOS ASP'!$I$26:$J$27,2,FALSE)","v":{"$error":"#N/A"}},null,{"$f":"VLOOKUP(V242,'DATOS ASP'!$K$22:$L$24,2,FALSE)","v":{"$error":"#N/A"}},null,{"$f":"VLOOKUP(X242,'DATOS ASP'!$M$22:$N$24,2,FALSE)","v":{"$error":"#N/A"}},{"$error":"#N/A"}]
[null,null,210,null,null,null,null,null,null,null,null,null,null,null,null,null,null,null,{"$f":"VLOOKUP(R243,'DATOS ASP'!$I$22:$J$23, 2,FALSE)","v":{"$error":"#N/A"}},null,{"$f":"VLOOKUP(T243,'DATOS ASP'!$I$26:$J$27,2,FALSE)","v":{"$error":"#N/A"}},null,{"$f":"VLOOKUP(V243,'DATOS ASP'!$K$22:$L$24,2,FALSE)","v":{"$error":"#N/A"}},null,{"$f":"VLOOKUP(X243,'DATOS ASP'!$M$22:$N$24,2,FALSE)","v":{"$error":"#N/A"}},{"$error":"#N/A"}]
[null,null,211,null,null,null,null,null,null,null,null,null,null,null,null,null,null,null,{"$f":"VLOOKUP(R244,'DATOS ASP'!$I$22:$J$23, 2,FALSE)","v":{"$error":"#N/A"}},null,{"$f":"VLOOKUP(T244,'DATOS ASP'!$I$26:$J$27,2,FALSE)","v":{"$error":"#N/A"}},null,{"$f":"VLOOKUP(V244,'DATOS ASP'!$K$22:$L$24,2,FALSE)","v":{"$error":"#N/A"}},null,{"$f":"VLOOKUP(X244,'DATOS ASP'!$M$22:$N$24,2,FALSE)","v":{"$error":"#N/A"}},{"$error":"#N/A"}]
[null,null,212,null,null,null,null,null,null,null,null,null,null,null,null,null,null,null,{"$f":"VLOOKUP(R245,'DATOS ASP'!$I$22:$J$23, 2,FALSE)","v":{"$error":"#N/A"}},null,{"$f":"VLOOKUP(T245,'DATOS ASP'!$I$26:$J$27,2,FALSE)","v":{"$error":"#N/A"}},null,{"$f":"VLOOKUP(V245,'DATOS ASP'!$K$22:$L$24,2,FALSE)","v":{"$error":"#N/A"}},null,{"$f":"VLOOKUP(X245,'DATOS ASP'!$M$22:$N$24,2,FALSE)","v":{"$error":"#N/A"}},{"$error":"#N/A"}]
[null,null,213,null,null,null,null,null,null,null,null,null,null,null,null,null,null,null,{"$f":"VLOOKUP(R246,'DATOS ASP'!$I$22:$J$23, 2,FALSE)","v":{"$error":"#N/A"}},null,{"$f":"VLOOKUP(T246,'DATOS ASP'!$I$26:$J$27,2,FALSE)","v":{"$error":"#N/A"}},null,{"$f":"VLOOKUP(V246,'DATOS ASP'!$K$22:$L$24,2,FALSE)","v":{"$error":"#N/A"}},null,{"$f":"VLOOKUP(X246,'DATOS ASP'!$M$22:$N$24,2,FALSE)","v":{"$error":"#N/A"}},{"$error":"#N/A"}]
[null,null,214,null,null,null,null,null,null,null,null,null,null,null,null,null,null,null,{"$f":"VLOOKUP(R247,'DATOS ASP'!$I$22:$J$23, 2,FALSE)","v":{"$error":"#N/A"}},null,{"$f":"VLOOKUP(T247,'DATOS ASP'!$I$26:$J$27,2,FALSE)","v":{"$error":"#N/A"}},null,{"$f":"VLOOKUP(V247,'DATOS ASP'!$K$22:$L$24,2,FALSE)","v":{"$error":"#N/A"}},null,{"$f":"VLOOKUP(X247,'DATOS ASP'!$M$22:$N$24,2,FALSE)","v":{"$error":"#N/A"}},{"$error":"#N/A"}]
[null,null,215,null,null,null,null,null,null,null,null,null,null,null,null,null,null,null,{"$f":"VLOOKUP(R248,'DATOS ASP'!$I$22:$J$23, 2,FALSE)","v":{"$error":"#N/A"}},null,{"$f":"VLOOKUP(T248,'DATOS ASP'!$I$26:$J$27,2,FALSE)","v":{"$error":"#N/A"}},null,{"$f":"VLOOKUP(V248,'DATOS ASP'!$K$22:$L$24,2,FALSE)","v":{"$error":"#N/A"}},null,{"$f":"VLOOKUP(X248,'DATOS ASP'!$M$22:$N$24,2,FALSE)","v":{"$error":"#N/A"}},{"$error":"#N/A"}]
[null,null,216,null,null,null,null,null,null,null,null,null,null,null,null,null,null,null,{"$f":"VLOOKUP(R249,'DATOS ASP'!$I$22:$J$23, 2,FALSE)","v":{"$error":"#N/A"}},null,{"$f":"VLOOKUP(T249,'DATOS ASP'!$I$26:$J$27,2,FALSE)","v":{"$error":"#N/A"}},null,{"$f":"VLOOKUP(V249,'DATOS ASP'!$K$22:$L$24,2,FALSE)","v":{"$error":"#N/A"}},null,{"$f":"VLOOKUP(X249,'DATOS ASP'!$M$22:$N$24,2,FALSE)","v":{"$error":"#N/A"}},{"$error":"#N/A"}]
[null,null,217,null,null,null,null,null,null,null,null,null,null,null,null,null,null,null,{"$f":"VLOOKUP(R250,'DATOS ASP'!$I$22:$J$23, 2,FALSE)","v":{"$error":"#N/A"}},null,{"$f":"VLOOKUP(T250,'DATOS ASP'!$I$26:$J$27,2,FALSE)","v":{"$error":"#N/A"}},null,{"$f":"VLOOKUP(V250,'DATOS ASP'!$K$22:$L$24,2,FALSE)","v":{"$error":"#N/A"}},null,{"$f":"VLOOKUP(X250,'DATOS ASP'!$M$22:$N$24,2,FALSE)","v":{"$error":"#N/A"}},{"$error":"#N/A"}]
[null,null,218,null,null,null,null,null,null,null,null,null,null,null,null,null,null,null,{"$f":"VLOOKUP(R251,'DATOS ASP'!$I$22:$J$23, 2,FALSE)","v":{"$error":"#N/A"}},null,{"$f":"VLOOKUP(T251,'DATOS ASP'!$I$26:$J$27,2,FALSE)","v":{"$error":"#N/A"}},null,{"$f":"VLOOKUP(V251,'DATOS ASP'!$K$22:$L$24,2,FALSE)","v":{"$error":"#N/A"}},null,{"$f":"VLOOKUP(X251,'DATOS ASP'!$M$22:$N$24,2,FALSE)","v":{"$error":"#N/A"}},{"$error":"#N/A"}]
[null,null,219,null,null,null,null,null,null,null,null,null,null,null,null,null,null,null,{"$f":"VLOOKUP(R252,'DATOS ASP'!$I$22:$J$23, 2,FALSE)","v":{"$error":"#N/A"}},null,{"$f":"VLOOKUP(T252,'DATOS ASP'!$I$26:$J$27,2,FALSE)","v":{"$error":"#N/A"}},null,{"$f":"VLOOKUP(V252,'DATOS ASP'!$K$22:$L$24,2,FALSE)","v":{"$error":"#N/A"}},null,{"$f":"VLOOKUP(X252,'DATOS ASP'!$M$22:$N$24,2,FALSE)","v":{"$error":"#N/A"}},{"$error":"#N/A"}]
[null,null,220,null,null,null,null,null,null,null,null,null,null,null,null,null,null,null,{"$f":"VLOOKUP(R253,'DATOS ASP'!$I$22:$J$23, 2,FALSE)","v":{"$error":"#N/A"}},null,{"$f":"VLOOKUP(T253,'DATOS ASP'!$I$26:$J$27,2,FALSE)","v":{"$error":"#N/A"}},null,{"$f":"VLOOKUP(V253,'DATOS ASP'!$K$22:$L$24,2,FALSE)","v":{"$error":"#N/A"}},null,{"$f":"VLOOKUP(X253,'DATOS ASP'!$M$22:$N$24,2,FALSE)","v":{"$error":"#N/A"}},{"$error":"#N/A"}]
[null,null,221,null,null,null,null,null,null,null,null,null,null,null,null,null,null,null,{"$f":"VLOOKUP(R254,'DATOS ASP'!$I$22:$J$23, 2,FALSE)","v":{"$error":"#N/A"}},null,{"$f":"VLOOKUP(T254,'DATOS ASP'!$I$26:$J$27,2,FALSE)","v":{"$error":"#N/A"}},null,{"$f":"VLOOKUP(V254,'DATOS ASP'!$K$22:$L$24,2,FALSE)","v":{"$error":"#N/A"}},null,{"$f":"VLOOKUP(X254,'DATOS ASP'!$M$22:$N$24,2,FALSE)","v":{"$error":"#N/A"}},{"$error":"#N/A"}]
[null,null,222,null,null,null,null,null,null,null,null,null,null,null,null,null,null,null,{"$f":"VLOOKUP(R255,'DATOS ASP'!$I$22:$J$23, 2,FALSE)","v":{"$error":"#N/A"}},null,{"$f":"VLOOKUP(T255,'DATOS ASP'!$I$26:$J$27,2,FALSE)","v":{"$error":"#N/A"}},null,{"$f":"VLOOKUP(V255,'DATOS ASP'!$K$22:$L$24,2,FALSE)","v":{"$error":"#N/A"}},null,{"$f":"VLOOKUP(X255,'DATOS ASP'!$M$22:$N$24,2,FALSE)","v":{"$error":"#N/A"}},{"$error":"#N/A"}]
[null,null,223,null,null,null,null,null,null,null,null,null,null,null,null,null,null,null,{"$f":"VLOOKUP(R256,'DATOS ASP'!$I$22:$J$23, 2,FALSE)","v":{"$error":"#N/A"}},null,{"$f":"VLOOKUP(T256,'DATOS ASP'!$I$26:$J$27,2,FALSE)","v":{"$error":"#N/A"}},null,{"$f":"VLOOKUP(V256,'DATOS ASP'!$K$22:$L$24,2,FALSE)","v":{"$error":"#N/A"}},null,{"$f":"VLOOKUP(X256,'DATOS ASP'!$M$22:$N$24,2,FALSE)","v":{"$error":"#N/A"}},{"$error":"#N/A"}]
[null,null,224,null,null,null,null,null,null,null,null,null,null,null,null,null,null,null,{"$f":"VLOOKUP(R257,'DATOS ASP'!$I$22:$J$23, 2,FALSE)","v":{"$error":"#N/A"}},null,{"$f":"VLOOKUP(T257,'DATOS ASP'!$I$26:$J$27,2,FALSE)","v":{"$error":"#N/A"}},null,{"$f":"VLOOKUP(V257,'DATOS ASP'!$K$22:$L$24,2,FALSE)","v":{"$error":"#N/A"}},null,{"$f":"VLOOKUP(X257,'DATOS ASP'!$M$22:$N$24,2,FALSE)","v":{"$error":"#N/A"}},{"$error":"#N/A"}]
[null,null,225,null,null,null,null,null,null,null,null,null,null,null,null,null,null,null,{"$f":"VLOOKUP(R258,'DATOS ASP'!$I$22:$J$23, 2,FALSE)","v":{"$error":"#N/A"}},null,{"$f":"VLOOKUP(T258,'DATOS ASP'!$I$26:$J$27,2,FALSE)","v":{"$error":"#N/A"}},null,{"$f":"VLOOKUP(V258,'DATOS ASP'!$K$22:$L$24,2,FALSE)","v":{"$error":"#N/A"}},null,{"$f":"VLOOKUP(X258,'DATOS ASP'!$M$22:$N$24,2,FALSE)","v":{"$error":"#N/A"}},{"$error":"#N/A"}]
[null,null,226,null,null,null,null,null,null,null,null,null,null,null,null,null,null,null,{"$f":"VLOOKUP(R259,'DATOS ASP'!$I$22:$J$23, 2,FALSE)","v":{"$error":"#N/A"}},null,{"$f":"VLOOKUP(T259,'DATOS ASP'!$I$26:$J$27,2,FALSE)","v":{"$error":"#N/A"}},null,{"$f":"VLOOKUP(V259,'DATOS ASP'!$K$22:$L$24,2,FALSE)","v":{"$error":"#N/A"}},null,{"$f":"VLOOKUP(X259,'DATOS ASP'!$M$22:$N$24,2,FALSE)","v":{"$error":"#N/A"}},{"$error":"#N/A"}]
[null,null,227,null,null,null,null,null,null,null,null,null,null,null,null,null,null,null,{"$f":"VLOOKUP(R260,'DATOS ASP'!$I$22:$J$23, 2,FALSE)","v":{"$error":"#N/A"}},null,{"$f":"VLOOKUP(T260,'DATOS ASP'!$I$26:$J$27,2,FALSE)","v":{"$error":"#N/A"}},null,{"$f":"VLOOKUP(V260,'DATOS ASP'!$K$22:$L$24,2,FALSE)","v":{"$error":"#N/A"}},null,{"$f":"VLOOKUP(X260,'DATOS ASP'!$M$22:$N$24,2,FALSE)","v":{"$error":"#N/A"}},{"$error":"#N/A"}]
[null,null,228,null,null,null,null,null,null,null,null,null,null,null,null,null,null,null,{"$f":"VLOOKUP(R261,'DATOS ASP'!$I$22:$J$23, 2,FALSE)","v":{"$error":"#N/A"}},null,{"$f":"VLOOKUP(T261,'DATOS ASP'!$I$26:$J$27,2,FALSE)","v":{"$error":"#N/A"}},null,{"$f":"VLOOKUP(V261,'DATOS ASP'!$K$22:$L$24,2,FALSE)","v":{"$error":"#N/A"}},null,{"$f":"VLOOKUP(X261,'DATOS ASP'!$M$22:$N$24,2,FALSE)","v":{"$error":"#N/A"}},{"$error":"#N/A"}]
[null,null,229,null,null,null,null,null,null,null,null,null,null,null,null,null,null,null,{"$f":"VLOOKUP(R262,'DATOS ASP'!$I$22:$J$23, 2,FALSE)","v":{"$error":"#N/A"}},null,{"$f":"VLOOKUP(T262,'DATOS ASP'!$I$26:$J$27,2,FALSE)","v":{"$error":"#N/A"}},null,{"$f":"VLOOKUP(V262,'DATOS ASP'!$K$22:$L$24,2,FALSE)","v":{"$error":"#N/A"}},null,{"$f":"VLOOKUP(X262,'DATOS ASP'!$M$22:$N$24,2,FALSE)","v":{"$error":"#N/A"}},{"$error":"#N/A"}]
[null,null,230,null,null,null,null,null,null,null,null,null,null,null,null,null,null,null,{"$f":"VLOOKUP(R263,'DATOS ASP'!$I$22:$J$23, 2,FALSE)","v":{"$error":"#N/A"}},null,{"$f":"VLOOKUP(T263,'DATOS ASP'!$I$26:$J$27,2,FALSE)","v":{"$error":"#N/A"}},null,{"$f":"VLOOKUP(V263,'DATOS ASP'!$K$22:$L$24,2,FALSE)","v":{"$error":"#N/A"}},null,{"$f":"VLOOKUP(X263,'DATOS ASP'!$M$22:$N$24,2,FALSE)","v":{"$error":"#N/A"}},{"$error":"#N/A"}]
[null,null,231,null,null,null,null,null,null,null,null,null,null,null,null,null,null,null,{"$f":"VLOOKUP(R264,'DATOS ASP'!$I$22:$J$23, 2,FALSE)","v":{"$error":"#N/A"}},null,{"$f":"VLOOKUP(T264,'DATOS ASP'!$I$26:$J$27,2,FALSE)","v":{"$error":"#N/A"}},null,{"$f":"VLOOKUP(V264,'DATOS ASP'!$K$22:$L$24,2,FALSE)","v":{"$error":"#N/A"}},null,{"$f":"VLOOKUP(X264,'DATOS ASP'!$M$22:$N$24,2,FALSE)","v":{"$error":"#N/A"}},{"$f":"S264*((3*U264)+W264+Y264)","v":{"$error":"#N/A"}}]
[null,null,232,null,null,null,null,null,null,null,null,null,null,null,null,null,null,null,{"$f":"VLOOKUP(R265,'DATOS ASP'!$I$22:$J$23, 2,FALSE)","v":{"$error":"#N/A"}},null,{"$f":"VLOOKUP(T265,'DATOS ASP'!$I$26:$J$27,2,FALSE)","v":{"$error":"#N/A"}},null,{"$f":"VLOOKUP(V265,'DATOS ASP'!$K$22:$L$24,2,FALSE)","v":{"$error":"#N/A"}},null,{"$f":"VLOOKUP(X265,'DATOS ASP'!$M$22:$N$24,2,FALSE)","v":{"$error":"#N/A"}},{"$error":"#N/A"}]
[null,null,233,null,null,null,null,null,null,null,null,null,null,null,null,null,null,null,{"$f":"VLOOKUP(R266,'DATOS ASP'!$I$22:$J$23, 2,FALSE)","v":{"$error":"#N/A"}},null,{"$f":"VLOOKUP(T266,'DATOS ASP'!$I$26:$J$27,2,FALSE)","v":{"$error":"#N/A"}},null,{"$f":"VLOOKUP(V266,'DATOS ASP'!$K$22:$L$24,2,FALSE)","v":{"$error":"#N/A"}},null,{"$f":"VLOOKUP(X266,'DATOS ASP'!$M$22:$N$24,2,FALSE)","v":{"$error":"#N/A"}},{"$error":"#N/A"}]
[null,null,234,null,null,null,null,null,null,null,null,null,null,null,null,null,null,null,{"$f":"VLOOKUP(R267,'DATOS ASP'!$I$22:$J$23, 2,FALSE)","v":{"$error":"#N/A"}},null,{"$f":"VLOOKUP(T267,'DATOS ASP'!$I$26:$J$27,2,FALSE)","v":{"$error":"#N/A"}},null,{"$f":"VLOOKUP(V267,'DATOS ASP'!$K$22:$L$24,2,FALSE)","v":{"$error":"#N/A"}},null,{"$f":"VLOOKUP(X267,'DATOS ASP'!$M$22:$N$24,2,FALSE)","v":{"$error":"#N/A"}},{"$error":"#N/A"}]
[null,null,235,null,null,null,null,null,null,null,null,null,null,null,null,null,null,null,{"$f":"VLOOKUP(R268,'DATOS ASP'!$I$22:$J$23, 2,FALSE)","v":{"$error":"#N/A"}},null,{"$f":"VLOOKUP(T268,'DATOS ASP'!$I$26:$J$27,2,FALSE)","v":{"$error":"#N/A"}},null,{"$f":"VLOOKUP(V268,'DATOS ASP'!$K$22:$L$24,2,FALSE)","v":{"$error":"#N/A"}},null,{"$f":"VLOOKUP(X268,'DATOS ASP'!$M$22:$N$24,2,FALSE)","v":{"$error":"#N/A"}},{"$error":"#N/A"}]
[null,null,236,null,null,null,null,null,null,null,null,null,null,null,null,null,null,null,{"$f":"VLOOKUP(R269,'DATOS ASP'!$I$22:$J$23, 2,FALSE)","v":{"$error":"#N/A"}},null,{"$f":"VLOOKUP(T269,'DATOS ASP'!$I$26:$J$27,2,FALSE)","v":{"$error":"#N/A"}},null,{"$f":"VLOOKUP(V269,'DATOS ASP'!$K$22:$L$24,2,FALSE)","v":{"$error":"#N/A"}},null,{"$f":"VLOOKUP(X269,'DATOS ASP'!$M$22:$N$24,2,FALSE)","v":{"$error":"#N/A"}},{"$error":"#N/A"}]
[null,null,237,null,null,null,null,null,null,null,null,null,null,null,null,null,null,null,{"$f":"VLOOKUP(R270,'DATOS ASP'!$I$22:$J$23, 2,FALSE)","v":{"$error":"#N/A"}},null,{"$f":"VLOOKUP(T270,'DATOS ASP'!$I$26:$J$27,2,FALSE)","v":{"$error":"#N/A"}},null,{"$f":"VLOOKUP(V270,'DATOS ASP'!$K$22:$L$24,2,FALSE)","v":{"$error":"#N/A"}},null,{"$f":"VLOOKUP(X270,'DATOS ASP'!$M$22:$N$24,2,FALSE)","v":{"$error":"#N/A"}},{"$error":"#N/A"}]
[null,null,238,null,null,null,null,null,null,null,null,null,null,null,null,null,null,null,{"$f":"VLOOKUP(R271,'DATOS ASP'!$I$22:$J$23, 2,FALSE)","v":{"$error":"#N/A"}},null,{"$f":"VLOOKUP(T271,'DATOS ASP'!$I$26:$J$27,2,FALSE)","v":{"$error":"#N/A"}},null,{"$f":"VLOOKUP(V271,'DATOS ASP'!$K$22:$L$24,2,FALSE)","v":{"$error":"#N/A"}},null,{"$f":"VLOOKUP(X271,'DATOS ASP'!$M$22:$N$24,2,FALSE)","v":{"$error":"#N/A"}},{"$error":"#N/A"}]
[null,null,239,null,null,null,null,null,null,null,null,null,null,null,null,null,null,null,{"$f":"VLOOKUP(R272,'DATOS ASP'!$I$22:$J$23, 2,FALSE)","v":{"$error":"#N/A"}},null,{"$f":"VLOOKUP(T272,'DATOS ASP'!$I$26:$J$27,2,FALSE)","v":{"$error":"#N/A"}},null,{"$f":"VLOOKUP(V272,'DATOS ASP'!$K$22:$L$24,2,FALSE)","v":{"$error":"#N/A"}},null,{"$f":"VLOOKUP(X272,'DATOS ASP'!$M$22:$N$24,2,FALSE)","v":{"$error":"#N/A"}},{"$error":"#N/A"}]
[null,null,240,null,null,null,null,null,null,null,null,null,null,null,null,null,null,null,{"$f":"VLOOKUP(R273,'DATOS ASP'!$I$22:$J$23, 2,FALSE)","v":{"$error":"#N/A"}},null,{"$f":"VLOOKUP(T273,'DATOS ASP'!$I$26:$J$27,2,FALSE)","v":{"$error":"#N/A"}},null,{"$f":"VLOOKUP(V273,'DATOS ASP'!$K$22:$L$24,2,FALSE)","v":{"$error":"#N/A"}},null,{"$f":"VLOOKUP(X273,'DATOS ASP'!$M$22:$N$24,2,FALSE)","v":{"$error":"#N/A"}},{"$error":"#N/A"}]
[null,null,241,null,null,null,null,null,null,null,null,null,null,null,null,null,null,null,{"$f":"VLOOKUP(R274,'DATOS ASP'!$I$22:$J$23, 2,FALSE)","v":{"$error":"#N/A"}},null,{"$f":"VLOOKUP(T274,'DATOS ASP'!$I$26:$J$27,2,FALSE)","v":{"$error":"#N/A"}},null,{"$f":"VLOOKUP(V274,'DATOS ASP'!$K$22:$L$24,2,FALSE)","v":{"$error":"#N/A"}},null,{"$f":"VLOOKUP(X274,'DATOS ASP'!$M$22:$N$24,2,FALSE)","v":{"$error":"#N/A"}},{"$error":"#N/A"}]
[null,null,242,null,null,null,null,null,null,null,null,null,null,null,null,null,null,null,{"$f":"VLOOKUP(R275,'DATOS ASP'!$I$22:$J$23, 2,FALSE)","v":{"$error":"#N/A"}},null,{"$f":"VLOOKUP(T275,'DATOS ASP'!$I$26:$J$27,2,FALSE)","v":{"$error":"#N/A"}},null,{"$f":"VLOOKUP(V275,'DATOS ASP'!$K$22:$L$24,2,FALSE)","v":{"$error":"#N/A"}},null,{"$f":"VLOOKUP(X275,'DATOS ASP'!$M$22:$N$24,2,FALSE)","v":{"$error":"#N/A"}},{"$error":"#N/A"}]
[null,null,243,null,null,null,null,null,null,null,null,null,null,null,null,null,null,null,{"$f":"VLOOKUP(R276,'DATOS ASP'!$I$22:$J$23, 2,FALSE)","v":{"$error":"#N/A"}},null,{"$f":"VLOOKUP(T276,'DATOS ASP'!$I$26:$J$27,2,FALSE)","v":{"$error":"#N/A"}},null,{"$f":"VLOOKUP(V276,'DATOS ASP'!$K$22:$L$24,2,FALSE)","v":{"$error":"#N/A"}},null,{"$f":"VLOOKUP(X276,'DATOS ASP'!$M$22:$N$24,2,FALSE)","v":{"$error":"#N/A"}},{"$error":"#N/A"}]
[null,null,244,null,null,null,null,null,null,null,null,null,null,null,null,null,null,null,{"$f":"VLOOKUP(R277,'DATOS ASP'!$I$22:$J$23, 2,FALSE)","v":{"$error":"#N/A"}},null,{"$f":"VLOOKUP(T277,'DATOS ASP'!$I$26:$J$27,2,FALSE)","v":{"$error":"#N/A"}},null,{"$f":"VLOOKUP(V277,'DATOS ASP'!$K$22:$L$24,2,FALSE)","v":{"$error":"#N/A"}},null,{"$f":"VLOOKUP(X277,'DATOS ASP'!$M$22:$N$24,2,FALSE)","v":{"$error":"#N/A"}},{"$error":"#N/A"}]
[null,null,245,null,null,null,null,null,null,null,null,null,null,null,null,null,null,null,{"$f":"VLOOKUP(R278,'DATOS ASP'!$I$22:$J$23, 2,FALSE)","v":{"$error":"#N/A"}},null,{"$f":"VLOOKUP(T278,'DATOS ASP'!$I$26:$J$27,2,FALSE)","v":{"$error":"#N/A"}},null,{"$f":"VLOOKUP(V278,'DATOS ASP'!$K$22:$L$24,2,FALSE)","v":{"$error":"#N/A"}},null,{"$f":"VLOOKUP(X278,'DATOS ASP'!$M$22:$N$24,2,FALSE)","v":{"$error":"#N/A"}},{"$error":"#N/A"}]
[null,null,246,null,null,null,null,null,null,null,null,null,null,null,null,null,null,null,{"$f":"VLOOKUP(R279,'DATOS ASP'!$I$22:$J$23, 2,FALSE)","v":{"$error":"#N/A"}},null,{"$f":"VLOOKUP(T279,'DATOS ASP'!$I$26:$J$27,2,FALSE)","v":{"$error":"#N/A"}},null,{"$f":"VLOOKUP(V279,'DATOS ASP'!$K$22:$L$24,2,FALSE)","v":{"$error":"#N/A"}},null,{"$f":"VLOOKUP(X279,'DATOS ASP'!$M$22:$N$24,2,FALSE)","v":{"$error":"#N/A"}},{"$error":"#N/A"}]
[null,null,247,null,null,null,null,null,null,null,null,null,null,null,null,null,null,null,{"$f":"VLOOKUP(R280,'DATOS ASP'!$I$22:$J$23, 2,FALSE)","v":{"$error":"#N/A"}},null,{"$f":"VLOOKUP(T280,'DATOS ASP'!$I$26:$J$27,2,FALSE)","v":{"$error":"#N/A"}},null,{"$f":"VLOOKUP(V280,'DATOS ASP'!$K$22:$L$24,2,FALSE)","v":{"$error":"#N/A"}},null,{"$f":"VLOOKUP(X280,'DATOS ASP'!$M$22:$N$24,2,FALSE)","v":{"$error":"#N/A"}},{"$error":"#N/A"}]
[null,null,248,null,null,null,null,null,null,null,null,null,null,null,null,null,null,null,{"$f":"VLOOKUP(R281,'DATOS ASP'!$I$22:$J$23, 2,FALSE)","v":{"$error":"#N/A"}},null,{"$f":"VLOOKUP(T281,'DATOS ASP'!$I$26:$J$27,2,FALSE)","v":{"$error":"#N/A"}},null,{"$f":"VLOOKUP(V281,'DATOS ASP'!$K$22:$L$24,2,FALSE)","v":{"$error":"#N/A"}},null,{"$f":"VLOOKUP(X281,'DATOS ASP'!$M$22:$N$24,2,FALSE)","v":{"$error":"#N/A"}},{"$error":"#N/A"}]
[null,null,249,null,null,null,null,null,null,null,null,null,null,null,null,null,null,null,{"$f":"VLOOKUP(R282,'DATOS ASP'!$I$22:$J$23, 2,FALSE)","v":{"$error":"#N/A"}},null,{"$f":"VLOOKUP(T282,'DATOS ASP'!$I$26:$J$27,2,FALSE)","v":{"$error":"#N/A"}},null,{"$f":"VLOOKUP(V282,'DATOS ASP'!$K$22:$L$24,2,FALSE)","v":{"$error":"#N/A"}},null,{"$f":"VLOOKUP(X282,'DATOS ASP'!$M$22:$N$24,2,FALSE)","v":{"$error":"#N/A"}},{"$error":"#N/A"}]
[null,null,250,null,null,null,null,null,null,null,null,null,null,null,null,null,null,null,{"$f":"VLOOKUP(R283,'DATOS ASP'!$I$22:$J$23, 2,FALSE)","v":{"$error":"#N/A"}},null,{"$f":"VLOOKUP(T283,'DATOS ASP'!$I$26:$J$27,2,FALSE)","v":{"$error":"#N/A"}},null,{"$f":"VLOOKUP(V283,'DATOS ASP'!$K$22:$L$24,2,FALSE)","v":{"$error":"#N/A"}},null,{"$f":"VLOOKUP(X283,'DATOS ASP'!$M$22:$N$24,2,FALSE)","v":{"$error":"#N/A"}},{"$error":"#N/A"}]
[null,null,251,null,null,null,null,null,null,null,null,null,null,null,null,null,null,null,{"$f":"VLOOKUP(R284,'DATOS ASP'!$I$22:$J$23, 2,FALSE)","v":{"$error":"#N/A"}},null,{"$f":"VLOOKUP(T284,'DATOS ASP'!$I$26:$J$27,2,FALSE)","v":{"$error":"#N/A"}},null,{"$f":"VLOOKUP(V284,'DATOS ASP'!$K$22:$L$24,2,FALSE)","v":{"$error":"#N/A"}},null,{"$f":"VLOOKUP(X284,'DATOS ASP'!$M$22:$N$24,2,FALSE)","v":{"$error":"#N/A"}},{"$error":"#N/A"}]
[null,null,252,null,null,null,null,null,null,null,null,null,null,null,null,null,null,null,{"$f":"VLOOKUP(R285,'DATOS ASP'!$I$22:$J$23, 2,FALSE)","v":{"$error":"#N/A"}},null,{"$f":"VLOOKUP(T285,'DATOS ASP'!$I$26:$J$27,2,FALSE)","v":{"$error":"#N/A"}},null,{"$f":"VLOOKUP(V285,'DATOS ASP'!$K$22:$L$24,2,FALSE)","v":{"$error":"#N/A"}},null,{"$f":"VLOOKUP(X285,'DATOS ASP'!$M$22:$N$24,2,FALSE)","v":{"$error":"#N/A"}},{"$error":"#N/A"}]
[null,null,253,null,null,null,null,null,null,null,null,null,null,null,null,null,null,null,{"$f":"VLOOKUP(R286,'DATOS ASP'!$I$22:$J$23, 2,FALSE)","v":{"$error":"#N/A"}},null,{"$f":"VLOOKUP(T286,'DATOS ASP'!$I$26:$J$27,2,FALSE)","v":{"$error":"#N/A"}},null,{"$f":"VLOOKUP(V286,'DATOS ASP'!$K$22:$L$24,2,FALSE)","v":{"$error":"#N/A"}},null,{"$f":"VLOOKUP(X286,'DATOS ASP'!$M$22:$N$24,2,FALSE)","v":{"$error":"#N/A"}},{"$error":"#N/A"}]
[null,null,254,null,null,null,null,null,null,null,null,null,null,null,null,null,null,null,{"$f":"VLOOKUP(R287,'DATOS ASP'!$I$22:$J$23, 2,FALSE)","v":{"$error":"#N/A"}},null,{"$f":"VLOOKUP(T287,'DATOS ASP'!$I$26:$J$27,2,FALSE)","v":{"$error":"#N/A"}},null,{"$f":"VLOOKUP(V287,'DATOS ASP'!$K$22:$L$24,2,FALSE)","v":{"$error":"#N/A"}},null,{"$f":"VLOOKUP(X287,'DATOS ASP'!$M$22:$N$24,2,FALSE)","v":{"$error":"#N/A"}},{"$error":"#N/A"}]
[null,null,255,null,null,null,null,null,null,null,null,null,null,null,null,null,null,null,{"$f":"VLOOKUP(R288,'DATOS ASP'!$I$22:$J$23, 2,FALSE)","v":{"$error":"#N/A"}},null,{"$f":"VLOOKUP(T288,'DATOS ASP'!$I$26:$J$27,2,FALSE)","v":{"$error":"#N/A"}},null,{"$f":"VLOOKUP(V288,'DATOS ASP'!$K$22:$L$24,2,FALSE)","v":{"$error":"#N/A"}},null,{"$f":"VLOOKUP(X288,'DATOS ASP'!$M$22:$N$24,2,FALSE)","v":{"$error":"#N/A"}},{"$error":"#N/A"}]
[null,null,256,null,null,null,null,null,null,null,null,null,null,null,null,null,null,null,{"$f":"VLOOKUP(R289,'DATOS ASP'!$I$22:$J$23, 2,FALSE)","v":{"$error":"#N/A"}},null,{"$f":"VLOOKUP(T289,'DATOS ASP'!$I$26:$J$27,2,FALSE)","v":{"$error":"#N/A"}},null,{"$f":"VLOOKUP(V289,'DATOS ASP'!$K$22:$L$24,2,FALSE)","v":{"$error":"#N/A"}},null,{"$f":"VLOOKUP(X289,'DATOS ASP'!$M$22:$N$24,2,FALSE)","v":{"$error":"#N/A"}},{"$error":"#N/A"}]
[null,null,257,null,null,null,null,null,null,null,null,null,null,null,null,null,null,null,{"$f":"VLOOKUP(R290,'DATOS ASP'!$I$22:$J$23, 2,FALSE)","v":{"$error":"#N/A"}},null,{"$f":"VLOOKUP(T290,'DATOS ASP'!$I$26:$J$27,2,FALSE)","v":{"$error":"#N/A"}},null,{"$f":"VLOOKUP(V290,'DATOS ASP'!$K$22:$L$24,2,FALSE)","v":{"$error":"#N/A"}},null,{"$f":"VLOOKUP(X290,'DATOS ASP'!$M$22:$N$24,2,FALSE)","v":{"$error":"#N/A"}},{"$error":"#N/A"}]
[null,null,258,null,null,null,null,null,null,null,null,null,null,null,null,null,null,null,{"$f":"VLOOKUP(R291,'DATOS ASP'!$I$22:$J$23, 2,FALSE)","v":{"$error":"#N/A"}},null,{"$f":"VLOOKUP(T291,'DATOS ASP'!$I$26:$J$27,2,FALSE)","v":{"$error":"#N/A"}},null,{"$f":"VLOOKUP(V291,'DATOS ASP'!$K$22:$L$24,2,FALSE)","v":{"$error":"#N/A"}},null,{"$f":"VLOOKUP(X291,'DATOS ASP'!$M$22:$N$24,2,FALSE)","v":{"$error":"#N/A"}},{"$error":"#N/A"}]
[null,null,259,null,null,null,null,null,null,null,null,null,null,null,null,null,null,null,{"$f":"VLOOKUP(R292,'DATOS ASP'!$I$22:$J$23, 2,FALSE)","v":{"$error":"#N/A"}},null,{"$f":"VLOOKUP(T292,'DATOS ASP'!$I$26:$J$27,2,FALSE)","v":{"$error":"#N/A"}},null,{"$f":"VLOOKUP(V292,'DATOS ASP'!$K$22:$L$24,2,FALSE)","v":{"$error":"#N/A"}},null,{"$f":"VLOOKUP(X292,'DATOS ASP'!$M$22:$N$24,2,FALSE)","v":{"$error":"#N/A"}},{"$error":"#N/A"}]
[null,null,260,null,null,null,null,null,null,null,null,null,null,null,null,null,null,null,{"$f":"VLOOKUP(R293,'DATOS ASP'!$I$22:$J$23, 2,FALSE)","v":{"$error":"#N/A"}},null,{"$f":"VLOOKUP(T293,'DATOS ASP'!$I$26:$J$27,2,FALSE)","v":{"$error":"#N/A"}},null,{"$f":"VLOOKUP(V293,'DATOS ASP'!$K$22:$L$24,2,FALSE)","v":{"$error":"#N/A"}},null,{"$f":"VLOOKUP(X293,'DATOS ASP'!$M$22:$N$24,2,FALSE)","v":{"$error":"#N/A"}},{"$error":"#N/A"}]
[null,null,261,null,null,null,null,null,null,null,null,null,null,null,null,null,null,null,{"$f":"VLOOKUP(R294,'DATOS ASP'!$I$22:$J$23, 2,FALSE)","v":{"$error":"#N/A"}},null,{"$f":"VLOOKUP(T294,'DATOS ASP'!$I$26:$J$27,2,FALSE)","v":{"$error":"#N/A"}},null,{"$f":"VLOOKUP(V294,'DATOS ASP'!$K$22:$L$24,2,FALSE)","v":{"$error":"#N/A"}},null,{"$f":"VLOOKUP(X294,'DATOS ASP'!$M$22:$N$24,2,FALSE)","v":{"$error":"#N/A"}},{"$error":"#N/A"}]
[null,null,262,null,null,null,null,null,null,null,null,null,null,null,null,null,null,null,{"$f":"VLOOKUP(R295,'DATOS ASP'!$I$22:$J$23, 2,FALSE)","v":{"$error":"#N/A"}},null,{"$f":"VLOOKUP(T295,'DATOS ASP'!$I$26:$J$27,2,FALSE)","v":{"$error":"#N/A"}},null,{"$f":"VLOOKUP(V295,'DATOS ASP'!$K$22:$L$24,2,FALSE)","v":{"$error":"#N/A"}},null,{"$f":"VLOOKUP(X295,'DATOS ASP'!$M$22:$N$24,2,FALSE)","v":{"$error":"#N/A"}},{"$f":"S295*((3*U295)+W295+Y295)","v":{"$error":"#N/A"}}]
[null,null,263,null,null,null,null,null,null,null,null,null,null,null,null,null,null,null,{"$f":"VLOOKUP(R296,'DATOS ASP'!$I$22:$J$23, 2,FALSE)","v":{"$error":"#N/A"}},null,{"$f":"VLOOKUP(T296,'DATOS ASP'!$I$26:$J$27,2,FALSE)","v":{"$error":"#N/A"}},null,{"$f":"VLOOKUP(V296,'DATOS ASP'!$K$22:$L$24,2,FALSE)","v":{"$error":"#N/A"}},null,{"$f":"VLOOKUP(X296,'DATOS ASP'!$M$22:$N$24,2,FALSE)","v":{"$error":"#N/A"}},{"$error":"#N/A"}]
[null,null,264,null,null,null,null,null,null,null,null,null,null,null,null,null,null,null,{"$f":"VLOOKUP(R297,'DATOS ASP'!$I$22:$J$23, 2,FALSE)","v":{"$error":"#N/A"}},null,{"$f":"VLOOKUP(T297,'DATOS ASP'!$I$26:$J$27,2,FALSE)","v":{"$error":"#N/A"}},null,{"$f":"VLOOKUP(V297,'DATOS ASP'!$K$22:$L$24,2,FALSE)","v":{"$error":"#N/A"}},null,{"$f":"VLOOKUP(X297,'DATOS ASP'!$M$22:$N$24,2,FALSE)","v":{"$error":"#N/A"}},{"$error":"#N/A"}]
[null,null,265,null,null,null,null,null,null,null,null,null,null,null,null,null,null,null,{"$f":"VLOOKUP(R298,'DATOS ASP'!$I$22:$J$23, 2,FALSE)","v":{"$error":"#N/A"}},null,{"$f":"VLOOKUP(T298,'DATOS ASP'!$I$26:$J$27,2,FALSE)","v":{"$error":"#N/A"}},null,{"$f":"VLOOKUP(V298,'DATOS ASP'!$K$22:$L$24,2,FALSE)","v":{"$error":"#N/A"}},null,{"$f":"VLOOKUP(X298,'DATOS ASP'!$M$22:$N$24,2,FALSE)","v":{"$error":"#N/A"}},{"$error":"#N/A"}]
[null,null,266,null,null,null,null,null,null,null,null,null,null,null,null,null,null,null,{"$f":"VLOOKUP(R299,'DATOS ASP'!$I$22:$J$23, 2,FALSE)","v":{"$error":"#N/A"}},null,{"$f":"VLOOKUP(T299,'DATOS ASP'!$I$26:$J$27,2,FALSE)","v":{"$error":"#N/A"}},null,{"$f":"VLOOKUP(V299,'DATOS ASP'!$K$22:$L$24,2,FALSE)","v":{"$error":"#N/A"}},null,{"$f":"VLOOKUP(X299,'DATOS ASP'!$M$22:$N$24,2,FALSE)","v":{"$error":"#N/A"}},{"$error":"#N/A"}]
[null,null,267,null,null,null,null,null,null,null,null,null,null,null,null,null,null,null,{"$f":"VLOOKUP(R300,'DATOS ASP'!$I$22:$J$23, 2,FALSE)","v":{"$error":"#N/A"}},null,{"$f":"VLOOKUP(T300,'DATOS ASP'!$I$26:$J$27,2,FALSE)","v":{"$error":"#N/A"}},null,{"$f":"VLOOKUP(V300,'DATOS ASP'!$K$22:$L$24,2,FALSE)","v":{"$error":"#N/A"}},null,{"$f":"VLOOKUP(X300,'DATOS ASP'!$M$22:$N$24,2,FALSE)","v":{"$error":"#N/A"}},{"$error":"#N/A"}]
[null,null,268,null,null,null,null,null,null,null,null,null,null,null,null,null,null,null,{"$f":"VLOOKUP(R301,'DATOS ASP'!$I$22:$J$23, 2,FALSE)","v":{"$error":"#N/A"}},null,{"$f":"VLOOKUP(T301,'DATOS ASP'!$I$26:$J$27,2,FALSE)","v":{"$error":"#N/A"}},null,{"$f":"VLOOKUP(V301,'DATOS ASP'!$K$22:$L$24,2,FALSE)","v":{"$error":"#N/A"}},null,{"$f":"VLOOKUP(X301,'DATOS ASP'!$M$22:$N$24,2,FALSE)","v":{"$error":"#N/A"}},{"$error":"#N/A"}]
[null,null,269,null,null,null,null,null,null,null,null,null,null,null,null,null,null,null,{"$f":"VLOOKUP(R302,'DATOS ASP'!$I$22:$J$23, 2,FALSE)","v":{"$error":"#N/A"}},null,{"$f":"VLOOKUP(T302,'DATOS ASP'!$I$26:$J$27,2,FALSE)","v":{"$error":"#N/A"}},null,{"$f":"VLOOKUP(V302,'DATOS ASP'!$K$22:$L$24,2,FALSE)","v":{"$error":"#N/A"}},null,{"$f":"VLOOKUP(X302,'DATOS ASP'!$M$22:$N$24,2,FALSE)","v":{"$error":"#N/A"}},{"$error":"#N/A"}]
[null,null,270,null,null,null,null,null,null,null,null,null,null,null,null,null,null,null,{"$f":"VLOOKUP(R303,'DATOS ASP'!$I$22:$J$23, 2,FALSE)","v":{"$error":"#N/A"}},null,{"$f":"VLOOKUP(T303,'DATOS ASP'!$I$26:$J$27,2,FALSE)","v":{"$error":"#N/A"}},null,{"$f":"VLOOKUP(V303,'DATOS ASP'!$K$22:$L$24,2,FALSE)","v":{"$error":"#N/A"}},null,{"$f":"VLOOKUP(X303,'DATOS ASP'!$M$22:$N$24,2,FALSE)","v":{"$error":"#N/A"}},{"$error":"#N/A"}]
[null,null,271,null,null,null,null,null,null,null,null,null,null,null,null,null,null,null,{"$f":"VLOOKUP(R304,'DATOS ASP'!$I$22:$J$23, 2,FALSE)","v":{"$error":"#N/A"}},null,{"$f":"VLOOKUP(T304,'DATOS ASP'!$I$26:$J$27,2,FALSE)","v":{"$error":"#N/A"}},null,{"$f":"VLOOKUP(V304,'DATOS ASP'!$K$22:$L$24,2,FALSE)","v":{"$error":"#N/A"}},null,{"$f":"VLOOKUP(X304,'DATOS ASP'!$M$22:$N$24,2,FALSE)","v":{"$error":"#N/A"}},{"$error":"#N/A"}]
[null,null,272,null,null,null,null,null,null,null,null,null,null,null,null,null,null,null,{"$f":"VLOOKUP(R305,'DATOS ASP'!$I$22:$J$23, 2,FALSE)","v":{"$error":"#N/A"}},null,{"$f":"VLOOKUP(T305,'DATOS ASP'!$I$26:$J$27,2,FALSE)","v":{"$error":"#N/A"}},null,{"$f":"VLOOKUP(V305,'DATOS ASP'!$K$22:$L$24,2,FALSE)","v":{"$error":"#N/A"}},null,{"$f":"VLOOKUP(X305,'DATOS ASP'!$M$22:$N$24,2,FALSE)","v":{"$error":"#N/A"}},{"$error":"#N/A"}]
[null,null,273,null,null,null,null,null,null,null,null,null,null,null,null,null,null,null,{"$f":"VLOOKUP(R306,'DATOS ASP'!$I$22:$J$23, 2,FALSE)","v":{"$error":"#N/A"}},null,{"$f":"VLOOKUP(T306,'DATOS ASP'!$I$26:$J$27,2,FALSE)","v":{"$error":"#N/A"}},null,{"$f":"VLOOKUP(V306,'DATOS ASP'!$K$22:$L$24,2,FALSE)","v":{"$error":"#N/A"}},null,{"$f":"VLOOKUP(X306,'DATOS ASP'!$M$22:$N$24,2,FALSE)","v":{"$error":"#N/A"}},{"$error":"#N/A"}]
[null,null,274,null,null,null,null,null,null,null,null,null,null,null,null,null,null,null,{"$f":"VLOOKUP(R307,'DATOS ASP'!$I$22:$J$23, 2,FALSE)","v":{"$error":"#N/A"}},null,{"$f":"VLOOKUP(T307,'DATOS ASP'!$I$26:$J$27,2,FALSE)","v":{"$error":"#N/A"}},null,{"$f":"VLOOKUP(V307,'DATOS ASP'!$K$22:$L$24,2,FALSE)","v":{"$error":"#N/A"}},null,{"$f":"VLOOKUP(X307,'DATOS ASP'!$M$22:$N$24,2,FALSE)","v":{"$error":"#N/A"}},{"$error":"#N/A"}]
[null,null,275,null,null,null,null,null,null,null,null,null,null,null,null,null,null,null,{"$f":"VLOOKUP(R308,'DATOS ASP'!$I$22:$J$23, 2,FALSE)","v":{"$error":"#N/A"}},null,{"$f":"VLOOKUP(T308,'DATOS ASP'!$I$26:$J$27,2,FALSE)","v":{"$error":"#N/A"}},null,{"$f":"VLOOKUP(V308,'DATOS ASP'!$K$22:$L$24,2,FALSE)","v":{"$error":"#N/A"}},null,{"$f":"VLOOKUP(X308,'DATOS ASP'!$M$22:$N$24,2,FALSE)","v":{"$error":"#N/A"}},{"$error":"#N/A"}]
[null,null,276,null,null,null,null,null,null,null,null,null,null,null,null,null,null,null,{"$f":"VLOOKUP(R309,'DATOS ASP'!$I$22:$J$23, 2,FALSE)","v":{"$error":"#N/A"}},null,{"$f":"VLOOKUP(T309,'DATOS ASP'!$I$26:$J$27,2,FALSE)","v":{"$error":"#N/A"}},null,{"$f":"VLOOKUP(V309,'DATOS ASP'!$K$22:$L$24,2,FALSE)","v":{"$error":"#N/A"}},null,{"$f":"VLOOKUP(X309,'DATOS ASP'!$M$22:$N$24,2,FALSE)","v":{"$error":"#N/A"}},{"$error":"#N/A"}]
[null,null,277,null,null,null,null,null,null,null,null,null,null,null,null,null,null,null,{"$f":"VLOOKUP(R310,'DATOS ASP'!$I$22:$J$23, 2,FALSE)","v":{"$error":"#N/A"}},null,{"$f":"VLOOKUP(T310,'DATOS ASP'!$I$26:$J$27,2,FALSE)","v":{"$error":"#N/A"}},null,{"$f":"VLOOKUP(V310,'DATOS ASP'!$K$22:$L$24,2,FALSE)","v":{"$error":"#N/A"}},null,{"$f":"VLOOKUP(X310,'DATOS ASP'!$M$22:$N$24,2,FALSE)","v":{"$error":"#N/A"}},{"$error":"#N/A"}]
[null,null,278,null,null,null,null,null,null,null,null,null,null,null,null,null,null,null,{"$f":"VLOOKUP(R311,'DATOS ASP'!$I$22:$J$23, 2,FALSE)","v":{"$error":"#N/A"}},null,{"$f":"VLOOKUP(T311,'DATOS ASP'!$I$26:$J$27,2,FALSE)","v":{"$error":"#N/A"}},null,{"$f":"VLOOKUP(V311,'DATOS ASP'!$K$22:$L$24,2,FALSE)","v":{"$error":"#N/A"}},null,{"$f":"VLOOKUP(X311,'DATOS ASP'!$M$22:$N$24,2,FALSE)","v":{"$error":"#N/A"}},{"$error":"#N/A"}]
[null,null,279,null,null,null,null,null,null,null,null,null,null,null,null,null,null,null,{"$f":"VLOOKUP(R312,'DATOS ASP'!$I$22:$J$23, 2,FALSE)","v":{"$error":"#N/A"}},null,{"$f":"VLOOKUP(T312,'DATOS ASP'!$I$26:$J$27,2,FALSE)","v":{"$error":"#N/A"}},null,{"$f":"VLOOKUP(V312,'DATOS ASP'!$K$22:$L$24,2,FALSE)","v":{"$error":"#N/A"}},null,{"$f":"VLOOKUP(X312,'DATOS ASP'!$M$22:$N$24,2,FALSE)","v":{"$error":"#N/A"}},{"$error":"#N/A"}]
[null,null,280,null,null,null,null,null,null,null,null,null,null,null,null,null,null,null,{"$f":"VLOOKUP(R313,'DATOS ASP'!$I$22:$J$23, 2,FALSE)","v":{"$error":"#N/A"}},null,{"$f":"VLOOKUP(T313,'DATOS ASP'!$I$26:$J$27,2,FALSE)","v":{"$error":"#N/A"}},null,{"$f":"VLOOKUP(V313,'DATOS ASP'!$K$22:$L$24,2,FALSE)","v":{"$error":"#N/A"}},null,{"$f":"VLOOKUP(X313,'DATOS ASP'!$M$22:$N$24,2,FALSE)","v":{"$error":"#N/A"}},{"$error":"#N/A"}]
[null,null,281,null,null,null,null,null,null,null,null,null,null,null,null,null,null,null,{"$f":"VLOOKUP(R314,'DATOS ASP'!$I$22:$J$23, 2,FALSE)","v":{"$error":"#N/A"}},null,{"$f":"VLOOKUP(T314,'DATOS ASP'!$I$26:$J$27,2,FALSE)","v":{"$error":"#N/A"}},null,{"$f":"VLOOKUP(V314,'DATOS ASP'!$K$22:$L$24,2,FALSE)","v":{"$error":"#N/A"}},null,{"$f":"VLOOKUP(X314,'DATOS ASP'!$M$22:$N$24,2,FALSE)","v":{"$error":"#N/A"}},{"$error":"#N/A"}]
[null,null,282,null,null,null,null,null,null,null,null,null,null,null,null,null,null,null,{"$f":"VLOOKUP(R315,'DATOS ASP'!$I$22:$J$23, 2,FALSE)","v":{"$error":"#N/A"}},null,{"$f":"VLOOKUP(T315,'DATOS ASP'!$I$26:$J$27,2,FALSE)","v":{"$error":"#N/A"}},null,{"$f":"VLOOKUP(V315,'DATOS ASP'!$K$22:$L$24,2,FALSE)","v":{"$error":"#N/A"}},null,{"$f":"VLOOKUP(X315,'DATOS ASP'!$M$22:$N$24,2,FALSE)","v":{"$error":"#N/A"}},{"$error":"#N/A"}]
[null,null,283,null,null,null,null,null,null,null,null,null,null,null,null,null,null,null,{"$f":"VLOOKUP(R316,'DATOS ASP'!$I$22:$J$23, 2,FALSE)","v":{"$error":"#N/A"}},null,{"$f":"VLOOKUP(T316,'DATOS ASP'!$I$26:$J$27,2,FALSE)","v":{"$error":"#N/A"}},null,{"$f":"VLOOKUP(V316,'DATOS ASP'!$K$22:$L$24,2,FALSE)","v":{"$error":"#N/A"}},null,{"$f":"VLOOKUP(X316,'DATOS ASP'!$M$22:$N$24,2,FALSE)","v":{"$error":"#N/A"}},{"$error":"#N/A"}]
[null,null,284,null,null,null,null,null,null,null,null,null,null,null,null,null,null,null,{"$f":"VLOOKUP(R317,'DATOS ASP'!$I$22:$J$23, 2,FALSE)","v":{"$error":"#N/A"}},null,{"$f":"VLOOKUP(T317,'DATOS ASP'!$I$26:$J$27,2,FALSE)","v":{"$error":"#N/A"}},null,{"$f":"VLOOKUP(V317,'DATOS ASP'!$K$22:$L$24,2,FALSE)","v":{"$error":"#N/A"}},null,{"$f":"VLOOKUP(X317,'DATOS ASP'!$M$22:$N$24,2,FALSE)","v":{"$error":"#N/A"}},{"$error":"#N/A"}]
[null,null,285,null,null,null,null,null,null,null,null,null,null,null,null,null,null,null,{"$f":"VLOOKUP(R318,'DATOS ASP'!$I$22:$J$23, 2,FALSE)","v":{"$error":"#N/A"}},null,{"$f":"VLOOKUP(T318,'DATOS ASP'!$I$26:$J$27,2,FALSE)","v":{"$error":"#N/A"}},null,{"$f":"VLOOKUP(V318,'DATOS ASP'!$K$22:$L$24,2,FALSE)","v":{"$error":"#N/A"}},null,{"$f":"VLOOKUP(X318,'DATOS ASP'!$M$22:$N$24,2,FALSE)","v":{"$error":"#N/A"}},{"$error":"#N/A"}]
[null,null,286,null,null,null,null,null,null,null,null,null,null,null,null,null,null,null,{"$f":"VLOOKUP(R319,'DATOS ASP'!$I$22:$J$23, 2,FALSE)","v":{"$error":"#N/A"}},null,{"$f":"VLOOKUP(T319,'DATOS ASP'!$I$26:$J$27,2,FALSE)","v":{"$error":"#N/A"}},null,{"$f":"VLOOKUP(V319,'DATOS ASP'!$K$22:$L$24,2,FALSE)","v":{"$error":"#N/A"}},null,{"$f":"VLOOKUP(X319,'DATOS ASP'!$M$22:$N$24,2,FALSE)","v":{"$error":"#N/A"}},{"$error":"#N/A"}]
[null,null,287,null,null,null,null,null,null,null,null,null,null,null,null,null,null,null,{"$f":"VLOOKUP(R320,'DATOS ASP'!$I$22:$J$23, 2,FALSE)","v":{"$error":"#N/A"}},null,{"$f":"VLOOKUP(T320,'DATOS ASP'!$I$26:$J$27,2,FALSE)","v":{"$error":"#N/A"}},null,{"$f":"VLOOKUP(V320,'DATOS ASP'!$K$22:$L$24,2,FALSE)","v":{"$error":"#N/A"}},null,{"$f":"VLOOKUP(X320,'DATOS ASP'!$M$22:$N$24,2,FALSE)","v":{"$error":"#N/A"}},{"$error":"#N/A"}]
[null,null,288,null,null,null,null,null,null,null,null,null,null,null,null,null,null,null,{"$f":"VLOOKUP(R321,'DATOS ASP'!$I$22:$J$23, 2,FALSE)","v":{"$error":"#N/A"}},null,{"$f":"VLOOKUP(T321,'DATOS ASP'!$I$26:$J$27,2,FALSE)","v":{"$error":"#N/A"}},null,{"$f":"VLOOKUP(V321,'DATOS ASP'!$K$22:$L$24,2,FALSE)","v":{"$error":"#N/A"}},null,{"$f":"VLOOKUP(X321,'DATOS ASP'!$M$22:$N$24,2,FALSE)","v":{"$error":"#N/A"}},{"$error":"#N/A"}]
[null,null,289,null,null,null,null,null,null,null,null,null,null,null,null,null,null,null,{"$f":"VLOOKUP(R322,'DATOS ASP'!$I$22:$J$23, 2,FALSE)","v":{"$error":"#N/A"}},null,{"$f":"VLOOKUP(T322,'DATOS ASP'!$I$26:$J$27,2,FALSE)","v":{"$error":"#N/A"}},null,{"$f":"VLOOKUP(V322,'DATOS ASP'!$K$22:$L$24,2,FALSE)","v":{"$error":"#N/A"}},null,{"$f":"VLOOKUP(X322,'DATOS ASP'!$M$22:$N$24,2,FALSE)","v":{"$error":"#N/A"}},{"$error":"#N/A"}]
[null,null,290,null,null,null,null,null,null,null,null,null,null,null,null,null,null,null,{"$f":"VLOOKUP(R323,'DATOS ASP'!$I$22:$J$23, 2,FALSE)","v":{"$error":"#N/A"}},null,{"$f":"VLOOKUP(T323,'DATOS ASP'!$I$26:$J$27,2,FALSE)","v":{"$error":"#N/A"}},null,{"$f":"VLOOKUP(V323,'DATOS ASP'!$K$22:$L$24,2,FALSE)","v":{"$error":"#N/A"}},null,{"$f":"VLOOKUP(X323,'DATOS ASP'!$M$22:$N$24,2,FALSE)","v":{"$error":"#N/A"}},{"$error":"#N/A"}]
[null,null,291,null,null,null,null,null,null,null,null,null,null,null,null,null,null,null,{"$f":"VLOOKUP(R324,'DATOS ASP'!$I$22:$J$23, 2,FALSE)","v":{"$error":"#N/A"}},null,{"$f":"VLOOKUP(T324,'DATOS ASP'!$I$26:$J$27,2,FALSE)","v":{"$error":"#N/A"}},null,{"$f":"VLOOKUP(V324,'DATOS ASP'!$K$22:$L$24,2,FALSE)","v":{"$error":"#N/A"}},null,{"$f":"VLOOKUP(X324,'DATOS ASP'!$M$22:$N$24,2,FALSE)","v":{"$error":"#N/A"}},{"$error":"#N/A"}]
[null,null,292,null,null,null,null,null,null,null,null,null,null,null,null,null,null,null,{"$f":"VLOOKUP(R325,'DATOS ASP'!$I$22:$J$23, 2,FALSE)","v":{"$error":"#N/A"}},null,{"$f":"VLOOKUP(T325,'DATOS ASP'!$I$26:$J$27,2,FALSE)","v":{"$error":"#N/A"}},null,{"$f":"VLOOKUP(V325,'DATOS ASP'!$K$22:$L$24,2,FALSE)","v":{"$error":"#N/A"}},null,{"$f":"VLOOKUP(X325,'DATOS ASP'!$M$22:$N$24,2,FALSE)","v":{"$error":"#N/A"}},{"$error":"#N/A"}]
[null,null,293,null,null,null,null,null,null,null,null,null,null,null,null,null,null,null,{"$f":"VLOOKUP(R326,'DATOS ASP'!$I$22:$J$23, 2,FALSE)","v":{"$error":"#N/A"}},null,{"$f":"VLOOKUP(T326,'DATOS ASP'!$I$26:$J$27,2,FALSE)","v":{"$error":"#N/A"}},null,{"$f":"VLOOKUP(V326,'DATOS ASP'!$K$22:$L$24,2,FALSE)","v":{"$error":"#N/A"}},null,{"$f":"VLOOKUP(X326,'DATOS ASP'!$M$22:$N$24,2,FALSE)","v":{"$error":"#N/A"}},{"$error":"#N/A"}]
[null,null,294,null,null,null,null,null,null,null,null,null,null,null,null,null,null,null,{"$f":"VLOOKUP(R327,'DATOS ASP'!$I$22:$J$23, 2,FALSE)","v":{"$error":"#N/A"}},null,{"$f":"VLOOKUP(T327,'DATOS ASP'!$I$26:$J$27,2,FALSE)","v":{"$error":"#N/A"}},null,{"$f":"VLOOKUP(V327,'DATOS ASP'!$K$22:$L$24,2,FALSE)","v":{"$error":"#N/A"}},null,{"$f":"VLOOKUP(X327,'DATOS ASP'!$M$22:$N$24,2,FALSE)","v":{"$error":"#N/A"}},{"$error":"#N/A"}]
[null,null,295,null,null,null,null,null,null,null,null,null,null,null,null,null,null,null,{"$f":"VLOOKUP(R328,'DATOS ASP'!$I$22:$J$23, 2,FALSE)","v":{"$error":"#N/A"}},null,{"$f":"VLOOKUP(T328,'DATOS ASP'!$I$26:$J$27,2,FALSE)","v":{"$error":"#N/A"}},null,{"$f":"VLOOKUP(V328,'DATOS ASP'!$K$22:$L$24,2,FALSE)","v":{"$error":"#N/A"}},null,{"$f":"VLOOKUP(X328,'DATOS ASP'!$M$22:$N$24,2,FALSE)","v":{"$error":"#N/A"}},{"$error":"#N/A"}]
[null,null,296,null,null,null,null,null,null,null,null,null,null,null,null,null,null,null,{"$f":"VLOOKUP(R329,'DATOS ASP'!$I$22:$J$23, 2,FALSE)","v":{"$error":"#N/A"}},null,{"$f":"VLOOKUP(T329,'DATOS ASP'!$I$26:$J$27,2,FALSE)","v":{"$error":"#N/A"}},null,{"$f":"VLOOKUP(V329,'DATOS ASP'!$K$22:$L$24,2,FALSE)","v":{"$error":"#N/A"}},null,{"$f":"VLOOKUP(X329,'DATOS ASP'!$M$22:$N$24,2,FALSE)","v":{"$error":"#N/A"}},{"$error":"#N/A"}]
[null,null,297,null,null,null,null,null,null,null,null,null,null,null,null,null,null,null,{"$f":"VLOOKUP(R330,'DATOS ASP'!$I$22:$J$23, 2,FALSE)","v":{"$error":"#N/A"}},null,{"$f":"VLOOKUP(T330,'DATOS ASP'!$I$26:$J$27,2,FALSE)","v":{"$error":"#N/A"}},null,{"$f":"VLOOKUP(V330,'DATOS ASP'!$K$22:$L$24,2,FALSE)","v":{"$error":"#N/A"}},null,{"$f":"VLOOKUP(X330,'DATOS ASP'!$M$22:$N$24,2,FALSE)","v":{"$error":"#N/A"}},{"$error":"#N/A"}]
[null,null,298,null,null,null,null,null,null,null,null,null,null,null,null,null,null,null,{"$f":"VLOOKUP(R331,'DATOS ASP'!$I$22:$J$23, 2,FALSE)","v":{"$error":"#N/A"}},null,{"$f":"VLOOKUP(T331,'DATOS ASP'!$I$26:$J$27,2,FALSE)","v":{"$error":"#N/A"}},null,{"$f":"VLOOKUP(V331,'DATOS ASP'!$K$22:$L$24,2,FALSE)","v":{"$error":"#N/A"}},null,{"$f":"VLOOKUP(X331,'DATOS ASP'!$M$22:$N$24,2,FALSE)","v":{"$error":"#N/A"}},{"$error":"#N/A"}]
[null,null,299,null,null,null,null,null,null,null,null,null,null,null,null,null,null,null,{"$f":"VLOOKUP(R332,'DATOS ASP'!$I$22:$J$23, 2,FALSE)","v":{"$error":"#N/A"}},null,{"$f":"VLOOKUP(T332,'DATOS ASP'!$I$26:$J$27,2,FALSE)","v":{"$error":"#N/A"}},null,{"$f":"VLOOKUP(V332,'DATOS ASP'!$K$22:$L$24,2,FALSE)","v":{"$error":"#N/A"}},null,{"$f":"VLOOKUP(X332,'DATOS ASP'!$M$22:$N$24,2,FALSE)","v":{"$error":"#N/A"}},{"$error":"#N/A"}]
[null,null,300,null,null,null,null,null,null,null,null,null,null,null,null,null,null,null,{"$f":"VLOOKUP(R333,'DATOS ASP'!$I$22:$J$23, 2,FALSE)","v":{"$error":"#N/A"}},null,{"$f":"VLOOKUP(T333,'DATOS ASP'!$I$26:$J$27,2,FALSE)","v":{"$error":"#N/A"}},null,{"$f":"VLOOKUP(V333,'DATOS ASP'!$K$22:$L$24,2,FALSE)","v":{"$error":"#N/A"}},null,{"$f":"VLOOKUP(X333,'DATOS ASP'!$M$22:$N$24,2,FALSE)","v":{"$error":"#N/A"}},{"$error":"#N/A"}]
[null,null,301,null,null,null,null,null,null,null,null,null,null,null,null,null,null,null,{"$f":"VLOOKUP(R334,'DATOS ASP'!$I$22:$J$23, 2,FALSE)","v":{"$error":"#N/A"}},null,{"$f":"VLOOKUP(T334,'DATOS ASP'!$I$26:$J$27,2,FALSE)","v":{"$error":"#N/A"}},null,{"$f":"VLOOKUP(V334,'DATOS ASP'!$K$22:$L$24,2,FALSE)","v":{"$error":"#N/A"}},null,{"$f":"VLOOKUP(X334,'DATOS ASP'!$M$22:$N$24,2,FALSE)","v":{"$error":"#N/A"}},{"$error":"#N/A"}]
[null,null,302,null,null,null,null,null,null,null,null,null,null,null,null,null,null,null,{"$f":"VLOOKUP(R335,'DATOS ASP'!$I$22:$J$23, 2,FALSE)","v":{"$error":"#N/A"}},null,{"$f":"VLOOKUP(T335,'DATOS ASP'!$I$26:$J$27,2,FALSE)","v":{"$error":"#N/A"}},null,{"$f":"VLOOKUP(V335,'DATOS ASP'!$K$22:$L$24,2,FALSE)","v":{"$error":"#N/A"}},null,{"$f":"VLOOKUP(X335,'DATOS ASP'!$M$22:$N$24,2,FALSE)","v":{"$error":"#N/A"}},{"$error":"#N/A"}]
[null,null,303,null,null,null,null,null,null,null,null,null,null,null,null,null,null,null,{"$f":"VLOOKUP(R336,'DATOS ASP'!$I$22:$J$23, 2,FALSE)","v":{"$error":"#N/A"}},null,{"$f":"VLOOKUP(T336,'DATOS ASP'!$I$26:$J$27,2,FALSE)","v":{"$error":"#N/A"}},null,{"$f":"VLOOKUP(V336,'DATOS ASP'!$K$22:$L$24,2,FALSE)","v":{"$error":"#N/A"}},null,{"$f":"VLOOKUP(X336,'DATOS ASP'!$M$22:$N$24,2,FALSE)","v":{"$error":"#N/A"}},{"$error":"#N/A"}]
[null,null,304,null,null,null,null,null,null,null,null,null,null,null,null,null,null,null,{"$f":"VLOOKUP(R337,'DATOS ASP'!$I$22:$J$23, 2,FALSE)","v":{"$error":"#N/A"}},null,{"$f":"VLOOKUP(T337,'DATOS ASP'!$I$26:$J$27,2,FALSE)","v":{"$error":"#N/A"}},null,{"$f":"VLOOKUP(V337,'DATOS ASP'!$K$22:$L$24,2,FALSE)","v":{"$error":"#N/A"}},null,{"$f":"VLOOKUP(X337,'DATOS ASP'!$M$22:$N$24,2,FALSE)","v":{"$error":"#N/A"}},{"$error":"#N/A"}]
[null,null,305,null,null,null,null,null,null,null,null,null,null,null,null,null,null,null,{"$f":"VLOOKUP(R338,'DATOS ASP'!$I$22:$J$23, 2,FALSE)","v":{"$error":"#N/A"}},null,{"$f":"VLOOKUP(T338,'DATOS ASP'!$I$26:$J$27,2,FALSE)","v":{"$error":"#N/A"}},null,{"$f":"VLOOKUP(V338,'DATOS ASP'!$K$22:$L$24,2,FALSE)","v":{"$error":"#N/A"}},null,{"$f":"VLOOKUP(X338,'DATOS ASP'!$M$22:$N$24,2,FALSE)","v":{"$error":"#N/A"}},{"$error":"#N/A"}]
[null,null,306,null,null,null,null,null,null,null,null,null,null,null,null,null,null,null,{"$f":"VLOOKUP(R339,'DATOS ASP'!$I$22:$J$23, 2,FALSE)","v":{"$error":"#N/A"}},null,{"$f":"VLOOKUP(T339,'DATOS ASP'!$I$26:$J$27,2,FALSE)","v":{"$error":"#N/A"}},null,{"$f":"VLOOKUP(V339,'DATOS ASP'!$K$22:$L$24,2,FALSE)","v":{"$error":"#N/A"}},null,{"$f":"VLOOKUP(X339,'DATOS ASP'!$M$22:$N$24,2,FALSE)","v":{"$error":"#N/A"}},{"$error":"#N/A"}]
[null,null,307,null,null,null,null,null,null,null,null,null,null,null,null,null,null,null,{"$f":"VLOOKUP(R340,'DATOS ASP'!$I$22:$J$23, 2,FALSE)","v":{"$error":"#N/A"}},null,{"$f":"VLOOKUP(T340,'DATOS ASP'!$I$26:$J$27,2,FALSE)","v":{"$error":"#N/A"}},null,{"$f":"VLOOKUP(V340,'DATOS ASP'!$K$22:$L$24,2,FALSE)","v":{"$error":"#N/A"}},null,{"$f":"VLOOKUP(X340,'DATOS ASP'!$M$22:$N$24,2,FALSE)","v":{"$error":"#N/A"}},{"$error":"#N/A"}]
[null,null,308,null,null,null,null,null,null,null,null,null,null,null,null,null,null,null,{"$f":"VLOOKUP(R341,'DATOS ASP'!$I$22:$J$23, 2,FALSE)","v":{"$error":"#N/A"}},null,{"$f":"VLOOKUP(T341,'DATOS ASP'!$I$26:$J$27,2,FALSE)","v":{"$error":"#N/A"}},null,{"$f":"VLOOKUP(V341,'DATOS ASP'!$K$22:$L$24,2,FALSE)","v":{"$error":"#N/A"}},null,{"$f":"VLOOKUP(X341,'DATOS ASP'!$M$22:$N$24,2,FALSE)","v":{"$error":"#N/A"}},{"$error":"#N/A"}]
[null,null,309,null,null,null,null,null,null,null,null,null,null,null,null,null,null,null,{"$f":"VLOOKUP(R342,'DATOS ASP'!$I$22:$J$23, 2,FALSE)","v":{"$error":"#N/A"}},null,{"$f":"VLOOKUP(T342,'DATOS ASP'!$I$26:$J$27,2,FALSE)","v":{"$error":"#N/A"}},null,{"$f":"VLOOKUP(V342,'DATOS ASP'!$K$22:$L$24,2,FALSE)","v":{"$error":"#N/A"}},null,{"$f":"VLOOKUP(X342,'DATOS ASP'!$M$22:$N$24,2,FALSE)","v":{"$error":"#N/A"}},{"$error":"#N/A"}]
[null,null,310,null,null,null,null,null,null,null,null,null,null,null,null,null,null,null,{"$f":"VLOOKUP(R343,'DATOS ASP'!$I$22:$J$23, 2,FALSE)","v":{"$error":"#N/A"}},null,{"$f":"VLOOKUP(T343,'DATOS ASP'!$I$26:$J$27,2,FALSE)","v":{"$error":"#N/A"}},null,{"$f":"VLOOKUP(V343,'DATOS ASP'!$K$22:$L$24,2,FALSE)","v":{"$error":"#N/A"}},null,{"$f":"VLOOKUP(X343,'DATOS ASP'!$M$22:$N$24,2,FALSE)","v":{"$error":"#N/A"}},{"$error":"#N/A"}]
[null,null,311,null,null,null,null,null,null,null,null,null,null,null,null,null,null,null,{"$f":"VLOOKUP(R344,'DATOS ASP'!$I$22:$J$23, 2,FALSE)","v":{"$error":"#N/A"}},null,{"$f":"VLOOKUP(T344,'DATOS ASP'!$I$26:$J$27,2,FALSE)","v":{"$error":"#N/A"}},null,{"$f":"VLOOKUP(V344,'DATOS ASP'!$K$22:$L$24,2,FALSE)","v":{"$error":"#N/A"}},null,{"$f":"VLOOKUP(X344,'DATOS ASP'!$M$22:$N$24,2,FALSE)","v":{"$error":"#N/A"}},{"$error":"#N/A"}]
[null,null,312,null,null,null,null,null,null,null,null,null,null,null,null,null,null,null,{"$f":"VLOOKUP(R345,'DATOS ASP'!$I$22:$J$23, 2,FALSE)","v":{"$error":"#N/A"}},null,{"$f":"VLOOKUP(T345,'DATOS ASP'!$I$26:$J$27,2,FALSE)","v":{"$error":"#N/A"}},null,{"$f":"VLOOKUP(V345,'DATOS ASP'!$K$22:$L$24,2,FALSE)","v":{"$error":"#N/A"}},null,{"$f":"VLOOKUP(X345,'DATOS ASP'!$M$22:$N$24,2,FALSE)","v":{"$error":"#N/A"}},{"$error":"#N/A"}]
[null,null,313,null,null,null,null,null,null,null,null,null,null,null,null,null,null,null,{"$f":"VLOOKUP(R346,'DATOS ASP'!$I$22:$J$23, 2,FALSE)","v":{"$error":"#N/A"}},null,{"$f":"VLOOKUP(T346,'DATOS ASP'!$I$26:$J$27,2,FALSE)","v":{"$error":"#N/A"}},null,{"$f":"VLOOKUP(V346,'DATOS ASP'!$K$22:$L$24,2,FALSE)","v":{"$error":"#N/A"}},null,{"$f":"VLOOKUP(X346,'DATOS ASP'!$M$22:$N$24,2,FALSE)","v":{"$error":"#N/A"}},{"$error":"#N/A"}]
[null,null,314,null,null,null,null,null,null,null,null,null,null,null,null,null,null,null,{"$f":"VLOOKUP(R347,'DATOS ASP'!$I$22:$J$23, 2,FALSE)","v":{"$error":"#N/A"}},null,{"$f":"VLOOKUP(T347,'DATOS ASP'!$I$26:$J$27,2,FALSE)","v":{"$error":"#N/A"}},null,{"$f":"VLOOKUP(V347,'DATOS ASP'!$K$22:$L$24,2,FALSE)","v":{"$error":"#N/A"}},null,{"$f":"VLOOKUP(X347,'DATOS ASP'!$M$22:$N$24,2,FALSE)","v":{"$error":"#N/A"}},{"$error":"#N/A"}]
[null,null,315,null,null,null,null,null,null,null,null,null,null,null,null,null,null,null,{"$f":"VLOOKUP(R348,'DATOS ASP'!$I$22:$J$23, 2,FALSE)","v":{"$error":"#N/A"}},null,{"$f":"VLOOKUP(T348,'DATOS ASP'!$I$26:$J$27,2,FALSE)","v":{"$error":"#N/A"}},null,{"$f":"VLOOKUP(V348,'DATOS ASP'!$K$22:$L$24,2,FALSE)","v":{"$error":"#N/A"}},null,{"$f":"VLOOKUP(X348,'DATOS ASP'!$M$22:$N$24,2,FALSE)","v":{"$error":"#N/A"}},{"$error":"#N/A"}]
[null,null,316,null,null,null,null,null,null,null,null,null,null,null,null,null,null,null,{"$f":"VLOOKUP(R349,'DATOS ASP'!$I$22:$J$23, 2,FALSE)","v":{"$error":"#N/A"}},null,{"$f":"VLOOKUP(T349,'DATOS ASP'!$I$26:$J$27,2,FALSE)","v":{"$error":"#N/A"}},null,{"$f":"VLOOKUP(V349,'DATOS ASP'!$K$22:$L$24,2,FALSE)","v":{"$error":"#N/A"}},null,{"$f":"VLOOKUP(X349,'DATOS ASP'!$M$22:$N$24,2,FALSE)","v":{"$error":"#N/A"}},{"$error":"#N/A"}]
[null,null,317,null,null,null,null,null,null,null,null,null,null,null,null,null,null,null,{"$f":"VLOOKUP(R350,'DATOS ASP'!$I$22:$J$23, 2,FALSE)","v":{"$error":"#N/A"}},null,{"$f":"VLOOKUP(T350,'DATOS ASP'!$I$26:$J$27,2,FALSE)","v":{"$error":"#N/A"}},null,{"$f":"VLOOKUP(V350,'DATOS ASP'!$K$22:$L$24,2,FALSE)","v":{"$error":"#N/A"}},null,{"$f":"VLOOKUP(X350,'DATOS ASP'!$M$22:$N$24,2,FALSE)","v":{"$error":"#N/A"}},{"$error":"#N/A"}]
[null,null,318,null,null,null,null,null,null,null,null,null,null,null,null,null,null,null,{"$f":"VLOOKUP(R351,'DATOS ASP'!$I$22:$J$23, 2,FALSE)","v":{"$error":"#N/A"}},null,{"$f":"VLOOKUP(T351,'DATOS ASP'!$I$26:$J$27,2,FALSE)","v":{"$error":"#N/A"}},null,{"$f":"VLOOKUP(V351,'DATOS ASP'!$K$22:$L$24,2,FALSE)","v":{"$error":"#N/A"}},null,{"$f":"VLOOKUP(X351,'DATOS ASP'!$M$22:$N$24,2,FALSE)","v":{"$error":"#N/A"}},{"$error":"#N/A"}]
[null,null,319,null,null,null,null,null,null,null,null,null,null,null,null,null,null,null,{"$f":"VLOOKUP(R352,'DATOS ASP'!$I$22:$J$23, 2,FALSE)","v":{"$error":"#N/A"}},null,{"$f":"VLOOKUP(T352,'DATOS ASP'!$I$26:$J$27,2,FALSE)","v":{"$error":"#N/A"}},null,{"$f":"VLOOKUP(V352,'DATOS ASP'!$K$22:$L$24,2,FALSE)","v":{"$error":"#N/A"}},null,{"$f":"VLOOKUP(X352,'DATOS ASP'!$M$22:$N$24,2,FALSE)","v":{"$error":"#N/A"}},{"$error":"#N/A"}]
[null,null,320,null,null,null,null,null,null,null,null,null,null,null,null,null,null,null,{"$f":"VLOOKUP(R353,'DATOS ASP'!$I$22:$J$23, 2,FALSE)","v":{"$error":"#N/A"}},null,{"$f":"VLOOKUP(T353,'DATOS ASP'!$I$26:$J$27,2,FALSE)","v":{"$error":"#N/A"}},null,{"$f":"VLOOKUP(V353,'DATOS ASP'!$K$22:$L$24,2,FALSE)","v":{"$error":"#N/A"}},null,{"$f":"VLOOKUP(X353,'DATOS ASP'!$M$22:$N$24,2,FALSE)","v":{"$error":"#N/A"}},{"$error":"#N/A"}]
[null,null,321,null,null,null,null,null,null,null,null,null,null,null,null,null,null,null,{"$f":"VLOOKUP(R354,'DATOS ASP'!$I$22:$J$23, 2,FALSE)","v":{"$error":"#N/A"}},null,{"$f":"VLOOKUP(T354,'DATOS ASP'!$I$26:$J$27,2,FALSE)","v":{"$error":"#N/A"}},null,{"$f":"VLOOKUP(V354,'DATOS ASP'!$K$22:$L$24,2,FALSE)","v":{"$error":"#N/A"}},null,{"$f":"VLOOKUP(X354,'DATOS ASP'!$M$22:$N$24,2,FALSE)","v":{"$error":"#N/A"}},{"$error":"#N/A"}]
[null,null,322,null,null,null,null,null,null,null,null,null,null,null,null,null,null,null,{"$f":"VLOOKUP(R355,'DATOS ASP'!$I$22:$J$23, 2,FALSE)","v":{"$error":"#N/A"}},null,{"$f":"VLOOKUP(T355,'DATOS ASP'!$I$26:$J$27,2,FALSE)","v":{"$error":"#N/A"}},null,{"$f":"VLOOKUP(V355,'DATOS ASP'!$K$22:$L$24,2,FALSE)","v":{"$error":"#N/A"}},null,{"$f":"VLOOKUP(X355,'DATOS ASP'!$M$22:$N$24,2,FALSE)","v":{"$error":"#N/A"}},{"$error":"#N/A"}]
[null,null,323,null,null,null,null,null,null,null,null,null,null,null,null,null,null,null,{"$f":"VLOOKUP(R356,'DATOS ASP'!$I$22:$J$23, 2,FALSE)","v":{"$error":"#N/A"}},null,{"$f":"VLOOKUP(T356,'DATOS ASP'!$I$26:$J$27,2,FALSE)","v":{"$error":"#N/A"}},null,{"$f":"VLOOKUP(V356,'DATOS ASP'!$K$22:$L$24,2,FALSE)","v":{"$error":"#N/A"}},null,{"$f":"VLOOKUP(X356,'DATOS ASP'!$M$22:$N$24,2,FALSE)","v":{"$error":"#N/A"}},{"$error":"#N/A"}]
[null,null,324,null,null,null,null,null,null,null,null,null,null,null,null,null,null,null,{"$f":"VLOOKUP(R357,'DATOS ASP'!$I$22:$J$23, 2,FALSE)","v":{"$error":"#N/A"}},null,{"$f":"VLOOKUP(T357,'DATOS ASP'!$I$26:$J$27,2,FALSE)","v":{"$error":"#N/A"}},null,{"$f":"VLOOKUP(V357,'DATOS ASP'!$K$22:$L$24,2,FALSE)","v":{"$error":"#N/A"}},null,{"$f":"VLOOKUP(X357,'DATOS ASP'!$M$22:$N$24,2,FALSE)","v":{"$error":"#N/A"}},{"$error":"#N/A"}]
[null,null,325,null,null,null,null,null,null,null,null,null,null,null,null,null,null,null,{"$f":"VLOOKUP(R358,'DATOS ASP'!$I$22:$J$23, 2,FALSE)","v":{"$error":"#N/A"}},null,{"$f":"VLOOKUP(T358,'DATOS ASP'!$I$26:$J$27,2,FALSE)","v":{"$error":"#N/A"}},null,{"$f":"VLOOKUP(V358,'DATOS ASP'!$K$22:$L$24,2,FALSE)","v":{"$error":"#N/A"}},null,{"$f":"VLOOKUP(X358,'DATOS ASP'!$M$22:$N$24,2,FALSE)","v":{"$error":"#N/A"}},{"$error":"#N/A"}]
[null,null,326,null,null,null,null,null,null,null,null,null,null,null,null,null,null,null,{"$f":"VLOOKUP(R359,'DATOS ASP'!$I$22:$J$23, 2,FALSE)","v":{"$error":"#N/A"}},null,{"$f":"VLOOKUP(T359,'DATOS ASP'!$I$26:$J$27,2,FALSE)","v":{"$error":"#N/A"}},null,{"$f":"VLOOKUP(V359,'DATOS ASP'!$K$22:$L$24,2,FALSE)","v":{"$error":"#N/A"}},null,{"$f":"VLOOKUP(X359,'DATOS ASP'!$M$22:$N$24,2,FALSE)","v":{"$error":"#N/A"}},{"$f":"S359*((3*U359)+W359+Y359)","v":{"$error":"#N/A"}}]
[null,null,327,null,null,null,null,null,null,null,null,null,null,null,null,null,null,null,{"$f":"VLOOKUP(R360,'DATOS ASP'!$I$22:$J$23, 2,FALSE)","v":{"$error":"#N/A"}},null,{"$f":"VLOOKUP(T360,'DATOS ASP'!$I$26:$J$27,2,FALSE)","v":{"$error":"#N/A"}},null,{"$f":"VLOOKUP(V360,'DATOS ASP'!$K$22:$L$24,2,FALSE)","v":{"$error":"#N/A"}},null,{"$f":"VLOOKUP(X360,'DATOS ASP'!$M$22:$N$24,2,FALSE)","v":{"$error":"#N/A"}},{"$error":"#N/A"}]
[null,null,328,null,null,null,null,null,null,null,null,null,null,null,null,null,null,null,{"$f":"VLOOKUP(R361,'DATOS ASP'!$I$22:$J$23, 2,FALSE)","v":{"$error":"#N/A"}},null,{"$f":"VLOOKUP(T361,'DATOS ASP'!$I$26:$J$27,2,FALSE)","v":{"$error":"#N/A"}},null,{"$f":"VLOOKUP(V361,'DATOS ASP'!$K$22:$L$24,2,FALSE)","v":{"$error":"#N/A"}},null,{"$f":"VLOOKUP(X361,'DATOS ASP'!$M$22:$N$24,2,FALSE)","v":{"$error":"#N/A"}},{"$error":"#N/A"}]
[null,null,329,null,null,null,null,null,null,null,null,null,null,null,null,null,null,null,{"$f":"VLOOKUP(R362,'DATOS ASP'!$I$22:$J$23, 2,FALSE)","v":{"$error":"#N/A"}},null,{"$f":"VLOOKUP(T362,'DATOS ASP'!$I$26:$J$27,2,FALSE)","v":{"$error":"#N/A"}},null,{"$f":"VLOOKUP(V362,'DATOS ASP'!$K$22:$L$24,2,FALSE)","v":{"$error":"#N/A"}},null,{"$f":"VLOOKUP(X362,'DATOS ASP'!$M$22:$N$24,2,FALSE)","v":{"$error":"#N/A"}},{"$error":"#N/A"}]
[null,null,330,null,null,null,null,null,null,null,null,null,null,null,null,null,null,null,{"$f":"VLOOKUP(R363,'DATOS ASP'!$I$22:$J$23, 2,FALSE)","v":{"$error":"#N/A"}},null,{"$f":"VLOOKUP(T363,'DATOS ASP'!$I$26:$J$27,2,FALSE)","v":{"$error":"#N/A"}},null,{"$f":"VLOOKUP(V363,'DATOS ASP'!$K$22:$L$24,2,FALSE)","v":{"$error":"#N/A"}},null,{"$f":"VLOOKUP(X363,'DATOS ASP'!$M$22:$N$24,2,FALSE)","v":{"$error":"#N/A"}},{"$error":"#N/A"}]
[null,null,331,null,null,null,null,null,null,null,null,null,null,null,null,null,null,null,{"$f":"VLOOKUP(R364,'DATOS ASP'!$I$22:$J$23, 2,FALSE)","v":{"$error":"#N/A"}},null,{"$f":"VLOOKUP(T364,'DATOS ASP'!$I$26:$J$27,2,FALSE)","v":{"$error":"#N/A"}},null,{"$f":"VLOOKUP(V364,'DATOS ASP'!$K$22:$L$24,2,FALSE)","v":{"$error":"#N/A"}},null,{"$f":"VLOOKUP(X364,'DATOS ASP'!$M$22:$N$24,2,FALSE)","v":{"$error":"#N/A"}},{"$error":"#N/A"}]
[null,null,332,null,null,null,null,null,null,null,null,null,null,null,null,null,null,null,{"$f":"VLOOKUP(R365,'DATOS ASP'!$I$22:$J$23, 2,FALSE)","v":{"$error":"#N/A"}},null,{"$f":"VLOOKUP(T365,'DATOS ASP'!$I$26:$J$27,2,FALSE)","v":{"$error":"#N/A"}},null,{"$f":"VLOOKUP(V365,'DATOS ASP'!$K$22:$L$24,2,FALSE)","v":{"$error":"#N/A"}},null,{"$f":"VLOOKUP(X365,'DATOS ASP'!$M$22:$N$24,2,FALSE)","v":{"$error":"#N/A"}},{"$error":"#N/A"}]
[null,null,333,null,null,null,null,null,null,null,null,null,null,null,null,null,null,null,{"$f":"VLOOKUP(R366,'DATOS ASP'!$I$22:$J$23, 2,FALSE)","v":{"$error":"#N/A"}},null,{"$f":"VLOOKUP(T366,'DATOS ASP'!$I$26:$J$27,2,FALSE)","v":{"$error":"#N/A"}},null,{"$f":"VLOOKUP(V366,'DATOS ASP'!$K$22:$L$24,2,FALSE)","v":{"$error":"#N/A"}},null,{"$f":"VLOOKUP(X366,'DATOS ASP'!$M$22:$N$24,2,FALSE)","v":{"$error":"#N/A"}},{"$error":"#N/A"}]
[null,null,334,null,null,null,null,null,null,null,null,null,null,null,null,null,null,null,{"$f":"VLOOKUP(R367,'DATOS ASP'!$I$22:$J$23, 2,FALSE)","v":{"$error":"#N/A"}},null,{"$f":"VLOOKUP(T367,'DATOS ASP'!$I$26:$J$27,2,FALSE)","v":{"$error":"#N/A"}},null,{"$f":"VLOOKUP(V367,'DATOS ASP'!$K$22:$L$24,2,FALSE)","v":{"$error":"#N/A"}},null,{"$f":"VLOOKUP(X367,'DATOS ASP'!$M$22:$N$24,2,FALSE)","v":{"$error":"#N/A"}},{"$error":"#N/A"}]
[null,null,335,null,null,null,null,null,null,null,null,null,null,null,null,null,null,null,{"$f":"VLOOKUP(R368,'DATOS ASP'!$I$22:$J$23, 2,FALSE)","v":{"$error":"#N/A"}},null,{"$f":"VLOOKUP(T368,'DATOS ASP'!$I$26:$J$27,2,FALSE)","v":{"$error":"#N/A"}},null,{"$f":"VLOOKUP(V368,'DATOS ASP'!$K$22:$L$24,2,FALSE)","v":{"$error":"#N/A"}},null,{"$f":"VLOOKUP(X368,'DATOS ASP'!$M$22:$N$24,2,FALSE)","v":{"$error":"#N/A"}},{"$error":"#N/A"}]
[null,null,336,null,null,null,null,null,null,null,null,null,null,null,null,null,null,null,{"$f":"VLOOKUP(R369,'DATOS ASP'!$I$22:$J$23, 2,FALSE)","v":{"$error":"#N/A"}},null,{"$f":"VLOOKUP(T369,'DATOS ASP'!$I$26:$J$27,2,FALSE)","v":{"$error":"#N/A"}},null,{"$f":"VLOOKUP(V369,'DATOS ASP'!$K$22:$L$24,2,FALSE)","v":{"$error":"#N/A"}},null,{"$f":"VLOOKUP(X369,'DATOS ASP'!$M$22:$N$24,2,FALSE)","v":{"$error":"#N/A"}},{"$error":"#N/A"}]
[null,null,337,null,null,null,null,null,null,null,null,null,null,null,null,null,null,null,{"$f":"VLOOKUP(R370,'DATOS ASP'!$I$22:$J$23, 2,FALSE)","v":{"$error":"#N/A"}},null,{"$f":"VLOOKUP(T370,'DATOS ASP'!$I$26:$J$27,2,FALSE)","v":{"$error":"#N/A"}},null,{"$f":"VLOOKUP(V370,'DATOS ASP'!$K$22:$L$24,2,FALSE)","v":{"$error":"#N/A"}},null,{"$f":"VLOOKUP(X370,'DATOS ASP'!$M$22:$N$24,2,FALSE)","v":{"$error":"#N/A"}},{"$error":"#N/A"}]
[null,null,338,null,null,null,null,null,null,null,null,null,null,null,null,null,null,null,{"$f":"VLOOKUP(R371,'DATOS ASP'!$I$22:$J$23, 2,FALSE)","v":{"$error":"#N/A"}},null,{"$f":"VLOOKUP(T371,'DATOS ASP'!$I$26:$J$27,2,FALSE)","v":{"$error":"#N/A"}},null,{"$f":"VLOOKUP(V371,'DATOS ASP'!$K$22:$L$24,2,FALSE)","v":{"$error":"#N/A"}},null,{"$f":"VLOOKUP(X371,'DATOS ASP'!$M$22:$N$24,2,FALSE)","v":{"$error":"#N/A"}},{"$error":"#N/A"}]
[null,null,339,null,null,null,null,null,null,null,null,null,null,null,null,null,null,null,{"$f":"VLOOKUP(R372,'DATOS ASP'!$I$22:$J$23, 2,FALSE)","v":{"$error":"#N/A"}},null,{"$f":"VLOOKUP(T372,'DATOS ASP'!$I$26:$J$27,2,FALSE)","v":{"$error":"#N/A"}},null,{"$f":"VLOOKUP(V372,'DATOS ASP'!$K$22:$L$24,2,FALSE)","v":{"$error":"#N/A"}},null,{"$f":"VLOOKUP(X372,'DATOS ASP'!$M$22:$N$24,2,FALSE)","v":{"$error":"#N/A"}},{"$error":"#N/A"}]
[null,null,340,null,null,null,null,null,null,null,null,null,null,null,null,null,null,null,{"$f":"VLOOKUP(R373,'DATOS ASP'!$I$22:$J$23, 2,FALSE)","v":{"$error":"#N/A"}},null,{"$f":"VLOOKUP(T373,'DATOS ASP'!$I$26:$J$27,2,FALSE)","v":{"$error":"#N/A"}},null,{"$f":"VLOOKUP(V373,'DATOS ASP'!$K$22:$L$24,2,FALSE)","v":{"$error":"#N/A"}},null,{"$f":"VLOOKUP(X373,'DATOS ASP'!$M$22:$N$24,2,FALSE)","v":{"$error":"#N/A"}},{"$error":"#N/A"}]
[null,null,341,null,null,null,null,null,null,null,null,null,null,null,null,null,null,null,{"$f":"VLOOKUP(R374,'DATOS ASP'!$I$22:$J$23, 2,FALSE)","v":{"$error":"#N/A"}},null,{"$f":"VLOOKUP(T374,'DATOS ASP'!$I$26:$J$27,2,FALSE)","v":{"$error":"#N/A"}},null,{"$f":"VLOOKUP(V374,'DATOS ASP'!$K$22:$L$24,2,FALSE)","v":{"$error":"#N/A"}},null,{"$f":"VLOOKUP(X374,'DATOS ASP'!$M$22:$N$24,2,FALSE)","v":{"$error":"#N/A"}},{"$error":"#N/A"}]
[null,null,342,null,null,null,null,null,null,null,null,null,null,null,null,null,null,null,{"$f":"VLOOKUP(R375,'DATOS ASP'!$I$22:$J$23, 2,FALSE)","v":{"$error":"#N/A"}},null,{"$f":"VLOOKUP(T375,'DATOS ASP'!$I$26:$J$27,2,FALSE)","v":{"$error":"#N/A"}},null,{"$f":"VLOOKUP(V375,'DATOS ASP'!$K$22:$L$24,2,FALSE)","v":{"$error":"#N/A"}},null,{"$f":"VLOOKUP(X375,'DATOS ASP'!$M$22:$N$24,2,FALSE)","v":{"$error":"#N/A"}},{"$error":"#N/A"}]
[null,null,343,null,null,null,null,null,null,null,null,null,null,null,null,null,null,null,{"$f":"VLOOKUP(R376,'DATOS ASP'!$I$22:$J$23, 2,FALSE)","v":{"$error":"#N/A"}},null,{"$f":"VLOOKUP(T376,'DATOS ASP'!$I$26:$J$27,2,FALSE)","v":{"$error":"#N/A"}},null,{"$f":"VLOOKUP(V376,'DATOS ASP'!$K$22:$L$24,2,FALSE)","v":{"$error":"#N/A"}},null,{"$f":"VLOOKUP(X376,'DATOS ASP'!$M$22:$N$24,2,FALSE)","v":{"$error":"#N/A"}},{"$error":"#N/A"}]
[null,null,344,null,null,null,null,null,null,null,null,null,null,null,null,null,null,null,{"$f":"VLOOKUP(R377,'DATOS ASP'!$I$22:$J$23, 2,FALSE)","v":{"$error":"#N/A"}},null,{"$f":"VLOOKUP(T377,'DATOS ASP'!$I$26:$J$27,2,FALSE)","v":{"$error":"#N/A"}},null,{"$f":"VLOOKUP(V377,'DATOS ASP'!$K$22:$L$24,2,FALSE)","v":{"$error":"#N/A"}},null,{"$f":"VLOOKUP(X377,'DATOS ASP'!$M$22:$N$24,2,FALSE)","v":{"$error":"#N/A"}},{"$error":"#N/A"}]
[null,null,345,null,null,null,null,null,null,null,null,null,null,null,null,null,null,null,{"$f":"VLOOKUP(R378,'DATOS ASP'!$I$22:$J$23, 2,FALSE)","v":{"$error":"#N/A"}},null,{"$f":"VLOOKUP(T378,'DATOS ASP'!$I$26:$J$27,2,FALSE)","v":{"$error":"#N/A"}},null,{"$f":"VLOOKUP(V378,'DATOS ASP'!$K$22:$L$24,2,FALSE)","v":{"$error":"#N/A"}},null,{"$f":"VLOOKUP(X378,'DATOS ASP'!$M$22:$N$24,2,FALSE)","v":{"$error":"#N/A"}},{"$error":"#N/A"}]
[null,null,346,null,null,null,null,null,null,null,null,null,null,null,null,null,null,null,{"$f":"VLOOKUP(R379,'DATOS ASP'!$I$22:$J$23, 2,FALSE)","v":{"$error":"#N/A"}},null,{"$f":"VLOOKUP(T379,'DATOS ASP'!$I$26:$J$27,2,FALSE)","v":{"$error":"#N/A"}},null,{"$f":"VLOOKUP(V379,'DATOS ASP'!$K$22:$L$24,2,FALSE)","v":{"$error":"#N/A"}},null,{"$f":"VLOOKUP(X379,'DATOS ASP'!$M$22:$N$24,2,FALSE)","v":{"$error":"#N/A"}},{"$error":"#N/A"}]
[null,null,347,null,null,null,null,null,null,null,null,null,null,null,null,null,null,null,{"$f":"VLOOKUP(R380,'DATOS ASP'!$I$22:$J$23, 2,FALSE)","v":{"$error":"#N/A"}},null,{"$f":"VLOOKUP(T380,'DATOS ASP'!$I$26:$J$27,2,FALSE)","v":{"$error":"#N/A"}},null,{"$f":"VLOOKUP(V380,'DATOS ASP'!$K$22:$L$24,2,FALSE)","v":{"$error":"#N/A"}},null,{"$f":"VLOOKUP(X380,'DATOS ASP'!$M$22:$N$24,2,FALSE)","v":{"$error":"#N/A"}},{"$error":"#N/A"}]
[null,null,348,null,null,null,null,null,null,null,null,null,null,null,null,null,null,null,{"$f":"VLOOKUP(R381,'DATOS ASP'!$I$22:$J$23, 2,FALSE)","v":{"$error":"#N/A"}},null,{"$f":"VLOOKUP(T381,'DATOS ASP'!$I$26:$J$27,2,FALSE)","v":{"$error":"#N/A"}},null,{"$f":"VLOOKUP(V381,'DATOS ASP'!$K$22:$L$24,2,FALSE)","v":{"$error":"#N/A"}},null,{"$f":"VLOOKUP(X381,'DATOS ASP'!$M$22:$N$24,2,FALSE)","v":{"$error":"#N/A"}},{"$error":"#N/A"}]
[null,null,349,null,null,null,null,null,null,null,null,null,null,null,null,null,null,null,{"$f":"VLOOKUP(R382,'DATOS ASP'!$I$22:$J$23, 2,FALSE)","v":{"$error":"#N/A"}},null,{"$f":"VLOOKUP(T382,'DATOS ASP'!$I$26:$J$27,2,FALSE)","v":{"$error":"#N/A"}},null,{"$f":"VLOOKUP(V382,'DATOS ASP'!$K$22:$L$24,2,FALSE)","v":{"$error":"#N/A"}},null,{"$f":"VLOOKUP(X382,'DATOS ASP'!$M$22:$N$24,2,FALSE)","v":{"$error":"#N/A"}},{"$error":"#N/A"}]
[null,null,350,null,null,null,null,null,null,null,null,null,null,null,null,null,null,null,{"$f":"VLOOKUP(R383,'DATOS ASP'!$I$22:$J$23, 2,FALSE)","v":{"$error":"#N/A"}},null,{"$f":"VLOOKUP(T383,'DATOS ASP'!$I$26:$J$27,2,FALSE)","v":{"$error":"#N/A"}},null,{"$f":"VLOOKUP(V383,'DATOS ASP'!$K$22:$L$24,2,FALSE)","v":{"$error":"#N/A"}},null,{"$f":"VLOOKUP(X383,'DATOS ASP'!$M$22:$N$24,2,FALSE)","v":{"$error":"#N/A"}},{"$error":"#N/A"}]
[null,null,351,null,null,null,null,null,null,null,null,null,null,null,null,null,null,null,{"$f":"VLOOKUP(R384,'DATOS ASP'!$I$22:$J$23, 2,FALSE)","v":{"$error":"#N/A"}},null,{"$f":"VLOOKUP(T384,'DATOS ASP'!$I$26:$J$27,2,FALSE)","v":{"$error":"#N/A"}},null,{"$f":"VLOOKUP(V384,'DATOS ASP'!$K$22:$L$24,2,FALSE)","v":{"$error":"#N/A"}},null,{"$f":"VLOOKUP(X384,'DATOS ASP'!$M$22:$N$24,2,FALSE)","v":{"$error":"#N/A"}},{"$error":"#N/A"}]
[null,null,352,null,null,null,null,null,null,null,null,null,null,null,null,null,null,null,{"$f":"VLOOKUP(R385,'DATOS ASP'!$I$22:$J$23, 2,FALSE)","v":{"$error":"#N/A"}},null,{"$f":"VLOOKUP(T385,'DATOS ASP'!$I$26:$J$27,2,FALSE)","v":{"$error":"#N/A"}},null,{"$f":"VLOOKUP(V385,'DATOS ASP'!$K$22:$L$24,2,FALSE)","v":{"$error":"#N/A"}},null,{"$f":"VLOOKUP(X385,'DATOS ASP'!$M$22:$N$24,2,FALSE)","v":{"$error":"#N/A"}},{"$error":"#N/A"}]
[null,null,353,null,null,null,null,null,null,null,null,null,null,null,null,null,null,null,{"$f":"VLOOKUP(R386,'DATOS ASP'!$I$22:$J$23, 2,FALSE)","v":{"$error":"#N/A"}},null,{"$f":"VLOOKUP(T386,'DATOS ASP'!$I$26:$J$27,2,FALSE)","v":{"$error":"#N/A"}},null,{"$f":"VLOOKUP(V386,'DATOS ASP'!$K$22:$L$24,2,FALSE)","v":{"$error":"#N/A"}},null,{"$f":"VLOOKUP(X386,'DATOS ASP'!$M$22:$N$24,2,FALSE)","v":{"$error":"#N/A"}},{"$error":"#N/A"}]
[null,null,354,null,null,null,null,null,null,null,null,null,null,null,null,null,null,null,{"$f":"VLOOKUP(R387,'DATOS ASP'!$I$22:$J$23, 2,FALSE)","v":{"$error":"#N/A"}},null,{"$f":"VLOOKUP(T387,'DATOS ASP'!$I$26:$J$27,2,FALSE)","v":{"$error":"#N/A"}},null,{"$f":"VLOOKUP(V387,'DATOS ASP'!$K$22:$L$24,2,FALSE)","v":{"$error":"#N/A"}},null,{"$f":"VLOOKUP(X387,'DATOS ASP'!$M$22:$N$24,2,FALSE)","v":{"$error":"#N/A"}},{"$error":"#N/A"}]
[null,null,355,null,null,null,null,null,null,null,null,null,null,null,null,null,null,null,{"$f":"VLOOKUP(R388,'DATOS ASP'!$I$22:$J$23, 2,FALSE)","v":{"$error":"#N/A"}},null,{"$f":"VLOOKUP(T388,'DATOS ASP'!$I$26:$J$27,2,FALSE)","v":{"$error":"#N/A"}},null,{"$f":"VLOOKUP(V388,'DATOS ASP'!$K$22:$L$24,2,FALSE)","v":{"$error":"#N/A"}},null,{"$f":"VLOOKUP(X388,'DATOS ASP'!$M$22:$N$24,2,FALSE)","v":{"$error":"#N/A"}},{"$error":"#N/A"}]
[null,null,356,null,null,null,null,null,null,null,null,null,null,null,null,null,null,null,{"$f":"VLOOKUP(R389,'DATOS ASP'!$I$22:$J$23, 2,FALSE)","v":{"$error":"#N/A"}},null,{"$f":"VLOOKUP(T389,'DATOS ASP'!$I$26:$J$27,2,FALSE)","v":{"$error":"#N/A"}},null,{"$f":"VLOOKUP(V389,'DATOS ASP'!$K$22:$L$24,2,FALSE)","v":{"$error":"#N/A"}},null,{"$f":"VLOOKUP(X389,'DATOS ASP'!$M$22:$N$24,2,FALSE)","v":{"$error":"#N/A"}},{"$error":"#N/A"}]
[null,null,357,null,null,null,null,null,null,null,null,null,null,null,null,null,null,null,{"$f":"VLOOKUP(R390,'DATOS ASP'!$I$22:$J$23, 2,FALSE)","v":{"$error":"#N/A"}},null,{"$f":"VLOOKUP(T390,'DATOS ASP'!$I$26:$J$27,2,FALSE)","v":{"$error":"#N/A"}},null,{"$f":"VLOOKUP(V390,'DATOS ASP'!$K$22:$L$24,2,FALSE)","v":{"$error":"#N/A"}},null,{"$f":"VLOOKUP(X390,'DATOS ASP'!$M$22:$N$24,2,FALSE)","v":{"$error":"#N/A"}},{"$error":"#N/A"}]
[null,null,358,null,null,null,null,null,null,null,null,null,null,null,null,null,null,null,{"$f":"VLOOKUP(R391,'DATOS ASP'!$I$22:$J$23, 2,FALSE)","v":{"$error":"#N/A"}},null,{"$f":"VLOOKUP(T391,'DATOS ASP'!$I$26:$J$27,2,FALSE)","v":{"$error":"#N/A"}},null,{"$f":"VLOOKUP(V391,'DATOS ASP'!$K$22:$L$24,2,FALSE)","v":{"$error":"#N/A"}},null,{"$f":"VLOOKUP(X391,'DATOS ASP'!$M$22:$N$24,2,FALSE)","v":{"$error":"#N/A"}},{"$error":"#N/A"}]
[null,null,359,null,null,null,null,null,null,null,null,null,null,null,null,null,null,null,{"$f":"VLOOKUP(R392,'DATOS ASP'!$I$22:$J$23, 2,FALSE)","v":{"$error":"#N/A"}},null,{"$f":"VLOOKUP(T392,'DATOS ASP'!$I$26:$J$27,2,FALSE)","v":{"$error":"#N/A"}},null,{"$f":"VLOOKUP(V392,'DATOS ASP'!$K$22:$L$24,2,FALSE)","v":{"$error":"#N/A"}},null,{"$f":"VLOOKUP(X392,'DATOS ASP'!$M$22:$N$24,2,FALSE)","v":{"$error":"#N/A"}},{"$error":"#N/A"}]
[null,null,360,null,null,null,null,null,null,null,null,null,null,null,null,null,null,null,{"$f":"VLOOKUP(R393,'DATOS ASP'!$I$22:$J$23, 2,FALSE)","v":{"$error":"#N/A"}},null,{"$f":"VLOOKUP(T393,'DATOS ASP'!$I$26:$J$27,2,FALSE)","v":{"$error":"#N/A"}},null,{"$f":"VLOOKUP(V393,'DATOS ASP'!$K$22:$L$24,2,FALSE)","v":{"$error":"#N/A"}},null,{"$f":"VLOOKUP(X393,'DATOS ASP'!$M$22:$N$24,2,FALSE)","v":{"$error":"#N/A"}},{"$error":"#N/A"}]
[null,null,361,null,null,null,null,null,null,null,null,null,null,null,null,null,null,null,{"$f":"VLOOKUP(R394,'DATOS ASP'!$I$22:$J$23, 2,FALSE)","v":{"$error":"#N/A"}},null,{"$f":"VLOOKUP(T394,'DATOS ASP'!$I$26:$J$27,2,FALSE)","v":{"$error":"#N/A"}},null,{"$f":"VLOOKUP(V394,'DATOS ASP'!$K$22:$L$24,2,FALSE)","v":{"$error":"#N/A"}},null,{"$f":"VLOOKUP(X394,'DATOS ASP'!$M$22:$N$24,2,FALSE)","v":{"$error":"#N/A"}},{"$error":"#N/A"}]
[null,null,362,null,null,null,null,null,null,null,null,null,null,null,null,null,null,null,{"$f":"VLOOKUP(R395,'DATOS ASP'!$I$22:$J$23, 2,FALSE)","v":{"$error":"#N/A"}},null,{"$f":"VLOOKUP(T395,'DATOS ASP'!$I$26:$J$27,2,FALSE)","v":{"$error":"#N/A"}},null,{"$f":"VLOOKUP(V395,'DATOS ASP'!$K$22:$L$24,2,FALSE)","v":{"$error":"#N/A"}},null,{"$f":"VLOOKUP(X395,'DATOS ASP'!$M$22:$N$24,2,FALSE)","v":{"$error":"#N/A"}},{"$error":"#N/A"}]
[null,null,363,null,null,null,null,null,null,null,null,null,null,null,null,null,null,null,{"$f":"VLOOKUP(R396,'DATOS ASP'!$I$22:$J$23, 2,FALSE)","v":{"$error":"#N/A"}},null,{"$f":"VLOOKUP(T396,'DATOS ASP'!$I$26:$J$27,2,FALSE)","v":{"$error":"#N/A"}},null,{"$f":"VLOOKUP(V396,'DATOS ASP'!$K$22:$L$24,2,FALSE)","v":{"$error":"#N/A"}},null,{"$f":"VLOOKUP(X396,'DATOS ASP'!$M$22:$N$24,2,FALSE)","v":{"$error":"#N/A"}},{"$error":"#N/A"}]
[null,null,364,null,null,null,null,null,null,null,null,null,null,null,null,null,null,null,{"$f":"VLOOKUP(R397,'DATOS ASP'!$I$22:$J$23, 2,FALSE)","v":{"$error":"#N/A"}},null,{"$f":"VLOOKUP(T397,'DATOS ASP'!$I$26:$J$27,2,FALSE)","v":{"$error":"#N/A"}},null,{"$f":"VLOOKUP(V397,'DATOS ASP'!$K$22:$L$24,2,FALSE)","v":{"$error":"#N/A"}},null,{"$f":"VLOOKUP(X397,'DATOS ASP'!$M$22:$N$24,2,FALSE)","v":{"$error":"#N/A"}},{"$error":"#N/A"}]
[null,null,365,null,null,null,null,null,null,null,null,null,null,null,null,null,null,null,{"$f":"VLOOKUP(R398,'DATOS ASP'!$I$22:$J$23, 2,FALSE)","v":{"$error":"#N/A"}},null,{"$f":"VLOOKUP(T398,'DATOS ASP'!$I$26:$J$27,2,FALSE)","v":{"$error":"#N/A"}},null,{"$f":"VLOOKUP(V398,'DATOS ASP'!$K$22:$L$24,2,FALSE)","v":{"$error":"#N/A"}},null,{"$f":"VLOOKUP(X398,'DATOS ASP'!$M$22:$N$24,2,FALSE)","v":{"$error":"#N/A"}},{"$error":"#N/A"}]
[null,null,366,null,null,null,null,null,null,null,null,null,null,null,null,null,null,null,{"$f":"VLOOKUP(R399,'DATOS ASP'!$I$22:$J$23, 2,FALSE)","v":{"$error":"#N/A"}},null,{"$f":"VLOOKUP(T399,'DATOS ASP'!$I$26:$J$27,2,FALSE)","v":{"$error":"#N/A"}},null,{"$f":"VLOOKUP(V399,'DATOS ASP'!$K$22:$L$24,2,FALSE)","v":{"$error":"#N/A"}},null,{"$f":"VLOOKUP(X399,'DATOS ASP'!$M$22:$N$24,2,FALSE)","v":{"$error":"#N/A"}},{"$error":"#N/A"}]
[null,null,367,null,null,null,null,null,null,null,null,null,null,null,null,null,null,null,{"$f":"VLOOKUP(R400,'DATOS ASP'!$I$22:$J$23, 2,FALSE)","v":{"$error":"#N/A"}},null,{"$f":"VLOOKUP(T400,'DATOS ASP'!$I$26:$J$27,2,FALSE)","v":{"$error":"#N/A"}},null,{"$f":"VLOOKUP(V400,'DATOS ASP'!$K$22:$L$24,2,FALSE)","v":{"$error":"#N/A"}},null,{"$f":"VLOOKUP(X400,'DATOS ASP'!$M$22:$N$24,2,FALSE)","v":{"$error":"#N/A"}},{"$error":"#N/A"}]
[null,null,368,null,null,null,null,null,null,null,null,null,null,null,null,null,null,null,{"$f":"VLOOKUP(R401,'DATOS ASP'!$I$22:$J$23, 2,FALSE)","v":{"$error":"#N/A"}},null,{"$f":"VLOOKUP(T401,'DATOS ASP'!$I$26:$J$27,2,FALSE)","v":{"$error":"#N/A"}},null,{"$f":"VLOOKUP(V401,'DATOS ASP'!$K$22:$L$24,2,FALSE)","v":{"$error":"#N/A"}},null,{"$f":"VLOOKUP(X401,'DATOS ASP'!$M$22:$N$24,2,FALSE)","v":{"$error":"#N/A"}},{"$error":"#N/A"}]
[null,null,369,null,null,null,null,null,null,null,null,null,null,null,null,null,null,null,{"$f":"VLOOKUP(R402,'DATOS ASP'!$I$22:$J$23, 2,FALSE)","v":{"$error":"#N/A"}},null,{"$f":"VLOOKUP(T402,'DATOS ASP'!$I$26:$J$27,2,FALSE)","v":{"$error":"#N/A"}},null,{"$f":"VLOOKUP(V402,'DATOS ASP'!$K$22:$L$24,2,FALSE)","v":{"$error":"#N/A"}},null,{"$f":"VLOOKUP(X402,'DATOS ASP'!$M$22:$N$24,2,FALSE)","v":{"$error":"#N/A"}},{"$error":"#N/A"}]
[null,null,370,null,null,null,null,null,null,null,null,null,null,null,null,null,null,null,{"$f":"VLOOKUP(R403,'DATOS ASP'!$I$22:$J$23, 2,FALSE)","v":{"$error":"#N/A"}},null,{"$f":"VLOOKUP(T403,'DATOS ASP'!$I$26:$J$27,2,FALSE)","v":{"$error":"#N/A"}},null,{"$f":"VLOOKUP(V403,'DATOS ASP'!$K$22:$L$24,2,FALSE)","v":{"$error":"#N/A"}},null,{"$f":"VLOOKUP(X403,'DATOS ASP'!$M$22:$N$24,2,FALSE)","v":{"$error":"#N/A"}},{"$error":"#N/A"}]
[null,null,371,null,null,null,null,null,null,null,null,null,null,null,null,null,null,null,{"$f":"VLOOKUP(R404,'DATOS ASP'!$I$22:$J$23, 2,FALSE)","v":{"$error":"#N/A"}},null,{"$f":"VLOOKUP(T404,'DATOS ASP'!$I$26:$J$27,2,FALSE)","v":{"$error":"#N/A"}},null,{"$f":"VLOOKUP(V404,'DATOS ASP'!$K$22:$L$24,2,FALSE)","v":{"$error":"#N/A"}},null,{"$f":"VLOOKUP(X404,'DATOS ASP'!$M$22:$N$24,2,FALSE)","v":{"$error":"#N/A"}},{"$error":"#N/A"}]
[null,null,372,null,null,null,null,null,null,null,null,null,null,null,null,null,null,null,{"$f":"VLOOKUP(R405,'DATOS ASP'!$I$22:$J$23, 2,FALSE)","v":{"$error":"#N/A"}},null,{"$f":"VLOOKUP(T405,'DATOS ASP'!$I$26:$J$27,2,FALSE)","v":{"$error":"#N/A"}},null,{"$f":"VLOOKUP(V405,'DATOS ASP'!$K$22:$L$24,2,FALSE)","v":{"$error":"#N/A"}},null,{"$f":"VLOOKUP(X405,'DATOS ASP'!$M$22:$N$24,2,FALSE)","v":{"$error":"#N/A"}},{"$error":"#N/A"}]
[null,null,373,null,null,null,null,null,null,null,null,null,null,null,null,null,null,null,{"$f":"VLOOKUP(R406,'DATOS ASP'!$I$22:$J$23, 2,FALSE)","v":{"$error":"#N/A"}},null,{"$f":"VLOOKUP(T406,'DATOS ASP'!$I$26:$J$27,2,FALSE)","v":{"$error":"#N/A"}},null,{"$f":"VLOOKUP(V406,'DATOS ASP'!$K$22:$L$24,2,FALSE)","v":{"$error":"#N/A"}},null,{"$f":"VLOOKUP(X406,'DATOS ASP'!$M$22:$N$24,2,FALSE)","v":{"$error":"#N/A"}},{"$error":"#N/A"}]
[null,null,374,null,null,null,null,null,null,null,null,null,null,null,null,null,null,null,{"$f":"VLOOKUP(R407,'DATOS ASP'!$I$22:$J$23, 2,FALSE)","v":{"$error":"#N/A"}},null,{"$f":"VLOOKUP(T407,'DATOS ASP'!$I$26:$J$27,2,FALSE)","v":{"$error":"#N/A"}},null,{"$f":"VLOOKUP(V407,'DATOS ASP'!$K$22:$L$24,2,FALSE)","v":{"$error":"#N/A"}},null,{"$f":"VLOOKUP(X407,'DATOS ASP'!$M$22:$N$24,2,FALSE)","v":{"$error":"#N/A"}},{"$error":"#N/A"}]
[null,null,375,null,null,null,null,null,null,null,null,null,null,null,null,null,null,null,{"$f":"VLOOKUP(R408,'DATOS ASP'!$I$22:$J$23, 2,FALSE)","v":{"$error":"#N/A"}},null,{"$f":"VLOOKUP(T408,'DATOS ASP'!$I$26:$J$27,2,FALSE)","v":{"$error":"#N/A"}},null,{"$f":"VLOOKUP(V408,'DATOS ASP'!$K$22:$L$24,2,FALSE)","v":{"$error":"#N/A"}},null,{"$f":"VLOOKUP(X408,'DATOS ASP'!$M$22:$N$24,2,FALSE)","v":{"$error":"#N/A"}},{"$error":"#N/A"}]
[null,null,376,null,null,null,null,null,null,null,null,null,null,null,null,null,null,null,{"$f":"VLOOKUP(R409,'DATOS ASP'!$I$22:$J$23, 2,FALSE)","v":{"$error":"#N/A"}},null,{"$f":"VLOOKUP(T409,'DATOS ASP'!$I$26:$J$27,2,FALSE)","v":{"$error":"#N/A"}},null,{"$f":"VLOOKUP(V409,'DATOS ASP'!$K$22:$L$24,2,FALSE)","v":{"$error":"#N/A"}},null,{"$f":"VLOOKUP(X409,'DATOS ASP'!$M$22:$N$24,2,FALSE)","v":{"$error":"#N/A"}},{"$error":"#N/A"}]
[null,null,377,null,null,null,null,null,null,null,null,null,null,null,null,null,null,null,{"$f":"VLOOKUP(R410,'DATOS ASP'!$I$22:$J$23, 2,FALSE)","v":{"$error":"#N/A"}},null,{"$f":"VLOOKUP(T410,'DATOS ASP'!$I$26:$J$27,2,FALSE)","v":{"$error":"#N/A"}},null,{"$f":"VLOOKUP(V410,'DATOS ASP'!$K$22:$L$24,2,FALSE)","v":{"$error":"#N/A"}},null,{"$f":"VLOOKUP(X410,'DATOS ASP'!$M$22:$N$24,2,FALSE)","v":{"$error":"#N/A"}},{"$error":"#N/A"}]
[null,null,378,null,null,null,null,null,null,null,null,null,null,null,null,null,null,null,{"$f":"VLOOKUP(R411,'DATOS ASP'!$I$22:$J$23, 2,FALSE)","v":{"$error":"#N/A"}},null,{"$f":"VLOOKUP(T411,'DATOS ASP'!$I$26:$J$27,2,FALSE)","v":{"$error":"#N/A"}},null,{"$f":"VLOOKUP(V411,'DATOS ASP'!$K$22:$L$24,2,FALSE)","v":{"$error":"#N/A"}},null,{"$f":"VLOOKUP(X411,'DATOS ASP'!$M$22:$N$24,2,FALSE)","v":{"$error":"#N/A"}},{"$error":"#N/A"}]
[null,null,379,null,null,null,null,null,null,null,null,null,null,null,null,null,null,null,{"$f":"VLOOKUP(R412,'DATOS ASP'!$I$22:$J$23, 2,FALSE)","v":{"$error":"#N/A"}},null,{"$f":"VLOOKUP(T412,'DATOS ASP'!$I$26:$J$27,2,FALSE)","v":{"$error":"#N/A"}},null,{"$f":"VLOOKUP(V412,'DATOS ASP'!$K$22:$L$24,2,FALSE)","v":{"$error":"#N/A"}},null,{"$f":"VLOOKUP(X412,'DATOS ASP'!$M$22:$N$24,2,FALSE)","v":{"$error":"#N/A"}},{"$error":"#N/A"}]
[null,null,380,null,null,null,null,null,null,null,null,null,null,null,null,null,null,null,{"$f":"VLOOKUP(R413,'DATOS ASP'!$I$22:$J$23, 2,FALSE)","v":{"$error":"#N/A"}},null,{"$f":"VLOOKUP(T413,'DATOS ASP'!$I$26:$J$27,2,FALSE)","v":{"$error":"#N/A"}},null,{"$f":"VLOOKUP(V413,'DATOS ASP'!$K$22:$L$24,2,FALSE)","v":{"$error":"#N/A"}},null,{"$f":"VLOOKUP(X413,'DATOS ASP'!$M$22:$N$24,2,FALSE)","v":{"$error":"#N/A"}},{"$error":"#N/A"}]
[null,null,381,null,null,null,null,null,null,null,null,null,null,null,null,null,null,null,{"$f":"VLOOKUP(R414,'DATOS ASP'!$I$22:$J$23, 2,FALSE)","v":{"$error":"#N/A"}},null,{"$f":"VLOOKUP(T414,'DATOS ASP'!$I$26:$J$27,2,FALSE)","v":{"$error":"#N/A"}},null,{"$f":"VLOOKUP(V414,'DATOS ASP'!$K$22:$L$24,2,FALSE)","v":{"$error":"#N/A"}},null,{"$f":"VLOOKUP(X414,'DATOS ASP'!$M$22:$N$24,2,FALSE)","v":{"$error":"#N/A"}},{"$error":"#N/A"}]
[null,null,382,null,null,null,null,null,null,null,null,null,null,null,null,null,null,null,{"$f":"VLOOKUP(R415,'DATOS ASP'!$I$22:$J$23, 2,FALSE)","v":{"$error":"#N/A"}},null,{"$f":"VLOOKUP(T415,'DATOS ASP'!$I$26:$J$27,2,FALSE)","v":{"$error":"#N/A"}},null,{"$f":"VLOOKUP(V415,'DATOS ASP'!$K$22:$L$24,2,FALSE)","v":{"$error":"#N/A"}},null,{"$f":"VLOOKUP(X415,'DATOS ASP'!$M$22:$N$24,2,FALSE)","v":{"$error":"#N/A"}},{"$error":"#N/A"}]
[null,null,383,null,null,null,null,null,null,null,null,null,null,null,null,null,null,null,{"$f":"VLOOKUP(R416,'DATOS ASP'!$I$22:$J$23, 2,FALSE)","v":{"$error":"#N/A"}},null,{"$f":"VLOOKUP(T416,'DATOS ASP'!$I$26:$J$27,2,FALSE)","v":{"$error":"#N/A"}},null,{"$f":"VLOOKUP(V416,'DATOS ASP'!$K$22:$L$24,2,FALSE)","v":{"$error":"#N/A"}},null,{"$f":"VLOOKUP(X416,'DATOS ASP'!$M$22:$N$24,2,FALSE)","v":{"$error":"#N/A"}},{"$error":"#N/A"}]
[null,null,384,null,null,null,null,null,null,null,null,null,null,null,null,null,null,null,{"$f":"VLOOKUP(R417,'DATOS ASP'!$I$22:$J$23, 2,FALSE)","v":{"$error":"#N/A"}},null,{"$f":"VLOOKUP(T417,'DATOS ASP'!$I$26:$J$27,2,FALSE)","v":{"$error":"#N/A"}},null,{"$f":"VLOOKUP(V417,'DATOS ASP'!$K$22:$L$24,2,FALSE)","v":{"$error":"#N/A"}},null,{"$f":"VLOOKUP(X417,'DATOS ASP'!$M$22:$N$24,2,FALSE)","v":{"$error":"#N/A"}},{"$error":"#N/A"}]
[null,null,385,null,null,null,null,null,null,null,null,null,null,null,null,null,null,null,{"$f":"VLOOKUP(R418,'DATOS ASP'!$I$22:$J$23, 2,FALSE)","v":{"$error":"#N/A"}},null,{"$f":"VLOOKUP(T418,'DATOS ASP'!$I$26:$J$27,2,FALSE)","v":{"$error":"#N/A"}},null,{"$f":"VLOOKUP(V418,'DATOS ASP'!$K$22:$L$24,2,FALSE)","v":{"$error":"#N/A"}},null,{"$f":"VLOOKUP(X418,'DATOS ASP'!$M$22:$N$24,2,FALSE)","v":{"$error":"#N/A"}},{"$error":"#N/A"}]
[null,null,386,null,null,null,null,null,null,null,null,null,null,null,null,null,null,null,{"$f":"VLOOKUP(R419,'DATOS ASP'!$I$22:$J$23, 2,FALSE)","v":{"$error":"#N/A"}},null,{"$f":"VLOOKUP(T419,'DATOS ASP'!$I$26:$J$27,2,FALSE)","v":{"$error":"#N/A"}},null,{"$f":"VLOOKUP(V419,'DATOS ASP'!$K$22:$L$24,2,FALSE)","v":{"$error":"#N/A"}},null,{"$f":"VLOOKUP(X419,'DATOS ASP'!$M$22:$N$24,2,FALSE)","v":{"$error":"#N/A"}},{"$error":"#N/A"}]
[null,null,387,null,null,null,null,null,null,null,null,null,null,null,null,null,null,null,{"$f":"VLOOKUP(R420,'DATOS ASP'!$I$22:$J$23, 2,FALSE)","v":{"$error":"#N/A"}},null,{"$f":"VLOOKUP(T420,'DATOS ASP'!$I$26:$J$27,2,FALSE)","v":{"$error":"#N/A"}},null,{"$f":"VLOOKUP(V420,'DATOS ASP'!$K$22:$L$24,2,FALSE)","v":{"$error":"#N/A"}},null,{"$f":"VLOOKUP(X420,'DATOS ASP'!$M$22:$N$24,2,FALSE)","v":{"$error":"#N/A"}},{"$error":"#N/A"}]
[null,null,388,null,null,null,null,null,null,null,null,null,null,null,null,null,null,null,{"$f":"VLOOKUP(R421,'DATOS ASP'!$I$22:$J$23, 2,FALSE)","v":{"$error":"#N/A"}},null,{"$f":"VLOOKUP(T421,'DATOS ASP'!$I$26:$J$27,2,FALSE)","v":{"$error":"#N/A"}},null,{"$f":"VLOOKUP(V421,'DATOS ASP'!$K$22:$L$24,2,FALSE)","v":{"$error":"#N/A"}},null,{"$f":"VLOOKUP(X421,'DATOS ASP'!$M$22:$N$24,2,FALSE)","v":{"$error":"#N/A"}},{"$error":"#N/A"}]
[null,null,389,null,null,null,null,null,null,null,null,null,null,null,null,null,null,null,{"$f":"VLOOKUP(R422,'DATOS ASP'!$I$22:$J$23, 2,FALSE)","v":{"$error":"#N/A"}},null,{"$f":"VLOOKUP(T422,'DATOS ASP'!$I$26:$J$27,2,FALSE)","v":{"$error":"#N/A"}},null,{"$f":"VLOOKUP(V422,'DATOS ASP'!$K$22:$L$24,2,FALSE)","v":{"$error":"#N/A"}},null,{"$f":"VLOOKUP(X422,'DATOS ASP'!$M$22:$N$24,2,FALSE)","v":{"$error":"#N/A"}},{"$error":"#N/A"}]
[null,null,390,null,null,null,null,null,null,null,null,null,null,null,null,null,null,null,{"$f":"VLOOKUP(R423,'DATOS ASP'!$I$22:$J$23, 2,FALSE)","v":{"$error":"#N/A"}},null,{"$f":"VLOOKUP(T423,'DATOS ASP'!$I$26:$J$27,2,FALSE)","v":{"$error":"#N/A"}},null,{"$f":"VLOOKUP(V423,'DATOS ASP'!$K$22:$L$24,2,FALSE)","v":{"$error":"#N/A"}},null,{"$f":"VLOOKUP(X423,'DATOS ASP'!$M$22:$N$24,2,FALSE)","v":{"$error":"#N/A"}},{"$f":"S423*((3*U423)+W423+Y423)","v":{"$error":"#N/A"}}]
[null,null,391,null,null,null,null,null,null,null,null,null,null,null,null,null,null,null,{"$f":"VLOOKUP(R424,'DATOS ASP'!$I$22:$J$23, 2,FALSE)","v":{"$error":"#N/A"}},null,{"$f":"VLOOKUP(T424,'DATOS ASP'!$I$26:$J$27,2,FALSE)","v":{"$error":"#N/A"}},null,{"$f":"VLOOKUP(V424,'DATOS ASP'!$K$22:$L$24,2,FALSE)","v":{"$error":"#N/A"}},null,{"$f":"VLOOKUP(X424,'DATOS ASP'!$M$22:$N$24,2,FALSE)","v":{"$error":"#N/A"}},{"$error":"#N/A"}]
[null,null,392,null,null,null,null,null,null,null,null,null,null,null,null,null,null,null,{"$f":"VLOOKUP(R425,'DATOS ASP'!$I$22:$J$23, 2,FALSE)","v":{"$error":"#N/A"}},null,{"$f":"VLOOKUP(T425,'DATOS ASP'!$I$26:$J$27,2,FALSE)","v":{"$error":"#N/A"}},null,{"$f":"VLOOKUP(V425,'DATOS ASP'!$K$22:$L$24,2,FALSE)","v":{"$error":"#N/A"}},null,{"$f":"VLOOKUP(X425,'DATOS ASP'!$M$22:$N$24,2,FALSE)","v":{"$error":"#N/A"}},{"$error":"#N/A"}]
[null,null,393,null,null,null,null,null,null,null,null,null,null,null,null,null,null,null,{"$f":"VLOOKUP(R426,'DATOS ASP'!$I$22:$J$23, 2,FALSE)","v":{"$error":"#N/A"}},null,{"$f":"VLOOKUP(T426,'DATOS ASP'!$I$26:$J$27,2,FALSE)","v":{"$error":"#N/A"}},null,{"$f":"VLOOKUP(V426,'DATOS ASP'!$K$22:$L$24,2,FALSE)","v":{"$error":"#N/A"}},null,{"$f":"VLOOKUP(X426,'DATOS ASP'!$M$22:$N$24,2,FALSE)","v":{"$error":"#N/A"}},{"$error":"#N/A"}]
[null,null,394,null,null,null,null,null,null,null,null,null,null,null,null,null,null,null,{"$f":"VLOOKUP(R427,'DATOS ASP'!$I$22:$J$23, 2,FALSE)","v":{"$error":"#N/A"}},null,{"$f":"VLOOKUP(T427,'DATOS ASP'!$I$26:$J$27,2,FALSE)","v":{"$error":"#N/A"}},null,{"$f":"VLOOKUP(V427,'DATOS ASP'!$K$22:$L$24,2,FALSE)","v":{"$error":"#N/A"}},null,{"$f":"VLOOKUP(X427,'DATOS ASP'!$M$22:$N$24,2,FALSE)","v":{"$error":"#N/A"}},{"$error":"#N/A"}]
[null,null,395,null,null,null,null,null,null,null,null,null,null,null,null,null,null,null,{"$f":"VLOOKUP(R428,'DATOS ASP'!$I$22:$J$23, 2,FALSE)","v":{"$error":"#N/A"}},null,{"$f":"VLOOKUP(T428,'DATOS ASP'!$I$26:$J$27,2,FALSE)","v":{"$error":"#N/A"}},null,{"$f":"VLOOKUP(V428,'DATOS ASP'!$K$22:$L$24,2,FALSE)","v":{"$error":"#N/A"}},null,{"$f":"VLOOKUP(X428,'DATOS ASP'!$M$22:$N$24,2,FALSE)","v":{"$error":"#N/A"}},{"$error":"#N/A"}]
[null,null,396,null,null,null,null,null,null,null,null,null,null,null,null,null,null,null,{"$f":"VLOOKUP(R429,'DATOS ASP'!$I$22:$J$23, 2,FALSE)","v":{"$error":"#N/A"}},null,{"$f":"VLOOKUP(T429,'DATOS ASP'!$I$26:$J$27,2,FALSE)","v":{"$error":"#N/A"}},null,{"$f":"VLOOKUP(V429,'DATOS ASP'!$K$22:$L$24,2,FALSE)","v":{"$error":"#N/A"}},null,{"$f":"VLOOKUP(X429,'DATOS ASP'!$M$22:$N$24,2,FALSE)","v":{"$error":"#N/A"}},{"$error":"#N/A"}]
[null,null,397,null,null,null,null,null,null,null,null,null,null,null,null,null,null,null,{"$f":"VLOOKUP(R430,'DATOS ASP'!$I$22:$J$23, 2,FALSE)","v":{"$error":"#N/A"}},null,{"$f":"VLOOKUP(T430,'DATOS ASP'!$I$26:$J$27,2,FALSE)","v":{"$error":"#N/A"}},null,{"$f":"VLOOKUP(V430,'DATOS ASP'!$K$22:$L$24,2,FALSE)","v":{"$error":"#N/A"}},null,{"$f":"VLOOKUP(X430,'DATOS ASP'!$M$22:$N$24,2,FALSE)","v":{"$error":"#N/A"}},{"$error":"#N/A"}]
[null,null,398,null,null,null,null,null,null,null,null,null,null,null,null,null,null,null,{"$f":"VLOOKUP(R431,'DATOS ASP'!$I$22:$J$23, 2,FALSE)","v":{"$error":"#N/A"}},null,{"$f":"VLOOKUP(T431,'DATOS ASP'!$I$26:$J$27,2,FALSE)","v":{"$error":"#N/A"}},null,{"$f":"VLOOKUP(V431,'DATOS ASP'!$K$22:$L$24,2,FALSE)","v":{"$error":"#N/A"}},null,{"$f":"VLOOKUP(X431,'DATOS ASP'!$M$22:$N$24,2,FALSE)","v":{"$error":"#N/A"}},{"$error":"#N/A"}]
[null,null,399,null,null,null,null,null,null,null,null,null,null,null,null,null,null,null,{"$f":"VLOOKUP(R432,'DATOS ASP'!$I$22:$J$23, 2,FALSE)","v":{"$error":"#N/A"}},null,{"$f":"VLOOKUP(T432,'DATOS ASP'!$I$26:$J$27,2,FALSE)","v":{"$error":"#N/A"}},null,{"$f":"VLOOKUP(V432,'DATOS ASP'!$K$22:$L$24,2,FALSE)","v":{"$error":"#N/A"}},null,{"$f":"VLOOKUP(X432,'DATOS ASP'!$M$22:$N$24,2,FALSE)","v":{"$error":"#N/A"}},{"$error":"#N/A"}]
[null,null,400,null,null,null,null,null,null,null,null,null,null,null,null,null,null,null,{"$f":"VLOOKUP(R433,'DATOS ASP'!$I$22:$J$23, 2,FALSE)","v":{"$error":"#N/A"}},null,{"$f":"VLOOKUP(T433,'DATOS ASP'!$I$26:$J$27,2,FALSE)","v":{"$error":"#N/A"}},null,{"$f":"VLOOKUP(V433,'DATOS ASP'!$K$22:$L$24,2,FALSE)","v":{"$error":"#N/A"}},null,{"$f":"VLOOKUP(X433,'DATOS ASP'!$M$22:$N$24,2,FALSE)","v":{"$error":"#N/A"}},{"$error":"#N/A"}]
[null,null,401,null,null,null,null,null,null,null,null,null,null,null,null,null,null,null,{"$f":"VLOOKUP(R434,'DATOS ASP'!$I$22:$J$23, 2,FALSE)","v":{"$error":"#N/A"}},null,{"$f":"VLOOKUP(T434,'DATOS ASP'!$I$26:$J$27,2,FALSE)","v":{"$error":"#N/A"}},null,{"$f":"VLOOKUP(V434,'DATOS ASP'!$K$22:$L$24,2,FALSE)","v":{"$error":"#N/A"}},null,{"$f":"VLOOKUP(X434,'DATOS ASP'!$M$22:$N$24,2,FALSE)","v":{"$error":"#N/A"}},{"$error":"#N/A"}]
[null,null,402,null,null,null,null,null,null,null,null,null,null,null,null,null,null,null,{"$f":"VLOOKUP(R435,'DATOS ASP'!$I$22:$J$23, 2,FALSE)","v":{"$error":"#N/A"}},null,{"$f":"VLOOKUP(T435,'DATOS ASP'!$I$26:$J$27,2,FALSE)","v":{"$error":"#N/A"}},null,{"$f":"VLOOKUP(V435,'DATOS ASP'!$K$22:$L$24,2,FALSE)","v":{"$error":"#N/A"}},null,{"$f":"VLOOKUP(X435,'DATOS ASP'!$M$22:$N$24,2,FALSE)","v":{"$error":"#N/A"}},{"$error":"#N/A"}]
[null,null,403,null,null,null,null,null,null,null,null,null,null,null,null,null,null,null,{"$f":"VLOOKUP(R436,'DATOS ASP'!$I$22:$J$23, 2,FALSE)","v":{"$error":"#N/A"}},null,{"$f":"VLOOKUP(T436,'DATOS ASP'!$I$26:$J$27,2,FALSE)","v":{"$error":"#N/A"}},null,{"$f":"VLOOKUP(V436,'DATOS ASP'!$K$22:$L$24,2,FALSE)","v":{"$error":"#N/A"}},null,{"$f":"VLOOKUP(X436,'DATOS ASP'!$M$22:$N$24,2,FALSE)","v":{"$error":"#N/A"}},{"$error":"#N/A"}]
[null,null,404,null,null,null,null,null,null,null,null,null,null,null,null,null,null,null,{"$f":"VLOOKUP(R437,'DATOS ASP'!$I$22:$J$23, 2,FALSE)","v":{"$error":"#N/A"}},null,{"$f":"VLOOKUP(T437,'DATOS ASP'!$I$26:$J$27,2,FALSE)","v":{"$error":"#N/A"}},null,{"$f":"VLOOKUP(V437,'DATOS ASP'!$K$22:$L$24,2,FALSE)","v":{"$error":"#N/A"}},null,{"$f":"VLOOKUP(X437,'DATOS ASP'!$M$22:$N$24,2,FALSE)","v":{"$error":"#N/A"}},{"$error":"#N/A"}]
[null,null,405,null,null,null,null,null,null,null,null,null,null,null,null,null,null,null,{"$f":"VLOOKUP(R438,'DATOS ASP'!$I$22:$J$23, 2,FALSE)","v":{"$error":"#N/A"}},null,{"$f":"VLOOKUP(T438,'DATOS ASP'!$I$26:$J$27,2,FALSE)","v":{"$error":"#N/A"}},null,{"$f":"VLOOKUP(V438,'DATOS ASP'!$K$22:$L$24,2,FALSE)","v":{"$error":"#N/A"}},null,{"$f":"VLOOKUP(X438,'DATOS ASP'!$M$22:$N$24,2,FALSE)","v":{"$error":"#N/A"}},{"$error":"#N/A"}]
[null,null,406,null,null,null,null,null,null,null,null,null,null,null,null,null,null,null,{"$f":"VLOOKUP(R439,'DATOS ASP'!$I$22:$J$23, 2,FALSE)","v":{"$error":"#N/A"}},null,{"$f":"VLOOKUP(T439,'DATOS ASP'!$I$26:$J$27,2,FALSE)","v":{"$error":"#N/A"}},null,{"$f":"VLOOKUP(V439,'DATOS ASP'!$K$22:$L$24,2,FALSE)","v":{"$error":"#N/A"}},null,{"$f":"VLOOKUP(X439,'DATOS ASP'!$M$22:$N$24,2,FALSE)","v":{"$error":"#N/A"}},{"$error":"#N/A"}]
[null,null,407,null,null,null,null,null,null,null,null,null,null,null,null,null,null,null,{"$f":"VLOOKUP(R440,'DATOS ASP'!$I$22:$J$23, 2,FALSE)","v":{"$error":"#N/A"}},null,{"$f":"VLOOKUP(T440,'DATOS ASP'!$I$26:$J$27,2,FALSE)","v":{"$error":"#N/A"}},null,{"$f":"VLOOKUP(V440,'DATOS ASP'!$K$22:$L$24,2,FALSE)","v":{"$error":"#N/A"}},null,{"$f":"VLOOKUP(X440,'DATOS ASP'!$M$22:$N$24,2,FALSE)","v":{"$error":"#N/A"}},{"$error":"#N/A"}]
[null,null,408,null,null,null,null,null,null,null,null,null,null,null,null,null,null,null,{"$f":"VLOOKUP(R441,'DATOS ASP'!$I$22:$J$23, 2,FALSE)","v":{"$error":"#N/A"}},null,{"$f":"VLOOKUP(T441,'DATOS ASP'!$I$26:$J$27,2,FALSE)","v":{"$error":"#N/A"}},null,{"$f":"VLOOKUP(V441,'DATOS ASP'!$K$22:$L$24,2,FALSE)","v":{"$error":"#N/A"}},null,{"$f":"VLOOKUP(X441,'DATOS ASP'!$M$22:$N$24,2,FALSE)","v":{"$error":"#N/A"}},{"$error":"#N/A"}]
[null,null,409,null,null,null,null,null,null,null,null,null,null,null,null,null,null,null,{"$f":"VLOOKUP(R442,'DATOS ASP'!$I$22:$J$23, 2,FALSE)","v":{"$error":"#N/A"}},null,{"$f":"VLOOKUP(T442,'DATOS ASP'!$I$26:$J$27,2,FALSE)","v":{"$error":"#N/A"}},null,{"$f":"VLOOKUP(V442,'DATOS ASP'!$K$22:$L$24,2,FALSE)","v":{"$error":"#N/A"}},null,{"$f":"VLOOKUP(X442,'DATOS ASP'!$M$22:$N$24,2,FALSE)","v":{"$error":"#N/A"}},{"$error":"#N/A"}]
[null,null,410,null,null,null,null,null,null,null,null,null,null,null,null,null,null,null,{"$f":"VLOOKUP(R443,'DATOS ASP'!$I$22:$J$23, 2,FALSE)","v":{"$error":"#N/A"}},null,{"$f":"VLOOKUP(T443,'DATOS ASP'!$I$26:$J$27,2,FALSE)","v":{"$error":"#N/A"}},null,{"$f":"VLOOKUP(V443,'DATOS ASP'!$K$22:$L$24,2,FALSE)","v":{"$error":"#N/A"}},null,{"$f":"VLOOKUP(X443,'DATOS ASP'!$M$22:$N$24,2,FALSE)","v":{"$error":"#N/A"}},{"$error":"#N/A"}]
[null,null,411,null,null,null,null,null,null,null,null,null,null,null,null,null,null,null,{"$f":"VLOOKUP(R444,'DATOS ASP'!$I$22:$J$23, 2,FALSE)","v":{"$error":"#N/A"}},null,{"$f":"VLOOKUP(T444,'DATOS ASP'!$I$26:$J$27,2,FALSE)","v":{"$error":"#N/A"}},null,{"$f":"VLOOKUP(V444,'DATOS ASP'!$K$22:$L$24,2,FALSE)","v":{"$error":"#N/A"}},null,{"$f":"VLOOKUP(X444,'DATOS ASP'!$M$22:$N$24,2,FALSE)","v":{"$error":"#N/A"}},{"$error":"#N/A"}]
[null,null,412,null,null,null,null,null,null,null,null,null,null,null,null,null,null,null,{"$f":"VLOOKUP(R445,'DATOS ASP'!$I$22:$J$23, 2,FALSE)","v":{"$error":"#N/A"}},null,{"$f":"VLOOKUP(T445,'DATOS ASP'!$I$26:$J$27,2,FALSE)","v":{"$error":"#N/A"}},null,{"$f":"VLOOKUP(V445,'DATOS ASP'!$K$22:$L$24,2,FALSE)","v":{"$error":"#N/A"}},null,{"$f":"VLOOKUP(X445,'DATOS ASP'!$M$22:$N$24,2,FALSE)","v":{"$error":"#N/A"}},{"$error":"#N/A"}]
[null,null,413,null,null,null,null,null,null,null,null,null,null,null,null,null,null,null,{"$f":"VLOOKUP(R446,'DATOS ASP'!$I$22:$J$23, 2,FALSE)","v":{"$error":"#N/A"}},null,{"$f":"VLOOKUP(T446,'DATOS ASP'!$I$26:$J$27,2,FALSE)","v":{"$error":"#N/A"}},null,{"$f":"VLOOKUP(V446,'DATOS ASP'!$K$22:$L$24,2,FALSE)","v":{"$error":"#N/A"}},null,{"$f":"VLOOKUP(X446,'DATOS ASP'!$M$22:$N$24,2,FALSE)","v":{"$error":"#N/A"}},{"$error":"#N/A"}]
[null,null,414,null,null,null,null,null,null,null,null,null,null,null,null,null,null,null,{"$f":"VLOOKUP(R447,'DATOS ASP'!$I$22:$J$23, 2,FALSE)","v":{"$error":"#N/A"}},null,{"$f":"VLOOKUP(T447,'DATOS ASP'!$I$26:$J$27,2,FALSE)","v":{"$error":"#N/A"}},null,{"$f":"VLOOKUP(V447,'DATOS ASP'!$K$22:$L$24,2,FALSE)","v":{"$error":"#N/A"}},null,{"$f":"VLOOKUP(X447,'DATOS ASP'!$M$22:$N$24,2,FALSE)","v":{"$error":"#N/A"}},{"$error":"#N/A"}]
[null,null,415,null,null,null,null,null,null,null,null,null,null,null,null,null,null,null,{"$f":"VLOOKUP(R448,'DATOS ASP'!$I$22:$J$23, 2,FALSE)","v":{"$error":"#N/A"}},null,{"$f":"VLOOKUP(T448,'DATOS ASP'!$I$26:$J$27,2,FALSE)","v":{"$error":"#N/A"}},null,{"$f":"VLOOKUP(V448,'DATOS ASP'!$K$22:$L$24,2,FALSE)","v":{"$error":"#N/A"}},null,{"$f":"VLOOKUP(X448,'DATOS ASP'!$M$22:$N$24,2,FALSE)","v":{"$error":"#N/A"}},{"$error":"#N/A"}]
[null,null,416,null,null,null,null,null,null,null,null,null,null,null,null,null,null,null,{"$f":"VLOOKUP(R449,'DATOS ASP'!$I$22:$J$23, 2,FALSE)","v":{"$error":"#N/A"}},null,{"$f":"VLOOKUP(T449,'DATOS ASP'!$I$26:$J$27,2,FALSE)","v":{"$error":"#N/A"}},null,{"$f":"VLOOKUP(V449,'DATOS ASP'!$K$22:$L$24,2,FALSE)","v":{"$error":"#N/A"}},null,{"$f":"VLOOKUP(X449,'DATOS ASP'!$M$22:$N$24,2,FALSE)","v":{"$error":"#N/A"}},{"$error":"#N/A"}]
[null,null,417,null,null,null,null,null,null,null,null,null,null,null,null,null,null,null,{"$f":"VLOOKUP(R450,'DATOS ASP'!$I$22:$J$23, 2,FALSE)","v":{"$error":"#N/A"}},null,{"$f":"VLOOKUP(T450,'DATOS ASP'!$I$26:$J$27,2,FALSE)","v":{"$error":"#N/A"}},null,{"$f":"VLOOKUP(V450,'DATOS ASP'!$K$22:$L$24,2,FALSE)","v":{"$error":"#N/A"}},null,{"$f":"VLOOKUP(X450,'DATOS ASP'!$M$22:$N$24,2,FALSE)","v":{"$error":"#N/A"}},{"$error":"#N/A"}]
[null,null,418,null,null,null,null,null,null,null,null,null,null,null,null,null,null,null,{"$f":"VLOOKUP(R451,'DATOS ASP'!$I$22:$J$23, 2,FALSE)","v":{"$error":"#N/A"}},null,{"$f":"VLOOKUP(T451,'DATOS ASP'!$I$26:$J$27,2,FALSE)","v":{"$error":"#N/A"}},null,{"$f":"VLOOKUP(V451,'DATOS ASP'!$K$22:$L$24,2,FALSE)","v":{"$error":"#N/A"}},null,{"$f":"VLOOKUP(X451,'DATOS ASP'!$M$22:$N$24,2,FALSE)","v":{"$error":"#N/A"}},{"$error":"#N/A"}]
[null,null,419,null,null,null,null,null,null,null,null,null,null,null,null,null,null,null,{"$f":"VLOOKUP(R452,'DATOS ASP'!$I$22:$J$23, 2,FALSE)","v":{"$error":"#N/A"}},null,{"$f":"VLOOKUP(T452,'DATOS ASP'!$I$26:$J$27,2,FALSE)","v":{"$error":"#N/A"}},null,{"$f":"VLOOKUP(V452,'DATOS ASP'!$K$22:$L$24,2,FALSE)","v":{"$error":"#N/A"}},null,{"$f":"VLOOKUP(X452,'DATOS ASP'!$M$22:$N$24,2,FALSE)","v":{"$error":"#N/A"}},{"$error":"#N/A"}]
[null,null,420,null,null,null,null,null,null,null,null,null,null,null,null,null,null,null,{"$f":"VLOOKUP(R453,'DATOS ASP'!$I$22:$J$23, 2,FALSE)","v":{"$error":"#N/A"}},null,{"$f":"VLOOKUP(T453,'DATOS ASP'!$I$26:$J$27,2,FALSE)","v":{"$error":"#N/A"}},null,{"$f":"VLOOKUP(V453,'DATOS ASP'!$K$22:$L$24,2,FALSE)","v":{"$error":"#N/A"}},null,{"$f":"VLOOKUP(X453,'DATOS ASP'!$M$22:$N$24,2,FALSE)","v":{"$error":"#N/A"}},{"$error":"#N/A"}]
[null,null,421,null,null,null,null,null,null,null,null,null,null,null,null,null,null,null,{"$f":"VLOOKUP(R454,'DATOS ASP'!$I$22:$J$23, 2,FALSE)","v":{"$error":"#N/A"}},null,{"$f":"VLOOKUP(T454,'DATOS ASP'!$I$26:$J$27,2,FALSE)","v":{"$error":"#N/A"}},null,{"$f":"VLOOKUP(V454,'DATOS ASP'!$K$22:$L$24,2,FALSE)","v":{"$error":"#N/A"}},null,{"$f":"VLOOKUP(X454,'DATOS ASP'!$M$22:$N$24,2,FALSE)","v":{"$error":"#N/A"}},{"$error":"#N/A"}]
[null,null,422,null,null,null,null,null,null,null,null,null,null,null,null,null,null,null,{"$f":"VLOOKUP(R455,'DATOS ASP'!$I$22:$J$23, 2,FALSE)","v":{"$error":"#N/A"}},null,{"$f":"VLOOKUP(T455,'DATOS ASP'!$I$26:$J$27,2,FALSE)","v":{"$error":"#N/A"}},null,{"$f":"VLOOKUP(V455,'DATOS ASP'!$K$22:$L$24,2,FALSE)","v":{"$error":"#N/A"}},null,{"$f":"VLOOKUP(X455,'DATOS ASP'!$M$22:$N$24,2,FALSE)","v":{"$error":"#N/A"}},{"$error":"#N/A"}]
[null,null,423,null,null,null,null,null,null,null,null,null,null,null,null,null,null,null,{"$f":"VLOOKUP(R456,'DATOS ASP'!$I$22:$J$23, 2,FALSE)","v":{"$error":"#N/A"}},null,{"$f":"VLOOKUP(T456,'DATOS ASP'!$I$26:$J$27,2,FALSE)","v":{"$error":"#N/A"}},null,{"$f":"VLOOKUP(V456,'DATOS ASP'!$K$22:$L$24,2,FALSE)","v":{"$error":"#N/A"}},null,{"$f":"VLOOKUP(X456,'DATOS ASP'!$M$22:$N$24,2,FALSE)","v":{"$error":"#N/A"}},{"$error":"#N/A"}]
[null,null,424,null,null,null,null,null,null,null,null,null,null,null,null,null,null,null,{"$f":"VLOOKUP(R457,'DATOS ASP'!$I$22:$J$23, 2,FALSE)","v":{"$error":"#N/A"}},null,{"$f":"VLOOKUP(T457,'DATOS ASP'!$I$26:$J$27,2,FALSE)","v":{"$error":"#N/A"}},null,{"$f":"VLOOKUP(V457,'DATOS ASP'!$K$22:$L$24,2,FALSE)","v":{"$error":"#N/A"}},null,{"$f":"VLOOKUP(X457,'DATOS ASP'!$M$22:$N$24,2,FALSE)","v":{"$error":"#N/A"}},{"$error":"#N/A"}]
[null,null,425,null,null,null,null,null,null,null,null,null,null,null,null,null,null,null,{"$f":"VLOOKUP(R458,'DATOS ASP'!$I$22:$J$23, 2,FALSE)","v":{"$error":"#N/A"}},null,{"$f":"VLOOKUP(T458,'DATOS ASP'!$I$26:$J$27,2,FALSE)","v":{"$error":"#N/A"}},null,{"$f":"VLOOKUP(V458,'DATOS ASP'!$K$22:$L$24,2,FALSE)","v":{"$error":"#N/A"}},null,{"$f":"VLOOKUP(X458,'DATOS ASP'!$M$22:$N$24,2,FALSE)","v":{"$error":"#N/A"}},{"$error":"#N/A"}]
[null,null,426,null,null,null,null,null,null,null,null,null,null,null,null,null,null,null,{"$f":"VLOOKUP(R459,'DATOS ASP'!$I$22:$J$23, 2,FALSE)","v":{"$error":"#N/A"}},null,{"$f":"VLOOKUP(T459,'DATOS ASP'!$I$26:$J$27,2,FALSE)","v":{"$error":"#N/A"}},null,{"$f":"VLOOKUP(V459,'DATOS ASP'!$K$22:$L$24,2,FALSE)","v":{"$error":"#N/A"}},null,{"$f":"VLOOKUP(X459,'DATOS ASP'!$M$22:$N$24,2,FALSE)","v":{"$error":"#N/A"}},{"$error":"#N/A"}]
[null,null,427,null,null,null,null,null,null,null,null,null,null,null,null,null,null,null,{"$f":"VLOOKUP(R460,'DATOS ASP'!$I$22:$J$23, 2,FALSE)","v":{"$error":"#N/A"}},null,{"$f":"VLOOKUP(T460,'DATOS ASP'!$I$26:$J$27,2,FALSE)","v":{"$error":"#N/A"}},null,{"$f":"VLOOKUP(V460,'DATOS ASP'!$K$22:$L$24,2,FALSE)","v":{"$error":"#N/A"}},null,{"$f":"VLOOKUP(X460,'DATOS ASP'!$M$22:$N$24,2,FALSE)","v":{"$error":"#N/A"}},{"$error":"#N/A"}]
[null,null,428,null,null,null,null,null,null,null,null,null,null,null,null,null,null,null,{"$f":"VLOOKUP(R461,'DATOS ASP'!$I$22:$J$23, 2,FALSE)","v":{"$error":"#N/A"}},null,{"$f":"VLOOKUP(T461,'DATOS ASP'!$I$26:$J$27,2,FALSE)","v":{"$error":"#N/A"}},null,{"$f":"VLOOKUP(V461,'DATOS ASP'!$K$22:$L$24,2,FALSE)","v":{"$error":"#N/A"}},null,{"$f":"VLOOKUP(X461,'DATOS ASP'!$M$22:$N$24,2,FALSE)","v":{"$error":"#N/A"}},{"$error":"#N/A"}]
[null,null,429,null,null,null,null,null,null,null,null,null,null,null,null,null,null,null,{"$f":"VLOOKUP(R462,'DATOS ASP'!$I$22:$J$23, 2,FALSE)","v":{"$error":"#N/A"}},null,{"$f":"VLOOKUP(T462,'DATOS ASP'!$I$26:$J$27,2,FALSE)","v":{"$error":"#N/A"}},null,{"$f":"VLOOKUP(V462,'DATOS ASP'!$K$22:$L$24,2,FALSE)","v":{"$error":"#N/A"}},null,{"$f":"VLOOKUP(X462,'DATOS ASP'!$M$22:$N$24,2,FALSE)","v":{"$error":"#N/A"}},{"$error":"#N/A"}]
[null,null,430,null,null,null,null,null,null,null,null,null,null,null,null,null,null,null,{"$f":"VLOOKUP(R463,'DATOS ASP'!$I$22:$J$23, 2,FALSE)","v":{"$error":"#N/A"}},null,{"$f":"VLOOKUP(T463,'DATOS ASP'!$I$26:$J$27,2,FALSE)","v":{"$error":"#N/A"}},null,{"$f":"VLOOKUP(V463,'DATOS ASP'!$K$22:$L$24,2,FALSE)","v":{"$error":"#N/A"}},null,{"$f":"VLOOKUP(X463,'DATOS ASP'!$M$22:$N$24,2,FALSE)","v":{"$error":"#N/A"}},{"$error":"#N/A"}]
[null,null,431,null,null,null,null,null,null,null,null,null,null,null,null,null,null,null,{"$f":"VLOOKUP(R464,'DATOS ASP'!$I$22:$J$23, 2,FALSE)","v":{"$error":"#N/A"}},null,{"$f":"VLOOKUP(T464,'DATOS ASP'!$I$26:$J$27,2,FALSE)","v":{"$error":"#N/A"}},null,{"$f":"VLOOKUP(V464,'DATOS ASP'!$K$22:$L$24,2,FALSE)","v":{"$error":"#N/A"}},null,{"$f":"VLOOKUP(X464,'DATOS ASP'!$M$22:$N$24,2,FALSE)","v":{"$error":"#N/A"}},{"$error":"#N/A"}]
[null,null,432,null,null,null,null,null,null,null,null,null,null,null,null,null,null,null,{"$f":"VLOOKUP(R465,'DATOS ASP'!$I$22:$J$23, 2,FALSE)","v":{"$error":"#N/A"}},null,{"$f":"VLOOKUP(T465,'DATOS ASP'!$I$26:$J$27,2,FALSE)","v":{"$error":"#N/A"}},null,{"$f":"VLOOKUP(V465,'DATOS ASP'!$K$22:$L$24,2,FALSE)","v":{"$error":"#N/A"}},null,{"$f":"VLOOKUP(X465,'DATOS ASP'!$M$22:$N$24,2,FALSE)","v":{"$error":"#N/A"}},{"$error":"#N/A"}]
[null,null,433,null,null,null,null,null,null,null,null,null,null,null,null,null,null,null,{"$f":"VLOOKUP(R466,'DATOS ASP'!$I$22:$J$23, 2,FALSE)","v":{"$error":"#N/A"}},null,{"$f":"VLOOKUP(T466,'DATOS ASP'!$I$26:$J$27,2,FALSE)","v":{"$error":"#N/A"}},null,{"$f":"VLOOKUP(V466,'DATOS ASP'!$K$22:$L$24,2,FALSE)","v":{"$error":"#N/A"}},null,{"$f":"VLOOKUP(X466,'DATOS ASP'!$M$22:$N$24,2,FALSE)","v":{"$error":"#N/A"}},{"$error":"#N/A"}]
[null,null,434,null,null,null,null,null,null,null,null,null,null,null,null,null,null,null,{"$f":"VLOOKUP(R467,'DATOS ASP'!$I$22:$J$23, 2,FALSE)","v":{"$error":"#N/A"}},null,{"$f":"VLOOKUP(T467,'DATOS ASP'!$I$26:$J$27,2,FALSE)","v":{"$error":"#N/A"}},null,{"$f":"VLOOKUP(V467,'DATOS ASP'!$K$22:$L$24,2,FALSE)","v":{"$error":"#N/A"}},null,{"$f":"VLOOKUP(X467,'DATOS ASP'!$M$22:$N$24,2,FALSE)","v":{"$error":"#N/A"}},{"$error":"#N/A"}]
[null,null,435,null,null,null,null,null,null,null,null,null,null,null,null,null,null,null,{"$f":"VLOOKUP(R468,'DATOS ASP'!$I$22:$J$23, 2,FALSE)","v":{"$error":"#N/A"}},null,{"$f":"VLOOKUP(T468,'DATOS ASP'!$I$26:$J$27,2,FALSE)","v":{"$error":"#N/A"}},null,{"$f":"VLOOKUP(V468,'DATOS ASP'!$K$22:$L$24,2,FALSE)","v":{"$error":"#N/A"}},null,{"$f":"VLOOKUP(X468,'DATOS ASP'!$M$22:$N$24,2,FALSE)","v":{"$error":"#N/A"}},{"$error":"#N/A"}]
[null,null,436,null,null,null,null,null,null,null,null,null,null,null,null,null,null,null,{"$f":"VLOOKUP(R469,'DATOS ASP'!$I$22:$J$23, 2,FALSE)","v":{"$error":"#N/A"}},null,{"$f":"VLOOKUP(T469,'DATOS ASP'!$I$26:$J$27,2,FALSE)","v":{"$error":"#N/A"}},null,{"$f":"VLOOKUP(V469,'DATOS ASP'!$K$22:$L$24,2,FALSE)","v":{"$error":"#N/A"}},null,{"$f":"VLOOKUP(X469,'DATOS ASP'!$M$22:$N$24,2,FALSE)","v":{"$error":"#N/A"}},{"$error":"#N/A"}]
[null,null,437,null,null,null,null,null,null,null,null,null,null,null,null,null,null,null,{"$f":"VLOOKUP(R470,'DATOS ASP'!$I$22:$J$23, 2,FALSE)","v":{"$error":"#N/A"}},null,{"$f":"VLOOKUP(T470,'DATOS ASP'!$I$26:$J$27,2,FALSE)","v":{"$error":"#N/A"}},null,{"$f":"VLOOKUP(V470,'DATOS ASP'!$K$22:$L$24,2,FALSE)","v":{"$error":"#N/A"}},null,{"$f":"VLOOKUP(X470,'DATOS ASP'!$M$22:$N$24,2,FALSE)","v":{"$error":"#N/A"}},{"$error":"#N/A"}]
[null,null,438,null,null,null,null,null,null,null,null,null,null,null,null,null,null,null,{"$f":"VLOOKUP(R471,'DATOS ASP'!$I$22:$J$23, 2,FALSE)","v":{"$error":"#N/A"}},null,{"$f":"VLOOKUP(T471,'DATOS ASP'!$I$26:$J$27,2,FALSE)","v":{"$error":"#N/A"}},null,{"$f":"VLOOKUP(V471,'DATOS ASP'!$K$22:$L$24,2,FALSE)","v":{"$error":"#N/A"}},null,{"$f":"VLOOKUP(X471,'DATOS ASP'!$M$22:$N$24,2,FALSE)","v":{"$error":"#N/A"}},{"$error":"#N/A"}]
[null,null,439,null,null,null,null,null,null,null,null,null,null,null,null,null,null,null,{"$f":"VLOOKUP(R472,'DATOS ASP'!$I$22:$J$23, 2,FALSE)","v":{"$error":"#N/A"}},null,{"$f":"VLOOKUP(T472,'DATOS ASP'!$I$26:$J$27,2,FALSE)","v":{"$error":"#N/A"}},null,{"$f":"VLOOKUP(V472,'DATOS ASP'!$K$22:$L$24,2,FALSE)","v":{"$error":"#N/A"}},null,{"$f":"VLOOKUP(X472,'DATOS ASP'!$M$22:$N$24,2,FALSE)","v":{"$error":"#N/A"}},{"$error":"#N/A"}]
[null,null,440,null,null,null,null,null,null,null,null,null,null,null,null,null,null,null,{"$f":"VLOOKUP(R473,'DATOS ASP'!$I$22:$J$23, 2,FALSE)","v":{"$error":"#N/A"}},null,{"$f":"VLOOKUP(T473,'DATOS ASP'!$I$26:$J$27,2,FALSE)","v":{"$error":"#N/A"}},null,{"$f":"VLOOKUP(V473,'DATOS ASP'!$K$22:$L$24,2,FALSE)","v":{"$error":"#N/A"}},null,{"$f":"VLOOKUP(X473,'DATOS ASP'!$M$22:$N$24,2,FALSE)","v":{"$error":"#N/A"}},{"$error":"#N/A"}]
[null,null,441,null,null,null,null,null,null,null,null,null,null,null,null,null,null,null,{"$f":"VLOOKUP(R474,'DATOS ASP'!$I$22:$J$23, 2,FALSE)","v":{"$error":"#N/A"}},null,{"$f":"VLOOKUP(T474,'DATOS ASP'!$I$26:$J$27,2,FALSE)","v":{"$error":"#N/A"}},null,{"$f":"VLOOKUP(V474,'DATOS ASP'!$K$22:$L$24,2,FALSE)","v":{"$error":"#N/A"}},null,{"$f":"VLOOKUP(X474,'DATOS ASP'!$M$22:$N$24,2,FALSE)","v":{"$error":"#N/A"}},{"$error":"#N/A"}]
[null,null,442,null,null,null,null,null,null,null,null,null,null,null,null,null,null,null,{"$f":"VLOOKUP(R475,'DATOS ASP'!$I$22:$J$23, 2,FALSE)","v":{"$error":"#N/A"}},null,{"$f":"VLOOKUP(T475,'DATOS ASP'!$I$26:$J$27,2,FALSE)","v":{"$error":"#N/A"}},null,{"$f":"VLOOKUP(V475,'DATOS ASP'!$K$22:$L$24,2,FALSE)","v":{"$error":"#N/A"}},null,{"$f":"VLOOKUP(X475,'DATOS ASP'!$M$22:$N$24,2,FALSE)","v":{"$error":"#N/A"}},{"$error":"#N/A"}]
[null,null,443,null,null,null,null,null,null,null,null,null,null,null,null,null,null,null,{"$f":"VLOOKUP(R476,'DATOS ASP'!$I$22:$J$23, 2,FALSE)","v":{"$error":"#N/A"}},null,{"$f":"VLOOKUP(T476,'DATOS ASP'!$I$26:$J$27,2,FALSE)","v":{"$error":"#N/A"}},null,{"$f":"VLOOKUP(V476,'DATOS ASP'!$K$22:$L$24,2,FALSE)","v":{"$error":"#N/A"}},null,{"$f":"VLOOKUP(X476,'DATOS ASP'!$M$22:$N$24,2,FALSE)","v":{"$error":"#N/A"}},{"$error":"#N/A"}]
[null,null,444,null,null,null,null,null,null,null,null,null,null,null,null,null,null,null,{"$f":"VLOOKUP(R477,'DATOS ASP'!$I$22:$J$23, 2,FALSE)","v":{"$error":"#N/A"}},null,{"$f":"VLOOKUP(T477,'DATOS ASP'!$I$26:$J$27,2,FALSE)","v":{"$error":"#N/A"}},null,{"$f":"VLOOKUP(V477,'DATOS ASP'!$K$22:$L$24,2,FALSE)","v":{"$error":"#N/A"}},null,{"$f":"VLOOKUP(X477,'DATOS ASP'!$M$22:$N$24,2,FALSE)","v":{"$error":"#N/A"}},{"$error":"#N/A"}]
[null,null,445,null,null,null,null,null,null,null,null,null,null,null,null,null,null,null,{"$f":"VLOOKUP(R478,'DATOS ASP'!$I$22:$J$23, 2,FALSE)","v":{"$error":"#N/A"}},null,{"$f":"VLOOKUP(T478,'DATOS ASP'!$I$26:$J$27,2,FALSE)","v":{"$error":"#N/A"}},null,{"$f":"VLOOKUP(V478,'DATOS ASP'!$K$22:$L$24,2,FALSE)","v":{"$error":"#N/A"}},null,{"$f":"VLOOKUP(X478,'DATOS ASP'!$M$22:$N$24,2,FALSE)","v":{"$error":"#N/A"}},{"$error":"#N/A"}]
[null,null,446,null,null,null,null,null,null,null,null,null,null,null,null,null,null,null,{"$f":"VLOOKUP(R479,'DATOS ASP'!$I$22:$J$23, 2,FALSE)","v":{"$error":"#N/A"}},null,{"$f":"VLOOKUP(T479,'DATOS ASP'!$I$26:$J$27,2,FALSE)","v":{"$error":"#N/A"}},null,{"$f":"VLOOKUP(V479,'DATOS ASP'!$K$22:$L$24,2,FALSE)","v":{"$error":"#N/A"}},null,{"$f":"VLOOKUP(X479,'DATOS ASP'!$M$22:$N$24,2,FALSE)","v":{"$error":"#N/A"}},{"$error":"#N/A"}]
[null,null,447,null,null,null,null,null,null,null,null,null,null,null,null,null,null,null,{"$f":"VLOOKUP(R480,'DATOS ASP'!$I$22:$J$23, 2,FALSE)","v":{"$error":"#N/A"}},null,{"$f":"VLOOKUP(T480,'DATOS ASP'!$I$26:$J$27,2,FALSE)","v":{"$error":"#N/A"}},null,{"$f":"VLOOKUP(V480,'DATOS ASP'!$K$22:$L$24,2,FALSE)","v":{"$error":"#N/A"}},null,{"$f":"VLOOKUP(X480,'DATOS ASP'!$M$22:$N$24,2,FALSE)","v":{"$error":"#N/A"}},{"$error":"#N/A"}]
[null,null,448,null,null,null,null,null,null,null,null,null,null,null,null,null,null,null,{"$f":"VLOOKUP(R481,'DATOS ASP'!$I$22:$J$23, 2,FALSE)","v":{"$error":"#N/A"}},null,{"$f":"VLOOKUP(T481,'DATOS ASP'!$I$26:$J$27,2,FALSE)","v":{"$error":"#N/A"}},null,{"$f":"VLOOKUP(V481,'DATOS ASP'!$K$22:$L$24,2,FALSE)","v":{"$error":"#N/A"}},null,{"$f":"VLOOKUP(X481,'DATOS ASP'!$M$22:$N$24,2,FALSE)","v":{"$error":"#N/A"}},{"$error":"#N/A"}]
[null,null,449,null,null,null,null,null,null,null,null,null,null,null,null,null,null,null,{"$f":"VLOOKUP(R482,'DATOS ASP'!$I$22:$J$23, 2,FALSE)","v":{"$error":"#N/A"}},null,{"$f":"VLOOKUP(T482,'DATOS ASP'!$I$26:$J$27,2,FALSE)","v":{"$error":"#N/A"}},null,{"$f":"VLOOKUP(V482,'DATOS ASP'!$K$22:$L$24,2,FALSE)","v":{"$error":"#N/A"}},null,{"$f":"VLOOKUP(X482,'DATOS ASP'!$M$22:$N$24,2,FALSE)","v":{"$error":"#N/A"}},{"$error":"#N/A"}]
[null,null,450,null,null,null,null,null,null,null,null,null,null,null,null,null,null,null,{"$f":"VLOOKUP(R483,'DATOS ASP'!$I$22:$J$23, 2,FALSE)","v":{"$error":"#N/A"}},null,{"$f":"VLOOKUP(T483,'DATOS ASP'!$I$26:$J$27,2,FALSE)","v":{"$error":"#N/A"}},null,{"$f":"VLOOKUP(V483,'DATOS ASP'!$K$22:$L$24,2,FALSE)","v":{"$error":"#N/A"}},null,{"$f":"VLOOKUP(X483,'DATOS ASP'!$M$22:$N$24,2,FALSE)","v":{"$error":"#N/A"}},{"$error":"#N/A"}]
[null,null,451,null,null,null,null,null,null,null,null,null,null,null,null,null,null,null,{"$f":"VLOOKUP(R484,'DATOS ASP'!$I$22:$J$23, 2,FALSE)","v":{"$error":"#N/A"}},null,{"$f":"VLOOKUP(T484,'DATOS ASP'!$I$26:$J$27,2,FALSE)","v":{"$error":"#N/A"}},null,{"$f":"VLOOKUP(V484,'DATOS ASP'!$K$22:$L$24,2,FALSE)","v":{"$error":"#N/A"}},null,{"$f":"VLOOKUP(X484,'DATOS ASP'!$M$22:$N$24,2,FALSE)","v":{"$error":"#N/A"}},{"$error":"#N/A"}]
[null,null,452,null,null,null,null,null,null,null,null,null,null,null,null,null,null,null,{"$f":"VLOOKUP(R485,'DATOS ASP'!$I$22:$J$23, 2,FALSE)","v":{"$error":"#N/A"}},null,{"$f":"VLOOKUP(T485,'DATOS ASP'!$I$26:$J$27,2,FALSE)","v":{"$error":"#N/A"}},null,{"$f":"VLOOKUP(V485,'DATOS ASP'!$K$22:$L$24,2,FALSE)","v":{"$error":"#N/A"}},null,{"$f":"VLOOKUP(X485,'DATOS ASP'!$M$22:$N$24,2,FALSE)","v":{"$error":"#N/A"}},{"$error":"#N/A"}]
[null,null,453,null,null,null,null,null,null,null,null,null,null,null,null,null,null,null,{"$f":"VLOOKUP(R486,'DATOS ASP'!$I$22:$J$23, 2,FALSE)","v":{"$error":"#N/A"}},null,{"$f":"VLOOKUP(T486,'DATOS ASP'!$I$26:$J$27,2,FALSE)","v":{"$error":"#N/A"}},null,{"$f":"VLOOKUP(V486,'DATOS ASP'!$K$22:$L$24,2,FALSE)","v":{"$error":"#N/A"}},null,{"$f":"VLOOKUP(X486,'DATOS ASP'!$M$22:$N$24,2,FALSE)","v":{"$error":"#N/A"}},{"$error":"#N/A"}]
[null,null,454,null,null,null,null,null,null,null,null,null,null,null,null,null,null,null,{"$f":"VLOOKUP(R487,'DATOS ASP'!$I$22:$J$23, 2,FALSE)","v":{"$error":"#N/A"}},null,{"$f":"VLOOKUP(T487,'DATOS ASP'!$I$26:$J$27,2,FALSE)","v":{"$error":"#N/A"}},null,{"$f":"VLOOKUP(V487,'DATOS ASP'!$K$22:$L$24,2,FALSE)","v":{"$error":"#N/A"}},null,{"$f":"VLOOKUP(X487,'DATOS ASP'!$M$22:$N$24,2,FALSE)","v":{"$error":"#N/A"}},{"$f":"S487*((3*U487)+W487+Y487)","v":{"$error":"#N/A"}}]
[null,null,455,null,null,null,null,null,null,null,null,null,null,null,null,null,null,null,{"$f":"VLOOKUP(R488,'DATOS ASP'!$I$22:$J$23, 2,FALSE)","v":{"$error":"#N/A"}},null,{"$f":"VLOOKUP(T488,'DATOS ASP'!$I$26:$J$27,2,FALSE)","v":{"$error":"#N/A"}},null,{"$f":"VLOOKUP(V488,'DATOS ASP'!$K$22:$L$24,2,FALSE)","v":{"$error":"#N/A"}},null,{"$f":"VLOOKUP(X488,'DATOS ASP'!$M$22:$N$24,2,FALSE)","v":{"$error":"#N/A"}},{"$error":"#N/A"}]
[null,null,456,null,null,null,null,null,null,null,null,null,null,null,null,null,null,null,{"$f":"VLOOKUP(R489,'DATOS ASP'!$I$22:$J$23, 2,FALSE)","v":{"$error":"#N/A"}},null,{"$f":"VLOOKUP(T489,'DATOS ASP'!$I$26:$J$27,2,FALSE)","v":{"$error":"#N/A"}},null,{"$f":"VLOOKUP(V489,'DATOS ASP'!$K$22:$L$24,2,FALSE)","v":{"$error":"#N/A"}},null,{"$f":"VLOOKUP(X489,'DATOS ASP'!$M$22:$N$24,2,FALSE)","v":{"$error":"#N/A"}},{"$error":"#N/A"}]
[null,null,457,null,null,null,null,null,null,null,null,null,null,null,null,null,null,null,{"$f":"VLOOKUP(R490,'DATOS ASP'!$I$22:$J$23, 2,FALSE)","v":{"$error":"#N/A"}},null,{"$f":"VLOOKUP(T490,'DATOS ASP'!$I$26:$J$27,2,FALSE)","v":{"$error":"#N/A"}},null,{"$f":"VLOOKUP(V490,'DATOS ASP'!$K$22:$L$24,2,FALSE)","v":{"$error":"#N/A"}},null,{"$f":"VLOOKUP(X490,'DATOS ASP'!$M$22:$N$24,2,FALSE)","v":{"$error":"#N/A"}},{"$error":"#N/A"}]
[null,null,458,null,null,null,null,null,null,null,null,null,null,null,null,null,null,null,{"$f":"VLOOKUP(R491,'DATOS ASP'!$I$22:$J$23, 2,FALSE)","v":{"$error":"#N/A"}},null,{"$f":"VLOOKUP(T491,'DATOS ASP'!$I$26:$J$27,2,FALSE)","v":{"$error":"#N/A"}},null,{"$f":"VLOOKUP(V491,'DATOS ASP'!$K$22:$L$24,2,FALSE)","v":{"$error":"#N/A"}},null,{"$f":"VLOOKUP(X491,'DATOS ASP'!$M$22:$N$24,2,FALSE)","v":{"$error":"#N/A"}},{"$error":"#N/A"}]
[null,null,459,null,null,null,null,null,null,null,null,null,null,null,null,null,null,null,{"$f":"VLOOKUP(R492,'DATOS ASP'!$I$22:$J$23, 2,FALSE)","v":{"$error":"#N/A"}},null,{"$f":"VLOOKUP(T492,'DATOS ASP'!$I$26:$J$27,2,FALSE)","v":{"$error":"#N/A"}},null,{"$f":"VLOOKUP(V492,'DATOS ASP'!$K$22:$L$24,2,FALSE)","v":{"$error":"#N/A"}},null,{"$f":"VLOOKUP(X492,'DATOS ASP'!$M$22:$N$24,2,FALSE)","v":{"$error":"#N/A"}},{"$error":"#N/A"}]
[null,null,460,null,null,null,null,null,null,null,null,null,null,null,null,null,null,null,{"$f":"VLOOKUP(R493,'DATOS ASP'!$I$22:$J$23, 2,FALSE)","v":{"$error":"#N/A"}},null,{"$f":"VLOOKUP(T493,'DATOS ASP'!$I$26:$J$27,2,FALSE)","v":{"$error":"#N/A"}},null,{"$f":"VLOOKUP(V493,'DATOS ASP'!$K$22:$L$24,2,FALSE)","v":{"$error":"#N/A"}},null,{"$f":"VLOOKUP(X493,'DATOS ASP'!$M$22:$N$24,2,FALSE)","v":{"$error":"#N/A"}},{"$error":"#N/A"}]
[null,null,461,null,null,null,null,null,null,null,null,null,null,null,null,null,null,null,{"$f":"VLOOKUP(R494,'DATOS ASP'!$I$22:$J$23, 2,FALSE)","v":{"$error":"#N/A"}},null,{"$f":"VLOOKUP(T494,'DATOS ASP'!$I$26:$J$27,2,FALSE)","v":{"$error":"#N/A"}},null,{"$f":"VLOOKUP(V494,'DATOS ASP'!$K$22:$L$24,2,FALSE)","v":{"$error":"#N/A"}},null,{"$f":"VLOOKUP(X494,'DATOS ASP'!$M$22:$N$24,2,FALSE)","v":{"$error":"#N/A"}},{"$error":"#N/A"}]
[null,null,462,null,null,null,null,null,null,null,null,null,null,null,null,null,null,null,{"$f":"VLOOKUP(R495,'DATOS ASP'!$I$22:$J$23, 2,FALSE)","v":{"$error":"#N/A"}},null,{"$f":"VLOOKUP(T495,'DATOS ASP'!$I$26:$J$27,2,FALSE)","v":{"$error":"#N/A"}},null,{"$f":"VLOOKUP(V495,'DATOS ASP'!$K$22:$L$24,2,FALSE)","v":{"$error":"#N/A"}},null,{"$f":"VLOOKUP(X495,'DATOS ASP'!$M$22:$N$24,2,FALSE)","v":{"$error":"#N/A"}},{"$error":"#N/A"}]
[null,null,463,null,null,null,null,null,null,null,null,null,null,null,null,null,null,null,{"$f":"VLOOKUP(R496,'DATOS ASP'!$I$22:$J$23, 2,FALSE)","v":{"$error":"#N/A"}},null,{"$f":"VLOOKUP(T496,'DATOS ASP'!$I$26:$J$27,2,FALSE)","v":{"$error":"#N/A"}},null,{"$f":"VLOOKUP(V496,'DATOS ASP'!$K$22:$L$24,2,FALSE)","v":{"$error":"#N/A"}},null,{"$f":"VLOOKUP(X496,'DATOS ASP'!$M$22:$N$24,2,FALSE)","v":{"$error":"#N/A"}},{"$error":"#N/A"}]
[null,null,464,null,null,null,null,null,null,null,null,null,null,null,null,null,null,null,{"$f":"VLOOKUP(R497,'DATOS ASP'!$I$22:$J$23, 2,FALSE)","v":{"$error":"#N/A"}},null,{"$f":"VLOOKUP(T497,'DATOS ASP'!$I$26:$J$27,2,FALSE)","v":{"$error":"#N/A"}},null,{"$f":"VLOOKUP(V497,'DATOS ASP'!$K$22:$L$24,2,FALSE)","v":{"$error":"#N/A"}},null,{"$f":"VLOOKUP(X497,'DATOS ASP'!$M$22:$N$24,2,FALSE)","v":{"$error":"#N/A"}},{"$error":"#N/A"}]
[null,null,465,null,null,null,null,null,null,null,null,null,null,null,null,null,null,null,{"$f":"VLOOKUP(R498,'DATOS ASP'!$I$22:$J$23, 2,FALSE)","v":{"$error":"#N/A"}},null,{"$f":"VLOOKUP(T498,'DATOS ASP'!$I$26:$J$27,2,FALSE)","v":{"$error":"#N/A"}},null,{"$f":"VLOOKUP(V498,'DATOS ASP'!$K$22:$L$24,2,FALSE)","v":{"$error":"#N/A"}},null,{"$f":"VLOOKUP(X498,'DATOS ASP'!$M$22:$N$24,2,FALSE)","v":{"$error":"#N/A"}},{"$error":"#N/A"}]
[null,null,466,null,null,null,null,null,null,null,null,null,null,null,null,null,null,null,{"$f":"VLOOKUP(R499,'DATOS ASP'!$I$22:$J$23, 2,FALSE)","v":{"$error":"#N/A"}},null,{"$f":"VLOOKUP(T499,'DATOS ASP'!$I$26:$J$27,2,FALSE)","v":{"$error":"#N/A"}},null,{"$f":"VLOOKUP(V499,'DATOS ASP'!$K$22:$L$24,2,FALSE)","v":{"$error":"#N/A"}},null,{"$f":"VLOOKUP(X499,'DATOS ASP'!$M$22:$N$24,2,FALSE)","v":{"$error":"#N/A"}},{"$f":"S499*((3*U499)+W499+Y499)","v":{"$error":"#N/A"}}]
[null,null,467,null,null,null,null,null,null,null,null,null,null,null,null,null,null,null,{"$f":"VLOOKUP(R500,'DATOS ASP'!$I$22:$J$23, 2,FALSE)","v":{"$error":"#N/A"}},null,{"$f":"VLOOKUP(T500,'DATOS ASP'!$I$26:$J$27,2,FALSE)","v":{"$error":"#N/A"}},null,{"$f":"VLOOKUP(V500,'DATOS ASP'!$K$22:$L$24,2,FALSE)","v":{"$error":"#N/A"}},null,{"$f":"VLOOKUP(X500,'DATOS ASP'!$M$22:$N$24,2,FALSE)","v":{"$error":"#N/A"}},{"$error":"#N/A"}]
[null,null,468,null,null,null,null,null,null,null,null,null,null,null,null,null,null,null,{"$f":"VLOOKUP(R501,'DATOS ASP'!$I$22:$J$23, 2,FALSE)","v":{"$error":"#N/A"}},null,{"$f":"VLOOKUP(T501,'DATOS ASP'!$I$26:$J$27,2,FALSE)","v":{"$error":"#N/A"}},null,{"$f":"VLOOKUP(V501,'DATOS ASP'!$K$22:$L$24,2,FALSE)","v":{"$error":"#N/A"}},null,{"$f":"VLOOKUP(X501,'DATOS ASP'!$M$22:$N$24,2,FALSE)","v":{"$error":"#N/A"}},{"$error":"#N/A"}]
[null,null,469,null,null,null,null,null,null,null,null,null,null,null,null,null,null,null,{"$f":"VLOOKUP(R502,'DATOS ASP'!$I$22:$J$23, 2,FALSE)","v":{"$error":"#N/A"}},null,{"$f":"VLOOKUP(T502,'DATOS ASP'!$I$26:$J$27,2,FALSE)","v":{"$error":"#N/A"}},null,{"$f":"VLOOKUP(V502,'DATOS ASP'!$K$22:$L$24,2,FALSE)","v":{"$error":"#N/A"}},null,{"$f":"VLOOKUP(X502,'DATOS ASP'!$M$22:$N$24,2,FALSE)","v":{"$error":"#N/A"}},{"$error":"#N/A"}]
[null,null,470,null,null,null,null,null,null,null,null,null,null,null,null,null,null,null,{"$f":"VLOOKUP(R503,'DATOS ASP'!$I$22:$J$23, 2,FALSE)","v":{"$error":"#N/A"}},null,{"$f":"VLOOKUP(T503,'DATOS ASP'!$I$26:$J$27,2,FALSE)","v":{"$error":"#N/A"}},null,{"$f":"VLOOKUP(V503,'DATOS ASP'!$K$22:$L$24,2,FALSE)","v":{"$error":"#N/A"}},null,{"$f":"VLOOKUP(X503,'DATOS ASP'!$M$22:$N$24,2,FALSE)","v":{"$error":"#N/A"}},{"$error":"#N/A"}]
[null,null,471,null,null,null,null,null,null,null,null,null,null,null,null,null,null,null,{"$f":"VLOOKUP(R504,'DATOS ASP'!$I$22:$J$23, 2,FALSE)","v":{"$error":"#N/A"}},null,{"$f":"VLOOKUP(T504,'DATOS ASP'!$I$26:$J$27,2,FALSE)","v":{"$error":"#N/A"}},null,{"$f":"VLOOKUP(V504,'DATOS ASP'!$K$22:$L$24,2,FALSE)","v":{"$error":"#N/A"}},null,{"$f":"VLOOKUP(X504,'DATOS ASP'!$M$22:$N$24,2,FALSE)","v":{"$error":"#N/A"}},{"$error":"#N/A"}]
[null,null,472,null,null,null,null,null,null,null,null,null,null,null,null,null,null,null,{"$f":"VLOOKUP(R505,'DATOS ASP'!$I$22:$J$23, 2,FALSE)","v":{"$error":"#N/A"}},null,{"$f":"VLOOKUP(T505,'DATOS ASP'!$I$26:$J$27,2,FALSE)","v":{"$error":"#N/A"}},null,{"$f":"VLOOKUP(V505,'DATOS ASP'!$K$22:$L$24,2,FALSE)","v":{"$error":"#N/A"}},null,{"$f":"VLOOKUP(X505,'DATOS ASP'!$M$22:$N$24,2,FALSE)","v":{"$error":"#N/A"}},{"$error":"#N/A"}]
[null,null,473,null,null,null,null,null,null,null,null,null,null,null,null,null,null,null,{"$f":"VLOOKUP(R506,'DATOS ASP'!$I$22:$J$23, 2,FALSE)","v":{"$error":"#N/A"}},null,{"$f":"VLOOKUP(T506,'DATOS ASP'!$I$26:$J$27,2,FALSE)","v":{"$error":"#N/A"}},null,{"$f":"VLOOKUP(V506,'DATOS ASP'!$K$22:$L$24,2,FALSE)","v":{"$error":"#N/A"}},null,{"$f":"VLOOKUP(X506,'DATOS ASP'!$M$22:$N$24,2,FALSE)","v":{"$error":"#N/A"}},{"$error":"#N/A"}]
[null,null,474,null,null,null,null,null,null,null,null,null,null,null,null,null,null,null,{"$f":"VLOOKUP(R507,'DATOS ASP'!$I$22:$J$23, 2,FALSE)","v":{"$error":"#N/A"}},null,{"$f":"VLOOKUP(T507,'DATOS ASP'!$I$26:$J$27,2,FALSE)","v":{"$error":"#N/A"}},null,{"$f":"VLOOKUP(V507,'DATOS ASP'!$K$22:$L$24,2,FALSE)","v":{"$error":"#N/A"}},null,{"$f":"VLOOKUP(X507,'DATOS ASP'!$M$22:$N$24,2,FALSE)","v":{"$error":"#N/A"}},{"$error":"#N/A"}]
[null,null,475,null,null,null,null,null,null,null,null,null,null,null,null,null,null,null,{"$f":"VLOOKUP(R508,'DATOS ASP'!$I$22:$J$23, 2,FALSE)","v":{"$error":"#N/A"}},null,{"$f":"VLOOKUP(T508,'DATOS ASP'!$I$26:$J$27,2,FALSE)","v":{"$error":"#N/A"}},null,{"$f":"VLOOKUP(V508,'DATOS ASP'!$K$22:$L$24,2,FALSE)","v":{"$error":"#N/A"}},null,{"$f":"VLOOKUP(X508,'DATOS ASP'!$M$22:$N$24,2,FALSE)","v":{"$error":"#N/A"}},{"$error":"#N/A"}]
[null,null,476,null,null,null,null,null,null,null,null,null,null,null,null,null,null,null,{"$f":"VLOOKUP(R509,'DATOS ASP'!$I$22:$J$23, 2,FALSE)","v":{"$error":"#N/A"}},null,{"$f":"VLOOKUP(T509,'DATOS ASP'!$I$26:$J$27,2,FALSE)","v":{"$error":"#N/A"}},null,{"$f":"VLOOKUP(V509,'DATOS ASP'!$K$22:$L$24,2,FALSE)","v":{"$error":"#N/A"}},null,{"$f":"VLOOKUP(X509,'DATOS ASP'!$M$22:$N$24,2,FALSE)","v":{"$error":"#N/A"}},{"$error":"#N/A"}]
[null,null,477,null,null,null,null,null,null,null,null,null,null,null,null,null,null,null,{"$f":"VLOOKUP(R510,'DATOS ASP'!$I$22:$J$23, 2,FALSE)","v":{"$error":"#N/A"}},null,{"$f":"VLOOKUP(T510,'DATOS ASP'!$I$26:$J$27,2,FALSE)","v":{"$error":"#N/A"}},null,{"$f":"VLOOKUP(V510,'DATOS ASP'!$K$22:$L$24,2,FALSE)","v":{"$error":"#N/A"}},null,{"$f":"VLOOKUP(X510,'DATOS ASP'!$M$22:$N$24,2,FALSE)","v":{"$error":"#N/A"}},{"$error":"#N/A"}]
[null,null,478,null,null,null,null,null,null,null,null,null,null,null,null,null,null,null,{"$f":"VLOOKUP(R511,'DATOS ASP'!$I$22:$J$23, 2,FALSE)","v":{"$error":"#N/A"}},null,{"$f":"VLOOKUP(T511,'DATOS ASP'!$I$26:$J$27,2,FALSE)","v":{"$error":"#N/A"}},null,{"$f":"VLOOKUP(V511,'DATOS ASP'!$K$22:$L$24,2,FALSE)","v":{"$error":"#N/A"}},null,{"$f":"VLOOKUP(X511,'DATOS ASP'!$M$22:$N$24,2,FALSE)","v":{"$error":"#N/A"}},{"$f":"S511*((3*U511)+W511+Y511)","v":{"$error":"#N/A"}}]
[null,null,479,null,null,null,null,null,null,null,null,null,null,null,null,null,null,null,{"$f":"VLOOKUP(R512,'DATOS ASP'!$I$22:$J$23, 2,FALSE)","v":{"$error":"#N/A"}},null,{"$f":"VLOOKUP(T512,'DATOS ASP'!$I$26:$J$27,2,FALSE)","v":{"$error":"#N/A"}},null,{"$f":"VLOOKUP(V512,'DATOS ASP'!$K$22:$L$24,2,FALSE)","v":{"$error":"#N/A"}},null,{"$f":"VLOOKUP(X512,'DATOS ASP'!$M$22:$N$24,2,FALSE)","v":{"$error":"#N/A"}},{"$error":"#N/A"}]
[null,null,480,null,null,null,null,null,null,null,null,null,null,null,null,null,null,null,{"$f":"VLOOKUP(R513,'DATOS ASP'!$I$22:$J$23, 2,FALSE)","v":{"$error":"#N/A"}},null,{"$f":"VLOOKUP(T513,'DATOS ASP'!$I$26:$J$27,2,FALSE)","v":{"$error":"#N/A"}},null,{"$f":"VLOOKUP(V513,'DATOS ASP'!$K$22:$L$24,2,FALSE)","v":{"$error":"#N/A"}},null,{"$f":"VLOOKUP(X513,'DATOS ASP'!$M$22:$N$24,2,FALSE)","v":{"$error":"#N/A"}},{"$error":"#N/A"}]
[null,null,481,null,null,null,null,null,null,null,null,null,null,null,null,null,null,null,{"$f":"VLOOKUP(R514,'DATOS ASP'!$I$22:$J$23, 2,FALSE)","v":{"$error":"#N/A"}},null,{"$f":"VLOOKUP(T514,'DATOS ASP'!$I$26:$J$27,2,FALSE)","v":{"$error":"#N/A"}},null,{"$f":"VLOOKUP(V514,'DATOS ASP'!$K$22:$L$24,2,FALSE)","v":{"$error":"#N/A"}},null,{"$f":"VLOOKUP(X514,'DATOS ASP'!$M$22:$N$24,2,FALSE)","v":{"$error":"#N/A"}},{"$error":"#N/A"}]
[null,null,482,null,null,null,null,null,null,null,null,null,null,null,null,null,null,null,{"$f":"VLOOKUP(R515,'DATOS ASP'!$I$22:$J$23, 2,FALSE)","v":{"$error":"#N/A"}},null,{"$f":"VLOOKUP(T515,'DATOS ASP'!$I$26:$J$27,2,FALSE)","v":{"$error":"#N/A"}},null,{"$f":"VLOOKUP(V515,'DATOS ASP'!$K$22:$L$24,2,FALSE)","v":{"$error":"#N/A"}},null,{"$f":"VLOOKUP(X515,'DATOS ASP'!$M$22:$N$24,2,FALSE)","v":{"$error":"#N/A"}},{"$error":"#N/A"}]
[null,null,483,null,null,null,null,null,null,null,null,null,null,null,null,null,null,null,{"$f":"VLOOKUP(R516,'DATOS ASP'!$I$22:$J$23, 2,FALSE)","v":{"$error":"#N/A"}},null,{"$f":"VLOOKUP(T516,'DATOS ASP'!$I$26:$J$27,2,FALSE)","v":{"$error":"#N/A"}},null,{"$f":"VLOOKUP(V516,'DATOS ASP'!$K$22:$L$24,2,FALSE)","v":{"$error":"#N/A"}},null,{"$f":"VLOOKUP(X516,'DATOS ASP'!$M$22:$N$24,2,FALSE)","v":{"$error":"#N/A"}},{"$error":"#N/A"}]
[null,null,484,null,null,null,null,null,null,null,null,null,null,null,null,null,null,null,{"$f":"VLOOKUP(R517,'DATOS ASP'!$I$22:$J$23, 2,FALSE)","v":{"$error":"#N/A"}},null,{"$f":"VLOOKUP(T517,'DATOS ASP'!$I$26:$J$27,2,FALSE)","v":{"$error":"#N/A"}},null,{"$f":"VLOOKUP(V517,'DATOS ASP'!$K$22:$L$24,2,FALSE)","v":{"$error":"#N/A"}},null,{"$f":"VLOOKUP(X517,'DATOS ASP'!$M$22:$N$24,2,FALSE)","v":{"$error":"#N/A"}},{"$error":"#N/A"}]
[null,null,485,null,null,null,null,null,null,null,null,null,null,null,null,null,null,null,{"$f":"VLOOKUP(R518,'DATOS ASP'!$I$22:$J$23, 2,FALSE)","v":{"$error":"#N/A"}},null,{"$f":"VLOOKUP(T518,'DATOS ASP'!$I$26:$J$27,2,FALSE)","v":{"$error":"#N/A"}},null,{"$f":"VLOOKUP(V518,'DATOS ASP'!$K$22:$L$24,2,FALSE)","v":{"$error":"#N/A"}},null,{"$f":"VLOOKUP(X518,'DATOS ASP'!$M$22:$N$24,2,FALSE)","v":{"$error":"#N/A"}},{"$error":"#N/A"}]
[null,null,486,null,null,null,null,null,null,null,null,null,null,null,null,null,null,null,{"$f":"VLOOKUP(R519,'DATOS ASP'!$I$22:$J$23, 2,FALSE)","v":{"$error":"#N/A"}},null,{"$f":"VLOOKUP(T519,'DATOS ASP'!$I$26:$J$27,2,FALSE)","v":{"$error":"#N/A"}},null,{"$f":"VLOOKUP(V519,'DATOS ASP'!$K$22:$L$24,2,FALSE)","v":{"$error":"#N/A"}},null,{"$f":"VLOOKUP(X519,'DATOS ASP'!$M$22:$N$24,2,FALSE)","v":{"$error":"#N/A"}},{"$error":"#N/A"}]
[null,null,487,null,null,null,null,null,null,null,null,null,null,null,null,null,null,null,{"$f":"VLOOKUP(R520,'DATOS ASP'!$I$22:$J$23, 2,FALSE)","v":{"$error":"#N/A"}},null,{"$f":"VLOOKUP(T520,'DATOS ASP'!$I$26:$J$27,2,FALSE)","v":{"$error":"#N/A"}},null,{"$f":"VLOOKUP(V520,'DATOS ASP'!$K$22:$L$24,2,FALSE)","v":{"$error":"#N/A"}},null,{"$f":"VLOOKUP(X520,'DATOS ASP'!$M$22:$N$24,2,FALSE)","v":{"$error":"#N/A"}},{"$error":"#N/A"}]
[null,null,488,null,null,null,null,null,null,null,null,null,null,null,null,null,null,null,{"$f":"VLOOKUP(R521,'DATOS ASP'!$I$22:$J$23, 2,FALSE)","v":{"$error":"#N/A"}},null,{"$f":"VLOOKUP(T521,'DATOS ASP'!$I$26:$J$27,2,FALSE)","v":{"$error":"#N/A"}},null,{"$f":"VLOOKUP(V521,'DATOS ASP'!$K$22:$L$24,2,FALSE)","v":{"$error":"#N/A"}},null,{"$f":"VLOOKUP(X521,'DATOS ASP'!$M$22:$N$24,2,FALSE)","v":{"$error":"#N/A"}},{"$error":"#N/A"}]
[null,null,489,null,null,null,null,null,null,null,null,null,null,null,null,null,null,null,{"$f":"VLOOKUP(R522,'DATOS ASP'!$I$22:$J$23, 2,FALSE)","v":{"$error":"#N/A"}},null,{"$f":"VLOOKUP(T522,'DATOS ASP'!$I$26:$J$27,2,FALSE)","v":{"$error":"#N/A"}},null,{"$f":"VLOOKUP(V522,'DATOS ASP'!$K$22:$L$24,2,FALSE)","v":{"$error":"#N/A"}},null,{"$f":"VLOOKUP(X522,'DATOS ASP'!$M$22:$N$24,2,FALSE)","v":{"$error":"#N/A"}},{"$error":"#N/A"}]
[null,null,490,null,null,null,null,null,null,null,null,null,null,null,null,null,null,null,{"$f":"VLOOKUP(R523,'DATOS ASP'!$I$22:$J$23, 2,FALSE)","v":{"$error":"#N/A"}},null,{"$f":"VLOOKUP(T523,'DATOS ASP'!$I$26:$J$27,2,FALSE)","v":{"$error":"#N/A"}},null,{"$f":"VLOOKUP(V523,'DATOS ASP'!$K$22:$L$24,2,FALSE)","v":{"$error":"#N/A"}},null,{"$f":"VLOOKUP(X523,'DATOS ASP'!$M$22:$N$24,2,FALSE)","v":{"$error":"#N/A"}},{"$error":"#N/A"}]
[null,null,491,null,null,null,null,null,null,null,null,null,null,null,null,null,null,null,{"$f":"VLOOKUP(R524,'DATOS ASP'!$I$22:$J$23, 2,FALSE)","v":{"$error":"#N/A"}},null,{"$f":"VLOOKUP(T524,'DATOS ASP'!$I$26:$J$27,2,FALSE)","v":{"$error":"#N/A"}},null,{"$f":"VLOOKUP(V524,'DATOS ASP'!$K$22:$L$24,2,FALSE)","v":{"$error":"#N/A"}},null,{"$f":"VLOOKUP(X524,'DATOS ASP'!$M$22:$N$24,2,FALSE)","v":{"$error":"#N/A"}},{"$error":"#N/A"}]
[null,null,492,null,null,null,null,null,null,null,null,null,null,null,null,null,null,null,{"$f":"VLOOKUP(R525,'DATOS ASP'!$I$22:$J$23, 2,FALSE)","v":{"$error":"#N/A"}},null,{"$f":"VLOOKUP(T525,'DATOS ASP'!$I$26:$J$27,2,FALSE)","v":{"$error":"#N/A"}},null,{"$f":"VLOOKUP(V525,'DATOS ASP'!$K$22:$L$24,2,FALSE)","v":{"$error":"#N/A"}},null,{"$f":"VLOOKUP(X525,'DATOS ASP'!$M$22:$N$24,2,FALSE)","v":{"$error":"#N/A"}},{"$error":"#N/A"}]
[null,null,493,null,null,null,null,null,null,null,null,null,null,null,null,null,null,null,{"$f":"VLOOKUP(R526,'DATOS ASP'!$I$22:$J$23, 2,FALSE)","v":{"$error":"#N/A"}},null,{"$f":"VLOOKUP(T526,'DATOS ASP'!$I$26:$J$27,2,FALSE)","v":{"$error":"#N/A"}},null,{"$f":"VLOOKUP(V526,'DATOS ASP'!$K$22:$L$24,2,FALSE)","v":{"$error":"#N/A"}},null,{"$f":"VLOOKUP(X526,'DATOS ASP'!$M$22:$N$24,2,FALSE)","v":{"$error":"#N/A"}},{"$error":"#N/A"}]
[null,null,494,null,null,null,null,null,null,null,null,null,null,null,null,null,null,null,{"$f":"VLOOKUP(R527,'DATOS ASP'!$I$22:$J$23, 2,FALSE)","v":{"$error":"#N/A"}},null,{"$f":"VLOOKUP(T527,'DATOS ASP'!$I$26:$J$27,2,FALSE)","v":{"$error":"#N/A"}},null,{"$f":"VLOOKUP(V527,'DATOS ASP'!$K$22:$L$24,2,FALSE)","v":{"$error":"#N/A"}},null,{"$f":"VLOOKUP(X527,'DATOS ASP'!$M$22:$N$24,2,FALSE)","v":{"$error":"#N/A"}},{"$error":"#N/A"}]
[null,null,495,null,null,null,null,null,null,null,null,null,null,null,null,null,null,null,{"$f":"VLOOKUP(R528,'DATOS ASP'!$I$22:$J$23, 2,FALSE)","v":{"$error":"#N/A"}},null,{"$f":"VLOOKUP(T528,'DATOS ASP'!$I$26:$J$27,2,FALSE)","v":{"$error":"#N/A"}},null,{"$f":"VLOOKUP(V528,'DATOS ASP'!$K$22:$L$24,2,FALSE)","v":{"$error":"#N/A"}},null,{"$f":"VLOOKUP(X528,'DATOS ASP'!$M$22:$N$24,2,FALSE)","v":{"$error":"#N/A"}},{"$error":"#N/A"}]
[null,null,496,null,null,null,null,null,null,null,null,null,null,null,null,null,null,null,{"$f":"VLOOKUP(R529,'DATOS ASP'!$I$22:$J$23, 2,FALSE)","v":{"$error":"#N/A"}},null,{"$f":"VLOOKUP(T529,'DATOS ASP'!$I$26:$J$27,2,FALSE)","v":{"$error":"#N/A"}},null,{"$f":"VLOOKUP(V529,'DATOS ASP'!$K$22:$L$24,2,FALSE)","v":{"$error":"#N/A"}},null,{"$f":"VLOOKUP(X529,'DATOS ASP'!$M$22:$N$24,2,FALSE)","v":{"$error":"#N/A"}},{"$error":"#N/A"}]
[null,null,497,null,null,null,null,null,null,null,null,null,null,null,null,null,null,null,{"$f":"VLOOKUP(R530,'DATOS ASP'!$I$22:$J$23, 2,FALSE)","v":{"$error":"#N/A"}},null,{"$f":"VLOOKUP(T530,'DATOS ASP'!$I$26:$J$27,2,FALSE)","v":{"$error":"#N/A"}},null,{"$f":"VLOOKUP(V530,'DATOS ASP'!$K$22:$L$24,2,FALSE)","v":{"$error":"#N/A"}},null,{"$f":"VLOOKUP(X530,'DATOS ASP'!$M$22:$N$24,2,FALSE)","v":{"$error":"#N/A"}},{"$error":"#N/A"}]
[null,null,498,null,null,null,null,null,null,null,null,null,null,null,null,null,null,null,{"$f":"VLOOKUP(R531,'DATOS ASP'!$I$22:$J$23, 2,FALSE)","v":{"$error":"#N/A"}},null,{"$f":"VLOOKUP(T531,'DATOS ASP'!$I$26:$J$27,2,FALSE)","v":{"$error":"#N/A"}},null,{"$f":"VLOOKUP(V531,'DATOS ASP'!$K$22:$L$24,2,FALSE)","v":{"$error":"#N/A"}},null,{"$f":"VLOOKUP(X531,'DATOS ASP'!$M$22:$N$24,2,FALSE)","v":{"$error":"#N/A"}},{"$f":"S531*((3*U531)+W531+Y531)","v":{"$error":"#N/A"}}]
[null,null,499,null,null,null,null,null,null,null,null,null,null,null,null,null,null,null,{"$f":"VLOOKUP(R532,'DATOS ASP'!$I$22:$J$23, 2,FALSE)","v":{"$error":"#N/A"}},null,{"$f":"VLOOKUP(T532,'DATOS ASP'!$I$26:$J$27,2,FALSE)","v":{"$error":"#N/A"}},null,{"$f":"VLOOKUP(V532,'DATOS ASP'!$K$22:$L$24,2,FALSE)","v":{"$error":"#N/A"}},null,{"$f":"VLOOKUP(X532,'DATOS ASP'!$M$22:$N$24,2,FALSE)","v":{"$error":"#N/A"}},{"$error":"#N/A"}]
[null,null,500,null,null,null,null,null,null,null,null,null,null,null,null,null,null,null,{"$f":"VLOOKUP(R533,'DATOS ASP'!$I$22:$J$23, 2,FALSE)","v":{"$error":"#N/A"}},null,{"$f":"VLOOKUP(T533,'DATOS ASP'!$I$26:$J$27,2,FALSE)","v":{"$error":"#N/A"}},null,{"$f":"VLOOKUP(V533,'DATOS ASP'!$K$22:$L$24,2,FALSE)","v":{"$error":"#N/A"}},null,{"$f":"VLOOKUP(X533,'DATOS ASP'!$M$22:$N$24,2,FALSE)","v":{"$error":"#N/A"}},{"$error":"#N/A"}]
[null,null,501,null,null,null,null,null,null,null,null,null,null,null,null,null,null,null,{"$f":"VLOOKUP(R534,'DATOS ASP'!$I$22:$J$23, 2,FALSE)","v":{"$error":"#N/A"}},null,{"$f":"VLOOKUP(T534,'DATOS ASP'!$I$26:$J$27,2,FALSE)","v":{"$error":"#N/A"}},null,{"$f":"VLOOKUP(V534,'DATOS ASP'!$K$22:$L$24,2,FALSE)","v":{"$error":"#N/A"}},null,{"$f":"VLOOKUP(X534,'DATOS ASP'!$M$22:$N$24,2,FALSE)","v":{"$error":"#N/A"}},{"$error":"#N/A"}]
[null,null,502,null,null,null,null,null,null,null,null,null,null,null,null,null,null,null,{"$f":"VLOOKUP(R535,'DATOS ASP'!$I$22:$J$23, 2,FALSE)","v":{"$error":"#N/A"}},null,{"$f":"VLOOKUP(T535,'DATOS ASP'!$I$26:$J$27,2,FALSE)","v":{"$error":"#N/A"}},null,{"$f":"VLOOKUP(V535,'DATOS ASP'!$K$22:$L$24,2,FALSE)","v":{"$error":"#N/A"}},null,{"$f":"VLOOKUP(X535,'DATOS ASP'!$M$22:$N$24,2,FALSE)","v":{"$error":"#N/A"}},{"$error":"#N/A"}]

{"sheet":"REP ASPEC IMPAC","index":4,"n_rows":375,"n_cols":12,"rows_kept":375,"cut":false,"hidden":false,"merged":[[114,1,114,2],[17,11,18,16],[3,7,4,7],[3,8,4,9],[5,7,9,9],[77,1,77,2],[0,0,9,1],[0,2,9,6],[11,6,11,9],[12,6,12,7],[13,6,13,7],[14,6,14,7],[37,1,37,2],[12,1,12,2],[13,1,13,2],[11,1,11,4],[14,1,14,2],[0,7,2,7],[0,8,2,9]]}
[null,null,"PROCESO SERVICIOS ADMINISTRATIVOS\n\nMATRIZ DE IDENTIFICACION DE ASPECTOS Y VALORACION DE IMPACTOS, REQUISITOS LEGALES Y OTROS REQUISITOS AMBIENTALES \n\nREPORTE",null,null,null,null,"F1.P22.SA ",43788]
[]
[]
[null,null,null,null,null,null,null,"Versión 5","Página 1 de 1"]
[]
[null,null,null,null,null,null,null,"CLASIFICACIÓN DE LA INFORMACIÓN:\n PÚBLICA"]
[]
[]
[]
[]
[]
[null,"1. CARÁCTER DEL IMPACTO ",null,null,null,null,"2. ACTIVIDADES QUE DERIVAN SITUACIONES DE EMERGENCIA"]
[null,"Total de impactos identificados ",null,"Negativo","Positivo",null,"Total de Actividades",null,"Si ","No"]
[null,{"$f":"+COUNTA('ASP E IMP'!R34:R535)","v":0},null,{"$f":"+COUNTIF('ASP E IMP'!R34:R535,\"Positivo (+)\")","v":0},{"$f":"+COUNTIF('ASP E IMP'!R34:R535, \"Negativo (-)\")","v":0},null,{"$f":"+COUNTA('ASP E IMP'!H34:H535)","v":0},null,{"$f":"+COUNTIF('ASP E IMP'!AB34:AB535,\"SI\")","v":0},{"$f":"+COUNTIF('ASP E IMP'!AB34:AB535,\"NO\")","v":0}]
[null,{"$f":"+B14*1/B14","v":{"$error":"#DIV/0!"}},null,{"$f":"+(D14*B15)/B14","v":{"$error":"#DIV/0!"}},{"$f":"+(B15*E14)/B14","v":{"$error":"#DIV/0!"}},null,{"$f":"+G14*1/G14","v":{"$error":"#DIV/0!"}},null,{"$f":"+(G15*I14)/G14","v":{"$error":"#DIV/0!"}},{"$f":"+(G15*J14)/G14","v":{"$error":"#DIV/0!"}}]
[]
[]
[null,null,null,null,null,null,null,null,null,null,null,"Para actualizar dar click en el siguiente botón"]
[]
[]
[]
[]
[]
[]
[]
[]
[]
[]
[]
[]
[]
[]
[]
[]
[]
[]
[]
[null,"3. ASPECTOS AMBIENTALES"]
[null,"ASPECTOS AMBIENTALES","FRECUENCIA"]
[null,"Total general"]
[]
[]
[]
[]
[]
[]
[]
[]
[]
[]
[]
[]
[]
[]
[]
[]
[]
[]
[]
[]
[]
[]
[]
[]
[]
[]
[]
[]
[]
[]
[]
[]
[]
[]
[]
[]
[]
[null,"4. IMPACTOS AMBIENTALES POSITIVOS"]
[null,"IMPACTOS AMBIENTALES","VALORACION DEL IMPACTO"]
[null,"Total general"]
[]
[]
[]
[]
[]
[]
[]
[]
[]
[]
[]
[]
[]
[]
[]
[]
[]
[]
[]
[]
[]
[]
[]
[]
[]
[]
[]
[]
[]
[]
[]
[]
[]
[]
[null,"5. IMPACTOS AMBIENTALES NEGATIVOS"]
[null,"IMPACTOS AMBIENTALES","VALORACIÓN DEL IMPACTO"]
[null,"Total general"]
[]
[]
[]
[]
[]
[]
[]
[]
[]
[]
[]
[]
[]
[]
[]
[]
[]
[]
[]
[]
[]
[]
[]
[]
[]
[]
[]
[]
[]
[]
[]
[]
[]
[]
[]
[]
[]
[]
[]
[]
[]
[]
[]
[]
[]
[]
[]
[]
[]
[]
[]
[]
[]
[]
[]
[]
[]
[]
[]
[]
[]
[]
[]
[]
[]
[]
[]
[]
[]
[]
[]
[]
[]
[]
[]
[]
[]
[]
[]
[]
[]
[]
[]
[]
[]
[]
[]
[]
[]
[]
[]
[]
[]
[]
[]
[]
[]
[]
[]
[]
[]
[]
[]
[]
[]
[]
[]
[]
[]
[]
[]
[]
[]
[]
[]
[]
[]
[]
[]
[]
[]
[]
[]
[]
[]
[]
[]
[]
[]
[]
[]
[]
[]
[]
[]
[]
[]
[]
[]
[]
[]
[]
[]
[]
[]
[]
[]
[]
[]
[]
[]
[]
[]
[]
[]
[]
[]
[]
[]
[]
[]
[]
[]
[]
[]
[]
[]
[]
[]
[]
[]
[]
[]
[]
[]
[]
[]
[]
[]
[]
[]
[]
[]
[]
[]
[]
[]
[]
[]
[]
[]
[]
[]
[]
[]
[]
[]
[]
[]
[]
[]
[]
[]
[]
[]
[]
[]
[]
[]
[]
[]
[]
[]
[]
[]
[]
[]
[]
[]
[]
[]
[null,"LISTADO DE ASPECTOS"]
[null,{"$f":"+B40","v":"Total general"}]
[null,{"$f":"+B41","v":0}]
[null,0]
[null,0]
[null,0]
[null,0]
[null,0]
[null,0]
[null,0]
[null,0]
[null,0]
[null,0]
[null,0]
[null,0]
[null,0]
[null,0]
[null,0]
[null,0]
[null,0]
[null,0]
[null,0]
[null,0]
[null,0]
[null,0]
[null,0]
[null,0]
[null,0]
[null,0]
[null,0]
[null,0]
[null,0]
[null,0]
[null,0]
[null,0]
[null,0]
[null,0]

{"sheet":"DATOS ASP","index":5,"n_rows":73,"n_cols":36,"rows_kept":73,"cut":false,"hidden":true,"merged":[[34,3,34,6],[40,3,40,6],[63,15,63,21],[47,3,47,6],[63,3,63,6],[63,7,63,10],[61,18,61,20]]}
["TIPO DE SEDE","REGIONAL","Sede_de_la_Dirección_General","Antioquia","Atlantico","Bogotá","Bolivar","Boyacá","Caldas","Caquetá","Cauca","Cesar","Cordoba","Cundinamarca","Choco","Huila","La_Guajira","Magdalena","Meta","Nariño","N_Santander","Quindio","Risaralda","Santander","Sucre","Tolima","Valle","Arauca","Casanare","Putumayo","S_Andres","Amazonas","Guainia","Guaviare","Vaupes","Vichada"]
["Sede de la Dirección General","Antioquia","Sede de la Dirección General","CZ Integral No. 1 Nororiental","CZ Norte Centro Histórico","CZ Ciudad Bolivar","CZ Norte Histórico y del Caribe","CZ Tunja 1","CZ Manizales 1","CZ Florencia 1","CZ Popayan","CZ Valledupar 1","CZ No. 1 Monteria","CZ Soacha","CZ Quibdó","CZ Neiva","CZ Riohacha 1","CZ Santa Marta Sur","CZ No. 1 Villavicencio","CZ Pasto 1","CZ Cúcuta 1","CZ Armenia Sur","CZ Pereira","CZ Bucaramanga Norte","CZ Boston","CZ Ibagué Jordán","CZ Suroriental","CZ Arauca","CZ Yopal","CZ Mocoa","CZ Los Almendros","CZ Amazonas","CZ Guainia","CZ Guaviare","CZ Vaupes","CZ Vichada"]
["Regional","Atlantico",null,"CZ Integral No. 2 Noroccidental","CZ Sur Occidente","CZ Tunjuelito","CZ de la Virgen y Turistico","CZ Tunja 2","CZ Manizales 2","CZ Florencia 2","CZ Centro","CZ Valledupar 2","CZ Cereté","CZ Zipaquira","CZ Istmina","CZ Garzon","CZ Riohacha 2","CZ Santa Marta Norte","CZ No. 2 Villavicencio","CZ Pasto 2","CZ Cúcuta 2","CZ Armenia Norte","CZ La Virginia","CZ Bucaramanga Sur","CZ Norte","CZ Ibagué Galán","CZ Nororiental","CZ Saravena","CZ Paz de Ariporo","CZ Sibundoy","UL S Andres","UL Puerto Nariño",null,"UL_Guaviare",null,"UL_Vichada"]
[null,"Bogotá",null,"CZ Integral No. 4 Sur Oriental","CZ Baranoa","CZ Usme","CZ Industrial de la Bahía","CZ Sogamoso","CZ Occidente","CZ Puerto Rico","CZ Indigena","CZ Chiriguaná","CZ Planeta Rica","CZ Choconta","CZ Bahía Solano","CZ La Plata","CZ Fonseca","CZ Del Rio","CZ No. 3 Granada","CZ Tumaco","CZ Cúcuta 3","CZ Calarcá","CZ Dosquebradas","CZ Carlos Lleras Restrepo","CZ Sincelejo","CZ Ibagué Centro","CZ Ladera","CZ Tame","CZ Villanueva","CZ Puerto Asis","UL Providencia",null,null,"UL Calamar",null,"UL Primavera"]
[null,"Bolivar",null,"CZ No. 5 Aburra Norte","CZ Sabanalarga","CZ San Cristobal Sur","CZ Turbaco","CZ Duitama","CZ Oriente","CZ Belén de los Andaquies","CZ Sur","CZ Aguachica","CZ Tierralta","CZ Pacho","CZ Riosucio","CZ Pitalito","CZ Manaure","CZ Ciénaga","CZ No. 4 Acacias","CZ Ipiales","CZ Ocaña",null,"CZ Belen de Umbría","CZ Luis Carlos Galán Sarmiento","CZ La Mojana","CZ Líbano","CZ Centro",null,null,"CZ La Hormiga",null,null,null,"UL Retormno",null,"UL Rosalia"]
[null,"Boyacá",null,"CZ No. 6 Aburra Sur","CZ Sabanagrande","CZ Kennedy","CZ El Carmen de Bolivar","CZ Chiquinquira","CZ Norte",null,"CZ Norte","CZ Agustin Codazzi","CZ Montelíbano","CZ Villeta","CZ Tadó","CZ La Gaitana","CZ Maicao","CZ Fundación","CZ No. 5 Puerto López","CZ Túquerres","CZ Pamplona",null,"CZ Santa Rosa de Cabal","CZ Yariquies",null,"CZ Lérida","CZ Sur",null,null,null,null,null,null,"UL Miraflores",null,"UL Cumaribo"]
["UBICACIÓN","Caldas",null,"CZ No. 7 Bajo Cauca","CZ Hipódromo","CZ REVIVIR","CZ Magangué","CZ Garagoa","CZ Sur Oriente",null,"CZ Macizo Colombiano",null,"CZ Lórica","CZ Facatativa",null,null,"CZ Nazareth","CZ Plato",null,"CZ La Unión","CZ Tibú",null,null,"CZ La Floresta",null,"CZ Honda","CZ Jamundí"]
["Sede de la Dirección General","Caquetá",null,"CZ No. 8 La Meseta","CZ Sur Oriente","CZ Puente Aranda","CZ Mompox","CZ Puerto Boyacá","UL_Caldas",null,"CZ Costa Pacífica",null,"CZ Sahagún","CZ Fusagasuga",null,null,null,"CZ El Banco",null,"CZ Barbacoas",null,null,null,"CZ San Gil",null,"CZ Espinal","CZ Yumbo"]
["Regional","Cauca",null,"CZ No. 9 Magdalena Medio",null,"CZ Bosa","CZ Simiti","CZ Soata","Centro Local Chinchina",null,null,null,"CZ San Andrés de Sotavento","CZ Caqueza",null,null,null,"CZ Santa Ana",null,"CZ Remolino",null,null,null,"CZ Socorro",null,"CZ Chaparral","CZ Palmira"]
["Centro Zonal","Cesar",null,"CZ No. 10 Occidente",null,"CZ Rafael Uribe",null,"CZ El Cocuy",null,null,null,null,null,"CZ Gacheta",null,null,null,null,null,"UL Nariño",null,null,null,"CZ Vélez",null,"CZ Purificación","CZ Buga"]
["Unidad_Administrativa","Cordoba",null,"CZ No. 11 Occidente Medio",null,"CZ Santa Fe",null,"CZ Miraflores",null,null,null,null,null,"CZ Girardot",null,null,null,null,null,"UL El Charco",null,null,null,"CZ Málaga",null,"CZ Melgar","CZ Tulua"]
["Unidad Local","Cundinamarca",null,"CZ No. 12 Oriente",null,"CZ Fontibón",null,"CZ Moniquira",null,null,null,null,null,"CZ La Mesa",null,null,null,null,null,"UL La Cruz",null,null,null,null,null,null,"CZ Sevilla"]
[null,"Choco",null,"CZ No. 13 Porce Nus",null,"CZ Barrios Unidos",null,"CZ Otanche",null,null,null,null,null,"CZ Ubate",null,null,null,null,null,null,null,null,null,null,null,null,"CZ Roldanillo"]
[null,"Huila",null,"CZ No. 14 Suroeste",null,"CZ Engativá",null,null,null,null,null,null,null,"CZ San Juan de Rioseco",null,null,null,null,null,null,null,null,null,null,null,null,"CZ Cartago"]
[null,"La_Guajira",null,"CZ No. 15 Penderisco",null,"CZ Suba",null,null,null,null,null,null,null,null,null,null,null,null,null,null,null,null,null,null,null,null,"CZ Buenaventura"]
["EMERGENCIA","Magdalena",null,"CZ No. 16 Uraba",null,"CZ Usaquen",null,null,null,null,null,null,null,null,null,null,null,null,null,null,null,null,null,null,null,null,"CZ Restaurar"]
["SI","Meta",null,"CZ No. 17 Oriente Medio",null,"CZ Mártires"]
["NO","Nariño"]
[null,"N_Santander"]
[null,"Quindio"]
["CUMPLIMIENTO","Risaralda",null,null,null,null,null,null,"Carácter",null,"Frecuencia",null,"Extensión"]
["SI","Santander",null,"Sede de la Dirección General","MyP",null,null,null,"Positivo (+)",1,"Constante (3)",3,"Regional (3)",3]
["NO","Sucre",null,"Regional","Regional",null,null,null,"Negativo (-)",-1,"Frecuente (2)",2,"Local (2)",2]
[null,"Tolima",null,null,null,null,null,null,null,null,"Eventual (1)",1,"Puntual (1)",1]
[null,"Valle",null,null,null,null,null,null,"Magnitud"]
[null,"Arauca",null,null,null,null,null,null,"Alta (2)",2]
[null,"Casanare",null,null,null,null,null,null,"Baja (1)",1]
[null,"Putumayo"]
[null,"S_Andres"]
[null,"Amazonas"]
[null,"Guainia"]
[null,"Guaviare"]
[null,"Vaupes"]
[null,"Vichada"]
[null,"Sede_de_la_Dirección_General",null,"SUBPROCESO"]
["MyP",null,null,"Promocion_y_Prevencion","Proteccion","Relación_con_el_ciudadano","Todos_los_Procesos"]
["Todos_los_Procesos",null,null,"Primera_infancia","Adopciones"]
["Direccionamiento_Estratégico",null,null,"Nutricion","Restablecimiento_de_derechos"]
["Mejora_ e_Innovaciòn",null,null,"Niñes_y_adolescencia","Responsabilidad_penal_adolescente"]
["Coordinación_y_Articulación_del_SNBF_y_Agentes ",null,null,"Familia"]
["Comunicaciòn_estratégica",null,null,"MODALIDAD-PROMOCION Y PREVENCION"]
["Relación_con_el_ciudadano",null,null,"Primera_infancia","Nutricion","Niñes_y_adolescencia","Familia"]
["Promocion_y_Prevencion",null,null,"Institucional","Mil_dias_para_cambiar_el_mundo","Estrategia_de_atencion_integral_para_niños_niñas_y_adolescente","Unidades_de_apoyo_y_fortalecimiento_a_familias"]
["Proteccion",null,null,"Familiar","Centro_de_recuperacion_nutricional","Estrategia_construyendo_juntos_entornos_protectores","Comunidades_rurales"]
["Gestión_de_la_Tecnología_e_Información",null,null,"Comunitaria","Materno_infantil","Estrategia_acciones_masivas_de_alto_impacto_social","Otras_formas_de_atencion"]
["Gestión_Financiera",null,null,"Propia_e_intercultural",null,null,"Territorios_etnicos_con_bienestar"]
["Adquisición_de_Bienes_y_Servicios ",null,null,null,null,null,"Familias_con_bienestar_para_la_paz"]
["Servicios_Administrativos",null,null,"MODALIDAD - PROTECCION"]
["Gestión_del_Talento_Humano",null,null,"Adopciones","Restablecimiento_de_derechos","Responsabilidad_penal_adolecente"]
["Gestión_Jurídica",null,null,null,null,"Ubicación_inicial"]
["Inspección_Vigilancia_y_Control",null,null,null,null,"Apoyo_y_fortalecimiento_a_la_familia"]
["Monitoreo_y_Seguimiento_a_la_Gestiòn ",null,null,null,null,"Atencion_en_medio_diferencial_al_de_la_familia_de_origen"]
["Evaluación_Independiente",null,null,null,null,"Acompañamiento_al_egreso_de_las_medidas_de_restablecimiento_en_administracion_de_justicia"]
["Sede_de_la_Dirección_General",null,null,null,null,"Centro_transitorio"]
[null,null,null,null,null,"Amonestacion"]
[null,null,null,null,null,"Reglas_de_conducta"]
["Servicios_Administrativos",null,null,null,null,"Prestacion_de_servicios_a_la_comunidad"]
["Bodega de inservibles",null,null,null,null,"Libertad_vigilada_asistida"]
["Archivo Gestión Documental",null,null,null,null,"Medio_semicerrado_semicerrado_internado"]
["Almacen",null,null,null,null,"Centro_de_internamiento_preventivo_CIP"]
[null,null,null,null,null,"Centros_de_atencion_especializada_CAE"]
[null,null,null,null,null,"Apoyo_postinstitucional_SRPA"]
[null,null,null,null,null,"Centros_de_integracion_social"]
[null,null,null,"SERVICIOS PRIMERA INFANCIA",null,null,null,"SERVICIOS NUTRICION",null,null,null,"NIÑES Y ADOLESCENCIA (NO HAY)","FAMILIA (NO HAY)","ADOPCIONES (NO HAY)","RESTABLECIMIENTO DE DERECHOS (NO HAY)","SERVICIOS RESPONSABILIDAD PENAL"]
[null,null,null,"Institucional","Familiar","Comunitaria","Propia_e_intercultural","Mil_dias_para_cambiar_el_mundo","Centro_de_recuperacion_nutricional","Materno_infantil",null,null,null,null,null,"Ubicación_inicial","Apoyo_y_fortalecimiento_a_la_familia","Atencion_en_medio_diferencial_al_de_la_familia_de_origen","Centro_transitorio","Centro_de_internamiento_preventivo_CIP","Centros_de_atencion_especializada_CAE","Centros_de_integracion_social"]
[null,null,null,"Centros_de_desarrollo_Integral_CDI","Desarrollo_Infantil_en_Medio_Familiar_DIMF","HCB Familiares ",null,"Unidad_de_servicios_UDS","Centro_de_recuperacion_nutricional_CRN","Instituciones_prestadoras_de_salud",null,null,null,null,null,"Centro de emergencia","Externado","Hogar Sustituto","Centro transitorio","Centro internado preventivo","Centros especializados","Centro de Justicia"]
[null,null,null,"Hogares_Infantiles_HI","Hogares_Comunitarios_de_Bienestar_Familia_Mujer_e_Infancia_FAMI","HCB Agrupados",null,null,null,null,null,null,null,null,null,"Hogar de paso","Hogar Gestor","Casa hogar"]
[null,null,null,"Jardines_Sociales",null,"HCB Cualificados o Integrales",null,null,null,null,null,null,null,null,null,null,null,"Internados"]
[null,null,null,"Hogares_Empresariales",null,null,null,null,null,null,null,null,null,null,null,null,null,"Casa acogida"]
[null,null,null,"Atencion_en_Centros_de_Reclusion_de_Mujeres",null,null,null,null,null,null,null,null,null,null,null,null,null,"Casa de protección"]
[null,null,null,"Preescolar_integral_Servicio_de_atención_tradicional"]
[null,null,null,"Hogares_Comunitarios_de_Bienestar_Múltiples"]
[null,null,null,"Preescolar_integral_Servicio_de_atención_tradicional"]

{"sheet":"REQUISITOS LEGALES","index":6,"n_rows":13,"n_cols":14,"rows_kept":13,"cut":false,"hidden":false,"merged":[[11,9,11,13],[3,8,7,13],[11,2,11,8],[0,3,8,4],[0,0,8,2],[0,5,2,6],[0,7,2,7],[3,7,4,7],[3,5,4,6],[5,5,8,7]]}
[null,null,null,"PROCESO SERVICIOS ADMINISTRATIVOS\n\nMATRIZ DE IDENTIFICACION DE ASPECTOS Y VALORACION DE IMPACTOS, REQUISITOS LEGALES Y OTROS REQUISITOS AMBIENTALES \n\n",null,"F1.P22.SA ",null,43788,null,"SI"]
[null,null,null,null,null,null,null,null,null,"NO"]
[]
[null,null,null,null,null,"Versión 5",null,"Página 1 de 1"]
[]
[null,null,null,null,null,"CLASIFICACIÓN DE LA INFORMACIÓN:\n PÚBLICA"]
[]
[]
[]
[]
[]
[null,null,"REQUISITOS LEGALES",null,null,null,null,null,null,"PLAN DE ACCION "]
[null,null,"Aspecto Ambiental","Norma y título","Autoridad que Emite","ArtÍculos Aplicables","CUMPLE SI/NO","EVIDENCIA DE CUMPLIMIENTO","SEDES DE INCUMPLIMIENTO","JUSTIFICACION DEL INCUMPLIMIENTO","ACTIVIDADES","RESPONSABLE","FECHA  CUMPLIMIENTO","EVIDENCIA"]

{"sheet":"REP REQ LEG","index":7,"n_rows":8,"n_cols":10,"rows_kept":8,"cut":false,"hidden":false,"merged":[[0,2,0,9],[1,2,3,3],[1,4,3,7],[3,8,3,9],[6,9,6,18]],"read":"row_number_cap"}
[]
[null,null,null,null,"\nPROCESO SERVICIOS ADMINISTRATIVOS\n\nMATRIZ DE IDENTIFICACION DE ASPECTOS Y VALORACION DE IMPACTOS, REQUISITOS LEGALES Y OTROS REQUISITOS AMBIENTALES \n\nREPORTE\n\n",null,null,null,"F1.P22.SA ",43788]
[null,null,null,null,null,null,null,null,"Versión 5","Pagina 1 de 1"]
[null,null,null,null,null,null,null,null,"CLASIFICACIÓN DE LA INFORMACIÓN:\nPÚBLICA"]
[null,null,null,null,null,null,null,null,"CUMPLIMIENTO","(Varios elementos)"]
[null,null,"TOTAL DE REQUISITOS","TOTAL DE REQUISITOS \"NO CUMPLIDOS\"","TOTAL DE REQUISITOS  \"CUMPLIDOS\"","% DE NO CUMPLIENTO","% DE CUMPLIENTO"]
[null,null,{"$f":"+COUNTA('REQUISITOS LEGALES'!F14:F201)","v":0},{"$f":"+COUNTIF('REQUISITOS LEGALES'!H14:H201,\"NO\")","v":0},{"$f":"+C7-D7","v":0},{"$f":"++D7/C7","v":{"$error":"#DIV/0!"}},{"$f":"+E7/C7","v":{"$error":"#DIV/0!"}},null,"REQUISITOS INCUMPLIDOS","REQUISITOS INCUMPLIDOS"]
[null,null,null,null,null,null,null,null,"Total general"]